Workbook

Sheet Intro
A1: This workbook uses Maddison data on Real GDP per person for many countries over long periods of time to illustrate concepts and issues about economic growth.
A3: Software Requirements:
B4: You need Microsoft EXCEL, WINDOWS DESKTOP version 2007 or greater to get full functionality from this file.
C5: The file can be opened with Mac Excel, but it uses Visual Basic code that may not be fully supported on a Mac.
C6: This file will NOT work with a browser-version of Excel because it contains macros. You must open it with a DESKTOP-version of Excel.
B8: You must be sure to Enable Content or the buttons and code in this macro-enabled workbook will not work.
A10: Let's see if you are ready to go -- CLICK the button below.
A13: If the button above does not display a message on your screen when you click it, please close the workbook and open it again, making sure that you Enable Content.
B14: Search "enable macros" in Excel's Help for more information on how to do this.
B15: You can also click the link below for help from the internet:
B16: www.google.com/search?q=excel+enable+macros
A18: Once you get the Click to Test button (above) to work, you are ready to begin.

Sheet IncomeGroups
A1: Quick and Basic Geography
A3: World Bank classification | B3: Downloaded Aug 2023; based on 2022
A4: https://datahelpdesk.worldbank.org/knowledgebase/articles/906519-world-bank-country-and-lending-groups
A5: 218 countries, but Venezuela, RB was undefined in 2022
A7: Number in each group: | E7: Total
A8: =COUNTA(A11:A104) -> 26 | B8: =COUNTA(B11:B104) -> 54 | C8: =COUNTA(C11:C104) -> 54 | D8: =COUNTA(D11:D104) -> 83 | E8: =SUM(A8:D8) -> 217
A10: Low Income | B10: Lower Middle Income | C10: Upper Middle Income | D10: High Income
A11: Afghanistan | B11: Angola | C11: Albania | D11: Aruba
A12: Burundi | B12: Benin | C12: Argentina | D12: Andorra
A13: Burkina Faso | B13: Bangladesh | C13: Armenia | D13: United Arab Emirates
A14: Central African Republic | B14: Bolivia | C14: Azerbaijan | D14: American Samoa
A15: Congo, Dem. Rep. | B15: Bhutan | C15: Bulgaria | D15: Antigua and Barbuda
A16: Eritrea | B16: Côte d’Ivoire | C16: Bosnia and Herzegovina | D16: Australia
A17: Ethiopia | B17: Cameroon | C17: Belarus | D17: Austria
A18: Gambia, The | B18: Congo, Rep. | C18: Belize | D18: Belgium
A19: Guinea-Bissau | B19: Comoros | C19: Brazil | D19: Bahrain
A20: Liberia | B20: Cabo Verde | C20: Botswana | D20: Bahamas, The
A21: Madagascar | B21: Djibouti | C21: China | D21: Bermuda
A22: Mali | B22: Algeria | C22: Colombia | D22: Barbados
A23: Mozambique | B23: Egypt, Arab Rep. | C23: Costa Rica | D23: Brunei Darussalam
A24: Malawi | B24: Micronesia, Fed. Sts. | C24: Cuba | D24: Canada
A25: Niger | B25: Ghana | C25: Dominica | D25: Switzerland
A26: Korea, Dem. People's Rep. | B26: Guinea | C26: Dominican Republic | D26: Channel Islands
A27: Rwanda | B27: Honduras | C27: Ecuador | D27: Chile
A28: Sudan | B28: Haiti | C28: Fiji | D28: Curaçao
A29: Sierra Leone | B29: India | C29: Gabon | D29: Cayman Islands
A30: Somalia | B30: Iran, Islamic Rep. | C30: Georgia | D30: Cyprus
A31: South Sudan | B31: Jordan | C31: Equatorial Guinea | D31: Czechia
A32: Syrian Arab Republic | B32: Kenya | C32: Grenada | D32: Germany
A33: Chad | B33: Kyrgyz Republic | C33: Guatemala | D33: Denmark
A34: Togo | B34: Cambodia | C34: Indonesia | D34: Spain
A35: Uganda | B35: Kiribati | C35: Iraq | D35: Estonia
A36: Yemen, Rep. | B36: Lao PDR | C36: Jamaica | D36: Finland
B37: Lebanon | C37: Kazakhstan | D37: France | F37: Source: | G37: https://datatopics.worldbank.org/world-development-indicators/the-world-by-income-and-region.html
B38: Sri Lanka | C38: Libya | D38: Faroe Islands | G38: Click on the map or copy the link above and paste it in a browser for an interactive version of this map -- it displays country name and income category as you hover over the map
B39: Lesotho | C39: St. Lucia | D39: United Kingdom
B40: Morocco | C40: Moldova | D40: Gibraltar
B41: Myanmar | C41: Maldives | D41: Greece
B42: Mongolia | C42: Mexico | D42: Greenland
B43: Mauritania | C43: Marshall Islands | D43: Guam
B44: Nigeria | C44: North Macedonia | D44: Guyana
B45: Nicaragua | C45: Montenegro | D45: Hong Kong SAR, China
B46: Nepal | C46: Mauritius | D46: Croatia
B47: Pakistan | C47: Malaysia | D47: Hungary
B48: Philippines | C48: Namibia | D48: Isle of Man
B49: Papua New Guinea | C49: Peru | D49: Ireland
B50: Senegal | C50: Palau | D50: Iceland
B51: Solomon Islands | C51: Paraguay | D51: Israel
B52: São Tomé and Príncipe | C52: West Bank and Gaza | D52: Italy
B53: Eswatini | C53: Russian Federation | D53: Japan
B54: Tajikistan | C54: El Salvador | D54: St. Kitts and Nevis
B55: Timor-Leste | C55: Serbia | D55: Korea, Rep.
B56: Tunisia | C56: Suriname | D56: Kuwait
B57: Tanzania | C57: Thailand | D57: Liechtenstein
B58: Ukraine | C58: Turkmenistan | D58: Lithuania
B59: Uzbekistan | C59: Tonga | D59: Luxembourg
B60: Vietnam | C60: Türkiye | D60: Latvia
B61: Vanuatu | C61: Tuvalu | D61: Macao SAR, China
B62: Samoa | C62: St. Vincent and the Grenadines | D62: St. Martin (French part)
B63: Zambia | C63: Kosovo | D63: Monaco
B64: Zimbabwe | C64: South Africa | D64: Malta
D65: Northern Mariana Islands
D66: New Caledonia
D67: Netherlands
D68: Norway
D69: Nauru
D70: New Zealand
D71: Oman
D72: Panama
D73: Poland
D74: Puerto Rico
D75: Portugal
D76: French Polynesia
D77: Qatar
D78: Romania
D79: Saudi Arabia
D80: Singapore
D81: San Marino
D82: Slovak Republic
D83: Slovenia
D84: Sweden
D85: Sint Maarten (Dutch part)
D86: Seychelles
D87: Turks and Caicos Islands
D88: Trinidad and Tobago
D89: Taiwan, China
D90: Uruguay
D91: United States
D92: British Virgin Islands
D93: Virgin Islands (U.S.)

Sheet Sequences (hidden)
A1: This worksheet explains how to impress students with the power of compounding.
A3: The basic point is simple: a geometric progression is multiplicative and, therefore, more powerful than an arithmetic (additive) sequence.
A5: Compare adding $1 million per day to $1 to having $1 grow at 10% per day using a spreadsheet.
A6: This is demonstrated below, but do not use this sheet. Do it live in class starting from a blank worksheet. It is much more powerful that way.
A8: Simply enter Day, Arithmetic, and Geometric labels in three cells, side by side.
A9: For the Arithmetic series, add 1 million and have the other one grow multiplicatively, =(1.1)*cell above. Then fill all three down about 100 rows.
A10: Nothing too exciting. Fill down another 250 or so rows, so a year has gone by. Wow!!!
A11: Make a chart and title it "10% growth crushes 1 million per day" or something even more outlandish (perhaps getting suggestions from your students).
A13: You can state the following amazing claim: no matter what constant amount and growth rate you choose, the multiplicative series will eventually catch up and pass the arithmetic series.
A15: You can make the spreadsheet more flexible, setting up separate cells for the constant additive amount and the growth rate of the geometric series.
A17: Then you can answer the question of how a newborn baby comes to have a few trilion cells starting from one that divides into two.
A18: A 100% growth rate (doubling) is going to produce fantastically large numbers quickly (as your spreadsheet can show).
A20: You can change the constant growth rate to make clear that seemingly small changes in the rate of grwoth has a huge effect over time.
A22: In my experience, students are literally wowed by these simple demonstrations and they have a lasting impact.
A24: Day | B24: Arithmetic | C24: Geometric
A25: 1 | B25: 1 | C25: 1
A26: 2 | B26: =B25+1000000 -> 1000001 | C26: =(1.1)*C25 -> 1.1
A27: 3 | B27: =B26+1000000 -> 2000001 | C27: =(1.1)*C26 -> 1.21
A28: 4 | B28: 3000001 | C28: 1.331
A29: 5 | B29: 4000001 | C29: 1.4641
A30: 6 | B30: 5000001 | C30: 1.61051
A31: 7 | B31: 6000001 | C31: 1.771561
A32: 8 | B32: 7000001 | C32: 1.9487171
A33: 9 | B33: 8000001 | C33: 2.14358881
A34: 10 | B34: 9000001 | C34: 2.357947691
A35: 11 | B35: 10000001 | C35: 2.59374246
A36: 12 | B36: 11000001 | C36: 2.853116706
A37: 13 | B37: 12000001 | C37: 3.138428377
A38: 14 | B38: 13000001 | C38: 3.452271214
A39: 15 | B39: 14000001 | C39: 3.797498336
A40: 16 | B40: 15000001 | C40: 4.177248169
A41: 17 | B41: 16000001 | C41: 4.594972986
A42: 18 | B42: 17000001 | C42: 5.054470285
A43: 19 | B43: 18000001 | C43: 5.559917313
A44: 20 | B44: 19000001 | C44: 6.115909045
A45: 21 | B45: 20000001 | C45: 6.727499949
A46: 22 | B46: 21000001 | C46: 7.400249944
A47: 23 | B47: 22000001 | C47: 8.140274939
A48: 24 | B48: 23000001 | C48: 8.954302433
A49: 25 | B49: 24000001 | C49: 9.849732676
A50: 26 | B50: 25000001 | C50: 10.83470594
A51: 27 | B51: 26000001 | C51: 11.91817654
A52: 28 | B52: 27000001 | C52: 13.10999419
A53: 29 | B53: 28000001 | C53: 14.42099361
A54: 30 | B54: 29000001 | C54: 15.86309297
A55: 31 | B55: 30000001 | C55: 17.44940227
A56: 32 | B56: 31000001 | C56: 19.1943425
A57: 33 | B57: 32000001 | C57: 21.11377675
A58: 34 | B58: 33000001 | C58: 23.22515442
A59: 35 | B59: 34000001 | C59: 25.54766986
A60: 36 | B60: 35000001 | C60: 28.10243685
A61: 37 | B61: 36000001 | C61: 30.91268053
A62: 38 | B62: 37000001 | C62: 34.00394859
A63: 39 | B63: 38000001 | C63: 37.40434344
A64: 40 | B64: 39000001 | C64: 41.14477779
A65: 41 | B65: 40000001 | C65: 45.25925557
A66: 42 | B66: 41000001 | C66: 49.78518112
A67: 43 | B67: 42000001 | C67: 54.76369924
A68: 44 | B68: 43000001 | C68: 60.24006916
A69: 45 | B69: 44000001 | C69: 66.26407608
A70: 46 | B70: 45000001 | C70: 72.89048369
A71: 47 | B71: 46000001 | C71: 80.17953205
A72: 48 | B72: 47000001 | C72: 88.19748526
A73: 49 | B73: 48000001 | C73: 97.01723378
A74: 50 | B74: 49000001 | C74: 106.7189572
A75: 51 | B75: 50000001 | C75: 117.3908529
A76: 52 | B76: 51000001 | C76: 129.1299382
A77: 53 | B77: 52000001 | C77: 142.042932
A78: 54 | B78: 53000001 | C78: 156.2472252
A79: 55 | B79: 54000001 | C79: 171.8719477
A80: 56 | B80: 55000001 | C80: 189.0591425
A81: 57 | B81: 56000001 | C81: 207.9650567
A82: 58 | B82: 57000001 | C82: 228.7615624
A83: 59 | B83: 58000001 | C83: 251.6377186
A84: 60 | B84: 59000001 | C84: 276.8014905
A85: 61 | B85: 60000001 | C85: 304.4816395
A86: 62 | B86: 61000001 | C86: 334.9298035
A87: 63 | B87: 62000001 | C87: 368.4227838
A88: 64 | B88: 63000001 | C88: 405.2650622
A89: 65 | B89: 64000001 | C89: 445.7915685
A90: 66 | B90: 65000001 | C90: 490.3707253
A91: 67 | B91: =B90+1000000 -> 66000001 | C91: =(1.1)*C90 -> 539.4077978
A92: 68 | B92: 67000001 | C92: 593.3485776
A93: 69 | B93: 68000001 | C93: 652.6834354
A94: 70 | B94: 69000001 | C94: 717.9517789
A95: 71 | B95: 70000001 | C95: 789.7469568
A96: 72 | B96: 71000001 | C96: 868.7216525
A97: 73 | B97: 72000001 | C97: 955.5938177
A98: 74 | B98: 73000001 | C98: 1051.1532
A99: 75 | B99: 74000001 | C99: 1156.268519
A100: 76 | B100: 75000001 | C100: 1271.895371
A101: 77 | B101: 76000001 | C101: 1399.084909
A102: 78 | B102: 77000001 | C102: 1538.993399
A103: 79 | B103: 78000001 | C103: 1692.892739
A104: 80 | B104: 79000001 | C104: 1862.182013
A105: 81 | B105: 80000001 | C105: 2048.400215
A106: 82 | B106: 81000001 | C106: 2253.240236
A107: 83 | B107: 82000001 | C107: 2478.56426
A108: 84 | B108: 83000001 | C108: 2726.420686
A109: 85 | B109: 84000001 | C109: 2999.062754
A110: 86 | B110: 85000001 | C110: 3298.96903
A111: 87 | B111: 86000001 | C111: 3628.865933
A112: 88 | B112: 87000001 | C112: 3991.752526
A113: 89 | B113: 88000001 | C113: 4390.927778
A114: 90 | B114: 89000001 | C114: 4830.020556
A115: 91 | B115: 90000001 | C115: 5313.022612
A116: 92 | B116: 91000001 | C116: 5844.324873
A117: 93 | B117: 92000001 | C117: 6428.75736
A118: 94 | B118: 93000001 | C118: 7071.633096
A119: 95 | B119: 94000001 | C119: 7778.796406
A120: 96 | B120: 95000001 | C120: 8556.676047
A121: 97 | B121: 96000001 | C121: 9412.343651
A122: 98 | B122: 97000001 | C122: 10353.57802
A123: 99 | B123: 98000001 | C123: 11388.93582
A124: 100 | B124: 99000001 | C124: 12527.8294
A125: 101 | B125: =B124+1000000 -> 100000001 | C125: 13780.61234
A126: 102 | B126: 101000001 | C126: 15158.67357
A127: 103 | B127: 102000001 | C127: 16674.54093
A128: 104 | B128: 103000001 | C128: 18341.99502
A129: 105 | B129: 104000001 | C129: 20176.19453
A130: 106 | B130: 105000001 | C130: 22193.81398
A131: 107 | B131: 106000001 | C131: 24413.19538
A132: 108 | B132: 107000001 | C132: 26854.51492
A133: 109 | B133: 108000001 | C133: 29539.96641
A134: 110 | B134: 109000001 | C134: 32493.96305
A135: 111 | B135: 110000001 | C135: 35743.35935
A136: 112 | B136: 111000001 | C136: 39317.69529
A137: 113 | B137: 112000001 | C137: 43249.46482
A138: 114 | B138: 113000001 | C138: 47574.4113
A139: 115 | B139: 114000001 | C139: 52331.85243
A140: 116 | B140: 115000001 | C140: 57565.03767
A141: 117 | B141: 116000001 | C141: 63321.54144
A142: 118 | B142: 117000001 | C142: 69653.69558
A143: 119 | B143: 118000001 | C143: 76619.06514
A144: 120 | B144: 119000001 | C144: 84280.97165
A145: 121 | B145: 120000001 | C145: 92709.06882
A146: 122 | B146: 121000001 | C146: 101979.9757
A147: 123 | B147: 122000001 | C147: 112177.9733
A148: 124 | B148: 123000001 | C148: 123395.7706
A149: 125 | B149: 124000001 | C149: 135735.3477
A150: 126 | B150: 125000001 | C150: 149308.8824
A151: 127 | B151: 126000001 | C151: 164239.7707
A152: 128 | B152: 127000001 | C152: 180663.7477
A153: 129 | B153: 128000001 | C153: 198730.1225
A154: 130 | B154: 129000001 | C154: 218603.1348
A155: 131 | B155: 130000001 | C155: =(1.1)*C154 -> 240463.4482
A156: 132 | B156: 131000001 | C156: 264509.7931
A157: 133 | B157: 132000001 | C157: 290960.7724
A158: 134 | B158: 133000001 | C158: 320056.8496
A159: 135 | B159: 134000001 | C159: 352062.5346
A160: 136 | B160: 135000001 | C160: 387268.788
A161: 137 | B161: 136000001 | C161: 425995.6668
A162: 138 | B162: 137000001 | C162: 468595.2335
A163: 139 | B163: 138000001 | C163: 515454.7568
A164: 140 | B164: 139000001 | C164: 567000.2325
A165: 141 | B165: 140000001 | C165: 623700.2558
A166: 142 | B166: 141000001 | C166: 686070.2814
A167: 143 | B167: 142000001 | C167: 754677.3095
A168: 144 | B168: 143000001 | C168: 830145.0404
A169: 145 | B169: 144000001 | C169: 913159.5445
A170: 146 | B170: 145000001 | C170: 1004475.499
A171: 147 | B171: 146000001 | C171: 1104923.049
A172: 148 | B172: 147000001 | C172: 1215415.354
A173: 149 | B173: 148000001 | C173: 1336956.889
A174: 150 | B174: 149000001 | C174: 1470652.578
A175: 151 | B175: 150000001 | C175: 1617717.836
A176: 152 | B176: 151000001 | C176: 1779489.619
A177: 153 | B177: 152000001 | C177: 1957438.581
A178: 154 | B178: 153000001 | C178: 2153182.439
A179: 155 | B179: 154000001 | C179: 2368500.683
A180: 156 | B180: 155000001 | C180: 2605350.752
A181: 157 | B181: 156000001 | C181: 2865885.827
A182: 158 | B182: 157000001 | C182: 3152474.41
A183: 159 | B183: 158000001 | C183: 3467721.851
A184: 160 | B184: 159000001 | C184: 3814494.036
A185: 161 | B185: 160000001 | C185: 4195943.439
A186: 162 | B186: 161000001 | C186: 4615537.783
A187: 163 | B187: 162000001 | C187: 5077091.561
A188: 164 | B188: 163000001 | C188: 5584800.717
A189: 165 | B189: =B188+1000000 -> 164000001 | C189: 6143280.789
A190: 166 | B190: 165000001 | C190: 6757608.868
A191: 167 | B191: 166000001 | C191: 7433369.755
A192: 168 | B192: 167000001 | C192: 8176706.73
A193: 169 | B193: 168000001 | C193: 8994377.403
A194: 170 | B194: 169000001 | C194: 9893815.144
A195: 171 | B195: 170000001 | C195: 10883196.66
A196: 172 | B196: 171000001 | C196: 11971516.32
A197: 173 | B197: 172000001 | C197: 13168667.96
A198: 174 | B198: 173000001 | C198: 14485534.75
A199: 175 | B199: 174000001 | C199: 15934088.23
A200: 176 | B200: 175000001 | C200: 17527497.05
A201: 177 | B201: 176000001 | C201: 19280246.76
A202: 178 | B202: 177000001 | C202: 21208271.43
A203: 179 | B203: 178000001 | C203: 23329098.57
A204: 180 | B204: 179000001 | C204: 25662008.43
A205: 181 | B205: 180000001 | C205: 28228209.27
A206: 182 | B206: 181000001 | C206: 31051030.2
A207: 183 | B207: 182000001 | C207: 34156133.22
A208: 184 | B208: 183000001 | C208: 37571746.54
A209: 185 | B209: 184000001 | C209: 41328921.2
... 180 more rows

Sheet Approx (hidden)
A1: This sheet demonstrates how the percentage change approximation works.
A2: The percentage change approximation is a shortcut designed to quickly reveal the percentage change in a variable that is composed of two separate variables that are multiplied or divided.
A3: The approximation itself is stated mathematically like this:
A9: Change the values in the yellow backgrounded cells to see how the percentage change approximation works.
A11: Lesson: The smaller the percentage change, the better the approximation.
A13: Approximation for Multiplication: the percentage change of a PRODUCT of two variables is approximately the sum of the percentage changes in each variable
A14: %DX | B14: %DY
A15: 0.05 | B15: 0.01 | E15: Exact | F15: Exact | G15: Exact
A16: X | B16: Y | C16: Z=X*Y | E16: %DX | F16: %DY | G16: %DZ | I16: Approx | K16: Approx Error
A17: 100 | B17: 50 | C17: =A17*B17 -> 5000 | I17: %DX + %DY | K17: Exact - Approx
A18: =(1+A15)*A17 -> 105 | B18: =(1+B15)*B17 -> 50.5 | C18: =A18*B18 -> 5302.5 | E18: =(A18-A17)/A17 -> 0.05 | F18: =(B18-B17)/B17 -> 0.01 | G18: =(C18-C17)/C17 -> 0.0605 | I18: =E18+F18 -> 0.06 | K18: =G18-I18 -> 0.0005
A24: Approximation for Division: the percentage change of a RATIO of two variables is approximately the difference of the percentage change in the numerator minus the percentage change in the denominator
A25: %DX | B25: %DY
A26: 0.5 | B26: 0.1 | E26: Exact | F26: Exact | G26: Exact
A27: X | B27: Y | C27: Z=X/Y | E27: %DX | F27: %DY | G27: %DZ | I27: Approx | K27: Approx Error
A28: 100 | B28: 50 | C28: =A28/B28 -> 2 | G28: exact | I28: %DX + %DY | K28: Exact - Approx
A29: =(1+A26)*A28 -> 150 | B29: =(1+B26)*B28 -> 55 | C29: =A29/B29 -> 2.727272727 | E29: =(A29-A28)/A28 -> 0.5 | F29: =(B29-B28)/B28 -> 0.1 | G29: =(C29-C28)/C28 -> 0.3636363636 | I29: =E29-F29 -> 0.4 | K29: =G29-I29 -> -0.03636363636

Sheet ToDo7 (hidden)
A1: Population | DV1: =CORREL(DU4:DU67,DV4:DV67) -> 0.5592032967
A2: (000 at mid-year)
B3: 1 | D3: 1000 | F3: 1500 | H3: 1600 | J3: 1700 | L3: 1820 | M3: 1821 | N3: 1822 | O3: 1823 | P3: 1824 | Q3: 1825 | R3: 1826 | S3: 1827 | T3: 1828 | U3: 1829 | V3: 1830 | W3: 1831 | X3: 1832 | Y3: 1833 | Z3: 1834 | AA3: 1835 | AB3: 1836 | AC3: 1837 | AD3: 1838 | AE3: 1839 | AF3: 1840 | AG3: 1841 | AH3: 1842 | AI3: 1843 | AJ3: 1844 | AK3: 1845 | AL3: 1846 | AM3: 1847 | AN3: 1848 | AO3: 1849 | AP3: 1850 | AQ3: 1851 | AR3: 1852 | AS3: 1853 | AT3: 1854 | AU3: 1855 | AV3: 1856 | AW3: 1857 | AX3: 1858 | AY3: 1859 | AZ3: 1860 | BA3: 1861 | BB3: 1862 | BC3: 1863 | BD3: 1864 | BE3: 1865 | BF3: 1866 | BG3: 1867 | BH3: 1868 | BI3: 1869 | BJ3: 1870 | BK3: 1871 | BL3: 1872 | BM3: 1873 | BN3: 1874 | BO3: 1875 | BP3: 1876 | BQ3: 1877 | BR3: 1878 | BS3: 1879 | BT3: 1880 | BU3: 1881 | BV3: 1882 | BW3: 1883 | BX3: 1884 | BY3: 1885 | BZ3: 1886 | CA3: 1887 | CB3: 1888 | CC3: 1889 | CD3: 1890 | CE3: 1891 | CF3: 1892 | CG3: 1893 | CH3: 1894 | CI3: 1895 | CJ3: 1896 | CK3: 1897 | CL3: 1898 | CM3: 1899 | CN3: 1900 | CO3: 1901 | CP3: 1902 | CQ3: 1903 | CR3: 1904 | CS3: 1905 | CT3: 1906 | CU3: 1907 | CV3: 1908 | CW3: 1909 | CX3: 1910 | CY3: 1911 | CZ3: 1912 | DA3: 1913 | DB3: 1914 | DC3: 1915 | DD3: 1916 | DE3: 1917 | DF3: 1918 | DG3: 1919 | DH3: 1920 | DI3: 1921 | DJ3: 1922 | DK3: 1923 | DL3: 1924 | DM3: 1925 | DN3: 1926 | DO3: 1927 | DP3: 1928 | DQ3: 1929 | DR3: 1930 | DS3: CAGR 1930 | DT3: CAGR 2000 | DU3: Rank 1930 | DV3: Rank 2000 | DW3: 1931 | DX3: 1932 | DY3: 1933 | DZ3: 1934 | EA3: 1935 | EB3: 1936 | EC3: 1937 | ED3: 1938 | EE3: 1939 | EF3: 1940 | EG3: 1941 | EH3: 1942 | EI3: 1943 | EJ3: 1944 | EK3: 1945 | EL3: 1946 | EM3: 1947 | EN3: 1948 | EO3: 1949 | EP3: 1950 | EQ3: 1951 | ER3: 1952 | ES3: 1953 | ET3: 1954 | EU3: 1955 | EV3: 1956 | EW3: 1957 | EX3: 1958 | EY3: 1959 | EZ3: 1960 | FA3: 1961 | FB3: 1962 | FC3: 1963 | FD3: 1964 | FE3: 1965 | FF3: 1966 | FG3: 1967 | FH3: 1968 | FI3: 1969 | FJ3: 1970 | FK3: 1971 | FL3: 1972 | FM3: 1973 | FN3: 1974 | FO3: 1975 | FP3: 1976 | FQ3: 1977 | FR3: 1978 | FS3: 1979 | FT3: 1980 | FU3: 1981 | FV3: 1982 | FW3: 1983 | FX3: 1984 | FY3: 1985 | FZ3: 1986 | GA3: 1987 | GB3: 1988 | GC3: 1989 | GD3: 1990 | GE3: 1991 | GF3: 1992 | GG3: 1993 | GH3: 1994 | GI3: 1995 | GJ3: 1996 | GK3: 1997 | GL3: 1998 | GM3: 1999 | GN3: 2000 | GP3: 2001 | GQ3: 2002 | GR3: 2003 | GS3: 2004 | GT3: 2005 | GU3: 2006 | GV3: 2007 | GW3: 2008 | GX3: 2009 | GZ3: 2030
A4: Singapore | L4: 30 | AP4: 56 | BJ4: 84 | CD4: 157 | CN4: 215 | DA4: 323 | DB4: 331 | DC4: 341 | DD4: 351 | DE4: 360 | DF4: 370 | DG4: 380 | DH4: 391 | DI4: 418 | DJ4: 436 | DK4: 458 | DL4: 469 | DM4: 492 | DN4: 511 | DO4: 532 | DP4: 553 | DQ4: 575 | DR4: 596 | DS4: =(DR4/CN4)^(1/30)-1 -> 0.03457090336 | DT4: =(GN4/FJ4)^(1/30)-1 -> 0.02243861274 | DU4: =RANK(DS4,$DS$4:$DS$67) -> 1 | DV4: =RANK(DT4,$DT$4:$DT$67) -> 11 | DW4: 563 | DX4: 580 | DY4: 515 | DZ4: 525 | EA4: 572 | EB4: 603 | EC4: 651 | ED4: 710 | EE4: 728 | EF4: 751 | EG4: 769 | EM4: 938 | EN4: 961 | EO4: 979 | EP4: 1022.1 | EQ4: 1068.1 | ER4: 1127 | ES4: 1191.8 | ET4: 1248.2 | EU4: 1305.5 | EV4: 1371.6 | EW4: 1445.929 | EX4: 1518.8 | EY4: 1587.2 | EZ4: 1646.4 | FA4: 1702.4 | FB4: 1750.2 | FC4: 1795 | FD4: 1841.6 | FE4: 1886.9 | FF4: 1934.4 | FG4: 1977.6 | FH4: 2012 | FI4: 2042.5 | FJ4: 2074.507 | FK4: 2112.9 | FL4: 2152.4 | FM4: 2193 | FN4: 2229.8 | FO4: 2262.6 | FP4: 2293.3 | FQ4: 2325.3 | FR4: 2353.6 | FS4: 2383.5 | FT4: 2413.9 | FU4: 2535.368 | FV4: 2651.869 | FW4: 2689.263 | FX4: 2743.297 | FY4: 2749.897 | FZ4: 2750.069 | GA4: 2794.552 | GB4: 2869.266 | GC4: 2957.752 | GD4: 3047.1 | GE4: 3144.576 | GF4: 3235.865 | GG4: 3328.154 | GH4: 3427.979 | GI4: 3542.866 | GJ4: 3672.284 | GK4: 3802.309 | GL4: 3904.528 | GM4: 3967.753 | GN4: 4036.753 | GP4: 4120.228 | GQ4: 4197.776 | GR4: 4276.788 | GS4: 4353.893 | GT4: 4425.72 | GU4: 4492.15 | GV4: 4553.009 | GW4: 4608.167 | GX4: 4658 | GZ4: 5129.684
A5: Hong Kong | L5: 20 | AP5: 33 | BJ5: 123 | CD5: 214 | CN5: 306 | DA5: 487 | DB5: 507 | DC5: 528 | DD5: 550 | DE5: 573 | DF5: 597 | DG5: 622 | DH5: 648 | DI5: 625 | DJ5: 638 | DK5: 668 | DL5: 696 | DM5: 725 | DN5: 710 | DO5: 725 | DP5: 753 | DQ5: 785 | DR5: 821 | DS5: 0.03344505382 | DT5: 0.01748225006 | DU5: =RANK(DS5,$DS$4:$DS$67) -> 2 | DV5: =RANK(DT5,$DT$4:$DT$67) -> 22 | DW5: 840 | DX5: 901 | DY5: 923 | DZ5: 944 | EA5: 966 | EB5: 988 | EC5: 1282 | ED5: 1479 | EE5: 1750 | EF5: 1786 | EG5: 1639 | EL5: 1550 | EM5: 1750 | EN5: 1800 | EO5: 1857 | EP5: 2237 | EQ5: 2015.3 | ER5: 2125.9 | ES5: 2242.2 | ET5: 2364.9 | EU5: 2490.4 | EV5: 2614.6 | EW5: 2736.3 | EX5: 2854.1 | EY5: 2967.4 | EZ5: 3075.3 | FA5: 3168.1 | FB5: 3305.2 | FC5: 3420.9 | FD5: 3504.6 | FE5: 3597.9 | FF5: 3629.9 | FG5: 3722.8 | FH5: 3802.7 | FI5: 3863.9 | FJ5: 3959 | FK5: 4045.3 | FL5: 4115.7 | FM5: 4212.6 | FN5: 4319.6 | FO5: 4395.8 | FP5: 4518 | FQ5: 4583.7 | FR5: 4667.5 | FS5: 4929.7 | FT5: 5063.1 | FU5: 5183.4 | FV5: 5264.5 | FW5: 5345.1 | FX5: 5397.9 | FY5: 5456.2 | FZ5: 5524.6 | GA5: 5584.51 | GB5: 5628.407 | GC5: 5660.721 | GD5: 5687.959 | GE5: 5752 | GF5: 5829.696 | GG5: 5934.511 | GH5: 6067.288 | GI5: 6225.347 | GJ5: 6391.564 | GK5: 6495.918 | GL5: 6544.564 | GM5: 6599.307 | GN5: 6658.72 | GP5: 6713.376 | GQ5: 6762.476 | GR5: 6809.738 | GS5: 6855.125 | GT5: 6898.686 | GU5: 6940.432 | GV5: 6980.412 | GW5: 7018.636 | GX5: 7055 | GZ5: 7294.05
A6: Argentina | L6: 534 | AP6: 1100 | BJ6: 1796 | CD6: 3376 | CN6: 4693 | CO6: 4873 | CP6: 5060 | CQ6: 5254 | CR6: 5455 | CS6: 5664 | CT6: 5881 | CU6: 6107 | CV6: 6341 | CW6: 6584 | CX6: 6836 | CY6: 7098 | CZ6: 7370 | DA6: 7653 | DB6: 7885 | DC6: 8072 | DD6: 8226 | DE6: 8374 | DF6: 8518 | DG6: 8672 | DH6: 8861 | DI6: 9092 | DJ6: 9368 | DK6: 9707 | DL6: 10054 | DM6: 10358 | DN6: 10652 | DO6: 10965 | DP6: 11282 | DQ6: 11592 | DR6: 11896 | DS6: 0.03148997959 | DT6: 0.01489232535 | DU6: 3 | DV6: 27 | DW6: 12167 | DX6: 12402 | DY6: 12623 | DZ6: 12834 | EA6: 13044 | EB6: 13260 | EC6: 13490 | ED6: 13724 | EE6: 13984 | EF6: 14169 | EG6: 14402 | EH6: 14638 | EI6: 14877 | EJ6: 15130 | EK6: 15390 | EL6: 15654 | EM6: 15942 | EN6: 16307 | EO6: 16737 | EP6: 17150.336 | EQ6: 17517.342 | ER6: 17876.956 | ES6: 18230.816 | ET6: 18580.559 | EU6: 18927.821 | EV6: 19271.511 | EW6: 19610.538 | EX6: 19946.539 | EY6: 20281.15 | EZ6: 20616.009 | FA6: 20950.583 | FB6: 21283.783 | FC6: 21616.403 | FD6: 21949.244 | FE6: 22283.1 | FF6: 22611.604 | FG6: 22934.225 | FH6: 23260.514 | FI6: 23600.026 | FJ6: 23962.313 | FK6: 24363.816 | FL6: 24779.799 | FM6: 25209.829 | FN6: 25646.371 | FO6: 26081.88 | FP6: 26531.28 | FQ6: 26983.828 | FR6: 27440.272 | FS6: 27901.971 | FT6: 28369.799 | FU6: 28848 | FV6: 29330 | FW6: 29784 | FX6: 30231 | FY6: 30672 | FZ6: 31145 | GA6: 31625 | GB6: 32099 | GC6: 32572 | GD6: 33036 | GE6: 33504 | GF6: 33967 | GG6: 34407 | GH6: 34847 | GI6: 35274 | GJ6: 35683 | GK6: 36102 | GL6: 36518 | GM6: 36923 | GN6: 37336 | GP6: 37694 | GQ6: 37999 | GR6: 38336 | GS6: 38742 | GT6: 39181 | GU6: 39614 | GV6: 40049 | GW6: 40482 | GX6: 40914 | GZ6: 48795
A7: Dominican Republic | L7: 89 | AP7: 146 | BJ7: 242 | CN7: 515 | CO7: 530 | CP7: 546 | CQ7: 562 | CR7: 578 | CS7: 595 | CT7: 613 | CU7: 631 | CV7: 649 | CW7: 668 | CX7: 688 | CY7: 708 | CZ7: 729 | DA7: 750 | DB7: 767 | DC7: 785 | DD7: 803 | DE7: 821 | DF7: 840 | DG7: 859 | DH7: 879 | DI7: 912 | DJ7: 946 | DK7: 981 | DL7: 1017 | DM7: 1054 | DN7: 1092 | DO7: 1131 | DP7: 1172 | DQ7: 1213 | DR7: 1256 | DS7: 0.0301633153 | DT7: 0.02165305296 | DU7: 4 | DV7: 12 | DW7: 1300 | DX7: 1345 | DY7: 1391 | DZ7: 1438 | EA7: 1484 | EB7: 1520 | EC7: 1558 | ED7: 1596 | EE7: 1634 | EF7: 1674 | EG7: 1715 | EH7: 1757 | EI7: 1800 | EJ7: 1844 | EK7: 1889 | EL7: 1935 | EM7: 1982 | EN7: 2031 | EO7: 2080 | EP7: 2352.968 | EQ7: 2419.125 | ER7: 2491.346 | ES7: 2568.919 | ET7: 2651.127 | EU7: 2737.257 | EV7: 2827.784 | EW7: 2923.186 | EX7: 3022.747 | EY7: 3125.752 | EZ7: 3231.488 | FA7: 3340.557 | FB7: 3453.434 | FC7: 3569.217 | FD7: 3687.001 | FE7: 3805.881 | FF7: 3926.395 | FG7: 4049.146 | FH7: 4173.328 | FI7: 4298.133 | FJ7: 4422.755 | FK7: 4546.974 | FL7: 4671.329 | FM7: 4796.148 | FN7: 4921.761 | FO7: 5048.499 | FP7: 5175.585 | FQ7: 5302.8 | FR7: 5431.308 | FS7: 5562.27 | FT7: 5696.855 | FU7: 5831.508 | FV7: 5969 | FW7: 6106 | FX7: 6242 | FY7: 6379 | FZ7: 6517 | GA7: 6657 | GB7: 6799 | GC7: 6942 | GD7: 7083 | GE7: 7223 | GF7: 7360 | GG7: 7489 | GH7: 7615 | GI7: 7744 | GJ7: 7878 | GK7: 8011 | GL7: 8143 | GM7: 8277 | GN7: 8410 | GP7: 8545 | GQ7: 8680 | GR7: 8815 | GS7: 8951 | GT7: 9088 | GU7: 9226 | GV7: 9366 | GW7: 9507 | GX7: 9650 | GZ7: 12567
A8: Cuba | L8: 605 | AP8: 1186 | BJ8: 1331 | CN8: 1658 | CO8: 1716 | CP8: 1775 | CQ8: 1837 | CR8: 1879 | CS8: 1927 | CT8: 1979 | CU8: 2034 | CV8: 2092 | CW8: 2154 | CX8: 2219 | CY8: 2287 | CZ8: 2358 | DA8: 2431 | DB8: 2507 | DC8: 2585 | DD8: 2664 | DE8: 2746 | DF8: 2828 | DG8: 2912 | DH8: 2997 | DI8: 3083 | DJ8: 3170 | DK8: 3257 | DL8: 3345 | DM8: 3432 | DN8: 3519 | DO8: 3606 | DP8: 3693 | DQ8: 3742 | DR8: 3837 | DS8: 0.02836410474 | DT8: 0.008785131439 | DU8: 5 | DV8: 39 | DW8: 3910 | DX8: 3984 | DY8: 4060 | DZ8: 4137 | EA8: 4221 | EB8: 4289 | EC8: 4357 | ED8: 4428 | EE8: 4497 | EF8: 4566 | EG8: 4635 | EH8: 4704 | EI8: 4779 | EJ8: 4849 | EK8: 4932 | EL8: 5039 | EM8: 5152 | EN8: 5268 | EO8: 5386 | EP8: 5784.797 | EQ8: 5891.797 | ER8: 6007.797 | ES8: 6128.797 | ET8: 6254.337 | EU8: 6381.106 | EV8: 6512.938 | EW8: 6640.752 | EX8: 6763.058 | EY8: 6900.886 | EZ8: 7027.21 | FA8: 7134 | FB8: 7254.373 | FC8: 7414.884 | FD8: 7612.275 | FE8: 7809.916 | FF8: 7985.316 | FG8: 8139.332 | FH8: 8283.933 | FI8: 8421.048 | FJ8: 8542.746 | FK8: 8669.625 | FL8: 8831.348 | FM8: 9001.355 | FN8: 9152.866 | FO8: 9290.074 | FP8: 9420.906 | FQ8: 9537.988 | FR8: 9634.028 | FS8: 9710.15 | FT8: 9652.975 | FU8: 9711.975 | FV8: 9789.224 | FW8: 9881 | FX8: 9974 | FY8: 10066 | FZ8: 10144 | GA8: 10217 | GB8: 10306 | GC8: 10408 | GD8: 10513 | GE8: 10611 | GF8: 10692 | GG8: 10767 | GH8: 10813 | GI8: 10865 | GJ8: 10912 | GK8: 10952 | GL8: 10999 | GM8: 11053 | GN8: 11106 | GP8: 11156 | GQ8: 11203 | GR8: 11247 | GS8: 11288 | GT8: 11326 | GU8: 11362 | GV8: 11394 | GW8: 11424 | GX8: 11452 | GZ8: 11576
A9: Paraguay | L9: 143 | AP9: 350 | BJ9: 384 | CN9: 440 | CO9: 450 | CP9: 461 | CQ9: 472 | CR9: 483 | CS9: 494 | CT9: 505 | CU9: 517 | CV9: 529 | CW9: 542 | CX9: 554 | CY9: 567 | CZ9: 580 | DA9: 594 | DB9: 608 | DC9: 622 | DD9: 637 | DE9: 652 | DF9: 667 | DG9: 683 | DH9: 699 | DI9: 715 | DJ9: 732 | DK9: 749 | DL9: 767 | DM9: 785 | DN9: 803 | DO9: 822 | DP9: 841 | DQ9: 860 | DR9: 880 | DS9: 0.023373892 | DT9: 0.02751766065 | DU9: 6 | DV9: 3 | DW9: 901 | DX9: 922 | DY9: 944 | DZ9: 966 | EA9: 988 | EB9: 1012 | EC9: 1036 | ED9: 1061 | EE9: 1086 | EF9: 1111 | EG9: 1137 | EH9: 1164 | EI9: 1191 | EJ9: 1219 | EK9: 1247 | EL9: 1275 | EM9: 1305 | EN9: 1335 | EO9: 1366 | EP9: 1475.669 | EQ9: 1515.299 | ER9: 1555.876 | ES9: 1597.419 | ET9: 1639.946 | EU9: 1683.477 | EV9: 1726.702 | EW9: 1770.902 | EX9: 1816.096 | EY9: 1862.301 | EZ9: 1909.538 | FA9: 1959.034 | FB9: 2009.813 | FC9: 2061.907 | FD9: 2115.353 | FE9: 2170.183 | FF9: 2228.306 | FG9: 2287.985 | FH9: 2349.262 | FI9: 2412.181 | FJ9: 2476.785 | FK9: 2544.518 | FL9: 2614.104 | FM9: 2693 | FN9: 2774 | FO9: 2852 | FP9: 2922 | FQ9: 2987 | FR9: 3054 | FS9: 3122 | FT9: 3196 | FU9: 3279 | FV9: 3370 | FW9: 3467 | FX9: 3568 | FY9: 3673 | FZ9: 3781 | GA9: 3893 | GB9: 4007 | GC9: 4124 | GD9: 4244 | GE9: 4367 | GF9: 4493 | GG9: 4622 | GH9: 4754 | GI9: 4887 | GJ9: 5024 | GK9: 5162 | GL9: 5303 | GM9: 5447 | GN9: 5592 | GP9: 5740 | GQ9: 5890 | GR9: 6041 | GS9: 6195 | GT9: 6351 | GU9: 6509 | GV9: 6669 | GW9: 6831 | GX9: 6291 | GZ9: 10822
A10: Colombia | L10: 1206 | AP10: 2065 | BJ10: 2392 | CD10: 3369 | CN10: 3998 | CO10: 4079 | CP10: 4162 | CQ10: 4247 | CR10: 4334 | CS10: 4422 | CT10: 4512 | CU10: 4604 | CV10: 4697 | CW10: 4793 | CX10: 4890 | CY10: 4990 | CZ10: 5091 | DA10: 5195 | DB10: 5330 | DC10: 5468 | DD10: 5609 | DE10: 5754 | DF10: 5903 | DG10: 6056 | DH10: 6213 | DI10: 6374 | DJ10: 6539 | DK10: 6709 | DL10: 6882 | DM10: 7061 | DN10: 7243 | DO10: 7431 | DP10: 7624 | DQ10: 7821 | DR10: 7914 | DS10: 0.02302231862 | DT10: 0.0208653026 | DU10: 7 | DV10: 16 | DW10: 8009 | DX10: 8104 | DY10: 8201 | DZ10: 8299 | EA10: 8398 | EB10: 8498 | EC10: 8599 | ED10: 8702 | EE10: 8935 | EF10: 9174 | EG10: 9419 | EH10: 9671 | EI10: 9930 | EJ10: 10196 | EK10: 10469 | EL10: 10749 | EM10: 11036 | EN10: 11332 | EO10: 11635 | EP10: 11591.658 | EQ10: 11965 | ER10: 12350.771 | ES10: 12749.619 | ET10: 13162.003 | EU10: 13588.405 | EV10: 14029.321 | EW10: 14485.993 | EX10: 14958.277 | EY10: 15446.73 | EZ10: 15952.727 | FA10: 16476.124 | FB10: 17009.885 | FC10: 17546.017 | FD10: 18090 | FE10: 18646.175 | FF10: 19201.732 | FG10: 19764.027 | FH10: 20321.665 | FI10: 20869.14 | FJ10: 21429.658 | FK10: 21992.579 | FL10: 22542.89 | FM10: 23069.231 | FN10: 23598 | FO10: 24125 | FP10: 24638 | FQ10: 25119 | FR10: 25575 | FS10: 26072 | FT10: 26631 | FU10: 27215 | FV10: 27826 | FW10: 28455 | FX10: 29096 | FY10: 29748 | FZ10: 30400 | GA10: 31042 | GB10: 31673 | GC10: 32307 | GD10: 32957 | GE10: 33623 | GF10: 34314 | GG10: 35012 | GH10: 35707 | GI10: 36402 | GJ10: 37094 | GK10: 37782 | GL10: 38467 | GM10: 39145 | GN10: 39817 | GP10: 40484 | GQ10: 41145 | GR10: 41802 | GS10: 42454 | GT10: 43100 | GU10: 43742 | GV10: 44380 | GW10: 45014 | GX10: 43677 | GZ10: 57897
A11: Malaysia | L11: 287 | AP11: 530 | BJ11: 800 | CD11: 1585 | CN11: 2232 | CO11: 2288 | CP11: 2345 | CQ11: 2404 | CR11: 2467 | CS11: 2532 | CT11: 2601 | CU11: 2672 | CV11: 2745 | CW11: 2821 | CX11: 2893 | CY11: 2967 | CZ11: 3025 | DA11: 3084 | DB11: 3144 | DC11: 3207 | DD11: 3271 | DE11: 3337 | DF11: 3404 | DG11: 3473 | DH11: 3545 | DI11: 3618 | DJ11: 3698 | DK11: 3779 | DL11: 3863 | DM11: 3949 | DN11: 4038 | DO11: 4128 | DP11: 4221 | DQ11: 4316 | DR11: 4413 | DS11: 0.02298199797 | DT11: 0.02334805169 | DU11: 8 | DV11: 9 | DW11: 4513 | DX11: 4604 | DY11: 4697 | DZ11: 4793 | EA11: 4890 | EB11: 4993 | EC11: 5099 | ED11: 5207 | EE11: 5317 | EF11: 5434 | EG11: 5554 | EH11: 5592 | EI11: 5630 | EJ11: 5668 | EK11: 5707 | EL11: 5746 | EM11: 5786 | EN11: 5922 | EO11: 6061 | EP11: 6433.799 | EQ11: 6581.839 | ER11: 6748.378 | ES11: 6928.942 | ET11: 7117.564 | EU11: 7311.72 | EV11: 7519.663 | EW11: 7739.235 | EX11: 7965.93 | EY11: 8195.711 | EZ11: 8428.493 | FA11: 8663.401 | FB11: 8906.385 | FC11: 9148.451 | FD11: 9397.464 | FE11: 9647.654 | FF11: 9899.803 | FG11: 10154.878 | FH11: 10409.339 | FI11: 10662.303 | FJ11: 10910.216 | FK11: 11171.333 | FL11: 11441.462 | FM11: 11711.866 | FN11: 11986.26 | FO11: 12267.303 | FP11: 12553.963 | FQ11: 12845.381 | FR11: 13138.53 | FS11: 13443.844 | FT11: 13764.352 | FU11: 14096.09 | FV11: 14441.17 | FW11: 14792.539 | FX11: 15157.163 | FY11: 15545.309 | FZ11: 15941.987 | GA11: 16333.264 | GB11: 16731.412 | GC11: 17120.824 | GD11: 17507.289 | GE11: 17910.854 | GF11: 18324.648 | GG11: 18753.862 | GH11: 19187.064 | GI11: 19618.509 | GJ11: 20052.566 | GK11: 20484.783 | GL11: 20921.378 | GM11: 21364.525 | GN11: 21803.909 | GP11: 22240.158 | GQ11: 22674.014 | GR11: 23105.096 | GS11: 23535.083 | GT11: 23966.096 | GU11: 24399.224 | GV11: 24835.243 | GW11: 25274.133 | GX11: 25716 | GZ11: 35343.804
A12: Panama | L12: 0 | AP12: 135 | BJ12: 176 | CN12: 263 | CO12: 269 | CP12: 275 | CQ12: 281 | CR12: 287 | CS12: 293 | CT12: 299 | CU12: 306 | CV12: 312 | CW12: 319 | CX12: 326 | CY12: 333 | CZ12: 341 | DA12: 348 | DB12: 365 | DC12: 383 | DD12: 402 | DE12: 422 | DF12: 442 | DG12: 464 | DH12: 487 | DI12: 489 | DJ12: 491 | DK12: 493 | DL12: 495 | DM12: 497 | DN12: 499 | DO12: 502 | DP12: 504 | DQ12: 506 | DR12: 515 | DS12: 0.02265320244 | DT12: 0.02152045547 | DU12: 9 | DV12: 13 | DW12: 527 | DX12: 543 | DY12: 559 | DZ12: 576 | EA12: 592 | EB12: 608 | EC12: 623 | ED12: 640 | EE12: 656 | EF12: 697 | EG12: 720 | EH12: 773 | EI12: 795 | EJ12: 784 | EK12: 791 | EL12: 788 | EM12: 804 | EN12: 822 | EO12: 838 | EP12: 892.502 | EQ12: 915.56 | ER12: 940.08 | ES12: 962.188 | ET12: 985.066 | EU12: 1010.655 | EV12: 1036.55 | EW12: 1063.506 | EX12: 1085.241 | EY12: 1115.146 | EZ12: 1147.61 | FA12: 1181.175 | FB12: 1215.725 | FC12: 1251.278 | FD12: 1287.993 | FE12: 1325.975 | FF12: 1365.169 | FG12: 1405.486 | FH12: 1446.758 | FI12: 1488.794 | FJ12: 1531.038 | FK12: 1574 | FL12: 1617 | FM12: 1660 | FN12: 1707 | FO12: 1749 | FP12: 1792 | FQ12: 1842 | FR12: 1875 | FS12: 1918 | FT12: 1960 | FU12: 1999 | FV12: 2040 | FW12: 2081 | FX12: 2123 | FY12: 2168 | FZ12: 2212 | GA12: 2257 | GB12: 2302 | GC12: 2347 | GD12: 2393 | GE12: 2441 | GF12: 2489 | GG12: 2538 | GH12: 2588 | GI12: 2638 | GJ12: 2690 | GK12: 2744 | GL12: 2797 | GM12: 2848 | GN12: 2900 | GP12: 2952 | GQ12: 3003 | GR12: 3054 | GS12: 3104 | GT12: 3155 | GU12: 3206 | GV12: 3258 | GW12: 3310 | GX12: 3360 | GZ12: 4323
A13: Canada | B13: 80 | D13: 160 | F13: 250 | H13: 250 | J13: 200 | L13: 816 | V13: 1169 | AF13: 1697 | AP13: 2485 | AZ13: 3369 | BJ13: 3781 | BK13: 3801 | BL13: 3870 | BM13: 3943 | BN13: 4012 | BO13: 4071 | BP13: 4128 | BQ13: 4184 | BR13: 4244 | BS13: 4312 | BT13: 4384 | BU13: 4451 | BV13: 4503 | BW13: 4560 | BX13: 4617 | BY13: 4666 | BZ13: 4711 | CA13: 4760 | CB13: 4813 | CC13: 4865 | CD13: 4918 | CE13: 4972 | CF13: 5022 | CG13: 5072 | CH13: 5121 | CI13: 5169 | CJ13: 5218 | CK13: 5269 | CL13: 5325 | CM13: 5383 | CN13: 5457 | CO13: 5536 | CP13: 5650 | CQ13: 5813 | CR13: 5994 | CS13: 6166 | CT13: 6282 | CU13: 6596 | CV13: 6813 | CW13: 6993 | CX13: 7188 | CY13: 7410 | CZ13: 7602 | DA13: 7852 | DB13: 8093 | DC13: 8191 | DD13: 8214 | DE13: 8277 | DF13: 8374 | DG13: 8548 | DH13: 8798 | DI13: 9028 | DJ13: 9159 | DK13: 9256 | DL13: 9394 | DM13: 9549 | DN13: 9713 | DO13: 9905 | DP13: 10107 | DQ13: 10305 | DR13: 10488 | DS13: 0.02201661802 | DT13: 0.01199114772 | DU13: 10 | DV13: 33 | DW13: 10657 | DX13: 10794 | DY13: 10919 | DZ13: 11030 | EA13: 11136 | EB13: 11243 | EC13: 11341 | ED13: 11452 | EE13: 11570 | EF13: 11688 | EG13: 11818 | EH13: 11969 | EI13: 12115 | EJ13: 12268 | EK13: 12404 | EL13: 12634 | EM13: 12901 | EN13: 13180 | EO13: 13469 | EP13: 14011.422 | EQ13: 14330.675 | ER13: 14785.584 | ES13: 15183.375 | ET13: 15636.245 | EU13: 16050.356 | EV13: 16445.087 | EW13: 17010.154 | EX13: 17462.004 | EY13: 17872.034 | EZ13: 18266.765 | FA13: 18634.977 | FB13: 18985.849 | FC13: 19342.841 | FD13: 19711.053 | FE13: 20071.104 | FF13: 20448.496 | FG13: 20819.767 | FH13: 21143.1 | FI13: 21448.073 | FJ13: 21749.986 | FK13: 22026.4 | FL13: 22284.5 | FM13: 22559.5 | FN13: 22874.7 | FO13: 23209.2 | FP13: 23517.5 | FQ13: 23796.4 | FR13: 24036.3 | FS13: 24276.9 | FT13: 24593.3 | FU13: 24900 | FV13: 25201.9 | FW13: 25456.3 | FX13: 25701.8 | FY13: 25941.6 | FZ13: 26203.8 | GA13: 26549.7 | GB13: 26894.8 | GC13: 27379.3 | GD13: 27790.6 | GE13: 28117.6 | GF13: 28545 | GG13: 28953 | GH13: 29331 | GI13: 29691 | GJ13: 30026 | GK13: 30305.843 | GL13: 30552 | GM13: 30821 | GN13: 31100 | GP13: 31377 | GQ13: 31641 | GR13: 31889 | GS13: 32135 | GT13: 32386 | GU13: 32657 | GV13: 32386 | GW13: 33213 | GX13: 33487 | GZ13: 38565
A14: Honduras | L14: 135 | AP14: 350 | BJ14: 404 | CN14: 500 | CO14: 511 | CP14: 522 | CQ14: 533 | CR14: 545 | CS14: 556 | CT14: 568 | CU14: 581 | CV14: 593 | CW14: 606 | CX14: 619 | CY14: 632 | CZ14: 646 | DA14: 660 | DB14: 668 | DC14: 677 | DD14: 685 | DE14: 694 | DF14: 702 | DG14: 711 | DH14: 720 | DI14: 740 | DJ14: 770 | DK14: 800 | DL14: 820 | DM14: 850 | DN14: 880 | DO14: 890 | DP14: 910 | DQ14: 930 | DR14: 950 | DS14: 0.02162564637 | DT14: 0.02814252358 | DU14: 11 | DV14: 2 | DW14: 970 | DX14: 990 | DY14: 1010 | DZ14: 1020 | EA14: 1040 | EB14: 1060 | EC14: 1080 | ED14: 1100 | EE14: 1120 | EF14: 1150 | EG14: 1170 | EH14: 1200 | EI14: 1210 | EJ14: 1240 | EK14: 1260 | EL14: 1290 | EM14: 1320 | EN14: 1350 | EO14: 1390 | EP14: 1431.447 | EQ14: 1474.191 | ER14: 1517.453 | ES14: 1562.218 | ET14: 1610.959 | EU14: 1662.219 | EV14: 1715.023 | EW14: 1770.39 | EX14: 1828.733 | EY14: 1888.715 | EZ14: 1951.64 | FA14: 2018.693 | FB14: 2090.162 | FC14: 2165.93 | FD14: 2246.099 | FE14: 2329.159 | FF14: 2413.644 | FG14: 2500.689 | FH14: 2591.112 | FI14: 2685.322 | FJ14: 2760.666 | FK14: 2855.882 | FL14: 2965.146 | FM14: 3077.805 | FN14: 2765.159 | FO14: 2857.54 | FP14: 2954.226 | FQ14: 3055.235 | FR14: 3167.869 | FS14: 3278.69 | FT14: 3401.94 | FU14: 3542.519 | FV14: 3669.448 | FW14: 3795.505 | FX14: 3932.288 | FY14: 4076.514 | FZ14: 4225.991 | GA14: 4372.203 | GB14: 4513.723 | GC14: 4654.54 | GD14: 4792.271 | GE14: 4931.117 | GF14: 5077.347 | GG14: 5229.618 | GH14: 5386.133 | GI14: 5546.185 | GJ14: 5707.074 | GK14: 5867.957 | GL14: 6022.706 | GM14: 6180.871 | GN14: 6347.658 | GP14: 6513.048 | GQ14: 6677.328 | GR14: 6843.018 | GS14: 7007.482 | GT14: 7167.902 | GU14: 7326.496 | GV14: 7483.763 | GW14: 7639.327 | GX14: 7834 | GZ14: 10611.205
A15: El Salvador | L15: 248 | AP15: 366 | BJ15: 492 | CN15: 766 | CO15: 782 | CP15: 799 | CQ15: 816 | CR15: 834 | CS15: 851 | CT15: 869 | CU15: 888 | CV15: 907 | CW15: 926 | CX15: 946 | CY15: 966 | CZ15: 987 | DA15: 1008 | DB15: 1030 | DC15: 1052 | DD15: 1074 | DE15: 1098 | DF15: 1121 | DG15: 1145 | DH15: 1170 | DI15: 1190 | DJ15: 1220 | DK15: 1240 | DL15: 1270 | DM15: 1300 | DN15: 1330 | DO15: 1350 | DP15: 1390 | DQ15: 1410 | DR15: 1440 | DS15: 0.0212634536 | DT15: 0.01784140557 | DU15: 12 | DV15: 20 | DW15: 1460 | DX15: 1470 | DY15: 1490 | DZ15: 1510 | EA15: 1530 | EB15: 1550 | EC15: 1570 | ED15: 1590 | EE15: 1610 | EF15: 1630 | EG15: 1650 | EH15: 1680 | EI15: 1690 | EJ15: 1720 | EK15: 1740 | EL15: 1760 | EM15: 1780 | EN15: 1810 | EO15: 1840 | EP15: 1939.8 | EQ15: 1989.756 | ER15: 2042.865 | ES15: 2099.13 | ET15: 2158.554 | EU15: 2221.139 | EV15: 2286.889 | EW15: 2355.805 | EX15: 2427.891 | EY15: 2503.149 | EZ15: 2581.583 | FA15: 2664.838 | FB15: 2747.687 | FC15: 2836.09 | FD15: 2923.87 | FE15: 3017.852 | FF15: 3128.206 | FG15: 3232.927 | FH15: 3347.32 | FI15: 3469.177 | FJ15: 3603.907 | FK15: 3710.335 | FL15: 3790.903 | FM15: 3878.197 | FN15: 3971.783 | FO15: 4071.179 | FP15: 4174.737 | FQ15: 4282.586 | FR15: 4396.275 | FS15: 4508.055 | FT15: 4566.199 | FU15: 4515.094 | FV15: 4474.873 | FW15: 4521.153 | FX15: 4587.633 | FY15: 4664.361 | FZ15: 4751.017 | GA15: 4842.194 | GB15: 4930.397 | GC15: 5015.522 | GD15: 5099.884 | GE15: 5185.604 | GF15: 5274.649 | GG15: 5369.502 | GH15: 5466.906 | GI15: 5569 | GJ15: 5675 | GK15: 5785 | GL15: 5897 | GM15: 6011 | GN15: 6126 | GP15: 6242 | GQ15: 6358 | GR15: 6476 | GS15: 6594 | GT15: 6712 | GU15: 6830 | GV15: 6948 | GW15: 7066 | GX15: 6031 | GZ15: 9758
A16: Uruguay | L16: 55 | AP16: 132 | BJ16: 343 | BK16: 354 | BL16: 364 | BM16: 376 | BN16: 387 | BO16: 399 | BP16: 411 | BQ16: 424 | BR16: 437 | BS16: 450 | BT16: 464 | BU16: 482 | BV16: 502 | BW16: 522 | BX16: 543 | BY16: 564 | BZ16: 587 | CA16: 610 | CB16: 635 | CC16: 660 | CD16: 686 | CE16: 706 | CF16: 727 | CG16: 748 | CH16: 770 | CI16: 792 | CJ16: 815 | CK16: 839 | CL16: 864 | CM16: 889 | CN16: 915 | CO16: 930 | CP16: 945 | CQ16: 961 | CR16: 977 | CS16: 993 | CT16: 1009 | CU16: 1026 | CV16: 1043 | CW16: 1062 | CX16: 1081 | CY16: 1112 | CZ16: 1144 | DA16: 1177 | DB16: 1223 | DC16: 1246 | DD16: 1269 | DE16: 1292 | DF16: 1316 | DG16: 1341 | DH16: 1371 | DI16: 1402 | DJ16: 1433 | DK16: 1465 | DL16: 1498 | DM16: 1534 | DN16: 1571 | DO16: 1608 | DP16: 1646 | DQ16: 1685 | DR16: 1713 | DS16: 0.02112257016 | DT16: 0.005492963348 | DU16: 13 | DV16: 47 | DW16: 1741 | DX16: 1770 | DY16: 1799 | DZ16: 1829 | EA16: 1859 | EB16: 1889 | EC16: 1921 | ED16: 1952 | EE16: 1944 | EF16: 1965 | EG16: 1987 | EH16: 2010 | EI16: 2032 | EJ16: 2055 | EK16: 2081 | EL16: 2107 | EM16: 2134 | EN16: 2160 | EO16: 2188 | EP16: 2194.275 | EQ16: 2223.06 | ER16: 2252.965 | ES16: 2283.92 | ET16: 2316.543 | EU16: 2353.136 | EV16: 2389.29 | EW16: 2424.959 | EX16: 2460.411 | EY16: 2495.022 | EZ16: 2530.969 | FA16: 2563.794 | FB16: 2598.466 | FC16: 2632.111 | FD16: 2663.61 | FE16: 2693.133 | FF16: 2721.207 | FG16: 2748.579 | FH16: 2776.607 | FI16: 2801.859 | FJ16: 2823.659 | FK16: 2826.042 | FL16: 2829.526 | FM16: 2834.115 | FN16: 2838.213 | FO16: 2844 | FP16: 2861 | FQ16: 2879 | FR16: 2897 | FS16: 2914 | FT16: 2930 | FU16: 2848 | FV16: 2968 | FW16: 2989 | FX16: 3008 | FY16: 3012 | FZ16: 3031 | GA16: 3049 | GB16: 3068 | GC16: 3088 | GD16: 3110 | GE16: 3131 | GF16: 3153 | GG16: 3175 | GH16: 3195 | GI16: 3219 | GJ16: 3242 | GK16: 3267 | GL16: 3289 | GM16: 3308 | GN16: 3328 | GP16: 3348 | GQ16: 3368 | GR16: 3387 | GS16: 3406 | GT16: 3425 | GU16: 3443 | GV16: 3461 | GW16: 3478 | GX16: 3494 | GZ16: 3769
A17: Brazil | D17: 700 | F17: 1000 | H17: 800 | J17: 1250 | L17: 4507 | AP17: 7234 | BJ17: 9797 | BK17: 9980 | BL17: 10167 | BM17: 10358 | BN17: 10552 | BO17: 10749 | BP17: 10951 | BQ17: 11156 | BR17: 11365 | BS17: 11578 | BT17: 11794 | BU17: 12015 | BV17: 12240 | BW17: 12470 | BX17: 12703 | BY17: 12941 | BZ17: 13183 | CA17: 13430 | CB17: 13682 | CC17: 13938 | CD17: 14199 | CE17: 14539 | CF17: 14886 | CG17: 15242 | CH17: 15607 | CI17: 15980 | CJ17: 16362 | CK17: 16753 | CL17: 17154 | CM17: 17564 | CN17: 17984 | CO17: 18392 | CP17: 18782 | CQ17: 19180 | CR17: 19587 | CS17: 20003 | CT17: 20427 | CU17: 20860 | CV17: 21303 | CW17: 21754 | CX17: 22216 | CY17: 22687 | CZ17: 23168 | DA17: 23660 | DB17: 24161 | DC17: 24674 | DD17: 25197 | DE17: 25732 | DF17: 26277 | DG17: 26835 | DH17: 27404 | DI17: 27969 | DJ17: 28542 | DK17: 29126 | DL17: 29723 | DM17: 30332 | DN17: 30953 | DO17: 31587 | DP17: 32234 | DQ17: 32894 | DR17: 33568 | DS17: 0.02102091652 | DT17: 0.02058386231 | DU17: 14 | DV17: 18 | DW17: 34256 | DX17: 34957 | DY17: 35673 | DZ17: 36404 | EA17: 37150 | EB17: 37911 | EC17: 38687 | ED17: 39480 | EE17: 40289 | EF17: 41114 | EG17: 42069 | EH17: 43069 | EI17: 44093 | EJ17: 45141 | EK17: 46215 | EL17: 47313 | EM17: 48438 | EN17: 49590 | EO17: 50769 | EP17: 53443.075 | EQ17: 54995.532 | ER17: 56602.56 | ES17: 58266.357 | ET17: 59989.219 | EU17: 61773.546 | EV17: 63631.992 | EW17: 65551.171 | EX17: 67533.213 | EY17: 69580.328 | EZ17: 71694.81 | FA17: 73832.902 | FB17: 76039.39 | FC17: 78316.598 | FD17: 80666.939 | FE17: 83092.908 | FF17: 85557.441 | FG17: 88049.823 | FH17: 90569.084 | FI17: 93114.241 | FJ17: 95684.297 | FK17: 98265 | FL17: 100874 | FM17: 103513 | FN17: 106182 | FO17: 108879 | FP17: 111603 | FQ17: 114373 | FR17: 117207 | FS17: 120101 | FT17: 123020 | FU17: 125992 | FV17: 129028 | FW17: 131960 | FX17: 134699 | FY17: 137382 | FZ17: 140196 | GA17: 143027 | GB17: 145873 | GC17: 148659 | GD17: 151170 | GE17: 153584 | GF17: 156032 | GG17: 158512 | GH17: 161017 | GI17: 163544 | GJ17: 166086 | GK17: 168639 | GL17: 171201 | GM17: 173764 | GN17: 176320 | GP17: 178870 | GQ17: 181418 | GR17: 183960 | GS17: 186489 | GT17: 188993 | GU17: 191469 | GV17: 193919 | GW17: 196343 | GX17: 198739 | GZ17: 240173
A18: New Zealand | B18: 0 | D18: 10 | F18: 100 | H18: 100 | J18: 100 | L18: 100 | V18: 100 | AF18: 70 | AP18: 90 | AZ18: 132 | BJ18: 291 | BK18: 306 | BL18: 320 | BM18: 335 | BN18: 367 | BO18: 406 | BP18: 434 | BQ18: 450 | BR18: 467 | BS18: 494 | BT18: 520 | BU18: 539 | BV18: 555 | BW18: 574 | BX18: 598 | BY18: 614 | BZ18: 626 | CA18: 640 | CB18: 649 | CC18: 656 | CD18: 665 | CE18: 674 | CF18: 686 | CG18: 705 | CH18: 722 | CI18: 735 | CJ18: 748 | CK18: 764 | CL18: 779 | CM18: 794 | CN18: 807 | CO18: 824 | CP18: 844 | CQ18: 867 | CR18: 893 | CS18: 919 | CT18: 946 | CU18: 969 | CV18: 996 | CW18: 1024 | CX18: 1045 | CY18: 1067 | CZ18: 1092 | DA18: 1122 | DB18: 1143 | DC18: 1152 | DD18: 1155 | DE18: 1152 | DF18: 1156 | DG18: 1195 | DH18: 1241 | DI18: 1275 | DJ18: 1304 | DK18: 1326 | DL18: 1350 | DM18: 1382 | DN18: 1412 | DO18: 1437 | DP18: 1454 | DQ18: 1471 | DR18: 1493 | DS18: 0.02071902386 | DT18: 0.009913476678 | DU18: 15 | DV18: 37 | DW18: 1514 | DX18: 1527 | DY18: 1540 | DZ18: 1552 | EA18: 1562 | EB18: 1573 | EC18: 1587 | ED18: 1604 | EE18: 1627 | EF18: 1636 | EG18: 1629 | EH18: 1639 | EI18: 1633 | EJ18: 1654 | EK18: 1688 | EL18: 1759 | EM18: 1797 | EN18: 1833 | EO18: 1871 | EP18: 1908.31 | EQ18: 1947.389 | ER18: 1994.794 | ES18: 2047.391 | ET18: 2092.779 | EU18: 2136.168 | EV18: 2178.289 | EW18: 2229.407 | EX18: 2281.533 | EY18: 2331.122 | EZ18: 2371.746 | FA18: 2432.45 | FB18: 2488.55 | FC18: 2541.35 | FD18: 2591.95 | FE18: 2640.4 | FF18: 2687.55 | FG18: 2728.15 | FH18: 2759 | FI18: 2788.5 | FJ18: 2828.05 | FK18: 2875.3 | FL18: 2929.1 | FM18: 2992.3 | FN18: 3058.4 | FO18: 3117.8 | FP18: 3153.55 | FQ18: 3164.9 | FR18: 3165.8 | FS18: 3164.55 | FT18: 3170.15 | FU18: 3185.45 | FV18: 3217 | FW18: 3258 | FX18: 3298 | FY18: 3324 | FZ18: 3341 | GA18: 3352 | GB18: 3361 | GC18: 3378 | GD18: 3414 | GE18: 3455 | GF18: 3494 | GG18: 3537 | GH18: 3586 | GI18: 3642 | GJ18: 3697 | GK18: 3738 | GL18: 3764 | GM18: 3784 | GN18: 3802 | GP18: 3838 | GQ18: 3898 | GR18: 3960 | GS18: 4008 | GT18: 4048 | GU18: 4090 | GV18: 4132 | GW18: 4173 | GX18: 4213 | GZ18: 4913
A19: Philippines | L19: 2176 | AP19: 3612 | BJ19: 5063 | CD19: 6476 | CN19: 7324 | CO19: 7465 | CP19: 7609 | CQ19: 7755 | CR19: 7904 | CS19: 8056 | CT19: 8211 | CU19: 8369 | CV19: 8530 | CW19: 8694 | CX19: 8861 | CY19: 9032 | CZ19: 9206 | DA19: 9384 | DB19: 9565 | DC19: 9749 | DD19: 9937 | DE19: 10128 | DF19: 10323 | DG19: 10522 | DH19: 10725 | DI19: 10932 | DJ19: 11143 | DK19: 11358 | DL19: 11577 | DM19: 11800 | DN19: 12026 | DO19: 12305 | DP19: 12543 | DQ19: 12890 | DR19: 13194 | DS19: 0.01981392597 | DT19: 0.02510458113 | DU19: 16 | DV19: 7 | DW19: 13507 | DX19: 13829 | DY19: 14158 | DZ19: 14497 | EA19: 14843 | EB19: 15199 | EC19: 15563 | ED19: 15934 | EE19: 16275 | EF19: 16585 | EG19: 16902 | EH19: 17169 | EI19: 17552 | EJ19: 17887 | EK19: 18228 | EL19: 18775 | EM19: 19338 | EN19: 19918 | EO19: 20516 | EP19: 21131.264 | EQ19: 21775.167 | ER19: 22438.691 | ES19: 23122.432 | ET19: 23827.009 | EU19: 24553.055 | EV19: 25301.226 | EW19: 26072.194 | EX19: 26866.654 | EY19: 27685.324 | EZ19: 28528.939 | FA19: 29410.457 | FB19: 30325.264 | FC19: 31273.198 | FD19: 32254.35 | FE19: 33267.569 | FF19: 34304.274 | FG19: 35356.6 | FH19: 36424.438 | FI19: 37506.719 | FJ19: 38603.696 | FK19: 39718.094 | FL19: 40850.141 | FM19: 41998.117 | FN19: 43162.098 | FO19: 44336.842 | FP19: 45574.35 | FQ19: 46850.962 | FR19: 48171.78 | FS19: 49537.371 | FT19: 50940.182 | FU19: 52227.598 | FV19: 53557.177 | FW19: 54885.412 | FX19: 56257.879 | FY19: 57705.685 | FZ19: 59185.949 | GA19: 60648.112 | GB19: 62080.71 | GC19: 63554.672 | GD19: 65087.72 | GE19: 66572.226 | GF19: 67977.755 | GG19: 69416.966 | GH19: 70944.552 | GI19: 72597.432 | GJ19: 74335.818 | GK19: 76057.058 | GL19: 77740.547 | GM19: 79448.134 | GN19: 81222.082 | GP19: 83095.279 | GQ19: 84936.406 | GR19: 86751.693 | GS19: 88621.786 | GT19: 90435.785 | GU19: 92266.941 | GV19: 94157.465 | GW19: 96061.683 | GX19: 97977 | GZ19: 138332.519
A20: Australia | B20: 360 | D20: 400 | F20: 450 | H20: 450 | J20: 450 | L20: 334 | M20: 331 | N20: 329 | O20: 329 | P20: 332 | Q20: 333 | R20: 330 | S20: 328 | T20: 326 | U20: 326 | V20: 330 | W20: 333 | X20: 338 | Y20: 349 | Z20: 354 | AA20: 358 | AB20: 367 | AC20: 373 | AD20: 388 | AE20: 403 | AF20: 420 | AG20: 448 | AH20: 465 | AI20: 472 | AJ20: 482 | AK20: 494 | AL20: 505 | AM20: 518 | AN20: 538 | AO20: 576 | AP20: 605 | AQ20: 636 | AR20: 710 | AS20: 795 | AT20: 887 | AU20: 983 | AV20: 1065 | AW20: 1156 | AX20: 1235 | AY20: 1279 | AZ20: 1326 | BA20: 1346 | BB20: 1382 | BC20: 1432 | BD20: 1495 | BE20: 1558 | BF20: 1609 | BG20: 1647 | BH20: 1700 | BI20: 1750 | BJ20: 1775 | BK20: 1675 | BL20: 1722 | BM20: 1769 | BN20: 1822 | BO20: 1874 | BP20: 1929 | BQ20: 1995 | BR20: 2062 | BS20: 2127 | BT20: 2197 | BU20: 2269 | BV20: 2348 | BW20: 2447 | BX20: 2556 | BY20: 2650 | BZ20: 2741 | CA20: 2835 | CB20: 2932 | CC20: 3022 | CD20: 3107 | CE20: 3196 | CF20: 3274 | CG20: 3334 | CH20: 3395 | CI20: 3460 | CJ20: 3523 | CK20: 3586 | CL20: 3642 | CM20: 3691 | CN20: 3741 | CO20: 3795 | CP20: 3850 | CQ20: 3896 | CR20: 3946 | CS20: 4004 | CT20: 4062 | CU20: 4127 | CV20: 4197 | CW20: 4278 | CX20: 4375 | CY20: 4500 | CZ20: 4661 | DA20: 4821 | DB20: 4933 | DC20: 4971 | DD20: 4955 | DE20: 4950 | DF20: 5032 | DG20: 5193 | DH20: 5358 | DI20: 5461 | DJ20: 5574 | DK20: 5697 | DL20: 5819 | DM20: 5943 | DN20: 6064 | DO20: 6188 | DP20: 6304 | DQ20: 6396 | DR20: 6469 | DS20: 0.01842327186 | DT20: 0.01371873377 | DU20: 17 | DV20: 31 | DW20: 6527 | DX20: 6579 | DY20: 6631 | DZ20: 6682 | EA20: 6732 | EB20: 6783 | EC20: 6841 | ED20: 6904 | EE20: 6971 | EF20: 7042 | EG20: 7111 | EH20: 7173 | EI20: 7236 | EJ20: 7309 | EK20: 7389 | EL20: 7474 | EM20: 7578 | EN20: 7715 | EO20: 7919 | EP20: 8267.337 | EQ20: 8510.6 | ER20: 8691.212 | ES20: 8857.924 | ET20: 9064.017 | EU20: 9277.087 | EV20: 9500.606 | EW20: 9712.569 | EX20: 9915.267 | EY20: 10131.729 | EZ20: 10361.273 | FA20: 10598.814 | FB20: 10794.968 | FC20: 11001.483 | FD20: 11218.304 | FE20: 11439.384 | FF20: 11655.083 | FG20: 11872.264 | FH20: 12101.66 | FI20: 12379.384 | FJ20: 12660.16 | FK20: 12937.2 | FL20: 13177 | FM20: 13380.4 | FN20: 13599.1 | FO20: 13771.4 | FP20: 13915.5 | FQ20: 14074.1 | FR20: 14248.6 | FS20: 14421.9 | FT20: 14615.9 | FU20: 14923.26 | FV20: 15162 | FW20: 15348 | FX20: 15510 | FY20: 15695 | FZ20: 15900 | GA20: 16137 | GB20: 16400 | GC20: 16681 | GD20: 16956 | GE20: 17202 | GF20: 17419 | GG20: 17608 | GH20: 17781 | GI20: 17976 | GJ20: 18195 | GK20: 18415 | GL20: 18621 | GM20: 18830 | GN20: 19053 | GP20: 19294 | GQ20: 19345 | GR20: 19767 | GS20: 19995 | GT20: 20232 | GU20: 20489 | GV20: 20750 | GW20: 21007 | GX20: 21263 | GZ20: 26056
A21: Thailand | L21: 4665 | AP21: 5230 | BJ21: 5775 | CD21: 6670 | CN21: 7320 | CO21: 7413 | CP21: 7507 | CQ21: 7602 | CR21: 7699 | CS21: 7797 | CT21: 7896 | CU21: 7996 | CV21: 8098 | CW21: 8201 | CX21: 8305 | CY21: 8431 | CZ21: 8559 | DA21: 8689 | DB21: 8822 | DC21: 8957 | DD21: 9094 | DE21: 9232 | DF21: 9418 | DG21: 9608 | DH21: 9802 | DI21: 10000 | DJ21: 10202 | DK21: 10435 | DL21: 10673 | DM21: 10916 | DN21: 11165 | DO21: 11419 | DP21: 11734 | DQ21: 12058 | DR21: 12392 | DS21: 0.01770289701 | DT21: 0.01719788379 | DU21: 18 | DV21: 23 | DW21: 12735 | DX21: 13087 | DY21: 13399 | DZ21: 13718 | EA21: 14045 | EB21: 14379 | EC21: 14721 | ED21: 14980 | EE21: 15244 | EF21: 15513 | EG21: 15787 | EH21: 16060 | EI21: 16462 | EJ21: 16868 | EK21: 17284 | EL21: 17710 | EM21: 18148 | EN21: 18569 | EO21: 19000 | EP21: 20041.628 | EQ21: 20653.334 | ER21: 21289.402 | ES21: 21964.158 | ET21: 22684.974 | EU21: 23451.316 | EV21: 24244.475 | EW21: 25041.917 | EX21: 25845.443 | EY21: 26667.243 | EZ21: 27512.75 | FA21: 28376.096 | FB21: 29263.397 | FC21: 30173.764 | FD21: 31106.615 | FE21: 32061.978 | FF21: 33035.794 | FG21: 34024.249 | FH21: 35028.438 | FI21: 36049.959 | FJ21: 37090.871 | FK21: 38201.901 | FL21: 39276.153 | FM21: 40302.225 | FN21: 41305.651 | FO21: 42272 | FP21: 43221.022 | FQ21: 44148.285 | FR21: 45056.957 | FS21: 46003.776 | FT21: 47025.764 | FU21: 47936.504 | FV21: 48827.16 | FW21: 49694.245 | FX21: 50533.778 | FY21: 51341.809 | FZ21: 52129.476 | GA21: 52910.342 | GB21: 53683.427 | GC21: 54445.689 | GD21: 55196.722 | GE21: 55930.062 | GF21: 56667.095 | GG21: 57400.686 | GH21: 58128.738 | GI21: 58855.798 | GJ21: 59559.308 | GK21: 60216.677 | GL21: 60846.042 | GM21: 61394.684 | GN21: 61862.928 | GP21: 62334.375 | GQ21: 62806.748 | GR21: 63271.021 | GS21: 63731.437 | GT21: 64185.502 | GU21: 64631.595 | GV21: 65068.149 | GW21: 65493.298 | GX21: 65998 | GZ21: 71143.362
A22: Costa Rica | L22: 63 | AP22: 101 | BJ22: 137 | CN22: 297 | CO22: 310 | CP22: 320 | CQ22: 320 | CR22: 330 | CS22: 340 | CT22: 340 | CU22: 350 | CV22: 350 | CW22: 360 | CX22: 363 | CY22: 366 | CZ22: 369 | DA22: 372 | DB22: 390 | DC22: 390 | DD22: 400 | DE22: 400 | DF22: 410 | DG22: 420 | DH22: 420 | DI22: 430 | DJ22: 430 | DK22: 440 | DL22: 450 | DM22: 460 | DN22: 470 | DO22: 470 | DP22: 480 | DQ22: 490 | DR22: 500 | DS22: 0.01751413689 | DT22: 0.02565262301 | DU22: 19 | DV22: 5 | DW22: 510 | DX22: 520 | DY22: 530 | DZ22: 540 | EA22: 550 | EB22: 560 | EC22: 580 | ED22: 590 | EE22: 610 | EF22: 620 | EG22: 630 | EH22: 650 | EI22: 660 | EJ22: 680 | EK22: 700 | EL22: 710 | EM22: 730 | EN22: 750 | EO22: 770 | EP22: 866.982 | EQ22: 895.336 | ER22: 926.317 | ES22: 958.893 | ET22: 993.786 | EU22: 1031.782 | EV22: 1071.654 | EW22: 1112.3 | EX22: 1154.408 | EY22: 1200.148 | EZ22: 1248.022 | FA22: 1296.587 | FB22: 1345.187 | FC22: 1393.441 | FD22: 1440.184 | FE22: 1487.605 | FF22: 1538.442 | FG22: 1588.717 | FH22: 1638.476 | FI22: 1687.1 | FJ22: 1735.523 | FK22: 1785.636 | FL22: 1834.796 | FM22: 1886.035 | FN22: 1937.413 | FO22: 1991.58 | FP22: 2048.557 | FQ22: 2108.457 | FR22: 2192.367 | FS22: 2259.714 | FT22: 2299.124 | FU22: 2357.285 | FV22: 2424.367 | FW22: 2494.353 | FX22: 2567.516 | FY22: 2643.808 | FZ22: 2723.111 | GA22: 2799.811 | GB22: 2875.267 | GC22: 2951.454 | GD22: 3027.175 | GE22: 3101.029 | GF22: 3173.216 | GG22: 3244.282 | GH22: 3314.588 | GI22: 3383.786 | GJ22: 3451.722 | GK22: 3518.107 | GL22: 3583.162 | GM22: 3648 | GN22: 3710.558 | GP22: 3774 | GQ22: 3836 | GR22: 3899 | GS22: 3959 | GT22: 4019 | GU22: 4078 | GV22: 4137 | GW22: 4196 | GX22: 4455 | GZ22: 5288
A23: Taiwan | L23: 2000 | AP23: 2200 | BJ23: 2345 | CD23: 2500 | CL23: 2690 | CM23: 2759 | CN23: 2794 | CO23: 2877 | CP23: 2949 | CQ23: 2974 | CR23: 3023 | CS23: 3101 | CT23: 3135 | CU23: 3164 | CV23: 3191 | CW23: 3227 | CX23: 3276 | CY23: 3345 | CZ23: 3411 | DA23: 3477 | DB23: 3529 | DC23: 3545 | DD23: 3569 | DE23: 3616 | DF23: 3638 | DG23: 3681 | DH23: 3721 | DI23: 3786 | DJ23: 3844 | DK23: 3904 | DL23: 3959 | DM23: 4048 | DN23: 4140 | DO23: 4232 | DP23: 4330 | DQ23: 4437 | DR23: 4563 | DS23: 0.01648459738 | DT23: 0.01412268243 | DU23: 20 | DV23: 30 | DW23: 4684 | DX23: 4806 | DY23: 4932 | DZ23: 5063 | EA23: 5179 | EB23: 5297 | EC23: 5432 | ED23: 5552 | EE23: 5680 | EF23: 5837 | EG23: 6002 | EH23: 6174 | EI23: 6325 | EJ23: 6266 | EK23: 6140 | EL23: 6014 | EM23: 6419 | EN23: 6724 | EO23: 7302 | EP23: 7456 | EQ23: 7771 | ER23: 8031 | ES23: 8326 | ET23: 8635 | EU23: 8992 | EV23: 9341 | EW23: 9662 | EX23: 10020 | EY23: 10468 | EZ23: 10861 | FA23: 11235 | FB23: 11615 | FC23: 11999 | FD23: 12385 | FE23: 12766 | FF23: 13140 | FG23: 13460 | FH23: 13918 | FI23: 14200 | FJ23: 14532 | FK23: 14862 | FL23: 15168 | FM23: 15454 | FN23: 15752 | FO23: 16061 | FP23: 16435 | FQ23: 16753 | FR23: 17090 | FS23: 17448 | FT23: 17788 | FU23: 18097 | FV23: 18399 | FW23: 18657 | FX23: 18918 | FY23: 19148 | FZ23: 19332 | GA23: 19536 | GB23: 19752 | GC23: 19943 | GD23: 20172 | GE23: 20386 | GF23: 20591 | GG23: 20792 | GH23: 20984 | GI23: 21171 | GJ23: 21347 | GK23: 21571 | GL23: 21769 | GM23: 21941 | GN23: 22133 | GP23: 22335.805 | GQ23: 22450.626 | GR23: 22543.469 | GS23: 22622.389 | GT23: 22701.079 | GU23: 22781.867 | GV23: 22858.872 | GW23: 22920.946 | GX23: 22974 | GZ23: 22978.475
A24: United States | B24: 680 | D24: 1300 | F24: 2000 | H24: 1500 | J24: 1000 | L24: 9980.5102 | M24: 10298.96896 | N24: 10625.50319 | O24: 10951.07727 | P24: 11276.69459 | Q24: 11602.35466 | R24: 11928.05696 | S24: 12250.90491 | T24: 12580.59022 | U24: 12906.41631 | V24: 13240.3139 | W24: 13658.58029 | X24: 14077.88991 | Y24: 14496.23451 | Z24: 14914.61754 | AA24: 15334.04243 | AB24: 15752.50096 | AC24: 16170.99658 | AD24: 16590.53276 | AE24: 17009.10128 | AF24: 17443.768 | AG24: 18056.09997 | AH24: 18667.46445 | AI24: 19278.8649 | AJ24: 19890.3009 | AK24: 20502.77591 | AL24: 21114.28172 | AM24: 21725.82182 | AN24: 22337.3958 | AO24: 22950.00716 | AP24: 23579.7179 | AQ24: 24405.30273 | AR24: 25230.91797 | AS24: 26156.95325 | AT24: 26882.23823 | AU24: 27707.94257 | AV24: 28534.67982 | AW24: 29360.44186 | AX24: 30186.23226 | AY24: 31012.05068 | AZ24: 31838.9007 | BA24: 32677.74246 | BB24: 33515.60932 | BC24: 34354.50874 | BD24: 35192.43258 | BE24: 36031.38829 | BF24: 36869.36774 | BG24: 37708.3784 | BH24: 38546.41214 | BI24: 39385.47645 | BJ24: 40240.6295 | BK24: 41098 | BL24: 42136 | BM24: 43174 | BN24: 44212 | BO24: 45245 | BP24: 46287 | BQ24: 47325 | BR24: 48362 | BS24: 49400 | BT24: 50458 | BU24: 51743 | BV24: 53027 | BW24: 54311 | BX24: 55595 | BY24: 56879 | BZ24: 58164 | CA24: 59448 | CB24: 60732 | CC24: 62016 | CD24: 63302 | CE24: 64612 | CF24: 65922 | CG24: 67231 | CH24: 68541 | CI24: 69851 | CJ24: 71161 | CK24: 72471 | CL24: 73781 | CM24: 75091 | CN24: 76391 | CO24: 77888 | CP24: 79469 | CQ24: 80946 | CR24: 82485 | CS24: 84147 | CT24: 85770 | CU24: 87339 | CV24: 89055 | CW24: 90845 | CX24: 92767 | CY24: 94234 | CZ24: 95703 | DA24: 97606 | DB24: 99505 | DC24: 100941 | DD24: 102364 | DE24: 103817 | DF24: 104958 | DG24: 105473 | DH24: 106881 | DI24: 108964 | DJ24: 110484 | DK24: 112387 | DL24: 114558 | DM24: 116284 | DN24: 117857 | DO24: 119502 | DP24: 120971 | DQ24: 122245 | DR24: 123668 | DS24: 0.01618747582 | DT24: 0.01069692711 | DU24: 21 | DV24: 35 | DW24: 124633 | DX24: 125436 | DY24: 126180 | DZ24: 126978 | EA24: 127859 | EB24: 128681 | EC24: 129464 | ED24: 130476 | EE24: 131539 | EF24: 132637 | EG24: 133922 | EH24: 135386 | EI24: 137272 | EJ24: 138937 | EK24: 140474 | EL24: 141940 | EM24: 144688 | EN24: 147203 | EO24: 149770 | EP24: 152271 | EQ24: 154878 | ER24: 157553 | ES24: 160184 | ET24: 163026 | EU24: 165931 | EV24: 168903 | EW24: 171984 | EX24: 174882 | EY24: 177830 | EZ24: 180671 | FA24: 183691 | FB24: 186538 | FC24: 189242 | FD24: 191889 | FE24: 194303 | FF24: 196560 | FG24: 198712 | FH24: 200706 | FI24: 202677 | FJ24: 205052 | FK24: 207661 | FL24: 209896 | FM24: 211909 | FN24: 213854 | FO24: 215973 | FP24: 218035 | FQ24: 220239 | FR24: 222585 | FS24: 225055 | FT24: 227726.463 | FU24: 229966.237 | FV24: 232187.835 | FW24: 234307.207 | FX24: 236348.292 | FY24: 238466.283 | FZ24: 240650.755 | GA24: 242803.533 | GB24: 245021.414 | GC24: 247341.697 | GD24: 250131.894 | GE24: 253492.503 | GF24: 256894.189 | GG24: 260255.352 | GH24: 263435.673 | GI24: 266557.091 | GJ24: 269667.391 | GK24: 272911.76 | GL24: 276115.288 | GM24: 279294.713 | GN24: 282158 | GP24: 284915 | GQ24: 287501 | GR24: 289986 | GS24: 292806 | GT24: 295583 | GU24: 298442 | GV24: 301280 | GW24: 304228 | GX24: 307212 | GZ24: 373504
A25: Puerto Rico | L25: 248 | AP25: 495 | BJ25: 645 | CN25: 959 | CO25: 974 | CP25: 990 | CQ25: 1006 | CR25: 1022 | CS25: 1039 | CT25: 1056 | CU25: 1073 | CV25: 1090 | CW25: 1108 | CX25: 1126 | CY25: 1144 | CZ25: 1162 | DA25: 1181 | DB25: 1199 | DC25: 1217 | DD25: 1235 | DE25: 1254 | DF25: 1273 | DG25: 1292 | DH25: 1312 | DI25: 1336 | DJ25: 1359 | DK25: 1383 | DL25: 1407 | DM25: 1431 | DN25: 1455 | DO25: 1478 | DP25: 1502 | DQ25: 1526 | DR25: 1552 | DS25: 0.01617639803 | DT25: 0.01131021499 | DU25: 22 | DV25: 34 | DW25: 1584 | DX25: 1615 | DY25: 1647 | DZ25: 1679 | EA25: 1710 | EB25: 1743 | EC25: 1777 | ED25: 1810 | EE25: 1844 | EF25: 1880 | EG25: 1935 | EH25: 1987 | EI25: 2033 | EJ25: 2062 | EK25: 2099 | EL25: 2141 | EM25: 2162 | EN25: 2187 | EO25: 2197 | EP25: 2218 | EQ25: 2235 | ER25: 2227 | ES25: 2204 | ET25: 2214 | EU25: 2250 | EV25: 2249 | EW25: 2260 | EX25: 2299 | EY25: 2322 | EZ25: 2358 | FA25: 2402.514 | FB25: 2448.046 | FC25: 2496.601 | FD25: 2552.181 | FE25: 2596.774 | FF25: 2627.368 | FG25: 2648.961 | FH25: 2673.568 | FI25: 2722.232 | FJ25: 2721.754 | FK25: 2766.299 | FL25: 2847.132 | FM25: 2863.42 | FN25: 2886.6 | FO25: 2935.124 | FP25: 3026.125 | FQ25: 3080.828 | FR25: 3117.884 | FS25: 3168.446 | FT25: 3209.648 | FU25: 3238.968 | FV25: 3279.001 | FW25: 3316.031 | FX25: 3350.037 | FY25: 3382.106 | FZ25: 3413.303 | GA25: 3444.468 | GB25: 3474.992 | GC25: 3505.6 | GD25: 3536.91 | GE25: 3562.11 | GF25: 3585.176 | GG25: 3615.497 | GH25: 3649.237 | GI25: 3683.103 | GJ25: 3724.655 | GK25: 3759.43 | GL25: 3781.101 | GM25: 3800.081 | GN25: 3814 | GP25: 3838 | GQ25: 3858 | GR25: 3877 | GS25: 3894 | GT25: 3911.299 | GU25: 3927.188 | GV25: 3942.491 | GW25: 3957.169 | GX25: 3966 | GZ25: 4066
A26: Haïti | L26: 723 | AP26: 938 | BJ26: 1150 | CN26: 1560 | CO26: 1583 | CP26: 1607 | CQ26: 1631 | CR26: 1655 | CS26: 1680 | CT26: 1705 | CU26: 1730 | CV26: 1756 | CW26: 1782 | CX26: 1809 | CY26: 1836 | CZ26: 1863 | DA26: 1891 | DB26: 1923 | DC26: 1955 | DD26: 1988 | DE26: 2021 | DF26: 2055 | DG26: 2089 | DH26: 2124 | DI26: 2152 | DJ26: 2181 | DK26: 2209 | DL26: 2239 | DM26: 2268 | DN26: 2298 | DO26: 2328 | DP26: 2359 | DQ26: 2390 | DR26: 2422 | DS26: 0.01477163205 | DT26: 0.01748847866 | DU26: 23 | DV26: 21 | DW26: 2453 | DX26: 2485 | DY26: 2517 | DZ26: 2549 | EA26: 2582 | EB26: 2615 | EC26: 2648 | ED26: 2682 | EE26: 2716 | EF26: 2751 | EG26: 2786 | EH26: 2820 | EI26: 2856 | EJ26: 2892 | EK26: 2928 | EL26: 2961 | EM26: 2994 | EN26: 3028 | EO26: 3062 | EP26: 3097.22 | EQ26: 3146 | ER26: 3197 | ES26: 3250 | ET26: 3306 | EU26: 3365 | EV26: 3427 | EW26: 3490 | EX26: 3557 | EY26: 3625 | EZ26: 3697 | FA26: 3771 | FB26: 3848 | FC26: 3928 | FD26: 4010 | FE26: 4094 | FF26: 4179 | FG26: 4267 | FH26: 4356 | FI26: 4447 | FJ26: 4541 | FK26: 4585 | FL26: 4626 | FM26: 4693 | FN26: 4759 | FO26: 4827 | FP26: 4897 | FQ26: 4969 | FR26: 5044 | FS26: 5121 | FT26: 5200 | FU26: 5284 | FV26: 5373 | FW26: 5468 | FX26: 5570 | FY26: 5677 | FZ26: 5789 | GA26: 5905 | GB26: 6028 | GC26: 6157 | GD26: 6289 | GE26: 6404 | GF26: 6523 | GG26: 6662 | GH26: 6801 | GI26: 6945 | GJ26: 7087 | GK26: 7225 | GL26: 7364 | GM26: 7499 | GN26: 7639 | GP26: 7782 | GQ26: 7925 | GR26: 8077 | GS26: 8235 | GT26: 8395 | GU26: 8553 | GV26: 8711 | GW26: 8871 | GX26: 9036 | GZ26: 12877
A27: Netherlands | B27: 200 | D27: 300 | F27: 950 | H27: 1500 | J27: 1900 | L27: 2333 | M27: 2365 | N27: 2400 | O27: 2435 | P27: 2474 | Q27: 2514 | R27: 2543 | S27: 2561 | T27: 2585 | U27: 2610 | V27: 2633 | W27: 2653 | X27: 2665 | Y27: 2683 | Z27: 2707 | AA27: 2732 | AB27: 2762 | AC27: 2791 | AD27: 2821 | AE27: 2853 | AF27: 2886 | AG27: 2921 | AH27: 2952 | AI27: 2981 | AJ27: 3014 | AK27: 3047 | AL27: 3069 | AM27: 3071 | AN27: 3069 | AO27: 3076 | AP27: 3098 | AQ27: 3133 | AR27: 3167 | AS27: 3194 | AT27: 3218 | AU27: 3235 | AV27: 3253 | AW27: 3277 | AX27: 3294 | AY27: 3304 | AZ27: 3318 | BA27: 3340 | BB27: 3366 | BC27: 3397 | BD27: 3431 | BE27: 3460 | BF27: 3484 | BG27: 3510 | BH27: 3543 | BI27: 3575 | BJ27: 3610 | BK27: 3636 | BL27: 3662 | BM27: 3670 | BN27: 3745 | BO27: 3788 | BP27: 3832 | BQ27: 3883 | BR27: 3834 | BS27: 3986 | BT27: 4043 | BU27: 4079 | BV27: 4130 | BW27: 4180 | BX27: 4226 | BY27: 4276 | BZ27: 4326 | CA27: 4378 | CB27: 4432 | CC27: 4485 | CD27: 4535 | CE27: 4585 | CF27: 4632 | CG27: 4684 | CH27: 4743 | CI27: 4803 | CJ27: 4866 | CK27: 4935 | CL27: 5003 | CM27: 5070 | CN27: 5142 | CO27: 5221 | CP27: 5305 | CQ27: 5389 | CR27: 5470 | CS27: 5551 | CT27: 5632 | CU27: 5710 | CV27: 5786 | CW27: 5862 | CX27: 5922 | CY27: 5984 | CZ27: 6068 | DA27: 6164 | DB27: 6277 | DC27: 6395 | DD27: 6516 | DE27: 6654 | DF27: 6752 | DG27: 6805 | DH27: 6848 | DI27: 6921 | DJ27: 7032 | DK27: 7150 | DL27: 7264 | DM27: 7366 | DN27: 7471 | DO27: 7576 | DP27: 7679 | DQ27: 7782 | DR27: 7884 | DS27: 0.01434840688 | DT27: 0.006668110502 | DU27: 24 | DV27: 41 | DW27: 7999 | DX27: 8123 | DY27: 8237 | DZ27: 8341 | EA27: 8434 | EB27: 8516 | EC27: 8599 | ED27: 8685 | EE27: 8782 | EF27: 8879 | EG27: 8966 | EH27: 9042 | EI27: 9103 | EJ27: 9175 | EK27: 9262 | EL27: 9424 | EM27: 9630 | EN27: 9800 | EO27: 9956 | EP27: 10113.527 | EQ27: 10264.311 | ER27: 10381.988 | ES27: 10493.184 | ET27: 10615.38 | EU27: 10750.842 | EV27: 10889.351 | EW27: 11026.383 | EX27: 11186.875 | EY27: 11347.639 | EZ27: 11486 | FA27: 11638.713 | FB27: 11805.689 | FC27: 11965.966 | FD27: 12127.12 | FE27: 12292 | FF27: 12454.8 | FG27: 12596.822 | FH27: 12724.68 | FI27: 12873 | FJ27: 13032.335 | FK27: 13193.776 | FL27: 13329.874 | FM27: 13438.404 | FN27: 13540.584 | FO27: 13653.438 | FP27: 13769.913 | FQ27: 13852.989 | FR27: 13936.754 | FS27: 14030.002 | FT27: 14143.901 | FU27: 14246.049 | FV27: 14310.401 | FW27: 14362.381 | FX27: 14420.022 | FY27: 14491.38 | FZ27: 14571.875 | GA27: 14665.278 | GB27: 14761.339 | GC27: 14848.907 | GD27: 14951.51 | GE27: 15066.22 | GF27: 15174.244 | GG27: 15274.942 | GH27: 15382.198 | GI27: 15459.054 | GJ27: 15527.809 | GK27: 15604.464 | GL27: 15699.259 | GM27: 15801.947 | GN27: 15907.853 | GP27: 16017.445 | GQ27: 16122.83 | GR27: 16223.248 | GS27: 16318.199 | GT27: 16407.491 | GU27: 16491.461 | GV27: 16570.613 | GW27: 16645.313 | GX27: 16716 | GZ27: 17672.63
A28: Trinidad and Tobago | L28: 60 | AP28: 80 | BJ28: 124 | CN28: 268 | CO28: 274 | CP28: 279 | CQ28: 285 | CR28: 291 | CS28: 298 | CT28: 304 | CU28: 310 | CV28: 317 | CW28: 324 | CX28: 331 | CY28: 338 | CZ28: 345 | DA28: 352 | DB28: 357 | DC28: 362 | DD28: 367 | DE28: 373 | DF28: 378 | DG28: 383 | DH28: 389 | DI28: 367 | DJ28: 371 | DK28: 376 | DL28: 379 | DM28: 382 | DN28: 385 | DO28: 388 | DP28: 392 | DQ28: 398 | DR28: 405 | DS28: 0.01385848696 | DT28: 0.009067066088 | DU28: 25 | DV28: 38 | DW28: 412 | DX28: 417 | DY28: 422 | DZ28: 428 | EA28: 435 | EB28: 442 | EC28: 450 | ED28: 458 | EE28: 466 | EF28: 476 | EG28: 492 | EH28: 510 | EI28: 525 | EJ28: 536 | EK28: 547 | EL28: 561 | EM28: 583 | EN28: 600 | EO28: 616 | EP28: 632 | EQ28: 648.7 | ER28: 662.85 | ES28: 678.3 | ET28: 697.5 | EU28: 720.8 | EV28: 742.5 | EW28: 764.9 | EX28: 788.6 | EY28: 817.05 | EZ28: 841.15 | FA28: 861.387 | FB28: 887.498 | FC28: 904.38 | FD28: 923.887 | FE28: 939.255 | FF28: 952.535 | FG28: 960.155 | FH28: 963.086 | FI28: 962.927 | FJ28: 955 | FK28: 961.605 | FL28: 975.199 | FM28: 984.786 | FN28: 995.364 | FO28: 1006.931 | FP28: 1021.48 | FQ28: 1039.009 | FR28: 1055.527 | FS28: 1073.027 | FT28: 1090.513 | FU28: 1107 | FV28: 1127 | FW28: 1148 | FX28: 1169 | FY28: 1189 | FZ28: 1208 | GA28: 1225 | GB28: 1238 | GC28: 1248 | GD28: 1255 | GE28: 1260 | GF28: 1264 | GG28: 1265 | GH28: 1265 | GI28: 1264 | GJ28: 1262 | GK28: 1260 | GL28: 1258 | GM28: 1255 | GN28: 1252 | GP28: 1249 | GQ28: 1246 | GR28: 1242 | GS28: 1239 | GT28: 1237 | GU28: 1235 | GV28: 1233 | GW28: 1231 | GX28: 1230 | GZ28: 1152
A29: Bulgaria | B29: 500 | D29: 800 | F29: 800 | H29: 1250 | J29: 1250 | L29: 2187 | AP29: 2500 | BJ29: 2586 | CD29: 3445 | CN29: 4000 | CX29: 4520 | DA29: 4720 | DH29: 5072 | DI29: 5148 | DJ29: 5255 | DK29: 5365 | DL29: 5476 | DM29: 5590 | DN29: 5705 | DO29: 5798 | DP29: 5873 | DQ29: 5950 | DR29: 6027 | DS29: 0.01375896226 | DT29: -0.002741127617 | DU29: 26 | DV29: 64 | DW29: 6106 | DX29: 6186 | DY29: 6267 | DZ29: 6349 | EA29: 6415 | EB29: 6469 | EC29: 6514 | ED29: 6564 | EE29: 6614 | EF29: 6666 | EG29: 6715 | EH29: 6771 | EI29: 6828 | EJ29: 6885 | EK29: 6942 | EL29: 7000 | EM29: 7064 | EN29: 7130 | EO29: 7195 | EP29: 7250.5 | EQ29: 7258.2 | ER29: 7274.9 | ES29: 7346.1 | ET29: 7423.3 | EU29: 7499.4 | EV29: 7575.8 | EW29: 7651.254 | EX29: 7727.553 | EY29: 7797.777 | EZ29: 7867.374 | FA29: 7943.118 | FB29: 8012.946 | FC29: 8078.145 | FD29: 8144.339 | FE29: 8201.4 | FF29: 8258.057 | FG29: 8310.226 | FH29: 8369.603 | FI29: 8434.172 | FJ29: 8489.574 | FK29: 8536.395 | FL29: 8576.2 | FM29: 8620.997 | FN29: 8678.745 | FO29: 8720.742 | FP29: 8755.037 | FQ29: 8797.022 | FR29: 8803.281 | FS29: 8811.589 | FT29: 8843.528 | FU29: 8869.441 | FV29: 8892.098 | FW29: 8910.284 | FX29: 8928.271 | FY29: 8943.573 | FZ29: 8958.77 | GA29: 8971.958 | GB29: 8982.025 | GC29: 8990.055 | GD29: 8894.028 | GE29: 8772.368 | GF29: 8658.506 | GG29: 8441.872 | GH29: 8353.335 | GI29: 8255.811 | GJ29: 8161.026 | GK29: 8066.057 | GL29: 7971.774 | GM29: 7893.227 | GN29: 7818.495 | GP29: 7738.416 | GQ29: 7661.799 | GR29: 7588.399 | GS29: 7517.973 | GT29: 7450.349 | GU29: 7385.367 | GV29: 7322.858 | GW29: 7262.675 | GX29: 7205 | GZ29: 5940.822
A30: Peru | D30: 3000 | F30: 4000 | H30: 1300 | J30: 1300 | L30: 1317 | AP30: 2001 | BJ30: 2606 | CD30: 3346 | CJ30: 3470 | CK30: 3513 | CL30: 3558 | CM30: 3603 | CN30: 3648 | CO30: 3694 | CP30: 3741 | CQ30: 3788 | CR30: 3836 | CS30: 3885 | CT30: 3934 | CU30: 3984 | CV30: 4034 | CW30: 4085 | CX30: 4137 | CY30: 4189 | CZ30: 4242 | DA30: 4295 | DB30: 4350 | DC30: 4405 | DD30: 4460 | DE30: 4517 | DF30: 4574 | DG30: 4631 | DH30: 4690 | DI30: 4764 | DJ30: 4838 | DK30: 4914 | DL30: 4992 | DM30: 5070 | DN30: 5150 | DO30: 5230 | DP30: 5312 | DQ30: 5396 | DR30: 5480 | DS30: 0.01365661209 | DT30: 0.02298572143 | DU30: 27 | DV30: 10 | DW30: 5569 | DX30: 5660 | DY30: 5752 | DZ30: 5846 | EA30: 5941 | EB30: 6038 | EC30: 6137 | ED30: 6237 | EE30: 6338 | EF30: 6440 | EG30: 6550 | EH30: 6662 | EI30: 6776 | EJ30: 6892 | EK30: 7010 | EL30: 7130 | EM30: 7252 | EN30: 7376 | EO30: 7502 | EP30: 7632.5 | EQ30: 7826.2 | ER30: 8025.7 | ES30: 8232.1 | ET30: 8447 | EU30: 8671.5 | EV30: 8904.9 | EW30: 9146.1 | EX30: 9396.7 | EY30: 9657.8 | EZ30: 9931 | FA30: 10217.5 | FB30: 10516.5 | FC30: 10825.8 | FD30: 11143.5 | FE30: 11467.3 | FF30: 11796.4 | FG30: 12132.2 | FH30: 12476 | FI30: 12829.1 | FJ30: 13192.8 | FK30: 13568.3 | FL30: 13954.7 | FM30: 14350.3 | FN30: 14753.1 | FO30: 15161.199 | FP30: 15573.199 | FQ30: 15990.099 | FR30: 16414.399 | FS30: 16848.699 | FT30: 17295.298 | FU30: 17754.798 | FV30: 18173 | FW30: 18591 | FX30: 19011 | FY30: 19432 | FZ30: 19855 | GA30: 20280 | GB30: 20710 | GC30: 21151 | GD30: 21600 | GE30: 22057 | GF30: 22522 | GG30: 22993 | GH30: 23469 | GI30: 23942 | GJ30: 24402 | GK30: 24847 | GL30: 25276 | GM30: 25686 | GN30: 26087 | GP30: 26485 | GQ30: 26882 | GR30: 27275 | GS30: 27665 | GT30: 28051 | GU30: 28433 | GV30: 28809 | GW30: 29181 | GX30: 29547 | GZ30: 35923
A31: Sri Lanka | L31: 1213 | AP31: 2217 | BJ31: 2786 | BK31: 2820 | BL31: 2842 | BM31: 2863 | BN31: 2885 | BO31: 2908 | BP31: 2930 | BQ31: 2952 | BR31: 2975 | BS31: 2998 | BT31: 3021 | BU31: 3044 | BV31: 3073 | BW31: 3107 | BX31: 3144 | BY31: 3170 | BZ31: 3194 | CA31: 3221 | CB31: 3261 | CC31: 3311 | CD31: 3343 | CE31: 3404 | CF31: 3470 | CG31: 3524 | CH31: 3584 | CI31: 3626 | CJ31: 3693 | CK31: 3752 | CL31: 3820 | CM31: 3874 | CN31: 3912 | CO31: 4031 | CP31: 4071 | CQ31: 4156 | CR31: 4233 | CS31: 4383 | CT31: 4458 | CU31: 4467 | CV31: 4520 | CW31: 4585 | CX31: 4668 | CY31: 4757 | CZ31: 4784 | DA31: 4811 | DB31: 4838 | DC31: 4905 | DD31: 4971 | DE31: 5040 | DF31: 5109 | DG31: 5179 | DH31: 5250 | DI31: 5304 | DJ31: 5367 | DK31: 5426 | DL31: 5452 | DM31: 5505 | DN31: 5545 | DO31: 5591 | DP31: 5730 | DQ31: 5669 | DR31: 5707 | DS31: 0.01266772235 | DT31: 0.01450211159 | DU31: 28 | DV31: 29 | DW31: 5748 | DX31: 5788 | DY31: 5825 | DZ31: 5872 | EA31: 5897 | EB31: 5943 | EC31: 5989 | ED31: 6045 | EE31: 6095 | EF31: 6134 | EG31: 6169 | EH31: 6191 | EI31: 6296 | EJ31: 6442 | EK31: 6650 | EL31: 6854 | EM31: 7037 | EN31: 7244 | EO31: 7455 | EP31: 7533.097 | EQ31: 7755.062 | ER31: 7987.879 | ES31: 8229.847 | ET31: 8468.96 | EU31: 8693.779 | EV31: 8917.01 | EW31: 9150.728 | EX31: 9387.757 | EY31: 9639.588 | EZ31: 9913.489 | FA31: 10190.59 | FB31: 10465.387 | FC31: 10735.234 | FD31: 10995.616 | FE31: 11260.675 | FF31: 11533.482 | FG31: 11806.781 | FH31: 12085.281 | FI31: 12356.46 | FJ31: 12618.72 | FK31: 12869.417 | FL31: 13116.399 | FM31: 13351.662 | FN31: 13562.004 | FO31: 13779.193 | FP31: 14013.106 | FQ31: 14249.606 | FR31: 14511.088 | FS31: 14796.646 | FT31: 15055.97 | FU31: 15315.491 | FV31: 15575.466 | FW31: 15784.464 | FX31: 15976.917 | FY31: 16188.11 | FZ31: 16423.789 | GA31: 16663.116 | GB31: 16903.079 | GC31: 17142.293 | GD31: 17365.08 | GE31: 17559.048 | GF31: 17755.61 | GG31: 17997.15 | GH31: 18247.057 | GI31: 18475.882 | GJ31: 18679.668 | GK31: 18868.199 | GL31: 19055.66 | GM31: 19241.035 | GN31: 19435.869 | GP31: 19646.267 | GQ31: 19870.066 | GR31: 20097.485 | GS31: 20303.267 | GT31: 20504.264 | GU31: 20717.932 | GV31: 20926.315 | GW31: 21128.773 | GX31: 21325 | GZ31: 24191.916
A32: Japan | B32: 3000 | D32: 7500 | F32: 15400 | H32: 18500 | J32: 27000 | L32: 31000 | M32: 31032.82435 | N32: 31065.68346 | O32: 31098.57737 | P32: 31131.5061 | Q32: 31164.4697 | R32: 31197.4682 | S32: 31230.50165 | T32: 31263.57007 | U32: 31296.6735 | V32: 31329.81199 | W32: 31362.98556 | X32: 31396.19426 | Y32: 31429.43813 | Z32: 31462.71719 | AA32: 31496.0315 | AB32: 31529.38107 | AC32: 31562.76596 | AD32: 31596.1862 | AE32: 31629.64183 | AF32: 31663.13288 | AG32: 31696.65939 | AH32: 31730.2214 | AI32: 31763.81895 | AJ32: 31797.45207 | AK32: 31831.12081 | AL32: 31864.8252 | AM32: 31898.56527 | AN32: 31932.34107 | AO32: 31966.15264 | AP32: 32000 | AQ32: 32117.6488 | AR32: 32235.73015 | AS32: 32354.24562 | AT32: 32473.19682 | AU32: 32592.58534 | AV32: 32712.4128 | AW32: 32832.68081 | AX32: 32953.39099 | AY32: 33074.54496 | AZ32: 33196.14435 | BA32: 33318.19081 | BB32: 33440.68598 | BC32: 33563.6315 | BD32: 33687.02904 | BE32: 33810.88025 | BF32: 33935.1868 | BG32: 34059.95037 | BH32: 34185.17263 | BI32: 34310.85528 | BJ32: 34437 | BK32: 34648 | BL32: 34859 | BM32: 35070 | BN32: 35235 | BO32: 35436 | BP32: 35713 | BQ32: 36018 | BR32: 36315 | BS32: 36557 | BT32: 36807 | BU32: 37112 | BV32: 37414 | BW32: 37766 | BX32: 38138 | BY32: 38427 | BZ32: 38622 | CA32: 38866 | CB32: 39251 | CC32: 39688 | CD32: 40077 | CE32: 40380 | CF32: 40684 | CG32: 41001 | CH32: 41350 | CI32: 41775 | CJ32: 42196 | CK32: 42643 | CL32: 43145 | CM32: 43626 | CN32: 44103 | CO32: 44662 | CP32: 45255 | CQ32: 45841 | CR32: 46378 | CS32: 46829 | CT32: 47227 | CU32: 47691 | CV32: 48260 | CW32: 48869 | CX32: 49518 | CY32: 50215 | CZ32: 50941 | DA32: 51672 | DB32: 52396 | DC32: 53124 | DD32: 53815 | DE32: 54437 | DF32: 54886 | DG32: 55253 | DH32: 55818 | DI32: 56490 | DJ32: 57209 | DK32: 57937 | DL32: 58686 | DM32: 59522 | DN32: 60490 | DO32: 61430 | DP32: 62361 | DQ32: 63244 | DR32: 64203 | DS32: 0.01259607499 | DT32: 0.006499312473 | DU32: 29 | DV32: 42 | DW32: 65205 | DX32: 66189 | DY32: 67182 | DZ32: 68090 | EA32: 69238 | EB32: 70171 | EC32: 71278 | ED32: 71879 | EE32: 72364 | EF32: 72967 | EG32: 74005 | EH32: 75029 | EI32: 76005 | EJ32: 77178 | EK32: 76224 | EL32: 77199 | EM32: 78119 | EN32: 80155 | EO32: 81971 | EP32: 83805 | EQ32: 85163.848 | ER32: 86459.025 | ES32: 87655.163 | ET32: 88753.892 | EU32: 89815.06 | EV32: 90766.211 | EW32: 91563.009 | EX32: 92388.772 | EY32: 93296.566 | EZ32: 94091.638 | FA32: 94943.293 | FB32: 95831.757 | FC32: 96811.94 | FD32: 97826.267 | FE32: 98882.534 | FF32: 99790.308 | FG32: 100825.279 | FH32: 101960.672 | FI32: 103171.831 | FJ32: 104344.973 | FK32: 105696.786 | FL32: 107188.273 | FM32: 108706.797 | FN32: 110162.302 | FO32: 111573.116 | FP32: 112774.841 | FQ32: 113872.473 | FR32: 114912.911 | FS32: 115890.431 | FT32: 116807.309 | FU32: 117648.092 | FV32: 118454.974 | FW32: 119269.949 | FX32: 120034.697 | FY32: 120754.335 | FZ32: 121491.913 | GA32: 122091.325 | GB32: 122613 | GC32: 123107.5 | GD32: 123537.399 | GE32: 123946.268 | GF32: 124329.269 | GG32: 124668.019 | GH32: 125014.05 | GI32: 125341.354 | GJ32: 125645.311 | GK32: 125956.499 | GL32: 126246.096 | GM32: 126494.403 | GN32: 126729 | GP32: 126972 | GQ32: 127187 | GR32: 127358 | GS32: 127480 | GT32: 127537 | GU32: 127515 | GV32: 127433 | GW32: 127288 | GX32: 127079 | GZ32: 113520
A33: Chile | L33: 771.447 | M33: 789.144 | N33: 807.304 | O33: 825.89 | P33: 844.866 | Q33: 864.198 | R33: 883.855 | S33: 903.807 | T33: 924.027 | U33: 944.49 | V33: 965.173 | W33: 986.056 | X33: 1007.12 | Y33: 1028.35 | Z33: 1049.733 | AA33: 1071.256 | AB33: 1092.912 | AC33: 1114.694 | AD33: 1136.597 | AE33: 1158.619 | AF33: 1180.761 | AG33: 1203.023 | AH33: 1225.41 | AI33: 1247.926 | AJ33: 1270.578 | AK33: 1293.375 | AL33: 1316.325 | AM33: 1339.439 | AN33: 1362.729 | AO33: 1386.207 | AP33: 1409.885 | AQ33: 1433.777 | AR33: 1457.897 | AS33: 1482.258 | AT33: 1506.873 | AU33: 1531.758 | AV33: 1556.924 | AW33: 1582.386 | AX33: 1608.154 | AY33: 1634.242 | AZ33: 1660.659 | BA33: 1687.416 | BB33: 1714.521 | BC33: 1741.983 | BD33: 1769.808 | BE33: 1798.001 | BF33: 1826.566 | BG33: 1855.505 | BH33: 1884.819 | BI33: 1914.507 | BJ33: 1944.569 | BK33: 1974.998 | BL33: 2005.79 | BM33: 2036.939 | BN33: 2068.435 | BO33: 2100.268 | BP33: 2132.427 | BQ33: 2164.899 | BR33: 2197.67 | BS33: 2230.723 | BT33: 2264.042 | BU33: 2297.611 | BV33: 2331.409 | BW33: 2365.419 | BX33: 2399.621 | BY33: 2433.995 | BZ33: 2468.522 | CA33: 2503.181 | CB33: 2537.954 | CC33: 2572.823 | CD33: 2607.769 | CE33: 2642.778 | CF33: 2677.834 | CG33: 2712.925 | CH33: 2748.04 | CI33: 2783.171 | CJ33: 2818.312 | CK33: 2853.462 | CL33: 2888.62 | CM33: 2923.792 | CN33: 2958.986 | CO33: 2994.214 | CP33: 3029.494 | CQ33: 3064.845 | CR33: 3100.295 | CS33: 3135.874 | CT33: 3171.619 | CU33: 3207.571 | CV33: 3243.777 | CW33: 3280.289 | CX33: 3317.166 | CY33: 3354.469 | CZ33: 3392.269 | DA33: 3430.64 | DB33: 3469.662 | DC33: 3509.42 | DD33: 3550.005 | DE33: 3591.512 | DF33: 3634.043 | DG33: 3677.702 | DH33: 3722.598 | DI33: 3768.846 | DJ33: 3816.561 | DK33: 3865.863 | DL33: 3916.875 | DM33: 3969.721 | DN33: 4024.523 | DO33: 4081.406 | DP33: 4140.494 | DQ33: 4201.905 | DR33: 4265.756 | DS33: 0.01226705662 | DT33: 0.0161638205 | DU33: 30 | DV33: 24 | DW33: 4332.156 | DX33: 4401.207 | DY33: 4473.001 | DZ33: 4547.615 | EA33: 4625.112 | EB33: 4705.534 | EC33: 4788.901 | ED33: 4875.203 | EE33: 4964.398 | EF33: 5056.404 | EG33: 5151.095 | EH33: 5248.293 | EI33: 5347.758 | EJ33: 5449.185 | EK33: 5552.19 | EL33: 5656.303 | EM33: 5760.959 | EN33: 5865.486 | EO33: 5969.096 | EP33: 6090.833 | EQ33: 6251.933 | ER33: 6377.619 | ES33: 6492.774 | ET33: 6612.138 | EU33: 6743.269 | EV33: 6888.843 | EW33: 7048.426 | EX33: 7219.783 | EY33: 7399.842 | EZ33: 7585.349 | FA33: 7773.314 | FB33: 7961.258 | FC33: 8147.349 | FD33: 8330.423 | FE33: 8509.95 | FF33: 8685.954 | FG33: 8858.908 | FH33: 9029.621 | FI33: 9199.122 | FJ33: 9368.558 | FK33: 9540.298 | FL33: 9717.524 | FM33: 9896.635 | FN33: 10076.544 | FO33: 10251.542 | FP33: 10432.214 | FQ33: 10599.793 | FR33: 10759.823 | FS33: 10922.822 | FT33: 11093.718 | FU33: 11282.304 | FV33: 11487.112 | FW33: 11686.845 | FX33: 11879.139 | FY33: 12068 | FZ33: 12261 | GA33: 12465 | GB33: 12679 | GC33: 12902 | GD33: 13129 | GE33: 13354 | GF33: 13574 | GG33: 13789 | GH33: 14001 | GI33: 14207 | GJ33: 14405 | GK33: 14601 | GL33: 14792 | GM33: 14977 | GN33: 15156 | GP33: 15332 | GQ33: 15504 | GR33: 15672 | GS33: 15836 | GT33: 15995 | GU33: 16151 | GV33: 16304 | GW33: 16454 | GX33: 16602 | GZ33: 18984
A34: Burma | L34: 3506 | AP34: 3932 | BJ34: 4245 | CD34: 7489 | CN34: 10174 | CO34: 10490 | CP34: 10642 | CQ34: 10796 | CR34: 10953 | CS34: 11112 | CT34: 11273 | CU34: 11437 | CV34: 11603 | CW34: 11771 | CX34: 11942 | CY34: 12115 | CZ34: 12220 | DA34: 12326 | DB34: 12433 | DC34: 12541 | DD34: 12650 | DE34: 12760 | DF34: 12871 | DG34: 12893 | DH34: 13096 | DI34: 13212 | DJ34: 13351 | DK34: 13491 | DL34: 13633 | DM34: 13776 | DN34: 13921 | DO34: 14067 | DP34: 14215 | DQ34: 14364 | DR34: 14515 | DS34: 0.01191533372 | DT34: 0.016153255 | DU34: 31 | DV34: 25 | DW34: 14667 | DX34: 14870 | DY34: 15075 | DZ34: 15283 | EA34: 15494 | EB34: 15708 | EC34: 15925 | ED34: 16145 | EE34: 16368 | EF34: 16594 | EG34: 16824 | EH34: 16727 | EI34: 16908 | EJ34: 17090 | EK34: 17272 | EL34: 17454 | EM34: 17636 | EN34: 17818 | EO34: 18000 | EP34: 19487.657 | EQ34: 19788.256 | ER34: 20093.491 | ES34: 20403.435 | ET34: 20722.16 | EU34: 21049.927 | EV34: 21387.025 | EW34: 21733.717 | EX34: 22090.294 | EY34: 22458.612 | EZ34: 22839.044 | FA34: 23232.014 | FB34: 23637.928 | FC34: 24057.245 | FD34: 24490.203 | FE34: 24937.268 | FF34: 25398.927 | FG34: 25875.687 | FH34: 26368.073 | FI34: 26873.709 | FJ34: 27392.973 | FK34: 27926.302 | FL34: 28474.102 | FM34: 29234.935 | FN34: 29798.623 | FO34: 30335.029 | FP34: 30871.589 | FQ34: 31407.912 | FR34: 31863.413 | FS34: 32405.341 | FT34: 33061.428 | FU34: 33669.419 | FV34: 34306.454 | FW34: 34980.263 | FX34: 35670.645 | FY34: 36345.622 | FZ34: 36997.574 | GA34: 37625.379 | GB34: 38196.363 | GC34: 38721.319 | GD34: 39242.996 | GE34: 39742.053 | GF34: 40132.994 | GG34: 40568.35 | GH34: 41158.489 | GI34: 41752.699 | GJ34: 42308.354 | GK34: 42831.263 | GL34: 43338.254 | GM34: 43828.893 | GN34: 44301.206 | GP34: 44753.046 | GQ34: 45198.023 | GR34: 45628.897 | GS34: 46117.911 | GT34: 46595.675 | GU34: 46986.207 | GV34: 47373.958 | GW34: 47758.181 | GX34: 52826 | GZ34: 53905.142
A35: Nicaragua | L35: 186 | AP35: 300 | BJ35: 337 | CN35: 478 | CO35: 485 | CP35: 492 | CQ35: 499 | CR35: 507 | CS35: 514 | CT35: 522 | CU35: 529 | CV35: 537 | CW35: 545 | CX35: 553 | CY35: 561 | CZ35: 570 | DA35: 578 | DB35: 580 | DC35: 595 | DD35: 604 | DE35: 613 | DF35: 622 | DG35: 631 | DH35: 640 | DI35: 640 | DJ35: 650 | DK35: 650 | DL35: 660 | DM35: 660 | DN35: 670 | DO35: 670 | DP35: 670 | DQ35: 680 | DR35: 680 | DS35: 0.01181869754 | DT35: 0.02967418036 | DU35: 32 | DV35: 1 | DW35: 690 | DX35: 690 | DY35: 700 | DZ35: 710 | EA35: 730 | EB35: 750 | EC35: 770 | ED35: 780 | EE35: 810 | EF35: 830 | EG35: 840 | EH35: 860 | EI35: 880 | EJ35: 900 | EK35: 920 | EL35: 950 | EM35: 980 | EN35: 1000 | EO35: 1030 | EP35: 1097.916 | EQ35: 1131.307 | ER35: 1165.79 | ES35: 1201.514 | ET35: 1238.63 | EU35: 1277.288 | EV35: 1317.387 | EW35: 1358.828 | EX35: 1401.76 | EY35: 1446.333 | EZ35: 1492.698 | FA35: 1540.819 | FB35: 1590.597 | FC35: 1642.083 | FD35: 1695.33 | FE35: 1750.391 | FF35: 1807.123 | FG35: 1865.49 | FH35: 1925.707 | FI35: 1987.988 | FJ35: 2052.544 | FK35: 2120.111 | FL35: 2182.908 | FM35: 2247.491 | FN35: 2319.602 | FO35: 2394.786 | FP35: 2473.102 | FQ35: 2554.598 | FR35: 2609.107 | FS35: 2689.042 | FT35: 2805.321 | FU35: 2901.332 | FV35: 2979.423 | FW35: 3048.6 | FX35: 3122 | FY35: 3191 | FZ35: 3264 | GA35: 3345 | GB35: 3435 | GC35: 3532 | GD35: 3685 | GE35: 3873 | GF35: 4020 | GG35: 4142 | GH35: 4264 | GI35: 4385 | GJ35: 4501 | GK35: 4612 | GL35: 4720 | GM35: 4827 | GN35: 4935 | GP35: 5043 | GQ35: 5150 | GR35: 5257 | GS35: 5363 | GT35: 5469 | GU35: 5575 | GV35: 5680 | GW35: 5786 | GX35: 5891 | GZ35: 7985
A36: Bolivia | L36: 1100 | AP36: 1374 | BJ36: 1495 | CN36: 1696 | CO36: 1710 | CP36: 1723 | CQ36: 1737 | CR36: 1751 | CS36: 1765 | CT36: 1779 | CU36: 1793 | CV36: 1808 | CW36: 1822 | CX36: 1837 | CY36: 1851 | CZ36: 1866 | DA36: 1881 | DB36: 1915 | DC36: 1951 | DD36: 1986 | DE36: 2023 | DF36: 2060 | DG36: 2098 | DH36: 2136 | DI36: 2161 | DJ36: 2186 | DK36: 2212 | DL36: 2237 | DM36: 2263 | DN36: 2289 | DO36: 2316 | DP36: 2343 | DQ36: 2370 | DR36: 2397 | DS36: =(DR36/CN36)^(1/30)-1 -> 0.01159825815 | DT36: =(GN36/FJ36)^(1/30)-1 -> 0.02136565136 | DU36: 33 | DV36: 15 | DW36: 2425 | DX36: 2453 | DY36: 2482 | DZ36: 2511 | EA36: 2540 | EB36: 2569 | EC36: 2599 | ED36: 2629 | EE36: 2659 | EF36: 2690 | EG36: 2721 | EH36: 2753 | EI36: 2785 | EJ36: 2817 | EK36: 2850 | EL36: 2883 | EM36: 2916 | EN36: 2950 | EO36: 2984 | EP36: 2766.028 | EQ36: 2823.667 | ER36: 2883.315 | ES36: 2944.968 | ET36: 3008.635 | EU36: 3074.311 | EV36: 3141.998 | EW36: 3211.738 | EX36: 3283.613 | EY36: 3357.701 | EZ36: 3434.073 | FA36: 3512.782 | FB36: 3593.918 | FC36: 3677.637 | FD36: 3764.067 | FE36: 3853.315 | FF36: 3945.474 | FG36: 4040.665 | FH36: 4139.069 | FI36: 4240.872 | FJ36: 4346.218 | FK36: 4454.684 | FL36: 4565.872 | FM36: 4679.923 | FN36: 4796.24 | FO36: 4914.316 | FP36: 4955.744 | FQ36: 5079.716 | FR36: 5204.622 | FS36: 5326.981 | FT36: 5441.298 | FU36: 5545.224 | FV36: 5642.224 | FW36: 5737.434 | FX36: 5834.293 | FY36: 5934.935 | FZ36: 6041.35 | GA36: 6156.369 | GB36: 6283.164 | GC36: 6423.135 | GD36: 6573.9 | GE36: 6731.484 | GF36: 6893.451 | GG36: 7054 | GH36: 7215 | GI36: 7375 | GJ36: 7534 | GK36: 7695 | GL36: 7859 | GM36: 8026 | GN36: 8195 | GP36: 8367 | GQ36: 8542 | GR36: 8719 | GS36: 8896 | GT36: 9072 | GU36: 9250 | GV36: 9426 | GW36: 9601 | GX36: 9775 | GZ36: 13262
A37: South Korea | L37: 9395 | AP37: 9545 | BJ37: 9753 | CD37: 9848 | CN37: 9896 | CX37: 10096 | CY37: 10258 | CZ37: 10422 | DA37: 10589 | DB37: 10764 | DC37: 10911 | DD37: 11086 | DE37: 11263 | DF37: 11443 | DG37: 11627 | DH37: 11804 | DI37: 12040 | DJ37: 12281 | DK37: 12526 | DL37: 12777 | DM37: 13005 | DN37: 13179 | DO37: 13356 | DP37: 13535 | DQ37: 13716 | DR37: 13900 | DS37: 0.0113896472 | DT37: 0.01252694236 | DU37: 34 | DV37: 32 | DW37: 14117 | DX37: 14338 | DY37: 14562 | DZ37: 14789 | EA37: 15020 | EB37: 15139 | EC37: 15260 | ED37: 15381 | EE37: 15504 | EF37: 15627 | EG37: 15859 | EH37: 16094 | EI37: 16332 | EJ37: 16574 | EK37: 17917 | EL37: 19369 | EM37: 19886 | EN37: 20027 | EO37: 20208 | EP37: 20845.771 | EQ37: 20876.189 | ER37: 20947.571 | ES37: 21060.464 | ET37: 21258.836 | EU37: 21551.834 | EV37: 22031.228 | EW37: 22611.552 | EX37: 23253.622 | EY37: 23981.313 | EZ37: 24784.14 | FA37: 25613.842 | FB37: 26420.307 | FC37: 27211.316 | FD37: 27984 | FE37: 28705 | FF37: 29436 | FG37: 30131 | FH37: 30838 | FI37: 31544 | FJ37: 32241 | FK37: 32883 | FL37: 33505 | FM37: 34073 | FN37: 34692 | FO37: 35281 | FP37: 35860 | FQ37: 36436 | FR37: 37019 | FS37: 37534 | FT37: 38124 | FU37: 38723 | FV37: 39326 | FW37: 39910 | FX37: 40406 | FY37: 40806 | FZ37: 41214 | GA37: 41622 | GB37: 42031 | GC37: 42449 | GD37: 42869 | GE37: 43339.909 | GF37: 43837.115 | GG37: 44307.038 | GH37: 44718.897 | GI37: 45105.079 | GJ37: 45467.969 | GK37: 45807.825 | GL37: 46151.512 | GM37: 46485.422 | GN37: 46838.842 | GP37: 47177.811 | GQ37: 47437.276 | GR37: 47656.631 | GS37: 47853.847 | GT37: 48005.157 | GU37: 48123.561 | GV37: 48250.148 | GW37: 48379.392 | GX37: 48509 | GZ37: 49002.913
A38: Jamaica | L38: 401 | AP38: 399 | BJ38: 499 | CN38: 720 | CO38: 728 | CP38: 737 | CQ38: 745 | CR38: 754 | CS38: 763 | CT38: 772 | CU38: 781 | CV38: 790 | CW38: 799 | CX38: 808 | CY38: 818 | CZ38: 827 | DA38: 837 | DB38: 840 | DC38: 842 | DD38: 845 | DE38: 847 | DF38: 850 | DG38: 852 | DH38: 855 | DI38: 860 | DJ38: 879 | DK38: 891 | DL38: 900 | DM38: 910 | DN38: 930 | DO38: 946 | DP38: 966 | DQ38: 985 | DR38: 1009 | DS38: 0.01131229919 | DT38: 0.009942586799 | DU38: 35 | DV38: 36 | DW38: 1039 | DX38: 1061 | DY38: 1082 | DZ38: 1098 | EA38: 1113 | EB38: 1130 | EC38: 1142 | ED38: 1163 | EE38: 1191 | EF38: 1212 | EG38: 1230 | EH38: 1254 | EI38: 1249 | EJ38: 1259 | EK38: 1266 | EL38: 1298 | EM38: 1327 | EN38: 1350 | EO38: 1374 | EP38: 1384.55 | EQ38: 1405.615 | ER38: 1426.095 | ES38: 1446.425 | ET38: 1467.585 | EU38: 1488.805 | EV38: 1509.975 | EW38: 1535.09 | EX38: 1565.755 | EY38: 1599.115 | EZ38: 1631.784 | FA38: 1647.918 | FB38: 1665.128 | FC38: 1697.847 | FD38: 1738.997 | FE38: 1777.397 | FF38: 1820.082 | FG38: 1861.096 | FH38: 1893.477 | FI38: 1919.615 | FJ38: 1943.787 | FK38: 1967.012 | FL38: 1997.616 | FM38: 2036.377 | FN38: 2071.146 | FO38: 2104.879 | FP38: 2133.388 | FQ38: 2156.814 | FR38: 2179.441 | FS38: 2207.245 | FT38: 2228.803 | FU38: 2258.368 | FV38: 2298.309 | FW38: 2306.556 | FX38: 2313.362 | FY38: 2318.652 | FZ38: 2323.182 | GA38: 2326.606 | GB38: 2330.226 | GC38: 2337.517 | GD38: 2347.922 | GE38: 2358.643 | GF38: 2378.618 | GG38: 2407.463 | GH38: 2436.866 | GI38: 2469.389 | GJ38: 2501.477 | GK38: 2531.311 | GL38: 2560.447 | GM38: 2588.786 | GN38: 2615.467 | GP38: 2640.289 | GQ38: 2664.659 | GR38: 2688.706 | GS38: 2713 | GT38: 2737 | GU38: 2759 | GV38: 2782 | GW38: 2804 | GX38: 2826 | GZ38: 3246
A39: Total Former USSR | B39: 3900 | D39: 7100 | F39: 16950 | H39: 20700 | J39: 26550 | L39: 54765 | AP39: 73750 | BJ39: 88672 | CD39: 110664 | CN39: 124500 | DA39: 156192 | DH39: 154607 | DI39: 152836 | DJ39: 152403 | DK39: 153055 | DL39: 155581 | DM39: 158983 | DN39: 162621 | DO39: 166117 | DP39: 169269 | DQ39: 172017 | DR39: 174212 | DS39: 0.01126185026 | DT39: 0.005835081135 | DU39: 36 | DV39: 44 | DW39: 175987 | DX39: 176807 | DY39: 177401 | DZ39: 178453 | EA39: 179636 | EB39: 181502 | EC39: 184626 | ED39: 188498 | EE39: 192379 | EF39: 195970 | EL39: 173900 | EM39: 174000 | EN39: 175100 | EO39: 177500 | EP39: 179570.837 | EQ39: 182677.438 | ER39: 185855.87 | ES39: 188960.538 | ET39: 192171.246 | EU39: 195612.673 | EV39: 199102.595 | EW39: 202604.165 | EX39: 206200.603 | EY39: 209927.781 | EZ39: 213779.936 | FA39: 217618.27 | FB39: 221227.18 | FC39: 224585.401 | FD39: 227697.97 | FE39: 230512.995 | FF39: 233139.09 | FG39: 235629.795 | FH39: 237983.436 | FI39: 240252.698 | FJ39: 242478.113 | FK39: 244886.536 | FL39: 247343.292 | FM39: 249712.38 | FN39: 252110.639 | FO39: 254518.689 | FP39: 256882.729 | FQ39: 259225.085 | FR39: 261524.905 | FS39: 263750.613 | FT39: 265926.436 | FU39: 268123.343 | FV39: 270389.974 | FW39: 272716.914 | FX39: 275330.011 | FY39: 277811.571 | FZ39: 280296.143 | GA39: 282718.129 | GB39: 285020.4 | GC39: 286461.835 | GD39: 288361.468 | GE39: 289949.418 | GF39: 290950.09 | GG39: 291212.274 | GH39: 291051.564 | GI39: 290854.767 | GJ39: 290625.19 | GK39: 290281.094 | GL39: 289918.746 | GM39: 289399.596 | GN39: 288719.359 | GP39: 287980.295 | GQ39: 287189.122 | GR39: 286409.123 | GS39: 285713.254 | GT39: 285131.177 | GU39: 284598.961 | GV39: 284119.892 | GW39: 283685.062 | GX39: 283290 | GZ39: 271581.386
A40: Ecuador | L40: 500 | AP40: 816 | BJ40: 1013 | CN40: 1400 | CO40: 1420 | CP40: 1441 | CQ40: 1462 | CR40: 1483 | CS40: 1505 | CT40: 1527 | CU40: 1549 | CV40: 1571 | CW40: 1594 | CX40: 1617 | CY40: 1641 | CZ40: 1665 | DA40: 1689 | DB40: 1703 | DC40: 1717 | DD40: 1731 | DE40: 1746 | DF40: 1760 | DG40: 1774 | DH40: 1790 | DI40: 1805 | DJ40: 1820 | DK40: 1835 | DL40: 1850 | DM40: 1865 | DN40: 1881 | DO40: 1896 | DP40: 1912 | DQ40: 1928 | DR40: 1944 | DS40: 0.01100260394 | DT40: 0.02496715676 | DU40: 37 | DV40: 8 | DW40: 1995 | DX40: 2050 | DY40: 2095 | DZ40: 2140 | EA40: 2196 | EB40: 2249 | EC40: 2298 | ED40: 2355 | EE40: 2412 | EF40: 2466 | EG40: 2541 | EH40: 2575 | EI40: 2641 | EJ40: 2712 | EK40: 2781 | EL40: 2853 | EM40: 2936 | EN40: 3017 | EO40: 3104 | EP40: 3369.955 | EQ40: 3458.093 | ER40: 3548.753 | ES40: 3642.591 | ET40: 3740.256 | EU40: 3842.399 | EV40: 3948.587 | EW40: 4058.385 | EX40: 4172.445 | EY40: 4291.418 | EZ40: 4415.956 | FA40: 4546.197 | FB40: 4681.707 | FC40: 4822.279 | FD40: 4967.705 | FE40: 5117.779 | FF40: 5272.639 | FG40: 5432.424 | FH40: 5596.925 | FI40: 5765.935 | FJ40: 5939.246 | FK40: 6116.773 | FL40: 6298.651 | FM40: 6485.013 | FN40: 6675.986 | FO40: 6871.698 | FP40: 7072.687 | FQ40: 7278.866 | FR40: 7489.432 | FS40: 7703.577 | FT40: 7920.499 | FU40: 8141.078 | FV40: 8365.85 | FW40: 8593.494 | FX40: 8825.829 | FY40: 9061.664 | FZ40: 9301.083 | GA40: 9545.158 | GB40: 9794.122 | GC40: 10048.223 | GD40: 10318.036 | GE40: 10429 | GF40: 10554 | GG40: 10754 | GH40: 11013 | GI40: 11266 | GJ40: 11526 | GK40: 11792 | GL40: 12051 | GM40: 12268 | GN40: 12446 | GP40: 12629 | GQ40: 12827 | GR40: 13074.082 | GS40: 13368 | GT40: 13662 | GU40: 13917 | GV40: 14135 | GW40: 14354 | GX40: 14573 | GZ40: 18743
A41: Denmark | B41: 180 | D41: 360 | F41: 600 | H41: 650 | J41: 700 | L41: 1155 | M41: 1167 | N41: 1179 | O41: 1196 | P41: 1213 | Q41: 1228 | R41: 1243 | S41: 1255 | T41: 1265 | U41: 1270 | V41: 1273 | W41: 1275 | X41: 1276 | Y41: 1284 | Z41: 1295 | AA41: 1306 | AB41: 1315 | AC41: 1325 | AD41: 1335 | AE41: 1347 | AF41: 1357 | AG41: 1371 | AH41: 1385 | AI41: 1392 | AJ41: 1414 | AK41: 1430 | AL41: 1444 | AM41: 1456 | AN41: 1470 | AO41: 1484 | AP41: 1499 | AQ41: 1517 | AR41: 1536 | AS41: 1552 | AT41: 1569 | AU41: 1590 | AV41: 1612 | AW41: 1634 | AX41: 1653 | AY41: 1674 | AZ41: 1696 | BA41: 1717 | BB41: 1739 | BC41: 1761 | BD41: 1777 | BE41: 1799 | BF41: 1814 | BG41: 1833 | BH41: 1852 | BI41: 1871 | BJ41: 1888 | BK41: 1903 | BL41: 1918 | BM41: 1935 | BN41: 1954 | BO41: 1973 | BP41: 1994 | BQ41: 2019 | BR41: 2043 | BS41: 2064 | BT41: 2081 | BU41: 2101 | BV41: 2120 | BW41: 2137 | BX41: 2160 | BY41: 2186 | BZ41: 2213 | CA41: 2237 | CB41: 2257 | CC41: 2276 | CD41: 2294 | CE41: 2311 | CF41: 2327 | CG41: 2344 | CH41: 2367 | CI41: 2397 | CJ41: 2428 | CK41: 2462 | CL41: 2497 | CM41: 2530 | CN41: 2561 | CO41: 2594 | CP41: 2623 | CQ41: 2653 | CR41: 2681 | CS41: 2710 | CT41: 2741 | CU41: 2775 | CV41: 2809 | CW41: 2845 | CX41: 2882 | CY41: 2917 | CZ41: 2951 | DA41: 2983 | DB41: 3018 | DC41: 3055 | DD41: 3092 | DE41: 3130 | DF41: 3165 | DG41: 3202 | DH41: 3242 | DI41: 3285 | DJ41: 3322 | DK41: 3356 | DL41: 3389 | DM41: 3425 | DN41: 3452 | DO41: 3475 | DP41: 3497 | DQ41: 3518 | DR41: 3542 | DS41: 0.01086842796 | DT41: 0.002658688536 | DU41: 38 | DV41: 58 | DW41: 3569 | DX41: 3603 | DY41: 3633 | DZ41: 3666 | EA41: 3695 | EB41: 3722 | EC41: 3749 | ED41: 3777 | EE41: 3805 | EF41: 3832 | EG41: 3863 | EH41: 3903 | EI41: 3949 | EJ41: 3998 | EK41: 4045 | EL41: 4101 | EM41: 4146 | EN41: 4190 | EO41: 4230 | EP41: 4271 | EQ41: 4303.62 | ER41: 4334 | ES41: 4369.28 | ET41: 4406 | EU41: 4439 | EV41: 4466.471 | EW41: 4487.831 | EX41: 4515.132 | EY41: 4546.636 | EZ41: 4581 | FA41: 4609.817 | FB41: 4646.899 | FC41: 4683.579 | FD41: 4720.171 | FE41: 4758.1 | FF41: 4797.5 | FG41: 4838.8 | FH41: 4867.3 | FI41: 4890.687 | FJ41: 4928.757 | FK41: 4963.126 | FL41: 4991.596 | FM41: 5021.861 | FN41: 5045.297 | FO41: 5059.861 | FP41: 5072.596 | FQ41: 5088.419 | FR41: 5104.247 | FS41: 5116.8 | FT41: 5123.027 | FU41: 5121.572 | FV41: 5117.81 | FW41: 5114.297 | FX41: 5111.619 | FY41: 5113.691 | FZ41: 5120.534 | GA41: 5127.024 | GB41: 5129.516 | GC41: 5132.593 | GD41: 5140.954 | GE41: 5154.352 | GF41: 5171.393 | GG41: 5188.386 | GH41: 5205.603 | GI41: 5232.612 | GJ41: 5262.075 | GK41: 5283.663 | GL41: 5302.767 | GM41: 5320.134 | GN41: 5337.416 | GP41: 5355.826 | GQ41: 5374.693 | GR41: 5394.138 | GS41: 5413.392 | GT41: 5432.335 | GU41: 5450.661 | GV41: 5468.12 | GW41: 5484.723 | GX41: 5501 | GZ41: 5730.488
A42: Indonesia (including Timor until 1999) | B42: 2800 | D42: 5200 | F42: 10700 | H42: 11700 | J42: 13100 | L42: 17927 | M42: 18075.9227 | N42: 18226.08252 | O42: 18377.48974 | P42: 18530.15474 | Q42: 18684.08794 | R42: 18839.2999 | S42: 18995.80123 | T42: 19153.60264 | U42: 19312.71494 | V42: 19473.14901 | W42: 19634.91583 | X42: 19798.02648 | Y42: 19962.49212 | Z42: 20128.324 | AA42: 20295.53347 | AB42: 20464.13199 | AC42: 20634.13108 | AD42: 20805.54238 | AE42: 20978.37763 | AF42: 21152.64865 | AG42: 21328.36736 | AH42: 21505.54581 | AI42: 21684.1961 | AJ42: 21864.33048 | AK42: 22045.96126 | AL42: 22229.10088 | AM42: 22413.76188 | AN42: 22599.95688 | AO42: 22787.69864 | AP42: 22977 | AQ42: 23242.88718 | AR42: 23511.85117 | AS42: 23783.92758 | AT42: 24059.15243 | AU42: 24337.56215 | AV42: 24619.1936 | AW42: 24904.08405 | AX42: 25192.27122 | AY42: 25483.79326 | AZ42: 25778.68876 | BA42: 26076.99675 | BB42: 26378.75673 | BC42: 26684.00864 | BD42: 26992.79289 | BE42: 27305.15036 | BF42: 27621.12239 | BG42: 27940.75081 | BH42: 28264.07794 | BI42: 28591.14657 | BJ42: 32742.85243 | BK42: 33067.66805 | BL42: 33396.93076 | BM42: 33730.73076 | BN42: 34069.16246 | BO42: 34412.32486 | BP42: 34760.32207 | BQ42: 35113.26385 | BR42: 35471.26629 | BS42: 35834.45259 | BT42: 36202.95398 | BU42: 36577.06459 | BV42: 37258.64939 | BW42: 37645.84235 | BX42: 38038.78463 | BY42: 38438.62529 | BZ42: 38844.05779 | CA42: 39256.71528 | CB42: 39674.77449 | CC42: 40100.42352 | CD42: 40531.86292 | CE42: 40955.13329 | CF42: 41383.65607 | CG42: 41819.52098 | CH42: 42261.82228 | CI42: 42709.6586 | CJ42: 43174.38752 | CK42: 43644.75381 | CL42: 44121.47357 | CM42: 44606.69094 | CN42: 45099.55726 | CO42: 45575.34708 | CP42: 46059.62255 | CQ42: 46551.56143 | CR42: 47051.35244 | CS42: 47559.19658 | CT42: 48035.58835 | CU42: 48519.60051 | CV42: 49013.89464 | CW42: 49518.33286 | CX42: 50034.05292 | CY42: 50562.57168 | CZ42: 51105.92817 | DA42: 51637.06282 | DB42: 52177.85526 | DC42: 52728.54858 | DD42: 53290.40841 | DE42: 53855.72572 | DF42: 53910.20789 | DG42: 54438.21802 | DH42: 54992.74021 | DI42: 55600.94357 | DJ42: 56219.74596 | DK42: 56847.36502 | DL42: 57486.02836 | DM42: 58134.97441 | DN42: 58807.31112 | DO42: 59501.49165 | DP42: 60249.99127 | DQ42: 61018.58735 | DR42: 61804.513 | DS42: 0.0105588203 | DT42: 0.01879426877 | DU42: 39 | DV42: 19 | DW42: 62877.93084 | DX42: 63985.68891 | DY42: 65130.93812 | DZ42: 66314.01915 | EA42: 67538.4804 | EB42: 68807.09767 | EC42: 70120.89577 | ED42: 71484.17213 | EE42: 72902.52274 | EF42: 74375.87057 | EG42: 75587.69206 | EH42: 76785.30765 | EI42: 77614.83485 | EJ42: 77645.85836 | EK42: 77544.85943 | EL42: 78049.61456 | EM42: 78880.40455 | EN42: 79856.2361 | EO42: 81120.14051 | EP42: 82611.52693 | EQ42: 83772.72357 | ER42: 84945.64709 | ES42: 86166.51133 | ET42: 87441.34319 | EU42: 88765.92822 | EV42: 90136.45568 | EW42: 91559.38709 | EX42: 93014.37177 | EY42: 94505.58274 | EZ42: 95960.68899 | FA42: 97610.346 | FB42: 99620.49958 | FC42: 101674.261 | FD42: 103771.5692 | FE42: 105913.3843 | FF42: 108102.6888 | FG42: 110339.4873 | FH42: 112622.8078 | FI42: 114955.7019 | FJ42: 117338.2451 | FK42: 119766.538 | FL42: 122564.5737 | FM42: 125431.8874 | FN42: 128369.3158 | FO42: 131218.7481 | FP42: 134314.1271 | FQ42: 137487.4514 | FR42: 140738.7765 | FS42: 144073.2169 | FT42: 147489.948 | FU42: 150656.8069 | FV42: 153895.1742 | FW42: 157207.7762 | FX42: 160595.3835 | FY42: 164060.812 | FZ42: 166997.314 | GA42: 169990.208 | GB42: 173040.6964 | GC42: 176152.0103 | GD42: 179323.41 | GE42: 182297.7285 | GF42: 185327.2393 | GG42: 188413.0462 | GH42: 191554.278 | GI42: 194755.089 | GJ42: 196961.7949 | GK42: 199198.0123 | GL42: 201461.1111 | GM42: 203754.4662 | GN42: 205132.458 | GP42: 207800.8892 | GQ42: 210508.1001 | GR42: 213254.7231 | GS42: 216041.4016 | GT42: 218868.791 | GU42: 221737.5585 | GV42: 224648.3834 | GW42: 227601.9574 | GX42: 230599 | GZ42: 288678.451
A43: Guatemala | L43: 595 | AP43: 850 | BJ43: 1080 | CN43: 1300 | CO43: 1313 | CP43: 1327 | CQ43: 1341 | CR43: 1355 | CS43: 1369 | CT43: 1383 | CU43: 1397 | CV43: 1412 | CW43: 1426 | CX43: 1441 | CY43: 1456 | CZ43: 1470 | DA43: 1486 | DB43: 1501 | DC43: 1517 | DD43: 1533 | DE43: 1549 | DF43: 1565 | DG43: 1581 | DH43: 1597 | DI43: 1614 | DJ43: 1631 | DK43: 1648 | DL43: 1665 | DM43: 1682 | DN43: 1699 | DO43: 1717 | DP43: 1735 | DQ43: 1753 | DR43: 1771 | DS43: 0.01035929291 | DT43: 0.02513405387 | DU43: 40 | DV43: 6 | DW43: 1810 | DX43: 1860 | DY43: 1910 | DZ43: 1940 | EA43: 1980 | EB43: 2020 | EC43: 2070 | ED43: 2110 | EE43: 2150 | EF43: 2200 | EG43: 2250 | EH43: 2300 | EI43: 2340 | EJ43: 2390 | EK43: 2440 | EL43: 2500 | EM43: 2570 | EN43: 2640 | EO43: 2720 | EP43: 2968.976 | EQ43: 3066 | ER43: 3166 | ES43: 3269 | ET43: 3376 | EU43: 3487 | EV43: 3602 | EW43: 3720 | EX43: 3843 | EY43: 3970 | EZ43: 4100 | FA43: 4232 | FB43: 4367 | FC43: 4506 | FD43: 4650 | FE43: 4746 | FF43: 4843 | FG43: 4942 | FH43: 5045 | FI43: 5151 | FJ43: 5264 | FK43: 5385 | FL43: 5510 | FM43: 5639 | FN43: 5773 | FO43: 5910 | FP43: 6051 | FQ43: 6197 | FR43: 6346 | FS43: 6496 | FT43: 6650 | FU43: 6829 | FV43: 6983 | FW43: 7189 | FX43: 7380 | FY43: 7581 | FZ43: 7820 | GA43: 8160 | GB43: 8496 | GC43: 8731 | GD43: 8966 | GE43: 9213 | GF43: 9367 | GG43: 9523 | GH43: 9779 | GI43: 10028 | GJ43: 10268 | GK43: 10496 | GL43: 10708 | GM43: 10903 | GN43: 11085 | GP43: 11284 | GQ43: 11507 | GR43: 11725 | GS43: 11940 | GT43: 12183 | GU43: 12455 | GV43: 12728 | GW43: 13002 | GX43: 13277 | GZ43: 18798
A44: Finland | B44: 20 | D44: 40 | F44: 300 | H44: 400 | J44: 400 | L44: 1169 | M44: 1186 | N44: 1202 | O44: 1219 | P44: 1235 | Q44: 1252 | R44: 1268 | S44: 1310 | T44: 1326 | U44: 1343 | V44: 1364 | W44: 1374 | X44: 1378 | Y44: 1383 | Z44: 1387 | AA44: 1391 | AB44: 1399 | AC44: 1409 | AD44: 1420 | AE44: 1430 | AF44: 1441 | AG44: 1456 | AH44: 1476 | AI44: 1495 | AJ44: 1516 | AK44: 1536 | AL44: 1555 | AM44: 1573 | AN44: 1591 | AO44: 1610 | AP44: 1628 | AQ44: 1642 | AR44: 1652 | AS44: 1663 | AT44: 1673 | AU44: 1683 | AV44: 1692 | AW44: 1703 | AX44: 1715 | AY44: 1726 | AZ44: 1738 | BA44: 1754 | BB44: 1774 | BC44: 1794 | BD44: 1813 | BE44: 1833 | BF44: 1840 | BG44: 1831 | BH44: 1776 | BI44: 1734 | BJ44: 1754 | BK44: 1786 | BL44: 1819 | BM44: 1847 | BN44: 1873 | BO44: 1899 | BP44: 1928 | BQ44: 1957 | BR44: 1983 | BS44: 2014 | BT44: 2047 | BU44: 2072 | BV44: 2098 | BW44: 2130 | BX44: 2164 | BY44: 2195 | BZ44: 2224 | CA44: 2259 | CB44: 2296 | CC44: 2331 | CD44: 2364 | CE44: 2394 | CF44: 2451 | CG44: 2430 | CH44: 2511 | CI44: 2483 | CJ44: 2515 | CK44: 2549 | CL44: 2589 | CM44: 2624 | CN44: 2646 | CO44: 2667 | CP44: 2686 | CQ44: 2706 | CR44: 2735 | CS44: 2762 | CT44: 2788 | CU44: 2821 | CV44: 2861 | CW44: 2899 | CX44: 2929 | CY44: 2962 | CZ44: 2998 | DA44: 3027 | DB44: 3053 | DC44: 3083 | DD44: 3105 | DE44: 3124 | DF44: 3125 | DG44: 3117 | DH44: 3133 | DI44: 3170 | DJ44: 3210 | DK44: 3243 | DL44: 3272 | DM44: 3304 | DN44: 3339 | DO44: 3368 | DP44: 3396 | DQ44: 3424 | DR44: 3449 | DS44: 0.008873648391 | DT44: 0.003846526971 | DU44: 41 | DV44: 53 | DW44: 3476 | DX44: 3503 | DY44: 3526 | DZ44: 3549 | EA44: 3576 | EB44: 3601 | EC44: 3626 | ED44: 3656 | EE44: 3686 | EF44: 3698 | EG44: 3702 | EH44: 3708 | EI44: 3721 | EJ44: 3735 | EK44: 3758 | EL44: 3806 | EM44: 3859 | EN44: 3912 | EO44: 3963 | EP44: 4008.9 | EQ44: 4047.3 | ER44: 4090.5 | ES44: 4139.4 | ET44: 4186.9 | EU44: 4234.9 | EV44: 4281.7 | EW44: 4324 | EX44: 4359.8 | EY44: 4394.7 | EZ44: 4429.6 | FA44: 4461.004 | FB44: 4491.443 | FC44: 4523.309 | FD44: 4548.544 | FE44: 4563.732 | FF44: 4580.869 | FG44: 4605.744 | FH44: 4626.469 | FI44: 4623.785 | FJ44: 4606.307 | FK44: 4612.124 | FL44: 4639.657 | FM44: 4666.081 | FN44: 4690.574 | FO44: 4711.439 | FP44: 4725.664 | FQ44: 4738.902 | FR44: 4752.528 | FS44: 4764.69 | FT44: 4779.535 | FU44: 4799.964 | FV44: 4826.933 | FW44: 4855.787 | FX44: 4881.788 | FY44: 4901.783 | FZ44: 4917.386 | GA44: 4931.729 | GB44: 4946.633 | GC44: 4962.441 | GD44: 4986.431 | GE44: 5013.786 | GF44: 5041.039 | GG44: 5064.846 | GH44: 5086.044 | GI44: 5104.654 | GJ44: 5120.31 | GK44: 5134.406 | GL44: 5146.983 | GM44: 5158.097 | GN44: 5168.595 | GP44: 5180.309 | GQ44: 5193.039 | GR44: 5204.405 | GS44: 5214.512 | GT44: 5223.442 | GU44: 5231.372 | GV44: 5238.46 | GW44: 5244.749 | GX44: 5250 | GZ44: 5201.445
A45: Venezuela | L45: 718 | AP45: 1324 | BJ45: 1653 | BK45: 1675 | BL45: 1699 | BM45: 1725 | BN45: 1753 | BO45: 1784 | BP45: 1816 | BQ45: 1849 | BR45: 1883 | BS45: 1917 | BT45: 1952 | BU45: 1986 | BV45: 2019 | BW45: 2052 | BX45: 2083 | BY45: 2113 | BZ45: 2129 | CA45: 2147 | CB45: 2173 | CC45: 2198 | CD45: 2224 | CE45: 2255 | CF45: 2285 | CG45: 2314 | CH45: 2346 | CI45: 2375 | CJ45: 2408 | CK45: 2442 | CL45: 2475 | CM45: 2509 | CN45: 2542 | CO45: 2576 | CP45: 2609 | CQ45: 2643 | CR45: 2690 | CS45: 2706 | CT45: 2720 | CU45: 2741 | CV45: 2761 | CW45: 2780 | CX45: 2805 | CY45: 2834 | CZ45: 2856 | DA45: 2874 | DB45: 2899 | DC45: 2918 | DD45: 2929 | DE45: 2944 | DF45: 2958 | DG45: 2973 | DH45: 2992 | DI45: 3008 | DJ45: 3025 | DK45: 3049 | DL45: 3077 | DM45: 3114 | DN45: 3152 | DO45: 3185 | DP45: 3221 | DQ45: 3259 | DR45: 3300 | DS45: 0.00873698982 | DT45: 0.02637691416 | DU45: 42 | DV45: 4 | DW45: 3336 | DX45: 3368 | DY45: 3401 | DZ45: 3431 | EA45: 3465 | EB45: 3510 | EC45: 3565 | ED45: 3623 | EE45: 3699 | EF45: 3784 | EG45: 3858 | EH45: 3934 | EI45: 4020 | EJ45: 4114 | EK45: 4223 | EL45: 4347 | EM45: 4486 | EN45: 4656 | EO45: 4843 | EP45: 5009.006 | EQ45: 5217.02 | ER45: 5439.568 | ES45: 5674.259 | ET45: 5918.702 | EU45: 6170.497 | EV45: 6431.274 | EW45: 6702.668 | EX45: 6982.276 | EY45: 7267.687 | EZ45: 7556.483 | FA45: 7847.836 | FB45: 8143.375 | FC45: 8444.361 | FD45: 8752.058 | FE45: 9067.735 | FF45: 9387.176 | FG45: 9709.552 | FH45: 10041.225 | FI45: 10388.58 | FJ45: 10758.017 | FK45: 11151.693 | FL45: 11515.649 | FM45: 11893.035 | FN45: 12280.562 | FO45: 12674.987 | FP45: 13082.017 | FQ45: 13503.563 | FR45: 13930.824 | FS45: 14355.117 | FT45: 14767.89 | FU45: 15166.255 | FV45: 15620.766 | FW45: 16084.417 | FX45: 16544.524 | FY45: 16997.509 | FZ45: 17450.161 | GA45: 17910.182 | GB45: 18378.534 | GC45: 18850.722 | GD45: 19325.222 | GE45: 19791 | GF45: 20246 | GG45: 20691 | GH45: 21126 | GI45: 21549 | GJ45: 21961 | GK45: 22362 | GL45: 22751 | GM45: 23129 | GN45: 23493 | GP45: 23844 | GQ45: 24192 | GR45: 24545 | GS45: 24905 | GT45: 25269 | GU45: 25641 | GV45: 26024 | GW45: 26415 | GX45: 26815 | GZ45: 34958
A46: Yugoslavia | B46: 1500 | D46: 1750 | F46: 2250 | H46: 2750 | J46: 2750 | L46: 5215 | AP46: 6000 | BJ46: 8252 | CD46: 9690 | CN46: 11174 | CX46: 13052 | DA46: 13590 | DH46: 12422 | DI46: 12607 | DJ46: 12796 | DK46: 12987 | DL46: 13180 | DM46: 13378 | DN46: 13578 | DO46: 13780 | DP46: 13986 | DQ46: 14194 | DR46: 14407 | DS46: 0.008506797184 | DT46: 0.004213509569 | DU46: 43 | DV46: 52 | DW46: 14618 | DX46: 14819 | DY46: 15022 | DZ46: 15228 | EA46: 15439 | EB46: 15651 | EC46: 15860 | ED46: 16084 | EE46: 16305 | EF46: 16300 | EM46: 15596 | EN46: 15817 | EO46: 16040 | EP46: 16297.531 | EQ46: 16519.051 | ER46: 16708.339 | ES46: 16936.955 | ET46: 17151.054 | EU46: 17363.72 | EV46: 17507.629 | EW46: 17659.122 | EX46: 17795.514 | EY46: 17968.173 | EZ46: 18132.522 | FA46: 18318.174 | FB46: 18500.274 | FC46: 18684.866 | FD46: 18852.368 | FE46: 19038.028 | FF46: 19221.27 | FG46: 19390.351 | FH46: 19552.19 | FI46: 19704.952 | FJ46: 19839.733 | FK46: 20014.589 | FL46: 20197.487 | FM46: 20367.416 | FN46: 20549.749 | FO46: 20732 | FP46: 20929.536 | FQ46: 21125.829 | FR46: 21309.215 | FS46: 21490.291 | FT46: 21615 | FU46: 21707.267 | FV46: 21884.748 | FW46: 22018.103 | FX46: 22086.851 | FY46: 22216.101 | FZ46: 22339.382 | GA46: 22435.224 | GB46: 22536.381 | GC46: 22634.445 | GD46: 23016 | GE46: 23097 | GF46: 22905 | GG46: 22666 | GH46: 22583 | GI46: 22554 | GJ46: 22502 | GK46: 22521 | GL46: 22586 | GM46: 22541 | GN46: 22507 | GP46: 22580 | GQ46: 22689 | GR46: 22784 | GS46: 22881 | GT46: 22951 | GU46: 23000 | GV46: 23028 | GW46: 23038 | GX46: 23031 | GZ46: 21996
A47: Romania | B47: 800 | D47: 800 | F47: 2000 | H47: 2000 | J47: 2500 | L47: 6389 | AP47: 8000 | BJ47: 9179 | CD47: 10373 | CN47: 11000 | CX47: 11866 | DA47: 12527 | DH47: 12340 | DI47: 12479 | DJ47: 12666 | DK47: 12843 | DL47: 13020 | DM47: 13209 | DN47: 13399 | DO47: 13574 | DP47: 13760 | DQ47: 13952 | DR47: 14141 | DS47: 0.00840791989 | DT47: 0.003442442017 | DU47: 44 | DV47: 54 | DW47: 14355 | DX47: 14554 | DY47: 14730 | DZ47: 14924 | EA47: 15069 | EB47: 15256 | EC47: 15434 | ED47: 15601 | EE47: 15751 | EF47: 15907 | EG47: 15774 | EH47: 15839 | EI47: 15840 | EJ47: 15946 | EK47: 15929 | EL47: 15971 | EM47: 15849 | EN47: 15893 | EO47: 16084 | EP47: 16311 | EQ47: 16464 | ER47: 16630 | ES47: 16847 | ET47: 17040 | EU47: 17325 | EV47: 17583 | EW47: 17829.327 | EX47: 18055.948 | EY47: 18225.83 | EZ47: 18403.414 | FA47: 18566.932 | FB47: 18680.721 | FC47: 18813.131 | FD47: 18927.081 | FE47: 19027.367 | FF47: 19140.783 | FG47: 19284.814 | FH47: 19720.984 | FI47: 20010.178 | FJ47: 20252.541 | FK47: 20469.658 | FL47: 20662.648 | FM47: 20827.525 | FN47: 21028.841 | FO47: 21245.103 | FP47: 21445.698 | FQ47: 21658.597 | FR47: 21831.875 | FS47: 22001.388 | FT47: 22130.036 | FU47: 22256.551 | FV47: 22356.726 | FW47: 22407.281 | FX47: 22453.788 | FY47: 22521.195 | FZ47: 22599.678 | GA47: 22686.371 | GB47: 22768.897 | GC47: 22852.123 | GD47: 22865.945 | GE47: 22825.559 | GF47: 22797.027 | GG47: 22768.538 | GH47: 22738.68 | GI47: 22692.83 | GJ47: 22627.562 | GK47: 22562.458 | GL47: 22515.824 | GM47: 22480.527 | GN47: 22451.921 | GP47: 22428.044 | GQ47: 22404.337 | GR47: 22380.273 | GS47: 22355.551 | GT47: 22329.977 | GU47: 22303.552 | GV47: 22276.056 | GW47: 22246.862 | GX47: 22215 | GZ47: 20827.076
A48: Greece | B48: 2000 | D48: 1000 | F48: 1000 | H48: 1500 | J48: 1500 | L48: 2312 | M48: 2333 | N48: 2355 | O48: 2376 | P48: 2398 | Q48: 2420 | R48: 2443 | S48: 2465 | T48: 2488 | U48: 2511 | V48: 2534 | W48: 2557 | X48: 2581 | Y48: 2605 | Z48: 2629 | AA48: 2653 | AB48: 2677 | AC48: 2702 | AD48: 2727 | AE48: 2752 | AF48: 2777 | AG48: 2803 | AH48: 2829 | AI48: 2855 | AJ48: 2881 | AK48: 2908 | AL48: 2934 | AM48: 2961 | AN48: 2989 | AO48: 3016 | AP48: 3044 | AQ48: 3072 | AR48: 3100 | AS48: 3129 | AT48: 3158 | AU48: 3187 | AV48: 3216 | AW48: 3246 | AX48: 3273 | AY48: 3306 | AZ48: 3336 | BA48: 3367 | BB48: 3398 | BC48: 3430 | BD48: 3461 | BE48: 3493 | BF48: 3525 | BG48: 3558 | BH48: 3591 | BI48: 3621 | BJ48: 3657 | BK48: 3694 | BL48: 3732 | BM48: 3770 | BN48: 3809 | BO48: 3848 | BP48: 3887 | BQ48: 3927 | BR48: 3967 | BS48: 4008 | BT48: 4049 | BU48: 4090 | BV48: 4132 | BW48: 4174 | BX48: 4217 | BY48: 4260 | BZ48: 4303 | CA48: 4347 | CB48: 4392 | CC48: 4437 | CD48: 4482 | CE48: 4528 | CF48: 4574 | CG48: 4621 | CH48: 4668 | CI48: 4716 | CJ48: 4764 | CK48: 4813 | CL48: 4862 | CM48: 4912 | CN48: 4962 | CO48: 4997 | CP48: 5032 | CQ48: 5067 | CR48: 5102 | CS48: 5138 | CT48: 5174 | CU48: 5210 | CV48: 5246 | CW48: 5283 | CX48: 5320 | CY48: 5355 | CZ48: 5390 | DA48: 5425 | DB48: 5463 | DC48: 5502 | DD48: 5541 | DE48: 5580 | DF48: 5620 | DG48: 5660 | DH48: 5700 | DI48: 5837 | DJ48: 5890 | DK48: 6010 | DL48: 6000 | DM48: 5958 | DN48: 6042 | DO48: 6127 | DP48: 6205 | DQ48: 6275 | DR48: 6351 | DS48: 0.008260712794 | DT48: 0.006120491038 | DU48: 45 | DV48: 43 | DW48: 6440 | DX48: 6516 | DY48: 6591 | DZ48: 6688 | EA48: 6793 | EB48: 6886 | EC48: 6973 | ED48: 7061 | EE48: 7156 | EF48: 7280 | EG48: 7362 | EH48: 7339 | EI48: 7297 | EJ48: 7284 | EK48: 7322 | EL48: 7418 | EM48: 7529 | EN48: 7749 | EO48: 7856 | EP48: 7566.028 | EQ48: 7646.402 | ER48: 7733.25 | ES48: 7817.095 | ET48: 7893.412 | EU48: 7965.538 | EV48: 8031.013 | EW48: 8096.218 | EX48: 8173.129 | EY48: 8258.162 | EZ48: 8327.405 | FA48: 8398.05 | FB48: 8448.233 | FC48: 8479.625 | FD48: 8510.429 | FE48: 8550.333 | FF48: 8613.651 | FG48: 8716.441 | FH48: 8740.765 | FI48: 8772.764 | FJ48: 8792.806 | FK48: 8831.036 | FL48: 8888.628 | FM48: 8929.086 | FN48: 8962.023 | FO48: 9046.542 | FP48: 9167.19 | FQ48: 9308.479 | FR48: 9429.959 | FS48: 9548.258 | FT48: 9642.505 | FU48: 9729.35 | FV48: 9786.48 | FW48: 9840.526 | FX48: 9887.169 | FY48: 9923.253 | FZ48: 9951.37 | GA48: 9974.49 | GB48: 9982.723 | GC48: 10030.765 | GD48: 10129.603 | GE48: 10250.88 | GF48: 10325.429 | GG48: 10382.995 | GH48: 10429.826 | GI48: 10457.554 | GJ48: 10479.42 | GK48: 10502.372 | GL48: 10520.068 | GM48: 10536.749 | GN48: 10559.11 | GP48: 10581.515 | GQ48: 10603.863 | GR48: 10625.945 | GS48: 10647.529 | GT48: 10668.354 | GU48: 10688.058 | GV48: 10706.29 | GW48: 10722.816 | GX48: 10737 | GZ48: 10583.029
A49: Spain | B49: 3750 | D49: 4000 | F49: 6800 | H49: 8240 | J49: 8770 | L49: 12203 | M49: 12284 | N49: 12366 | O49: 12449 | P49: 12532 | Q49: 12615 | R49: 12699 | S49: 12784 | T49: 12869 | U49: 12955 | V49: 13041 | W49: 13128 | X49: 13216 | Y49: 13304 | Z49: 13392 | AA49: 13482 | AB49: 13571 | AC49: 13662 | AD49: 13753 | AE49: 13845 | AF49: 13937 | AG49: 14030 | AH49: 14123 | AI49: 14217 | AJ49: 14312 | AK49: 14407 | AL49: 14503 | AM49: 14600 | AN49: 14697 | AO49: 14795 | AP49: 14894 | AQ49: 14974 | AR49: 15055 | AS49: 15136 | AT49: 15217 | AU49: 15299 | AV49: 15381 | AW49: 15455 | AX49: 15526 | AY49: 15584 | AZ49: 15642 | BA49: 15699 | BB49: 15754 | BC49: 15809 | BD49: 15864 | BE49: 15920 | BF49: 15976 | BG49: 16032 | BH49: 16088 | BI49: 16144 | BJ49: 16201 | BK49: 16258 | BL49: 16315 | BM49: 16372 | BN49: 16429 | BO49: 16487 | BP49: 16545 | BQ49: 16603 | BR49: 16677 | BS49: 16768 | BT49: 16859 | BU49: 16951 | BV49: 17043 | BW49: 17136 | BX49: 17230 | BY49: 17323 | BZ49: 17418 | CA49: 17513 | CB49: 17600 | CC49: 17678 | CD49: 17757 | CE49: 17836 | CF49: 17916 | CG49: 17996 | CH49: 18076 | CI49: 18157 | CJ49: 18238 | CK49: 18320 | CL49: 18402 | CM49: 18484 | CN49: 18566 | CO49: 18659 | CP49: 18788 | CQ49: 18919 | CR49: 19050 | CS49: 19133 | CT49: 19316 | CU49: 19450 | CV49: 19585 | CW49: 19721 | CX49: 19858 | CY49: 19994 | CZ49: 20128 | DA49: 20263 | DB49: 20398 | DC49: 20535 | DD49: 20673 | DE49: 20811 | DF49: 20950 | DG49: 21091 | DH49: 21232 | DI49: 21411 | DJ49: 21628 | DK49: 21847 | DL49: 22069 | DM49: 22292 | DN49: 22518 | DO49: 22747 | DP49: 22977 | DQ49: 23210 | DR49: 23445 | DS49: 0.007807833446 | DT49: 0.005567456319 | DU49: 46 | DV49: 46 | DW49: 23675 | DX49: 23897 | DY49: 24122 | DZ49: 24349 | EA49: 24579 | EB49: 24810 | EC49: 25043 | ED49: 25279 | EE49: 25517 | EF49: 25757 | EG49: 25979 | EH49: 26182 | EI49: 26387 | EJ49: 26594 | EK49: 26802 | EL49: 27012 | EM49: 27223 | EN49: 27437 | EO49: 27651 | EP49: 28062.963 | EQ49: 28298.01 | ER49: 28549.87 | ES49: 28804.128 | ET49: 29060.413 | EU49: 29318.745 | EV49: 29579.142 | EW49: 29841.614 | EX49: 30106.188 | EY49: 30372.877 | EZ49: 30641.187 | FA49: 30903.894 | FB49: 31158.061 | FC49: 31429.834 | FD49: 31740.862 | FE49: 32084.511 | FF49: 32451.975 | FG49: 32850.275 | FH49: 33239.301 | FI49: 33566.084 | FJ49: 33876.479 | FK49: 34195.056 | FL49: 34513.161 | FM49: 34836.716 | FN49: 35184.287 | FO49: 35563.535 | FP49: 35996.78 | FQ49: 36439 | FR49: 36861.034 | FS49: 37200.014 | FT49: 37488.36 | FU49: 37750.8 | FV49: 37983.31 | FW49: 38184.166 | FX49: 38362.861 | FY49: 38534.853 | FZ49: 38707.556 | GA49: 38880.702 | GB49: 39053.881 | GC49: 39214.523 | GD49: 39350.769 | GE49: 39461.418 | GF49: 39549.438 | GG49: 39627.587 | GH49: 39690.971 | GI49: 39749.715 | GJ49: 39803.829 | GK49: 39855.442 | GL49: 39906.235 | GM49: 39953.263 | GN49: 40016.081 | GP49: 40087.104 | GQ49: 40152.517 | GR49: 40217.413 | GS49: 40280.78 | GT49: 40341.462 | GU49: 40397.842 | GV49: 40448.191 | GW49: 40491.051 | GX49: 40525 | GZ49: 38961.192
A50: Mexico | B50: 2200 | D50: 4500 | F50: 7500 | H50: 2500 | J50: 4500 | L50: 6587 | AP50: 7662 | BJ50: 9219 | BK50: 9331 | BL50: 9444 | BM50: 9558 | BN50: 9674 | BO50: 9791 | BP50: 9910 | BQ50: 10030 | BR50: 10151 | BS50: 10274 | BT50: 10399 | BU50: 10524 | BV50: 10652 | BW50: 10781 | BX50: 10912 | BY50: 11044 | BZ50: 11178 | CA50: 11313 | CB50: 11450 | CC50: 11589 | CD50: 11729 | CE50: 11904 | CF50: 12083 | CG50: 12263 | CH50: 12447 | CI50: 12663 | CJ50: 12822 | CK50: 13014 | CL50: 13209 | CM50: 13406 | CN50: 13607 | CO50: 13755 | CP50: 13904 | CQ50: 14055 | CR50: 14208 | CS50: 14363 | CT50: 14519 | CU50: 14676 | CV50: 14836 | CW50: 14997 | CX50: 15000 | CY50: 14990 | CZ50: 14980 | DA50: 14970 | DB50: 14960 | DC50: 14950 | DD50: 14940 | DE50: 14930 | DF50: 14920 | DG50: 14910 | DH50: 14900 | DI50: 14895 | DJ50: 15129 | DK50: 15367 | DL50: 15609 | DM50: 15854 | DN50: 16103 | DO50: 16356 | DP50: 16613 | DQ50: 16875 | DR50: 17175 | DS50: 0.007792554198 | DT50: 0.02150788161 | DU50: 47 | DV50: 14 | DW50: 17480 | DX50: 17790 | DY50: 18115 | DZ50: 18445 | EA50: 18781 | EB50: 19040 | EC50: 19370 | ED50: 19705 | EE50: 20047 | EF50: 20393 | EG50: 20955 | EH50: 21532 | EI50: 22125 | EJ50: 22734 | EK50: 23724 | EL50: 24413 | EM50: 25122 | EN50: 25852 | EO50: 26603 | EP50: 28485.18 | EQ50: 29296.235 | ER50: 30144.317 | ES50: 31031.279 | ET50: 31959.113 | EU50: 32929.914 | EV50: 33945.886 | EW50: 35015.548 | EX50: 36141.955 | EY50: 37328.466 | EZ50: 38578.505 | FA50: 39836.23 | FB50: 41121.485 | FC50: 42434.264 | FD50: 43774.575 | FE50: 45142.399 | FF50: 46537.832 | FG50: 47995.559 | FH50: 49518.803 | FI50: 51110.928 | FJ50: 52775.158 | FK50: 54406.901 | FL50: 55984.294 | FM50: 57557.303 | FN50: 59122.839 | FO50: 60678.045 | FP50: 62219.964 | FQ50: 63759.976 | FR50: 65295.99 | FS50: 66825.878 | FT50: 68347.479 | FU50: 69969.263 | FV50: 71640.904 | FW50: 73362.881 | FX50: 75080.138 | FY50: 76767.225 | FZ50: 78442.43 | GA50: 80122.492 | GB50: 81781.816 | GC50: 83366.836 | GD50: 84913.652 | GE50: 86488.032 | GF50: 88111.03 | GG50: 89749.141 | GH50: 91337.896 | GI50: 92880.353 | GJ50: 94398.579 | GK50: 95895.146 | GL50: 97325.063 | GM50: 98616.905 | GN50: 99926.62 | GP50: 101246.961 | GQ50: 102479.927 | GR50: 103718.062 | GS50: 104959.594 | GT50: 106202.903 | GU50: 107449.525 | GV50: 108700.891 | GW50: 109955.4 | GX50: 111212 | GZ50: 135172.155
A51: Norway | B51: 100 | D51: 200 | F51: 300 | H51: 400 | J51: 500 | L51: 970 | M51: 984 | N51: 998 | O51: 1013 | P51: 1028 | Q51: 1044 | R51: 1062 | S51: 1079 | T51: 1093 | U51: 1108 | V51: 1124 | W51: 1137 | X51: 1150 | Y51: 1163 | Z51: 1174 | AA51: 1188 | AB51: 1202 | AC51: 1214 | AD51: 1224 | AE51: 1233 | AF51: 1241 | AG51: 1254 | AH51: 1271 | AI51: 1286 | AJ51: 1302 | AK51: 1319 | AL51: 1337 | AM51: 1351 | AN51: 1363 | AO51: 1377 | AP51: 1392 | AQ51: 1409 | AR51: 1425 | AS51: 1440 | AT51: 1457 | AU51: 1479 | AV51: 1501 | AW51: 1521 | AX51: 1543 | AY51: 1570 | AZ51: 1596 | BA51: 1614 | BB51: 1627 | BC51: 1646 | BD51: 1668 | BE51: 1690 | BF51: 1707 | BG51: 1716 | BH51: 1724 | BI51: 1729 | BJ51: 1735 | BK51: 1745 | BL51: 1755 | BM51: 1767 | BN51: 1783 | BO51: 1803 | BP51: 1829 | BQ51: 1852 | BR51: 1877 | BS51: 1902 | BT51: 1919 | BU51: 1923 | BV51: 1920 | BW51: 1919 | BX51: 1929 | BY51: 1944 | BZ51: 1958 | CA51: 1970 | CB51: 1977 | CC51: 1984 | CD51: 1997 | CE51: 2013 | CF51: 2026 | CG51: 2038 | CH51: 2057 | CI51: 2083 | CJ51: 2112 | CK51: 2142 | CL51: 2174 | CM51: 2204 | CN51: 2230 | CO51: 2255 | CP51: 2275 | CQ51: 2288 | CR51: 2297 | CS51: 2309 | CT51: 2319 | CU51: 2329 | CV51: 2346 | CW51: 2367 | CX51: 2384 | CY51: 2401 | CZ51: 2423 | DA51: 2447 | DB51: 2472 | DC51: 2498 | DD51: 2522 | DE51: 2551 | DF51: 2578 | DG51: 2603 | DH51: 2635 | DI51: 2668 | DJ51: 2695 | DK51: 2713 | DL51: 2729 | DM51: 2747 | DN51: 2763 | DO51: 2775 | DP51: 2785 | DQ51: 2795 | DR51: 2807 | DS51: 0.00769998397 | DT51: 0.004919590471 | DU51: 48 | DV51: 50 | DW51: 2824 | DX51: 2842 | DY51: 2858 | DZ51: 2874 | EA51: 2889 | EB51: 2904 | EC51: 2919 | ED51: 2936 | EE51: 2954 | EF51: 2973 | EG51: 2990 | EH51: 3009 | EI51: 3032 | EJ51: 3060 | EK51: 3091 | EL51: 3127 | EM51: 3165 | EN51: 3201 | EO51: 3234 | EP51: 3265.126 | EQ51: 3295.871 | ER51: 3327.728 | ES51: 3360.888 | ET51: 3394.246 | EU51: 3427.409 | EV51: 3459.992 | EW51: 3491.938 | EX51: 3522.993 | EY51: 3552.851 | EZ51: 3581.239 | FA51: 3609.8 | FB51: 3638.919 | FC51: 3666.54 | FD51: 3694.339 | FE51: 3723.153 | FF51: 3753.628 | FG51: 3786.019 | FH51: 3818.983 | FI51: 3850.977 | FJ51: 3877.386 | FK51: 3903.039 | FL51: 3933.004 | FM51: 3960.613 | FN51: 3985.258 | FO51: 4007.313 | FP51: 4026.152 | FQ51: 4043.205 | FR51: 4058.671 | FS51: 4072.517 | FT51: 4085.62 | FU51: 4099.702 | FV51: 4114.787 | FW51: 4128.432 | FX51: 4140.095 | FY51: 4152.419 | FZ51: 4166.596 | GA51: 4186.147 | GB51: 4208.729 | GC51: 4226.142 | GD51: 4242.006 | GE51: 4261.733 | GF51: 4286.357 | GG51: 4311.964 | GH51: 4336.638 | GI51: 4359.101 | GJ51: 4381.277 | GK51: 4405.672 | GL51: 4432.718 | GM51: 4463.377 | GN51: 4492.4 | GP51: 4515.195 | GQ51: 4535.591 | GR51: 4555.4 | GS51: 4574.56 | GT51: 4593.041 | GU51: 4610.82 | GV51: 4627.926 | GW51: 4644.457 | GX51: 4661 | GZ51: 4977.705
A52: Portugal | B52: 400 | D52: 600 | F52: 1000 | H52: 1100 | J52: 2000 | L52: 3297 | M52: 3316 | N52: 3335 | O52: 3354 | P52: 3373 | Q52: 3393 | R52: 3412 | S52: 3432 | T52: 3452 | U52: 3472 | V52: 3491 | W52: 3512 | X52: 3532 | Y52: 3552 | Z52: 3475 | AA52: 3595 | AB52: 3617 | AC52: 3639 | AD52: 3661 | AE52: 3683 | AF52: 3704 | AG52: 3715 | AH52: 3726 | AI52: 3738 | AJ52: 3749 | AK52: 3760 | AL52: 3771 | AM52: 3783 | AN52: 3794 | AO52: 3804 | AP52: 3816 | AQ52: 3827 | AR52: 3839 | AS52: 3850 | AT52: 3858 | AU52: 3867 | AV52: 3875 | AW52: 3889 | AX52: 3925 | AY52: 3963 | AZ52: 4000 | BA52: 4074 | BB52: 4113 | BC52: 4131 | BD52: 4176 | BE52: 4201 | BF52: 4226 | BG52: 4251 | BH52: 4276 | BI52: 4302 | BJ52: 4327 | BK52: 4353 | BL52: 4379 | BM52: 4405 | BN52: 4431 | BO52: 4458 | BP52: 4484 | BQ52: 4511 | BR52: 4538 | BS52: 4571 | BT52: 4610 | BU52: 4651 | BV52: 4691 | BW52: 4732 | BX52: 4773 | BY52: 4815 | BZ52: 4857 | CA52: 4899 | CB52: 4942 | CC52: 4985 | CD52: 5028 | CE52: 5068 | CF52: 5104 | CG52: 5141 | CH52: 5178 | CI52: 5215 | CJ52: 5252 | CK52: 5290 | CL52: 5327 | CM52: 5366 | CN52: 5404 | CO52: 5447 | CP52: 5494 | CQ52: 5541 | CR52: 5589 | CS52: 5637 | CT52: 5686 | CU52: 5735 | CV52: 5784 | CW52: 5834 | CX52: 5884 | CY52: 5935 | CZ52: 5964 | DA52: 5972 | DB52: 5980 | DC52: 5988 | DD52: 5996 | DE52: 6005 | DF52: 6013 | DG52: 6021 | DH52: 6029 | DI52: 6071 | DJ52: 6146 | DK52: 6223 | DL52: 6300 | DM52: 6378 | DN52: 6457 | DO52: 6538 | DP52: 6619 | DQ52: 6701 | DR52: 6784 | DS52: 0.00760972384 | DT52: 0.004458921139 | DU52: 49 | DV52: 51 | DW52: 6869 | DX52: 6954 | DY52: 7040 | DZ52: 7127 | EA52: 7216 | EB52: 7305 | EC52: 7396 | ED52: 7488 | EE52: 7581 | EF52: 7675 | EG52: 7757 | EH52: 7826 | EI52: 7896 | EJ52: 7967 | EK52: 8038 | EL52: 8110 | EM52: 8183 | EN52: 8256 | EO52: 8329 | EP52: 8442.75 | EQ52: 8490.25 | ER52: 8526.05 | ES52: 8578.95 | ET52: 8632.1 | EU52: 8692.6 | EV52: 8756 | EW52: 8817.65 | EX52: 8888.55 | EY52: 8961.55 | EZ52: 9036.7 | FA52: 9031.2 | FB52: 9019.8 | FC52: 9081.6 | FD52: 9122.5 | FE52: 9128.85 | FF52: 9108.8 | FG52: 9103 | FH52: 9115.05 | FI52: 9097.2 | FJ52: 9044.2 | FK52: 8990.45 | FL52: 8970.45 | FM52: 8975.95 | FN52: 9098.3 | FO52: 9411.09 | FP52: 9621.97 | FQ52: 9662.6 | FR52: 9698.78 | FS52: 9724.56 | FT52: 9777.8 | FU52: 9850.079 | FV52: 9859.65 | FW52: 9872.243 | FX52: 9885.387 | FY52: 9897.192 | FZ52: 9907.411 | GA52: 9915.289 | GB52: 9920.611 | GC52: 9923.147 | GD52: 9922.689 | GE52: 9919.009 | GF52: 9927.68 | GG52: 9967.832 | GH52: 10027.688 | GI52: 10065.543 | GJ52: 10099.918 | GK52: 10156.415 | GL52: 10224.828 | GM52: 10283.381 | GN52: 10335.597 | GP52: 10386.753 | GQ52: 10433.867 | GR52: 10479.955 | GS52: 10524.145 | GT52: 10566.212 | GU52: 10605.87 | GV52: 10642.836 | GW52: 10676.91 | GX52: 10708 | GZ52: 10731.139
A53: Switzerland | B53: 300 | D53: 300 | F53: 650 | H53: 1000 | J53: 1200 | L53: 1986 | M53: 1998 | N53: 2008 | O53: 2020 | P53: 2031 | Q53: 2042 | R53: 2054 | S53: 2065 | T53: 2077 | U53: 2088 | V53: 2100 | W53: 2112 | X53: 2123 | Y53: 2135 | Z53: 2147 | AA53: 2159 | AB53: 2171 | AC53: 2183 | AD53: 2195 | AE53: 2208 | AF53: 2220 | AG53: 2235 | AH53: 2251 | AI53: 2266 | AJ53: 2282 | AK53: 2298 | AL53: 2314 | AM53: 2330 | AN53: 2346 | AO53: 2363 | AP53: 2379 | AQ53: 2399 | AR53: 2406 | AS53: 2412 | AT53: 2427 | AU53: 2442 | AV53: 2457 | AW53: 2471 | AX53: 2484 | AY53: 2497 | AZ53: 2510 | BA53: 2524 | BB53: 2538 | BC53: 2552 | BD53: 2566 | BE53: 2579 | BF53: 2593 | BG53: 2607 | BH53: 2623 | BI53: 2639 | BJ53: 2655 | BK53: 2680 | BL53: 2697 | BM53: 2715 | BN53: 2733 | BO53: 2750 | BP53: 2768 | BQ53: 2786 | BR53: 2803 | BS53: 2821 | BT53: 2839 | BU53: 2853 | BV53: 2863 | BW53: 2874 | BX53: 2885 | BY53: 2896 | BZ53: 2907 | CA53: 2918 | CB53: 2929 | CC53: 2940 | CD53: 2951 | CE53: 2965 | CF53: 3002 | CG53: 3040 | CH53: 3077 | CI53: 3114 | CJ53: 3151 | CK53: 3188 | CL53: 3226 | CM53: 3263 | CN53: 3300 | CO53: 3341 | CP53: 3384 | CQ53: 3428 | CR53: 3472 | CS53: 3461 | CT53: 3560 | CU53: 3604 | CV53: 3647 | CW53: 3691 | CX53: 3735 | CY53: 3776 | CZ53: 3819 | DA53: 3864 | DB53: 3897 | DC53: 3883 | DD53: 3883 | DE53: 3888 | DF53: 3880 | DG53: 3869 | DH53: 3877 | DI53: 3876 | DJ53: 3874 | DK53: 3883 | DL53: 3896 | DM53: 3910 | DN53: 3932 | DO53: 3956 | DP53: 3988 | DQ53: 4022 | DR53: 4051 | DS53: 0.006858119791 | DT53: 0.004946687046 | DU53: 50 | DV53: 49 | DW53: 4080 | DX53: 4102 | DY53: 4122 | DZ53: 4140 | EA53: 4155 | EB53: 4168 | EC53: 4180 | ED53: 4192 | EE53: 4206 | EF53: 4226 | EG53: 4254 | EH53: 4286 | EI53: 4323 | EJ53: 4364 | EK53: 4412 | EL53: 4467 | EM53: 4524 | EN53: 4582 | EO53: 4640 | EP53: 4694 | EQ53: 4749 | ER53: 4815 | ES53: 4878 | ET53: 4929 | EU53: 4980 | EV53: 5045 | EW53: 5126 | EX53: 5199 | EY53: 5259 | EZ53: 5362 | FA53: 5512 | FB53: 5666 | FC53: 5789 | FD53: 5887 | FE53: 5943 | FF53: 5996 | FG53: 6063 | FH53: 6132 | FI53: 6212 | FJ53: 6267 | FK53: 6343.293 | FL53: 6401.4 | FM53: 6441.1 | FN53: 6460 | FO53: 6403.5 | FP53: 6333.313 | FQ53: 6316.424 | FR53: 6332.568 | FS53: 6350.84 | FT53: 6385.229 | FU53: 6425.45 | FV53: 6468.126 | FW53: 6501.073 | FX53: 6529.684 | FY53: 6563.77 | FZ53: 6603.192 | GA53: 6649.942 | GB53: 6704.112 | GC53: 6763.653 | GD53: 6836.626 | GE53: 6920.562 | GF53: 6995.447 | GG53: 7058.211 | GH53: 7114.53 | GI53: 7157.106 | GJ53: 7181.024 | GK53: 7193.761 | GL53: 7207.995 | GM53: 7232.809 | GN53: 7266.92 | GP53: 7311.237 | GQ53: 7361.757 | GR53: 7408.319 | GS53: 7450.867 | GT53: 7489.37 | GU53: 7523.934 | GV53: 7554.661 | GW53: 7581.52 | GX53: 7604 | GZ53: 7756.04
A54: Albania | B54: 200 | D54: 200 | F54: 200 | H54: 200 | J54: 300 | L54: 437 | AP54: 500 | BJ54: 603 | CD54: 726 | CN54: 800 | CX54: 874 | DA54: 898 | DH54: 932 | DI54: 937 | DJ54: 942 | DK54: 947 | DL54: 952 | DM54: 956 | DN54: 962 | DO54: 967 | DP54: 972 | DQ54: 977 | DR54: 982 | DS54: 0.006856048516 | DT54: 0.01601761842 | DU54: 51 | DV54: 26 | DW54: 988 | DX54: 993 | DY54: 998 | DZ54: 1003 | EA54: 1009 | EB54: 1014 | EC54: 1030 | ED54: 1040 | EE54: 1070 | EF54: 1088 | EG54: 1100 | EH54: 1117 | EI54: 1119 | EJ54: 1122 | EK54: 1138 | EL54: 1154 | EM54: 1175 | EN54: 1192 | EO54: 1209 | EP54: 1227.156 | EQ54: 1254.119 | ER54: 1282.697 | ES54: 1314.608 | ET54: 1352.982 | EU54: 1392.164 | EV54: 1434.476 | EW54: 1476.505 | EX54: 1521.417 | EY54: 1571.329 | EZ54: 1623.114 | FA54: 1676.635 | FB54: 1728.137 | FC54: 1779.715 | FD54: 1832.284 | FE54: 1883.652 | FF54: 1932.963 | FG54: 1984.06 | FH54: 2038.698 | FI54: 2100.263 | FJ54: 2156.612 | FK54: 2208.719 | FL54: 2263.554 | FM54: 2295.691 | FN54: 2347.924 | FO54: 2401.108 | FP54: 2454.824 | FQ54: 2509.048 | FR54: 2563.376 | FS54: 2617.679 | FT54: 2671.412 | FU54: 2724.272 | FV54: 2780.097 | FW54: 2837.315 | FX54: 2895.998 | FY54: 2956.697 | FZ54: 3015.438 | GA54: 3075.321 | GB54: 3136.843 | GC54: 3195.8 | GD54: 3250.778 | GE54: 3294.227 | GF54: 3326.498 | GG54: 3351.656 | GH54: 3378.424 | GI54: 3400.516 | GJ54: 3414.733 | GK54: 3428.038 | GL54: 3441.234 | GM54: 3457.493 | GN54: 3473.835 | GP54: 3490.304 | GQ54: 3508.512 | GR54: 3526.642 | GS54: 3544.808 | GT54: 3563.112 | GU54: 3581.655 | GV54: 3600.523 | GW54: 3619 | GX54: 3639 | GZ54: 3987.665
A55: China | B55: 59600 | D55: 59000 | F55: 103000 | H55: 160000 | J55: 138000 | L55: 381000 | M55: 383711.4943 | N55: 386442.2857 | O55: 389192.5115 | P55: 391962.3101 | Q55: 394751.8208 | R55: 397561.1838 | S55: 400390.5404 | T55: 403240.0329 | U55: 406109.8047 | V55: 409000 | W55: 409299.0144 | X55: 409598.2473 | Y55: 409897.699 | Z55: 410197.3697 | AA55: 410497.2594 | AB55: 410797.3684 | AC55: 411097.6968 | AD55: 411398.2448 | AE55: 411699.0124 | AF55: 412000 | AG55: 412000 | AH55: 412000 | AI55: 412000 | AJ55: 412000 | AK55: 412000 | AL55: 412000 | AM55: 412000 | AN55: 412000 | AO55: 412000 | AP55: 412000 | AQ55: 408358.5278 | AR55: 404749.2409 | AS55: 401171.8547 | AT55: 397626.0873 | AU55: 394111.6593 | AV55: 390628.2937 | AW55: 387175.7158 | AX55: 383753.6537 | AY55: 380361.8375 | AZ55: 377000 | BA55: 375055.4821 | BB55: 373120.9938 | BC55: 371196.4834 | BD55: 369281.8993 | BE55: 367377.1904 | BF55: 365482.3057 | BG55: 363597.1946 | BH55: 361721.8067 | BI55: 359856.0918 | BJ55: 358000 | BK55: 358988 | BL55: 359978 | BM55: 360971 | BN55: 361967 | BO55: 362966 | BP55: 363967 | BQ55: 364971 | BR55: 365978 | BS55: 366988 | BT55: 368000 | BU55: 369183 | BV55: 370369 | BW55: 371560 | BX55: 372754 | BY55: 373952 | BZ55: 375154 | CA55: 376359 | CB55: 377569 | CC55: 378783 | CD55: 380000 | CE55: 381979 | CF55: 383969 | CG55: 385969 | CH55: 387979 | CI55: 390000 | CJ55: 391980 | CK55: 393970 | CL55: 395970 | CM55: 397980 | CN55: 400000 | CO55: 402243 | CP55: 404498 | CQ55: 406766 | CR55: 409047 | CS55: 411340 | CT55: 413646 | CU55: 415965 | CV55: 418297 | CW55: 420642 | CX55: 423000 | CY55: 427662 | CZ55: 432375 | DA55: 437140 | DB55: 441958 | DC55: 446829 | DD55: 451753 | DE55: 456732 | DF55: 461766 | DG55: 466855 | DH55: 472000 | DI55: 473673 | DJ55: 475352 | DK55: 477037 | DL55: 478728 | DM55: 480425 | DN55: 482128 | DO55: 483837 | DP55: 485552 | DQ55: 487273 | DR55: 489000 | DS55: 0.006719070427 | DT55: 0.01456223301 | DU55: 52 | DV55: 28 | DW55: 492640 | DX55: 496307 | DY55: 500000 | DZ55: 502639 | EA55: 505292 | EB55: 507959 | EC55: 510640 | ED55: 513336 | EE55: 516046 | EF55: 518770 | EG55: 521508 | EH55: 524261 | EI55: 527028 | EJ55: 529810 | EK55: 532607 | EL55: 535418 | EM55: 538244 | EN55: 541085 | EO55: 543941 | EP55: 546815 | EQ55: 557480 | ER55: 568910 | ES55: 581390 | ET55: 595310 | EU55: 608655 | EV55: 621465 | EW55: 637408 | EX55: 653235 | EY55: 666005 | EZ55: 667070 | FA55: 660330 | FB55: 665770 | FC55: 682335 | FD55: 698355 | FE55: 715185 | FF55: 735400 | FG55: 754550 | FH55: 774510 | FI55: 796025 | FJ55: 818315 | FK55: 841105 | FL55: 862030 | FM55: 881940 | FN55: 900350 | FO55: 916395 | FP55: 930685 | FQ55: 943455 | FR55: 956165 | FS55: 969005 | FT55: 981235 | FU55: 993861 | FV55: 1000281 | FW55: 1023288 | FX55: 1036825 | FY55: 1051040 | FZ55: 1066790 | GA55: 1084035 | GB55: 1101630 | GC55: 1118650 | GD55: 1135185 | GE55: 1150780 | GF55: 1164970 | GG55: 1178440 | GH55: 1191835 | GI55: 1204855 | GJ55: 1217550 | GK55: 1230075 | GL55: 1241935 | GM55: 1252735 | GN55: 1262645 | GP55: 1271850 | GQ55: 1280400 | GR55: 1288400 | GS55: 1296075 | GT55: 1303720 | GU55: 1311020 | GV55: 1317885 | GW55: 1324786 | GX55: 1331400 | GZ55: 1461528
A56: Hungary | B56: 300 | D56: 500 | F56: 1250 | H56: 1250 | J56: 1500 | L56: 4146 | AP56: 5161 | BJ56: 5917 | CD56: 6622 | CN56: 7127 | CX56: 7644 | DA56: 7840 | DH56: 7950 | DI56: 8029 | DJ56: 8103 | DK56: 8173 | DL56: 8232 | DM56: 8299 | DN56: 8383 | DO56: 8454 | DP56: 8520 | DQ56: 8583 | DR56: 8649 | DS56: 0.006472634841 | DT56: -0.0006495785972 | DU56: 53 | DV56: 63 | DW56: 8723 | DX56: 8785 | DY56: 8848 | DZ56: 8919 | EA56: 8985 | EB56: 9046 | EC56: 9107 | ED56: 9167 | EE56: 9227 | EF56: 9287 | EG56: 9344 | EH56: 9396 | EI56: 9442 | EJ56: 9497 | EK56: 9024 | EL56: 9042 | EM56: 9079 | EN56: 9158 | EO56: 9250 | EP56: 9338 | EQ56: 9423 | ER56: 9504 | ES56: 9595 | ET56: 9706 | EU56: 9825 | EV56: 9911 | EW56: 9839 | EX56: 9882 | EY56: 9937 | EZ56: 9983.512 | FA56: 10029 | FB56: 10063 | FC56: 10091 | FD56: 10124 | FE56: 10152.934 | FF56: 10184.561 | FG56: 10223.422 | FH56: 10263.542 | FI56: 10302.814 | FJ56: 10337.004 | FK56: 10364.869 | FL56: 10394.091 | FM56: 10425.984 | FN56: 10471.272 | FO56: 10531.82 | FP56: 10588.729 | FQ56: 10637.171 | FR56: 10673.3 | FS56: 10698.234 | FT56: 10711.122 | FU56: 10711.848 | FV56: 10705.535 | FW56: 10689.463 | FX56: 10668.095 | FY56: 10648.713 | FZ56: 10630.563 | GA56: 10612.74 | GB56: 10442.5 | GC56: 10397.959 | GD56: 10371.878 | GE56: 10364.737 | GF56: 10348.684 | GG56: 10329.012 | GH56: 10312.714 | GI56: 10295.874 | GJ56: 10273.591 | GK56: 10244.684 | GL56: 10211.127 | GM56: 10172.673 | GN56: 10137.449 | GP56: 10109.467 | GQ56: 10083.313 | GR56: 10057.745 | GS56: 10032.375 | GT56: 10006.835 | GU56: 9981.334 | GV56: 9956.108 | GW56: 9930.915 | GX56: 9906 | GZ56: 9250.46
A57: Italy | B57: 8000 | D57: 5000 | F57: 10500 | H57: 13100 | J57: 13300 | L57: 20176 | M57: 20306 | N57: 20437 | O57: 20568 | P57: 20701 | Q57: 20834 | R57: 20968 | S57: 21103 | T57: 21239 | U57: 21376 | V57: 21513 | W57: 21652 | X57: 21791 | Y57: 21932 | Z57: 22073 | AA57: 22215 | AB57: 22358 | AC57: 22502 | AD57: 22647 | AE57: 22793 | AF57: 22939 | AG57: 23087 | AH57: 23236 | AI57: 23385 | AJ57: 23536 | AK57: 23687 | AL57: 23840 | AM57: 23993 | AN57: 24148 | AO57: 24303 | AP57: 24460 | AQ57: 24617 | AR57: 24776 | AS57: 24935 | AT57: 25096 | AU57: 25257 | AV57: 25420 | AW57: 25584 | AX57: 25748 | AY57: 25914 | AZ57: 26081 | BA57: 26249 | BB57: 26418 | BC57: 26610 | BD57: 26814 | BE57: 27023 | BF57: 27256 | BG57: 27411 | BH57: 27501 | BI57: 27681 | BJ57: 27888 | BK57: 28063 | BL57: 28233 | BM57: 28387 | BN57: 28505 | BO57: 28630 | BP57: 28837 | BQ57: 29067 | BR57: 29252 | BS57: 29425 | BT57: 29534 | BU57: 29672 | BV57: 29898 | BW57: 30113 | BX57: 30366 | BY57: 30644 | BZ57: 30857 | CA57: 31049 | CB57: 31243 | CC57: 31468 | CD57: 31702 | CE57: 31892 | CF57: 32091 | CG57: 32303 | CH57: 32513 | CI57: 32689 | CJ57: 32863 | CK57: 33078 | CL57: 33285 | CM57: 33487 | CN57: 33672 | CO57: 33877 | CP57: 34166 | CQ57: 34436 | CR57: 34715 | CS57: 35011 | CT57: 35297 | CU57: 35594 | CV57: 35899 | CW57: 36213 | CX57: 36572 | CY57: 36917 | CZ57: 37150 | DA57: 37248 | DB57: 37526 | DC57: 37982 | DD57: 38142 | DE57: 37981 | DF57: 37520 | DG57: 37250 | DH57: 37398 | DI57: 37691 | DJ57: 38086 | DK57: 38460 | DL57: 38810 | DM57: 39165 | DN57: 39502 | DO57: 39848 | DP57: 40186 | DQ57: 40469 | DR57: 40791 | DS57: 0.006413641122 | DT57: 0.002433085264 | DU57: 54 | DV57: 59 | DW57: 41132 | DX57: 41431 | DY57: 41753 | DZ57: 42093 | EA57: 42429 | EB57: 42750 | EC57: 43068 | ED57: 43419 | EE57: 43865 | EF57: 44341 | EG57: 44734 | EH57: 45004 | EI57: 45177 | EJ57: 45290 | EK57: 45442 | EL57: 45725 | EM57: 46040 | EN57: 46381 | EO57: 46733 | EP57: 47105 | EQ57: 47418 | ER57: 47666 | ES57: 47957 | ET57: 48299 | EU57: 48633 | EV57: 48921 | EW57: 49182 | EX57: 49476 | EY57: 49832 | EZ57: 50197.6 | FA57: 50523.2 | FB57: 50843.2 | FC57: 51198.3 | FD57: 51600.2 | FE57: 51987.1 | FF57: 52331.6 | FG57: 52667.1 | FH57: 52986.6 | FI57: 53317 | FJ57: 53661.1 | FK57: 54005.5 | FL57: 54365.564 | FM57: 54796.843 | FN57: 55226.259 | FO57: 55571.894 | FP57: 55838.536 | FQ57: 56059.245 | FR57: 56240.143 | FS57: 56367.71 | FT57: 56451.247 | FU57: 56502.489 | FV57: 56535.636 | FW57: 56630.129 | FX57: 56696.963 | FY57: 56731.215 | FZ57: 56733.833 | GA57: 56729.703 | GB57: 56734.027 | GC57: 56737.529 | GD57: 56742.886 | GE57: 56747.462 | GF57: 56840.847 | GG57: 57026.746 | GH57: 57179.46 | GI57: 57274.531 | GJ57: 57367.032 | GK57: 57479.469 | GL57: 57550.318 | GM57: 57603.634 | GN57: 57719.337 | GP57: 57844.924 | GQ57: 57926.999 | GR57: 57998.353 | GS57: 58057.477 | GT57: 58103.033 | GU57: 58133.509 | GV57: 58147.733 | GW57: 58145.321 | GX57: 58126 | GZ57: 55359.83
A58: Belgium | B58: 300 | D58: 400 | F58: 1400 | H58: 1600 | J58: 2000 | L58: 3434 | M58: 3464 | N58: 3495 | O58: 3526 | P58: 3557 | Q58: 3589 | R58: 3620 | S58: 3652 | T58: 3685 | U58: 3717 | V58: 3750 | W58: 3782 | X58: 3814 | Y58: 3846 | Z58: 3879 | AA58: 3912 | AB58: 3945 | AC58: 3978 | AD58: 4012 | AE58: 4046 | AF58: 4080 | AG58: 4115 | AH58: 4151 | AI58: 4187 | AJ58: 4223 | AK58: 4259 | AL58: 4296 | AM58: 4333 | AN58: 4371 | AO58: 4408 | AP58: 4449 | AQ58: 4477 | AR58: 4506 | AS58: 4534 | AT58: 4563 | AU58: 4592 | AV58: 4621 | AW58: 4651 | AX58: 4680 | AY58: 4710 | AZ58: 4740 | BA58: 4774 | BB58: 4809 | BC58: 4844 | BD58: 4879 | BE58: 4915 | BF58: 4950 | BG58: 4986 | BH58: 5023 | BI58: 5029 | BJ58: 5096 | BK58: 5137 | BL58: 5178 | BM58: 5219 | BN58: 5261 | BO58: 5303 | BP58: 5345 | BQ58: 5394 | BR58: 5442 | BS58: 5492 | BT58: 5541 | BU58: 5606 | BV58: 5673 | BW58: 5740 | BX58: 5807 | BY58: 5876 | BZ58: 5919 | CA58: 5962 | CB58: 6007 | CC58: 6051 | CD58: 6096 | CE58: 6164 | CF58: 6231 | CG58: 6300 | CH58: 6370 | CI58: 6439 | CJ58: 6494 | CK58: 6548 | CL58: 6604 | CM58: 6662 | CN58: 6719 | CO58: 6801 | CP58: 6903 | CQ58: 6997 | CR58: 7086 | CS58: 7175 | CT58: 7258 | CU58: 7338 | CV58: 7411 | CW58: 7478 | CX58: 7498 | CY58: 7517 | CZ58: 7590 | DA58: 7666 | DB58: 7723 | DC58: 7759 | DD58: 7762 | DE58: 7729 | DF58: 7660 | DG58: 7628 | DH58: 7552 | DI58: 7504 | DJ58: 7571 | DK58: 7635 | DL58: 7707 | DM58: 7779 | DN58: 7844 | DO58: 7904 | DP58: 7968 | DQ58: 8032 | DR58: 8076 | DS58: 0.006150750877 | DT58: 0.002099285165 | DU58: 55 | DV58: 61 | DW58: 8126 | DX58: 8186 | DY58: 8231 | DZ58: 8262 | EA58: 8288 | EB58: 8315 | EC58: 8346 | ED58: 8374 | EE58: 8392 | EF58: 8346 | EG58: 8276 | EH58: 8247 | EI58: 8242 | EJ58: 8291 | EK58: 8339 | EL58: 8367 | EM58: 8450 | EN58: 8557 | EO58: 8614 | EP58: 8639.369 | EQ58: 8678.386 | ER58: 8730.405 | ES58: 8777.873 | ET58: 8819.38 | EU58: 8868.475 | EV58: 8923.845 | EW58: 8989.111 | EX58: 9052.707 | EY58: 9103.729 | EZ58: 9118.7 | FA58: 9165.8 | FB58: 9218.4 | FC58: 9283.1 | FD58: 9367 | FE58: 9448.1 | FF58: 9507.8 | FG58: 9556.5 | FH58: 9589.8 | FI58: 9612.7 | FJ58: 9637.8 | FK58: 9672.5 | FL58: 9709.1 | FM58: 9738.4 | FN58: 9767.8 | FO58: 9794.8 | FP58: 9811 | FQ58: 9821.8 | FR58: 9829.7 | FS58: 9837.2 | FT58: 9846.8 | FU58: 9852.4 | FV58: 9856.303 | FW58: 9855.52 | FX58: 9855.3 | FY58: 9858.2 | FZ58: 9861.8 | GA58: 9870.2 | GB58: 9884 | GC58: 9937.697 | GD58: 9969.31 | GE58: 10004.487 | GF58: 10045.622 | GG58: 10085.426 | GH58: 10122.914 | GI58: 10155.459 | GJ58: 10178.934 | GK58: 10199.787 | GL58: 10217.03 | GM58: 10235.655 | GN58: 10263.618 | GP58: 10291.679 | GQ58: 10311.97 | GR58: 10330.824 | GS58: 10348.276 | GT58: 10364.388 | GU58: 10379.067 | GV58: 10392.226 | GW58: 10403.951 | GX58: 10414 | GZ58: 10409
A59: Sweden | B59: 200 | D59: 400 | F59: 550 | H59: 760 | J59: 1260 | L59: 2573 | M59: 2598 | N59: 2629 | O59: 2668 | P59: 2708 | Q59: 2749 | R59: 2788 | S59: 2816 | T59: 2837 | U59: 2855 | V59: 2876 | W59: 2895 | X59: 2912 | Y59: 2941 | Z59: 2971 | AA59: 3004 | AB59: 3042 | AC59: 3068 | AD59: 3083 | AE59: 3098 | AF59: 3123 | AG59: 3156 | AH59: 3190 | AI59: 3221 | AJ59: 3256 | AK59: 3296 | AL59: 3330 | AM59: 3352 | AN59: 3380 | AO59: 3419 | AP59: 3462 | AQ59: 3500 | AR59: 3529 | AS59: 3552 | AT59: 3586 | AU59: 3625 | AV59: 3657 | AW59: 3680 | AX59: 3711 | AY59: 3761 | AZ59: 3824 | BA59: 3888 | BB59: 3942 | BC59: 3994 | BD59: 4046 | BE59: 4092 | BF59: 4137 | BG59: 4178 | BH59: 4154 | BI59: 4166 | BJ59: 4164 | BK59: 4186 | BL59: 4227 | BM59: 4274 | BN59: 4320 | BO59: 4362 | BP59: 4406 | BQ59: 4457 | BR59: 4508 | BS59: 4555 | BT59: 4572 | BU59: 4570 | BV59: 4576 | BW59: 4591 | BX59: 4624 | BY59: 4664 | BZ59: 4700 | CA59: 4726 | CB59: 4741 | CC59: 4761 | CD59: 4780 | CE59: 4794 | CF59: 4805 | CG59: 4816 | CH59: 4849 | CI59: 4896 | CJ59: 4941 | CK59: 4986 | CL59: 5036 | CM59: 5080 | CN59: 5117 | CO59: 5156 | CP59: 5187 | CQ59: 5210 | CR59: 5241 | CS59: 5278 | CT59: 5315 | CU59: 5357 | CV59: 5404 | CW59: 5453 | CX59: 5499 | CY59: 5542 | CZ59: 5583 | DA59: 5621 | DB59: 5659 | DC59: 5696 | DD59: 5735 | DE59: 5779 | DF59: 5807 | DG59: 5830 | DH59: 5876 | DI59: 5929 | DJ59: 5971 | DK59: 5997 | DL59: 6021 | DM59: 6045 | DN59: 6064 | DO59: 6081 | DP59: 6097 | DQ59: 6113 | DR59: 6131 | DS59: 0.00604451275 | DT59: 0.003275288813 | DU59: 56 | DV59: 55 | DW59: 6152 | DX59: 6176 | DY59: 6201 | DZ59: 6222 | EA59: 6242 | EB59: 6259 | EC59: 6276 | ED59: 6297 | EE59: 6326 | EF59: 6356 | EG59: 6389 | EH59: 6432 | EI59: 6490 | EJ59: 6560 | EK59: 6635 | EL59: 6719 | EM59: 6803 | EN59: 6883 | EO59: 6955 | EP59: 7014 | EQ59: 7070 | ER59: 7125 | ES59: 7171 | ET59: 7213 | EU59: 7262 | EV59: 7315 | EW59: 7364 | EX59: 7409 | EY59: 7446 | EZ59: 7480 | FA59: 7520 | FB59: 7562 | FC59: 7604 | FD59: 7661 | FE59: 7734 | FF59: 7808 | FG59: 7868 | FH59: 7912 | FI59: 7968 | FJ59: 8043 | FK59: 8098 | FL59: 8122 | FM59: 8137 | FN59: 8161 | FO59: 8193 | FP59: 8222 | FQ59: 8252 | FR59: 8276 | FS59: 8294 | FT59: 8310 | FU59: 8320 | FV59: 8325 | FW59: 8329 | FX59: 8337 | FY59: 8350 | FZ59: 8370 | GA59: 8398 | GB59: 8436 | GC59: 8493 | GD59: 8559 | GE59: 8617 | GF59: 8668 | GG59: 8719 | GH59: 8781 | GI59: 8827 | GJ59: 8841 | GK59: 8846 | GL59: 8851 | GM59: 8858 | GN59: 8872 | GP59: 8940 | GQ59: 8954 | GR59: 8970 | GS59: 8986 | GT59: 9002 | GU59: 9017 | GV59: 9031 | GW59: 9045 | GX59: 9060 | GZ59: 9324.384
A60: Germany | B60: 3000 | D60: 3500 | F60: 12000 | H60: 16000 | J60: 15000 | L60: 24905 | M60: 25260 | N60: 25620 | O60: 25969 | P60: 26307 | Q60: 26650 | R60: 26964 | S60: 27249 | T60: 27540 | U60: 27807 | V60: 28045 | W60: 28283 | X60: 28535 | Y60: 28801 | Z60: 29071 | AA60: 29390 | AB60: 29702 | AC60: 30013 | AD60: 30365 | AE60: 30746 | AF60: 31126 | AG60: 31475 | AH60: 31787 | AI60: 32086 | AJ60: 32394 | AK60: 32743 | AL60: 33059 | AM60: 33231 | AN60: 33289 | AO60: 33452 | AP60: 33746 | AQ60: 34055 | AR60: 34290 | AS60: 34422 | AT60: 34531 | AU60: 34586 | AV60: 34715 | AW60: 34979 | AX60: 35278 | AY60: 35633 | AZ60: 36049 | BA60: 36435 | BB60: 36788 | BC60: 37184 | BD60: 37602 | BE60: 37955 | BF60: 38193 | BG60: 38440 | BH60: 38637 | BI60: 38914 | BJ60: 39231 | BK60: 39456 | BL60: 39691 | BM60: 40017 | BN60: 40450 | BO60: 40897 | BP60: 41491 | BQ60: 42034 | BR60: 42546 | BS60: 43052 | BT60: 43500 | BU60: 43827 | BV60: 44112 | BW60: 44404 | BX60: 44777 | BY60: 45084 | BZ60: 45505 | CA60: 46001 | CB60: 46538 | CC60: 47083 | CD60: 47607 | CE60: 48129 | CF60: 48633 | CG60: 49123 | CH60: 49703 | CI60: 50363 | CJ60: 51111 | CK60: 51921 | CL60: 52753 | CM60: 53592 | CN60: 54388 | CO60: 55214 | CP60: 56104 | CQ60: 56963 | CR60: 57806 | CS60: 58644 | CT60: 59481 | CU60: 60341 | CV60: 61187 | CW60: 62038 | CX60: 62884 | CY60: 63852 | CZ60: 64457 | DA60: 65058 | DB60: 66096 | DC60: 66230 | DD60: 66076 | DE60: 65763 | DF60: 65237 | DG60: 60547 | DH60: 60894 | DI60: 61573 | DJ60: 61900 | DK60: 62307 | DL60: 62697 | DM60: 63166 | DN60: 63630 | DO60: 64023 | DP60: 64393 | DQ60: 64739 | DR60: 65084 | DS60: 0.006002449669 | DT60: 0.001837793077 | DU60: 57 | DV60: 62 | DW60: 65423 | DX60: 65716 | DY60: 66027 | DZ60: 66409 | EA60: 66871 | EB60: 67349 | EC60: 67831 | ED60: 68558 | EE60: 69286 | EF60: 69835 | EG60: 70244 | EH60: 70834 | EI60: 70411 | EJ60: 69865 | EK60: 67000 | EL60: 64678 | EM60: 66094 | EN60: 67295 | EO60: 67991 | EP60: 68374.572 | EQ60: 68875.884 | ER60: 69145.952 | ES60: 69550.236 | ET60: 69868.115 | EU60: 70195.612 | EV60: 70602.518 | EW60: 71019.069 | EX60: 71488.167 | EY60: 72013.853 | EZ60: 72480.869 | FA60: 73123.148 | FB60: 73739.117 | FC60: 74340.26 | FD60: 74954.262 | FE60: 75638.851 | FF60: 76206.173 | FG60: 76368.453 | FH60: 76584.401 | FI60: 77143.888 | FJ60: 77783.164 | FK60: 78354.709 | FL60: 78717.088 | FM60: 78950.22 | FN60: 78966.137 | FO60: 78682.325 | FP60: 78298.957 | FQ60: 78160.773 | FR60: 78066.074 | FS60: 78081.292 | FT60: 78297.904 | FU60: 78401.83 | FV60: 78335.266 | FW60: 78121.655 | FX60: 77855.422 | FY60: 77684.907 | FZ60: 77713.485 | GA60: 77718.298 | GB60: 78030.572 | GC60: 78644.914 | GD60: 79380.394 | GE60: 79984.244 | GF60: 80597.764 | GG60: 81132.272 | GH60: 81414.164 | GI60: 81653.702 | GJ60: 81890.667 | GK60: 82011.073 | GL60: 82023.672 | GM60: 82074.778 | GN60: 82187.909 | GP60: 82280.551 | GQ60: 82350.671 | GR60: 82398.326 | GS60: 82424.609 | GT60: 82431.39 | GU60: 82422.299 | GV60: 82400.996 | GW60: 82369.548 | GX60: 82330 | GZ60: 79572.5
A61: India | B61: 75000 | D61: 75000 | F61: 110000 | H61: 135000 | J61: 165000 | L61: 209000.0133 | M61: 209842.2323 | N61: 210687.8453 | O61: 211536.8659 | P61: 212389.3079 | Q61: 213245.185 | R61: 214104.511 | S61: 214967.3 | T61: 215833.5657 | U61: 216703.3223 | V61: 217576.5839 | W61: 218453.3644 | X61: 219333.6782 | Y61: 220217.5394 | Z61: 221104.9623 | AA61: 221995.9614 | AB61: 222890.5509 | AC61: 223788.7455 | AD61: 224690.5595 | AE61: 225596.0076 | AF61: 226505.1045 | AG61: 227417.8648 | AH61: 228334.3033 | AI61: 229254.4348 | AJ61: 230178.2743 | AK61: 231105.8365 | AL61: 232037.1367 | AM61: 232972.1897 | AN61: 233911.0108 | AO61: 234853.6151 | AP61: 235800.0179 | AQ61: 236631.5614 | AR61: 237466.0374 | AS61: 238303.4562 | AT61: 239143.8281 | AU61: 239987.1635 | AV61: 240833.473 | AW61: 241682.7669 | AX61: 242535.0559 | AY61: 243390.3504 | AZ61: 244248.6611 | BA61: 245109.9987 | BB61: 245974.3737 | BC61: 246841.7969 | BD61: 247712.2791 | BE61: 248585.831 | BF61: 249462.4634 | BG61: 250342.1873 | BH61: 251225.0135 | BI61: 252110.953 | BJ61: 253000.0168 | BK61: 253417 | BL61: 253834 | BM61: 254253 | BN61: 254672 | BO61: 255091 | BP61: 255512 | BQ61: 255933 | BR61: 256354 | BS61: 256777 | BT61: 257200 | BU61: 259359 | BV61: 261536 | BW61: 263732 | BX61: 265946 | BY61: 268179 | BZ61: 270430 | CA61: 272700 | CB61: 274990 | CC61: 277298 | CD61: 279626 | CE61: 280110 | CF61: 280594 | CG61: 281079 | CH61: 281565 | CI61: 282052 | CJ61: 282540 | CK61: 283029 | CL61: 283518 | CM61: 284009 | CN61: 284500 | CO61: 286200 | CP61: 288000 | CQ61: 289700 | CR61: 291500 | CS61: 293300 | CT61: 295100 | CU61: 296900 | CV61: 298700 | CW61: 300500 | CX61: 302100 | CY61: 303100 | CZ61: 303400 | DA61: 303700 | DB61: 304000 | DC61: 304200 | DD61: 304500 | DE61: 304800 | DF61: 305100 | DG61: 305300 | DH61: 305600 | DI61: 307300 | DJ61: 310400 | DK61: 313600 | DL61: 316700 | DM61: 319900 | DN61: 323200 | DO61: 326400 | DP61: 329700 | DQ61: 333100 | DR61: 336400 | DS61: 0.005601217639 | DT61: 0.02082900854 | DU61: 58 | DV61: 17 | DW61: 341000 | DX61: 345800 | DY61: 350700 | DZ61: 355600 | EA61: 360600 | EB61: 365700 | EC61: 370900 | ED61: 376100 | EE61: 381400 | EF61: 386800 | EG61: 391700 | EH61: 396300 | EI61: 400900 | EJ61: 405600 | EK61: 410400 | EL61: 415200 | EM61: 346000 | EN61: 350000 | EO61: 355000 | EP61: 359000 | EQ61: 365000 | ER61: 372000 | ES61: 379000 | ET61: 386000 | EU61: 393000 | EV61: 401000 | EW61: 409000 | EX61: 418000 | EY61: 426000 | EZ61: 434000 | FA61: 444000 | FB61: 454000 | FC61: 464000 | FD61: 474000 | FE61: 485000 | FF61: 495000 | FG61: 506000 | FH61: 518000 | FI61: 529000 | FJ61: 541000 | FK61: 554000 | FL61: 567000 | FM61: 580000 | FN61: 593000 | FO61: 607000 | FP61: 620000 | FQ61: 634000 | FR61: 648000 | FS61: 664000 | FT61: 679000 | FU61: 692000 | FV61: 708000 | FW61: 723000 | FX61: 739000 | FY61: 755000 | FZ61: 771000 | GA61: 788000 | GB61: 805000 | GC61: 822000 | GD61: 839000 | GE61: 853724 | GF61: 869090 | GG61: 884943 | GH61: 901176 | GI61: 917772 | GJ61: 934692 | GK61: 951861 | GL61: 969153 | GM61: 986477 | GN61: 1004124 | GP61: 1021967 | GQ61: 1039691 | GR61: 1057504 | GS61: 1065070.607 | GT61: 1093563 | GU61: 1111714 | GV61: 1129866 | GW61: 1147996 | GX61: 1156898 | GZ61: 1532464
A62: Czechoslovakia | B62: 1000 | D62: 1250 | F62: 3000 | H62: 4500 | J62: 4500 | L62: 7657 | AP62: 9250 | BJ62: 10155 | CD62: 11253 | CN62: 12142 | CX62: 12984 | DA62: 13245 | DH62: 12979 | DI62: 13008 | DJ62: 13159 | DK62: 13293 | DL62: 13413 | DM62: 13537 | DN62: 13644 | DO62: 13728 | DP62: 13807 | DQ62: 13884 | DR62: 13964 | DS62: 0.004671278983 | DT62: 0.003010602959 | DU62: 59 | DV62: 56 | DW62: 14052 | DX62: 14138 | DY62: 14216 | DZ62: 14282 | EA62: 14339 | EB62: 14387 | EC62: 14429 | ED62: 14603 | EE62: 14683 | EF62: 14713 | EG62: 14671 | EH62: 14577 | EI62: 14538 | EJ62: 14593 | EK62: 14152 | EL62: 12916 | EM62: 12164 | EN62: 12339 | EO62: 12339 | EP62: 12388.568 | EQ62: 12531.868 | ER62: 12683.32 | ES62: 12819.669 | ET62: 12952.054 | EU62: 13092.57 | EV62: 13229.151 | EW62: 13358.035 | EX62: 13474.401 | EY62: 13564.593 | EZ62: 13654.088 | FA62: 13778.892 | FB62: 13857.666 | FC62: 13948.326 | FD62: 14052.204 | FE62: 14146.861 | FF62: 14224.347 | FG62: 14277.347 | FH62: 14322.641 | FI62: 14284.202 | FJ62: 14319.099 | FK62: 14381.376 | FL62: 14455.591 | FM62: 14549.273 | FN62: 14657.87 | FO62: 14771.737 | FP62: 14883.683 | FQ62: 14989.718 | FR62: 15088.911 | FS62: 15182.228 | FT62: 15254.684 | FU62: 15311.596 | FV62: 15351.747 | FW62: 15388.264 | FX62: 15423.304 | FY62: 15454.794 | FZ62: 15480.92 | GA62: 15510.915 | GB62: 15537.004 | GC62: 15559.005 | GD62: 15572.13 | GE62: 15586.768 | GF62: 15618.59 | GG62: 15650.011 | GH62: 15675.429 | GI62: 15685.424 | GJ62: 15685.007 | GK62: 15683.717 | GL62: 15681.185 | GM62: 15676.175 | GN62: 15670.448 | GP62: 15666.989 | GQ62: 15666.347 | GR62: 15667.493 | GS62: 15669.745 | GT62: 15672.501 | GU62: 15674.903 | GV62: 15676.246 | GW62: 15676.318 | GX62: 15675 | GZ62: 15022.245
A63: Poland | B63: 450 | D63: 1200 | F63: 4000 | H63: 5000 | J63: 6000 | L63: 10426 | AP63: 13000 | BJ63: 16865 | CD63: 22854 | CN63: 24750 | CX63: 26644 | DA63: 26710 | DH63: 23968 | DI63: 24330 | DJ63: 24935 | DK63: 25569 | DL63: 25992 | DM63: 26425 | DN63: 26815 | DO63: 27148 | DP63: 27509 | DQ63: 27856 | DR63: 28204 | DS63: 0.004364105856 | DT63: 0.005770409569 | DU63: 60 | DV63: 45 | DW63: 28615 | DX63: 29022 | DY63: 29421 | DZ63: 29771 | EA63: 30129 | EB63: 30471 | EC63: 30791 | ED63: 31062 | EE63: 31365 | EF63: 30021 | EL63: 23959 | EM63: 23734 | EN63: 23980 | EO63: 24410 | EP63: 24824 | EQ63: 25262.265 | ER63: 25730.551 | ES63: 26221.264 | ET63: 26715.134 | EU63: 27220.668 | EV63: 27743.876 | EW63: 28235.346 | EX63: 28692.576 | EY63: 29152.334 | EZ63: 29589.842 | FA63: 29978.949 | FB63: 30329.617 | FC63: 30662.122 | FD63: 30975.52 | FE63: 31262.358 | FF63: 31532.016 | FG63: 31785.378 | FH63: 32034.813 | FI63: 32280.848 | FJ63: 32526 | FK63: 32777.81 | FL63: 33039.545 | FM63: 33331.131 | FN63: 33642.89 | FO63: 33969.24 | FP63: 34299.428 | FQ63: 34621.254 | FR63: 34929.072 | FS63: 35256.645 | FT63: 35578.016 | FU63: 35901.961 | FV63: 36227.381 | FW63: 36571.418 | FX63: 36904.134 | FY63: 37225.792 | FZ63: 37504.275 | GA63: 37740.71 | GB63: 37866.84 | GC63: 37970.155 | GD63: 38119.408 | GE63: 38253.222 | GF63: 38370.697 | GG63: 38467.746 | GH63: 38548.296 | GI63: 38600.642 | GJ63: 38629.842 | GK63: 38654.957 | GL63: 38668.756 | GM63: 38665.539 | GN63: 38654.164 | GP63: 38643.641 | GQ63: 38625.976 | GR63: 38602.853 | GS63: 38580.445 | GT63: 38557.984 | GU63: 38536.869 | GV63: 38518.241 | GW63: 38500.696 | GX63: 38483 | GZ63: 36530.619
A64: Austria | B64: 500 | D64: 700 | F64: 2000 | H64: 2500 | J64: 2500 | L64: 3369 | M64: 3386 | N64: 3402 | O64: 3419 | P64: 3436 | Q64: 3452 | R64: 3469 | S64: 3486 | T64: 3504 | U64: 3521 | V64: 3538 | W64: 3555 | X64: 3573 | Y64: 3590 | Z64: 3608 | AA64: 3626 | AB64: 3614 | AC64: 3662 | AD64: 3680 | AE64: 3698 | AF64: 3716 | AG64: 3739 | AH64: 3762 | AI64: 3785 | AJ64: 3808 | AK64: 3831 | AL64: 3855 | AM64: 3878 | AN64: 3902 | AO64: 3926 | AP64: 3950 | AQ64: 3978 | AR64: 4006 | AS64: 4035 | AT64: 4063 | AU64: 4092 | AV64: 4120 | AW64: 4150 | AX64: 4178 | AY64: 4206 | AZ64: 4235 | BA64: 4263 | BB64: 4292 | BC64: 4321 | BD64: 4350 | BE64: 4380 | BF64: 4409 | BG64: 4439 | BH64: 4469 | BI64: 4499 | BJ64: 4520 | BK64: 4562 | BL64: 4604 | BM64: 4646 | BN64: 4688 | BO64: 4730 | BP64: 4772 | BQ64: 4815 | BR64: 4857 | BS64: 4899 | BT64: 4941 | BU64: 4985 | BV64: 5030 | BW64: 5075 | BX64: 5121 | BY64: 5166 | BZ64: 5212 | CA64: 5257 | CB64: 5303 | CC64: 5348 | CD64: 5394 | CE64: 5446 | CF64: 5504 | CG64: 5563 | CH64: 5622 | CI64: 5680 | CJ64: 5739 | CK64: 5798 | CL64: 5856 | CM64: 5915 | CN64: 5973 | CO64: 6035 | CP64: 6099 | CQ64: 6164 | CR64: 6228 | CS64: 6292 | CT64: 6357 | CU64: 6421 | CV64: 6485 | CW64: 6550 | CX64: 6614 | CY64: 6669 | CZ64: 6724 | DA64: 6767 | DB64: 6806 | DC64: 6843 | DD64: 6825 | DE64: 6785 | DF64: 6727 | DG64: 6420 | DH64: 6455 | DI64: 6504 | DJ64: 6528 | DK64: 6543 | DL64: 6562 | DM64: 6582 | DN64: 6603 | DO64: 6623 | DP64: 6643 | DQ64: 6664 | DR64: 6684 | DS64: 0.003755945852 | DT64: 0.002770958319 | DU64: 61 | DV64: 57 | DW64: 6705 | DX64: 6725 | DY64: 6746 | DZ64: 6760 | EA64: 6761 | EB64: 6758 | EC64: 6755 | ED64: 6753 | EE64: 6653 | EF64: 6705 | EG64: 6745 | EH64: 6783 | EI64: 6808 | EJ64: 6834 | EK64: 6799 | EL64: 7000 | EM64: 6971 | EN64: 6956 | EO64: 6943 | EP64: 6935.1 | EQ64: 6935.451 | ER64: 6927.772 | ES64: 6932.483 | ET64: 6940.209 | EU64: 6946.885 | EV64: 6952.359 | EW64: 6965.86 | EX64: 6987.358 | EY64: 7014.331 | EZ64: 7047.437 | FA64: 7086.299 | FB64: 7129.864 | FC64: 7175.811 | FD64: 7223.801 | FE64: 7270.889 | FF64: 7322.066 | FG64: 7376.998 | FH64: 7415.403 | FI64: 7441.055 | FJ64: 7467.086 | FK64: 7500.482 | FL64: 7544.201 | FM64: 7586.115 | FN64: 7599.038 | FO64: 7578.903 | FP64: 7565.525 | FQ64: 7568.43 | FR64: 7562.305 | FS64: 7549.425 | FT64: 7549.433 | FU64: 7564.629 | FV64: 7574.613 | FW64: 7552.896 | FX64: 7554.132 | FY64: 7559.776 | FZ64: 7568.242 | GA64: 7578.903 | GB64: 7599.791 | GC64: 7627.861 | GD64: 7722.953 | GE64: 7818.423 | GF64: 7914.969 | GG64: 7988.599 | GH64: 8027.54 | GI64: 8047.433 | GJ64: 8060.852 | GK64: 8069.876 | GL64: 8078.622 | GM64: 8094.156 | GN64: 8113.413 | GP64: 8131.69 | GQ64: 8148.312 | GR64: 8162.656 | GS64: 8174.762 | GT64: 8184.691 | GU64: 8192.88 | GV64: 8199.783 | GW64: 8205.533 | GX64: 8210 | GZ64: 8120
A65: United Kingdom | B65: 800 | D65: 2000 | F65: 3942 | H65: 6170 | J65: 8565 | L65: 21239 | M65: 21551 | N65: 21832 | O65: 22117 | P65: 22407 | Q65: 22698 | R65: 22996 | S65: 23275 | T65: 23560 | U65: 23847 | V65: 24139 | W65: 24433 | X65: 24684 | Y65: 24937 | Z65: 25194 | AA65: 25452 | AB65: 25715 | AC65: 25968 | AD65: 26223 | AE65: 26483 | AF65: 26745 | AG65: 27004 | AH65: 27277 | AI65: 27511 | AJ65: 27785 | AK65: 28040 | AL65: 28272 | AM65: 28118 | AN65: 27683 | AO65: 27429 | AP65: 27181 | AQ65: 26945 | AR65: 27076 | AS65: 27248 | AT65: 27446 | AU65: 27697 | AV65: 27978 | AW65: 28186 | AX65: 28422 | AY65: 28660 | AZ65: 28888 | BA65: 29128 | BB65: 29401 | BC65: 29630 | BD65: 29842 | BE65: 30089 | BF65: 30315 | BG65: 30572 | BH65: 30845 | BI65: 31127 | BJ65: 31400 | BK65: 31685 | BL65: 31874 | BM65: 32177 | BN65: 32501 | BO65: 32839 | BP65: 33200 | BQ65: 33576 | BR65: 33932 | BS65: 34304 | BT65: 34623 | BU65: 34935 | BV65: 35206 | BW65: 35450 | BX65: 35724 | BY65: 36015 | BZ65: 36313 | CA65: 36598 | CB65: 36881 | CC65: 37178 | CD65: 37485 | CE65: 37802 | CF65: 38134 | CG65: 38490 | CH65: 38859 | CI65: 39221 | CJ65: 39599 | CK65: 39987 | CL65: 40381 | CM65: 40773 | CN65: 41155 | CO65: 41538 | CP65: 41893 | CQ65: 42246 | CR65: 42611 | CS65: 42981 | CT65: 43361 | CU65: 43737 | CV65: 44124 | CW65: 44520 | CX65: 44916 | CY65: 45268 | CZ65: 45426 | DA65: 45649 | DB65: 46049 | DC65: 46340 | DD65: 46514 | DE65: 46614 | DF65: 46575 | DG65: 46534 | DH65: 46821 | DI65: 44072 | DJ65: 44372 | DK65: 44596 | DL65: 44915 | DM65: 45059 | DN65: 45232 | DO65: 45389 | DP65: 45578 | DQ65: 45672 | DR65: 45866 | DS65: 0.0036191559 | DT65: 0.00225571629 | DU65: 62 | DV65: 60 | DW65: 46074 | DX65: 46335 | DY65: 46520 | DZ65: 46666 | EA65: 46868 | EB65: 47081 | EC65: 47289 | ED65: 47494 | EE65: 47991 | EF65: 48226 | EG65: 48216 | EH65: 48400 | EI65: 48789 | EJ65: 49016 | EK65: 49182 | EL65: 49217 | EM65: 49519 | EN65: 50014 | EO65: 50312 | EP65: 50127 | EQ65: 50290 | ER65: 50430 | ES65: 50593 | ET65: 50765 | EU65: 50946 | EV65: 51184 | EW65: 51430 | EX65: 51652 | EY65: 51956 | EZ65: 52372 | FA65: 52807 | FB65: 53292 | FC65: 53625 | FD65: 53991 | FE65: 54350 | FF65: 54643 | FG65: 54959 | FH65: 55214 | FI65: 55461 | FJ65: 55632 | FK65: 55907 | FL65: 56079 | FM65: 56210 | FN65: 56224 | FO65: 56215 | FP65: 56206 | FQ65: 56179 | FR65: 56167 | FS65: 56228 | FT65: 56314 | FU65: 56382.597 | FV65: 56339.704 | FW65: 56382.623 | FX65: 56462.228 | FY65: 56620.24 | FZ65: 56796.26 | GA65: 56981.62 | GB65: 57159.603 | GC65: 57324.472 | GD65: 57493.307 | GE65: 57665.646 | GF65: 57866.349 | GG65: 58026.92 | GH65: 58212.518 | GI65: 58426.014 | GJ65: 58618.663 | GK65: 58808.266 | GL65: 59035.652 | GM65: 59293.32 | GN65: 59522.468 | GP65: 59723.243 | GQ65: 59912.431 | GR65: 60094.648 | GS65: 60270.708 | GT65: 60441.457 | GU65: 60609.153 | GV65: 60776.238 | GW65: 60943.912 | GX65: 61113 | GZ65: 64304
A66: France | B66: 5000 | D66: 6500 | F66: 15000 | H66: 18500 | J66: 21471 | L66: 31250 | M66: 31460 | N66: 31685 | O66: 31905 | P66: 32127 | Q66: 32350 | R66: 32538 | S66: 32727 | T66: 32917 | U66: 33108 | V66: 33300 | W66: 33439 | X66: 33598 | Y66: 33718 | Z66: 33859 | AA66: 34000 | AB66: 34178 | AC66: 34357 | AD66: 34537 | AE66: 34718 | AF66: 34900 | AG66: 35059 | AH66: 35218 | AI66: 35378 | AJ66: 35539 | AK66: 35700 | AL66: 35829 | AM66: 35959 | AN66: 36089 | AO66: 36219 | AP66: 36350 | AQ66: 36479 | AR66: 36609 | AS66: 36739 | AT66: 36869 | AU66: 37000 | AV66: 37060 | AW66: 37120 | AX66: 37180 | AY66: 37240 | AZ66: 37300 | BA66: 37390 | BB66: 37520 | BC66: 37710 | BD66: 37860 | BE66: 38020 | BF66: 38080 | BG66: 38230 | BH66: 38330 | BI66: 38890 | BJ66: 38440 | BK66: 37731 | BL66: 37679 | BM66: 37887 | BN66: 38044 | BO66: 38221 | BP66: 38398 | BQ66: 38576 | BR66: 38763 | BS66: 38909 | BT66: 39045 | BU66: 39191 | BV66: 39337 | BW66: 39472 | BX66: 39629 | BY66: 39733 | BZ66: 39858 | CA66: 39889 | CB66: 39920 | CC66: 40004 | CD66: 40014 | CE66: 39983 | CF66: 39993 | CG66: 40014 | CH66: 40056 | CI66: 40098 | CJ66: 40192 | CK66: 40348 | CL66: 40473 | CM66: 40546 | CN66: 40598 | CO66: 40640 | CP66: 40713 | CQ66: 40786 | CR66: 40859 | CS66: 40890 | CT66: 40942 | CU66: 40942 | CV66: 41046 | CW66: 41109 | CX66: 41224 | CY66: 41307 | CZ66: 41359 | DA66: 41463 | DB66: 41476 | DC66: 40481 | DD66: 39884 | DE66: 39288 | DF66: 38542 | DG66: 38700 | DH66: 39000 | DI66: 39240 | DJ66: 39420 | DK66: 39880 | DL66: 40310 | DM66: 40610 | DN66: 40870 | DO66: 40940 | DP66: 41050 | DQ66: 41230 | DR66: 41610 | DS66: 0.0008210608422 | DT66: 0.005463259359 | DU66: 63 | DV66: 48 | DW66: 41860 | DX66: 41860 | DY66: 41890 | DZ66: 41950 | EA66: 41940 | EB66: 41910 | EC66: 41930 | ED66: 41960 | EE66: 41900 | EF66: 41000 | EG66: 39600 | EH66: 39400 | EI66: 39000 | EJ66: 38900 | EK66: 39700 | EL66: 40290 | EM66: 40680 | EN66: 41110 | EO66: 41480 | EP66: 42518 | EQ66: 42862 | ER66: 43184 | ES66: 43495 | ET66: 43822 | EU66: 44218 | EV66: 44657 | EW66: 45152 | EX66: 45654 | EY66: 46129 | EZ66: 46584 | FA66: 47128 | FB66: 48089 | FC66: 48799 | FD66: 49357 | FE66: 49802 | FF66: 50254 | FG66: 50650 | FH66: 51034 | FI66: 51470 | FJ66: 51918 | FK66: 52432 | FL66: 52894 | FM66: 53333 | FN66: 53690 | FO66: 53955 | FP66: 54159 | FQ66: 54378 | FR66: 54602 | FS66: 54836 | FT66: 55110 | FU66: 55399 | FV66: 55697 | FW66: 55929 | FX66: 56246 | FY66: 56490 | FZ66: 56725 | GA66: 56989 | GB66: 57255 | GC66: 57821 | GD66: 58168 | GE66: 58514 | GF66: 58859 | GG66: 59169 | GH66: 59445 | GI66: 59712 | GJ66: 59981 | GK66: 60254 | GL66: 60535 | GM66: 60824 | GN66: 61137 | GP66: 61479 | GQ66: 61829 | GR66: 62171 | GS66: 62534 | GT66: 62912 | GU66: 63293 | GV66: 63682 | GW66: 64058 | GX66: 64420 | GZ66: 69249
A67: Ireland | F67: 800 | H67: 1000 | J67: 1925 | L67: 7101 | M67: 7200 | N67: 7267 | O67: 7335 | P67: 7403 | Q67: 7472 | R67: 7542 | S67: 7612 | T67: 7683 | U67: 7755 | V67: 7827 | W67: 7900 | X67: 7949 | Y67: 7998 | Z67: 8047 | AA67: 8096 | AB67: 8146 | AC67: 8196 | AD67: 8247 | AE67: 8298 | AF67: 8349 | AG67: 8400 | AH67: 8422 | AI67: 8441 | AJ67: 8479 | AK67: 8497 | AL67: 8490 | AM67: 8205 | AN67: 7640 | AO67: 7256 | AP67: 6878 | AQ67: 6514 | AR67: 6337 | AS67: 6199 | AT67: 6083 | AU67: 6015 | AV67: 5973 | AW67: 5919 | AX67: 5891 | AY67: 5862 | AZ67: 5821 | BA67: 5788 | BB67: 5776 | BC67: 5718 | BD67: 5641 | BE67: 5595 | BF67: 5523 | BG67: 5487 | BH67: 5466 | BI67: 5449 | BJ67: 5419 | BK67: 5398 | BL67: 5373 | BM67: 5328 | BN67: 5299 | BO67: 5279 | BP67: 5278 | BQ67: 5286 | BR67: 5282 | BS67: 5266 | BT67: 5203 | BU67: 5146 | BV67: 5101 | BW67: 5024 | BX67: 4975 | BY67: 4939 | BZ67: 4906 | CA67: 4857 | CB67: 4801 | CC67: 4757 | CD67: 4718 | CE67: 4680 | CF67: 4634 | CG67: 4607 | CH67: 4589 | CI67: 4560 | CJ67: 4542 | CK67: 4530 | CL67: 4518 | CM67: 4502 | CN67: 4469 | CO67: 4447 | CP67: 4435 | CQ67: 4418 | CR67: 4408 | CS67: 4399 | CT67: 4398 | CU67: 4388 | CV67: 4385 | CW67: 4387 | CX67: 4385 | CY67: 4381 | CZ67: 4368 | DA67: 4346 | DB67: 4334 | DC67: 4278 | DD67: 4273 | DE67: 4273 | DF67: 4280 | DG67: 4352 | DH67: 4361 | DI67: 3096 | DJ67: 3002 | DK67: 3014 | DL67: 3005 | DM67: 2985 | DN67: 2971 | DO67: 2957 | DP67: 2944 | DQ67: 2937 | DR67: 2927 | DS67: -0.0140071955 | DT67: 0.008400849475 | DU67: 64 | DV67: 40 | DW67: 2933 | DX67: 2949 | DY67: 2962 | DZ67: 2971 | EA67: 2971 | EB67: 2967 | EC67: 2948 | ED67: 2937 | EE67: 2934 | EF67: 2958 | EG67: 2993 | EH67: 2963 | EI67: 2946 | EJ67: 2944 | EK67: 2952 | EL67: 2957 | EM67: 2974 | EN67: 2985 | EO67: 2981 | EP67: 2963.018 | EQ67: 2959.311 | ER67: 2952.156 | ES67: 2947.311 | ET67: 2936.769 | EU67: 2916.133 | EV67: 2895.253 | EW67: 2878.22 | EX67: 2851.522 | EY67: 2843.041 | EZ67: 2832 | FA67: 2818.3 | FB67: 2830 | FC67: 2850 | FD67: 2864 | FE67: 2876 | FF67: 2884 | FG67: 2900.1 | FH67: 2912.5 | FI67: 2925.6 | FJ67: 2950.1 | FK67: 2978.3 | FL67: 3024.4 | FM67: 3073.2 | FN67: 3124.2 | FO67: 3177.3 | FP67: 3227.8 | FQ67: 3271.9 | FR67: 3314 | FS67: 3368.2 | FT67: 3401 | FU67: 3443.4 | FV67: 3480 | FW67: 3504 | FX67: 3529 | FY67: 3540 | FZ67: 3540.5 | GA67: 3539.9 | GB67: 3529.6 | GC67: 3513.2 | GD67: 3508.2 | GE67: 3530.771 | GF67: 3557.761 | GG67: 3578.349 | GH67: 3595.542 | GI67: 3613.89 | GJ67: 3636.179 | GK67: 3667.233 | GL67: 3707.555 | GM67: 3750.141 | GN67: 3791.69 | GP67: 3835.025 | GQ67: 3879.155 | GR67: 3924.023 | GS67: 3969.558 | GT67: 4015.676 | GU67: 4062.235 | GV67: 4109.086 | GW67: 4156.119 | GX67: 4203 | GZ67: 4988.732

Sheet ToDo8 (hidden)
B1: United Kingdom | C1: United States | D1: China | E1: World Total | G1: UK Share | H1: USA Share | I1: China Share | K1: India | L1: India Share
A2: 1 | B2: 320 | C2: 272 | D2: 26820 | E2: 105402 | G2: =B2/$E2 -> 0.003035995522 | H2: 0.002580596194 | I2: 0.2544543747 | K2: 33750 | L2: =K2/E2 -> 0.3202026527
L3: =K3/E3 -> 
A4: 1000 | B4: 800 | C4: 520 | D4: 27494 | E4: 121208 | G4: 0.006600224408 | H4: 0.004290145865 | I4: 0.2268332123 | K4: 33750 | L4: 0.2784469672
G5: =B5/$E5 ->  | H5: =C5/$E5 ->  | I5: =D5/$E5 -> 
A6: 1500 | B6: 2815 | C6: 800 | D6: 61800 | E6: 248321 | G6: 0.01133613347 | H6: 0.003221636511 | I6: 0.2488714205 | K6: 60500 | L6: 0.2436362611
A8: 1600 | B8: 6007 | C8: 600 | D8: 96000 | E8: 331344 | G8: 0.01812919504 | H8: 0.001810806896 | I8: 0.2897291033 | K8: 74250 | L8: 0.2240873533
A10: 1700 | B10: 10709 | C10: 527 | D10: 82800 | E10: 371058 | G10: 0.02886071719 | H10: 0.001420263139 | I10: 0.2231457077 | K10: 90750 | L10: 0.2445709296
G11: =B11/$E11 -> 
A12: 1820 | B12: 36232 | C12: 12548 | D12: 228600 | E12: 693501.8 | G12: 0.05224499778 | H12: 0.01809368051 | I12: 0.3296314444 | K12: 111417 | L12: 0.1606585592
A13: 1821 | G13: =B13/$E13 ->  | H13: =C13/$E13 ->  | I13: =D13/$E13 -> 
A14: 1822
A15: 1823
A16: 1824
A17: 1825
A18: 1826
A19: 1827
A20: 1828
A21: 1829
A22: 1830 | B22: 42228 | C22: 18219
A23: 1831 | B23: 44249
A24: 1832 | B24: 43800
A25: 1833 | B25: 44249
A26: 1834 | B26: 46046
A27: 1835 | B27: 48517
A28: 1836 | B28: 50314
A29: 1837 | B29: 49640
A30: 1838 | B30: 52336
A31: 1839 | B31: 54806
A32: 1840 | B32: 53234 | C32: 27694
A33: 1841 | B33: 52111
A34: 1842 | B34: 50988
A35: 1843 | B35: 51886
A36: 1844 | B36: 55031
A37: 1845 | B37: 57951
A38: 1846 | B38: 61770
A39: 1847 | B39: 62219
A40: 1848 | B40: 62893
A41: 1849 | B41: 64016
A42: 1850 | B42: 63342 | C42: 42583 | D42: 247200 | K42: 125681
A43: 1851 | B43: 66037
A44: 1852 | B44: 67160
A45: 1853 | B45: 69631
A46: 1854 | B46: 71428
A47: 1855 | B47: 71203
A48: 1856 | B48: 76370
A49: 1857 | B49: 77717
A50: 1858 | B50: 77942
A51: 1859 | B51: 79964
A52: 1860 | B52: 81760 | C52: 69346
A53: 1861 | B53: 84007
A54: 1862 | B54: 84680
A55: 1863 | B55: 85354
A56: 1864 | B56: 87600
A57: 1865 | B57: 90296
A58: 1866 | B58: 91644
A59: 1867 | B59: 90745
A60: 1868 | B60: 93665
A61: 1869 | B61: 94339
A62: 1870 | B62: 100179.628 | C62: 98374 | D62: 189740 | E62: 1109683.625 | G62: 0.09027764828 | H62: 0.08865049261 | I62: 0.1709856717 | K62: 134882 | L62: 0.1215499598
A63: 1871 | B63: 105570.46 | C63: 102862 | G63: =B63/$E63 ->  | H63: =C63/$E63 ->  | I63: =D63/$E63 -> 
A64: 1872 | B64: 105795.078 | C64: 107065
A65: 1873 | B65: 108265.876 | C65: 112436
A66: 1874 | B66: 110062.82 | C66: 111735
A67: 1875 | B67: 112758.236 | C67: 117573 | L67: =K67/E67 -> 
A68: 1876 | B68: 113881.326 | C68: 118974
A69: 1877 | B69: 115004.416 | C69: 122827
A70: 1878 | B70: 115453.652 | C70: 127964
A71: 1879 | B71: 115004.416 | C71: 143726
A72: 1880 | B72: 120395.248 | C72: 160656
A73: 1881 | B73: 124662.99 | C73: 166377
A74: 1882 | B74: 128256.878 | C74: 177002
A75: 1883 | B75: 129155.35 | C75: 181322
A76: 1884 | B76: 129379.968 | C76: 184591 | K76: 146409
A77: 1885 | B77: 128706.114 | C77: 185992 | K77: 151985
A78: 1886 | B78: 130727.676 | C78: 191596 | K78: 148134
A79: 1887 | B79: 135893.89 | C79: 200236 | K79: 155899
A80: 1888 | B80: 141958.576 | C80: 199302 | K80: 158358
A81: 1889 | B81: 149595.588 | C81: 211678 | K81: 155063
A82: 1890 | B82: 150269.442 | C82: 214713.945 | D82: 205379 | K82: 163341
A83: 1891 | B83: 150269.442 | C83: 224026.839 | K83: 148317
A84: 1892 | B84: 146675.554 | C84: 245756.925 | K84: 160224
A85: 1893 | B85: 146675.554 | C85: 233857.116 | K85: 164280
A86: 1894 | B86: 156558.746 | C86: 227131.137 | K86: 166799
A87: 1895 | B87: 161500.342 | C87: 254552.436 | K87: 162696
A88: 1896 | B88: 168238.882 | C88: 249378.606 | K88: 150699
A89: 1897 | B89: 170485.062 | C89: 273178.224 | K89: 178236
A90: 1898 | B90: 178795.928 | C90: 278869.437 | K90: 178599
A91: 1899 | B91: 186208.322 | C91: 304221.204 | K91: 164690
A92: 1900 | B92: 184860.614 | C92: 312499.332 | D92: 218154 | E92: 1971880.513 | G92: 0.09374838525 | H92: 0.1584778235 | I92: 0.1106324641 | K92: 170466 | L92: 0.08644844293
A93: 1901 | B93: 184860.614 | C93: 347681.376 | G93: =B93/$E93 ->  | H93: =C93/$E93 ->  | I93: =D93/$E93 ->  | K93: 173957
A94: 1902 | B94: 189577.592 | C94: 351303.057 | K94: 188504
A95: 1903 | B95: 187556.03 | C95: 368376.696 | K95: 191141
A96: 1904 | B96: 188679.12 | C96: 363720.249 | K96: 192060
A97: 1905 | B97: 194294.57 | C97: 390624.165 | K97: 188587
A98: 1906 | B98: 200808.492 | C98: 435636.486 | K98: 193979
A99: 1907 | B99: 204626.998 | C99: 442362.465 | K99: 182234
A100: 1908 | B100: 196316.132 | C100: 406145.655 | K100: 184844
A101: 1909 | B101: 200808.492 | C101: 455814.423 | K101: 210241
A102: 1910 | B102: 207097.796 | C102: 460470.87 | K102: 210439
A103: 1911 | B103: 213162.482 | C103: 475474.977 | K103: 209354
A104: 1912 | B104: 216307.134 | C104: 497722.446 | K104: 208946
A105: 1913 | B105: 224618 | C105: 517383 | D105: 241431 | E105: 2733189.637 | G105: 0.08218163752 | H105: 0.1892964151 | I105: 0.08833305848 | K105: 204242 | L105: 0.07472661145
A106: 1914 | B106: 226864.18 | C106: 477544.509 | G106: =B106/$E106 ->  | H106: =C106/$E106 ->  | I106: =D106/$E106 ->  | K106: 215400
A107: 1915 | B107: 245058.238 | C107: 490996.467 | K107: 210110
A108: 1916 | B108: 250449.07 | C108: 558773.64 | K108: 216245
A109: 1917 | B109: 252695.25 | C109: 544804.299 | K109: 212341
A110: 1918 | B110: 254267.576 | C110: 593955.684 | K110: 185202
A111: 1919 | B111: 226639.562 | C111: 599129.514 | K111: 210730
A112: 1920 | B112: 212937.864 | C112: 593438.301 | K112: 194051
A113: 1921 | B113: 195642.278 | C113: 579986.343 | K113: 208785
A114: 1922 | B114: 205750.088 | C114: 612064.089 | K114: 217594
A115: 1923 | B115: 212264.01 | C115: 692775.837 | K115: 210511
A116: 1924 | B116: 221024.112 | C116: 713988.54 | K116: 220763
A117: 1925 | B117: 231805.776 | C117: 730544.796 | K117: 223375
A118: 1926 | B118: 223270.292 | C118: 778144.032 | K118: 230410
A119: 1927 | B119: 241239.732 | C119: 785904.777 | K119: 230426
A120: 1928 | B120: 244159.766 | C120: 794700.288 | K120: 232745
A121: 1929 | B121: 251347.542 | C121: 843334.29 | D121: 274090 | K121: 242409
A122: 1930 | B122: 249550.598 | C122: 768313.755 | D122: 277567 | K122: 244097
A123: 1931 | B123: 236747.372 | C123: 709332.093 | D123: 280393 | K123: 242489
A124: 1932 | B124: 238544.316 | C124: 615685.77 | D124: 289304 | K124: 245209
A125: 1933 | B125: 245507.474 | C125: 602751.195 | D125: 289304 | K125: 245433
A126: 1934 | B126: 261679.97 | C126: 649315.665 | D126: 264091 | K126: 247712
A127: 1935 | B127: 271787.78 | C127: 698984.433 | D127: 285403 | K127: 245361
A128: 1936 | B128: 284141.77 | C128: 798321.969 | D128: 303433 | K128: 254896
A129: 1937 | B129: 294024.962 | C129: 832469.247 | D129: 296043 | K129: 250768
A130: 1938 | B130: 297618.85 | C130: 799356.735 | D130: 288653 | K130: 251375
A131: 1939 | B131: 300538.884 | C131: 862994.844 | K131: 256924 | L131: =K131/E131 -> 
A132: 1940 | B132: 330637.696 | C132: 929737.251 | E132: 4502584 | G132: 0.07343287677 | H132: 0.206489707 | K132: 265455 | L132: 0.05895614607
A133: 1941 | B133: 360736.508 | C133: 1098921.492 | G133: =B133/$E133 ->  | H133: =C133/$E133 ->  | I133: =D133/$E133 ->  | K133: 270531
A134: 1942 | B134: 369721.228 | C134: 1318809.267 | K134: 269278
A135: 1943 | B135: 377807.476 | C135: 1581122.448 | K135: 279898
A136: 1944 | B136: 362982.688 | C136: 1713572.496 | K136: 276954
A137: 1945 | B137: 347034.81 | C137: 1644760.557 | K137: 272503
A138: 1946 | B138: 331985.404 | C138: 1305357.309 | K138: 258164
A139: 1947 | B139: 327043.808 | C139: 1285696.755 | K139: 213680
A140: 1948 | B140: 337376.236 | C140: 1334330.757 | K140: 215927
A141: 1949 | B141: 349954.844 | C141: 1339504.587 | K141: 221631
A142: 1950 | B142: 347850 | C142: 1455916 | D142: 244985 | E142: 5335859.971 | G142: 0.06519099112 | H142: 0.2728549864 | I142: 0.0459129365 | K142: 222222 | L142: 0.04164689501
A143: 1951 | B143: 358234 | C143: 1566784 | D143: 273733 | E143: 5649957.384 | G143: =B143/$E143 -> 0.06340472602 | H143: =C143/$E143 -> 0.2773089943 | I143: =D143/$E143 -> 0.04844868401 | K143: 227362 | L143: 0.04024136547
A144: 1952 | B144: 357585 | C144: 1625245 | D144: 305854 | E144: 5911277.501 | G144: 0.06049200023 | H144: 0.2749397232 | I144: 0.05174076161 | K144: 234148 | L144: 0.03961038878
A145: 1953 | B145: 371646 | C145: 1699970 | D145: 321030 | E145: 6208987.329 | G145: 0.05985613761 | H145: 0.2737918295 | I145: 0.05170408361 | K145: 248963 | L145: 0.04009719891
A146: 1954 | B146: 386789 | C146: 1688804 | D146: 331550 | E146: 6421223.941 | G146: 0.06023602409 | H146: 0.2630034423 | I146: 0.05163345852 | K146: 259262 | L146: 0.04037579166
A147: 1955 | B147: 400850 | C147: 1808126 | D147: 350908 | E147: 6830521.055 | G147: 0.05868512765 | H147: 0.2647127482 | I147: 0.05137353317 | K147: 265527 | L147: 0.0388736083
A148: 1956 | B148: 405825 | C148: 1843455 | D148: 382892 | E148: 7151719.45 | G148: 0.05674509505 | H148: 0.2577638864 | I148: 0.05353845361 | K148: 280978 | L148: 0.03928817426
A149: 1957 | B149: 412315 | C149: 1878063 | D149: 405386 | E149: 7423895.73 | G149: 0.05553889965 | H149: 0.2529754011 | I149: 0.05460556219 | K149: 277924 | L149: 0.03743640941
A150: 1958 | B150: 411450 | C150: 1859088 | D150: 450977 | E150: 7662286.271 | G150: 0.05369807202 | H150: 0.2426283663 | I150: 0.05885671509 | K150: 299137 | L150: 0.0390401754
A151: 1959 | B151: 428107 | C151: 1997061 | D151: 457139 | E151: 8013450.118 | G151: 0.05342355586 | H151: 0.2492136309 | I151: 0.05704646479 | K151: 305499 | L151: 0.03812327967
A152: 1960 | B152: 452768 | C152: 2046727 | D152: 441694 | E152: 8432822.174 | G152: 0.05369115945 | H152: 0.2427096122 | I152: 0.05237795733 | K152: 326910 | L152: 0.03876638132
A153: 1961 | B153: 467694 | C153: 2094396 | D153: 365092 | E153: 8725317.226 | G153: 0.05360194797 | H153: 0.2400366595 | I153: 0.04184283397 | K153: 336744 | L153: 0.03859389765
A154: 1962 | B154: 472454 | C154: 2220732 | D154: 366465 | E154: 9136465.612 | G154: 0.05171080591 | H154: 0.2430624811 | I154: 0.04011014932 | K154: 344204 | L154: 0.03767364916
A155: 1963 | B155: 490625 | C155: 2316765 | D155: 402776 | E155: 9533551.55 | G155: 0.05146298286 | H155: 0.2430117452 | I155: 0.04224826371 | K155: 361442 | L155: 0.03791262869
A156: 1964 | B156: 516584 | C156: 2450915 | D156: 450312 | E156: 10224885.88 | G156: 0.05052222646 | H156: 0.2397009638 | I156: 0.04404078493 | K156: 389262 | L156: 0.03807005814
A157: 1965 | B157: 529996 | C157: 2607294 | D157: 501769 | E157: 10760252.25 | G157: 0.04925497913 | H157: 0.2423078883 | I157: 0.04663171349 | K157: 373814 | L157: 0.03474026364
A158: 1966 | B158: 540163 | C158: 2778086 | D158: 548841 | E158: 11346932.3 | G158: 0.04760432035 | H158: 0.2448314599 | I158: 0.04836910855 | K158: 377207 | L158: 0.03324308193
A159: 1967 | B159: 552277 | C159: 2847549 | D159: 533407 | E159: 11769154.52 | G159: 0.04692580074 | H159: 0.2419501753 | I159: 0.04532245702 | K159: 408349 | L159: 0.03469654504
A160: 1968 | B160: 574775 | C160: 2983081 | D160: 522728 | E160: 12416760.65 | G160: 0.04629025364 | H160: 0.2402463157 | I160: 0.04209858067 | K160: 418907 | L160: 0.03373722114
A161: 1969 | B161: 585207 | C161: 3076517 | D161: 567545 | E161: 13101912.82 | G161: 0.04466576813 | H161: 0.2348143391 | I161: 0.04331772069 | K161: 446872 | L161: 0.03410738616
A162: 1970 | B162: 599016 | C162: 3081900 | D162: 636937 | E162: 13765940.32 | G162: 0.04351435398 | H162: 0.2238786402 | I162: 0.04626905138 | K162: 469584 | L162: 0.03411201771
A163: 1971 | B163: 611705 | C163: 3178106 | D163: 668646 | E163: 14336492.45 | G163: 0.04266768891 | H163: 0.2216794666 | I163: 0.04663944143 | K163: 474338 | L163: 0.03308605655
A164: 1972 | B164: 633352 | C164: 3346554 | D164: 688186 | E164: 15018417.15 | G164: 0.04217168783 | H164: 0.222830007 | I164: 0.04582280496 | K164: 472766 | L164: 0.03147908299
A165: 1973 | B165: 675941 | C165: 3536622 | D165: 739414 | E165: 16015151.75 | G165: 0.04220634376 | H165: 0.2208297527 | I165: 0.04616965307 | K165: 494832 | L165: 0.03089774033
A166: 1974 | B166: 666755 | C166: 3526724 | D166: 751924 | E166: 16387995.76 | G166: 0.04068557313 | H166: 0.2152016666 | I166: 0.04588260888 | K166: 500146 | L166: 0.03051904621
A167: 1975 | B167: 665984 | C167: 3516825 | D167: 798346 | E167: 16637924.99 | G167: 0.04002806843 | H167: 0.2113740146 | I167: 0.04798350759 | K167: 544683 | L167: 0.03273743573
A168: 1976 | B168: 680933 | C168: 3701163 | D168: 793568 | E168: 17449530.33 | G168: 0.03902299874 | H168: 0.2121067404 | I168: 0.04547790027 | K168: 551402 | L168: 0.031599819
A169: 1977 | B169: 695699 | C169: 3868829 | D169: 843097 | E169: 18157092.56 | G169: 0.03831555067 | H169: 0.2130753582 | I169: 0.04643348032 | K169: 593834 | L169: 0.0327053463
A170: 1978 | B170: 720501 | C170: 4089548 | D170: 935083 | E170: 18955429.75 | G170: 0.03801026986 | H170: 0.2157454647 | I170: 0.04933061463 | K170: 625695 | L170: 0.0330087478
A171: 1979 | B171: 740370 | C171: 4228647 | D171: 1007193 | E171: 19633162.7 | G171: 0.03771017494 | H171: 0.2153828736 | I171: 0.05130059866 | K171: 594510 | L171: 0.03028090833
A172: 1980 | B172: 728224 | C172: 4230558 | D172: 1041142 | E172: 20029994.57 | G172: 0.03635667486 | H172: 0.2112111407 | I172: 0.0519791454 | K172: 637202 | L172: 0.03181239006
A173: 1981 | B173: 718733 | C173: 4336141 | D173: 1103378 | E173: 20422612.15 | G173: 0.03519300052 | H173: 0.212320587 | I173: 0.05402727094 | K173: 675882 | L173: 0.03309478704
A174: 1982 | B174: 729861 | C174: 4254870 | D174: 1186387 | E174: 20648354.78 | G174: 0.03534717452 | H174: 0.2060633908 | I174: 0.05745673263 | K174: 697705 | L174: 0.03378985916
A175: 1983 | B175: 755779 | C175: 4433129 | D175: 1287034 | E175: 21235635.43 | G175: 0.0355901288 | H175: 0.2087589521 | I175: 0.06060727518 | K175: 753942 | L175: 0.03550362326
A176: 1984 | B176: 774665 | C176: 4755958 | D176: 1447262 | E176: 22204271.13 | G176: 0.03488810759 | H176: 0.2141911334 | I176: 0.0651794419 | K176: 783042 | L176: 0.03526537735
A177: 1985 | B177: 802000 | C177: 4940383 | D177: 1596691 | E177: 22969598.67 | G177: 0.03491571671 | H177: 0.2150835577 | I177: 0.0695132302 | K177: 814344 | L177: 0.0354531227
A178: 1986 | B178: 837280 | C178: 5110480 | D178: 1703670 | E178: 23781917.53 | G178: 0.03520658075 | H178: 0.2148893163 | I178: 0.07163720073 | K178: 848990 | L178: 0.03569897166
A179: 1987 | B179: 877143 | C179: 5290129 | D179: 1883027 | E179: 24693768.94 | G179: 0.03552082317 | H179: 0.2142293067 | I179: 0.07625514779 | K179: 886154 | L179: 0.03588573304
A180: 1988 | B180: 920841 | C180: 5512845 | D180: 2016024 | E180: 25753177.69 | G180: 0.03575640301 | H180: 0.2140646513 | I180: 0.0782825337 | K180: 978822 | L180: 0.03800781449
A181: 1989 | B181: 940908 | C181: 5703521 | D181: 2051813 | E181: 26576358.94 | G181: 0.03540394687 | H181: 0.2146088188 | I181: 0.07720444341 | K181: 1043912 | L181: 0.03927972234
A182: 1990 | B182: 944610 | C182: 5803200 | D182: 2123852 | E182: 27134084.11 | G182: 0.0348126731 | H182: 0.2138712321 | I182: 0.07827247793 | K182: 1098100 | L182: 0.04046939618
A183: 1991 | B183: 931716.3072 | C183: 5791930.852 | D183: 2263794 | E183: 27494233.24 | G183: 0.03388769926 | H183: 0.2106598428 | I183: 0.08233704793 | K183: 1112340 | L183: 0.04045721117
A184: 1992 | B184: 933534.8405 | C184: 5985151.501 | D184: 2483921 | E184: 28077301.27 | G184: 0.03324873824 | H184: 0.2131669082 | I184: 0.08846722754 | K184: 1169301 | L184: 0.04164577602
A185: 1993 | B185: 955304.8933 | C185: 6146209.837 | D185: 2724344 | E185: 28693574.44 | G185: 0.03329333873 | H185: 0.2142016098 | I185: 0.09494613526 | K185: 1238272 | L185: 0.0431550277
A186: 1994 | B186: 997587.1758 | C186: 6395858.483 | D186: 2997060 | E186: 29697949.98 | G186: 0.0335911124 | H186: 0.2153636358 | I186: 0.1009180769 | K186: 1328047 | L186: 0.04471847387
A187: 1995 | B187: 1026043.723 | C187: 6558150.668 | D187: 3450084 | E187: 30942238.95 | G187: 0.03315997026 | H187: 0.2119481618 | I187: 0.1115007872 | K187: 1425623 | L187: 0.04607368595
A188: 1996 | B188: 1054948.361 | C188: 6803768.743 | D188: 3521141 | E188: 31990498.02 | G188: 0.03297692834 | H188: 0.212680926 | I188: 0.1100683396 | K188: 1537383 | L188: 0.04805748879
A189: 1997 | B189: 1089522.136 | C189: 7109774.55 | D189: 3706647 | E189: 33241788.24 | G189: 0.03277567765 | H189: 0.2138806281 | I189: 0.1115056438 | K189: 1611108 | L189: 0.04846634568
A190: 1998 | B190: 1123047 | C190: 7413357 | D190: 3717352 | E190: 33803487.37 | G190: 0.03322281478 | H190: 0.2193074613 | I190: 0.1099694821 | K190: 1715943 | L190: 0.05076230689
A191: 1999 | B191: 1157194 | C191: 7746169 | D191: 3961441 | E191: 34997327.13 | G191: 0.03306521083 | H191: 0.2213360172 | I191: 0.1131926728 | K191: 1819937 | L191: 0.05200217129
A192: 2000 | B192: 1211453 | C192: 8032209 | D192: 4319339 | E192: 36688284.84 | G192: 0.03302015904 | H192: 0.2189311666 | I192: 0.1177307421 | K192: 1899526 | L192: 0.05177472887
A193: 2001 | B193: 1229700 | C193: 8093143 | D193: 4780797 | E193: 37739365.46 | G193: 0.03258401367 | H193: 0.2144483062 | I193: 0.1266793159 | K193: 2009448 | L193: 0.05324541034
A194: 2002 | B194: 1254905 | C194: 8223657 | D194: 5374025 | E194: 39021274.14 | G194: 0.03215950857 | H194: 0.2107480389 | I194: 0.1377203876 | K194: 2080337 | L194: 0.05331289267
A195: 2003 | B195: 1289685 | C195: 8431121 | D195: 6187983 | E195: 40809563.48 | G195: 0.03160251887 | H195: 0.2065966965 | I195: 0.1516307079 | K195: 2257166 | L195: =K195/E195 -> 0.05530973153
A196: 2004 | B196: 1331721 | C196: 8738865 | D196: 6699034 | E196: 42950182 | G196: 0.03100617827 | H196: 0.2034651448 | I196: 0.1559721912 | K196: 2426453 | L196: 0.0564945918
A197: 2005 | B197: 1361019 | C197: 9009770 | D197: 7268725 | E197: 44982587 | G197: 0.03025657462 | H197: 0.2002946162 | I197: 0.1615897503 | K197: 2649687 | L197: 0.05890472684
A198: 2006 | B198: 1400488 | C198: 9253034 | D198: 7928475 | E198: 47340576 | G198: 0.02958324799 | H198: 0.1954567262 | I198: 0.1674773666 | K198: 2909356 | L198: 0.06145586399
A199: 2007 | B199: 1436901 | C199: 9447347 | D199: 8306661 | E199: 49411106 | G199: 0.02908052696 | H199: 0.1911988572 | I199: 0.1681132375 | K199: 3182835 | L199: 0.06441537658
A200: 2008 | B200: 1446959 | C200: 9485136 | D200: 8908894 | E200: 50973935 | G200: 0.0283862527 | H200: 0.1860781594 | I200: 0.1747735191 | K200: 3415183 | L200: 0.0669986141

Sheet Population
A1: Population
A2: (000 at mid-year)
B3: 1 | D3: 1000 | F3: 1500 | H3: 1600 | J3: 1700 | L3: 1820 | M3: 1821 | N3: 1822 | O3: 1823 | P3: 1824 | Q3: 1825 | R3: 1826 | S3: 1827 | T3: 1828 | U3: 1829 | V3: 1830 | W3: 1831 | X3: 1832 | Y3: 1833 | Z3: 1834 | AA3: 1835 | AB3: 1836 | AC3: 1837 | AD3: 1838 | AE3: 1839 | AF3: 1840 | AG3: 1841 | AH3: 1842 | AI3: 1843 | AJ3: 1844 | AK3: 1845 | AL3: 1846 | AM3: 1847 | AN3: 1848 | AO3: 1849 | AP3: 1850 | AQ3: 1851 | AR3: 1852 | AS3: 1853 | AT3: 1854 | AU3: 1855 | AV3: 1856 | AW3: 1857 | AX3: 1858 | AY3: 1859 | AZ3: 1860 | BA3: 1861 | BB3: 1862 | BC3: 1863 | BD3: 1864 | BE3: 1865 | BF3: 1866 | BG3: 1867 | BH3: 1868 | BI3: 1869 | BJ3: 1870 | BK3: 1871 | BL3: 1872 | BM3: 1873 | BN3: 1874 | BO3: 1875 | BP3: 1876 | BQ3: 1877 | BR3: 1878 | BS3: 1879 | BT3: 1880 | BU3: 1881 | BV3: 1882 | BW3: 1883 | BX3: 1884 | BY3: 1885 | BZ3: 1886 | CA3: 1887 | CB3: 1888 | CC3: 1889 | CD3: 1890 | CE3: 1891 | CF3: 1892 | CG3: 1893 | CH3: 1894 | CI3: 1895 | CJ3: 1896 | CK3: 1897 | CL3: 1898 | CM3: 1899 | CN3: 1900 | CO3: 1901 | CP3: 1902 | CQ3: 1903 | CR3: 1904 | CS3: 1905 | CT3: 1906 | CU3: 1907 | CV3: 1908 | CW3: 1909 | CX3: 1910 | CY3: 1911 | CZ3: 1912 | DA3: 1913 | DB3: 1914 | DC3: 1915 | DD3: 1916 | DE3: 1917 | DF3: 1918 | DG3: 1919 | DH3: 1920 | DI3: 1921 | DJ3: 1922 | DK3: 1923 | DL3: 1924 | DM3: 1925 | DN3: 1926 | DO3: 1927 | DP3: 1928 | DQ3: 1929 | DR3: 1930 | DS3: 1931 | DT3: 1932 | DU3: 1933 | DV3: 1934 | DW3: 1935 | DX3: 1936 | DY3: 1937 | DZ3: 1938 | EA3: 1939 | EB3: 1940 | EC3: 1941 | ED3: 1942 | EE3: 1943 | EF3: 1944 | EG3: 1945 | EH3: 1946 | EI3: 1947 | EJ3: 1948 | EK3: 1949 | EL3: 1950 | EM3: 1951 | EN3: 1952 | EO3: 1953 | EP3: 1954 | EQ3: 1955 | ER3: 1956 | ES3: 1957 | ET3: 1958 | EU3: 1959 | EV3: 1960 | EW3: 1961 | EX3: 1962 | EY3: 1963 | EZ3: 1964 | FA3: 1965 | FB3: 1966 | FC3: 1967 | FD3: 1968 | FE3: 1969 | FF3: 1970 | FG3: 1971 | FH3: 1972 | FI3: 1973 | FJ3: 1974 | FK3: 1975 | FL3: 1976 | FM3: 1977 | FN3: 1978 | FO3: 1979 | FP3: 1980 | FQ3: 1981 | FR3: 1982 | FS3: 1983 | FT3: 1984 | FU3: 1985 | FV3: 1986 | FW3: 1987 | FX3: 1988 | FY3: 1989 | FZ3: 1990 | GA3: 1991 | GB3: 1992 | GC3: 1993 | GD3: 1994 | GE3: 1995 | GF3: 1996 | GG3: 1997 | GH3: 1998 | GI3: 1999 | GJ3: 2000 | GK3: 2001 | GL3: 2002 | GM3: 2003 | GN3: 2004 | GO3: 2005 | GP3: 2006 | GQ3: 2007 | GR3: 2008 | GS3: 2009 | GU3: 2030
A4: Western Europe
A5: Austria | B5: 500 | D5: 700 | F5: 2000 | H5: 2500 | J5: 2500 | L5: 3369 | M5: 3386 | N5: 3402 | O5: 3419 | P5: 3436 | Q5: 3452 | R5: 3469 | S5: 3486 | T5: 3504 | U5: 3521 | V5: 3538 | W5: 3555 | X5: 3573 | Y5: 3590 | Z5: 3608 | AA5: 3626 | AB5: 3614 | AC5: 3662 | AD5: 3680 | AE5: 3698 | AF5: 3716 | AG5: 3739 | AH5: 3762 | AI5: 3785 | AJ5: 3808 | AK5: 3831 | AL5: 3855 | AM5: 3878 | AN5: 3902 | AO5: 3926 | AP5: 3950 | AQ5: 3978 | AR5: 4006 | AS5: 4035 | AT5: 4063 | AU5: 4092 | AV5: 4120 | AW5: 4150 | AX5: 4178 | AY5: 4206 | AZ5: 4235 | BA5: 4263 | BB5: 4292 | BC5: 4321 | BD5: 4350 | BE5: 4380 | BF5: 4409 | BG5: 4439 | BH5: 4469 | BI5: 4499 | BJ5: 4520 | BK5: 4562 | BL5: 4604 | BM5: 4646 | BN5: 4688 | BO5: 4730 | BP5: 4772 | BQ5: 4815 | BR5: 4857 | BS5: 4899 | BT5: 4941 | BU5: 4985 | BV5: 5030 | BW5: 5075 | BX5: 5121 | BY5: 5166 | BZ5: 5212 | CA5: 5257 | CB5: 5303 | CC5: 5348 | CD5: 5394 | CE5: 5446 | CF5: 5504 | CG5: 5563 | CH5: 5622 | CI5: 5680 | CJ5: 5739 | CK5: 5798 | CL5: 5856 | CM5: 5915 | CN5: 5973 | CO5: 6035 | CP5: 6099 | CQ5: 6164 | CR5: 6228 | CS5: 6292 | CT5: 6357 | CU5: 6421 | CV5: 6485 | CW5: 6550 | CX5: 6614 | CY5: 6669 | CZ5: 6724 | DA5: 6767 | DB5: 6806 | DC5: 6843 | DD5: 6825 | DE5: 6785 | DF5: 6727 | DG5: 6420 | DH5: 6455 | DI5: 6504 | DJ5: 6528 | DK5: 6543 | DL5: 6562 | DM5: 6582 | DN5: 6603 | DO5: 6623 | DP5: 6643 | DQ5: 6664 | DR5: 6684 | DS5: 6705 | DT5: 6725 | DU5: 6746 | DV5: 6760 | DW5: 6761 | DX5: 6758 | DY5: 6755 | DZ5: 6753 | EA5: 6653 | EB5: 6705 | EC5: 6745 | ED5: 6783 | EE5: 6808 | EF5: 6834 | EG5: 6799 | EH5: 7000 | EI5: 6971 | EJ5: 6956 | EK5: 6943 | EL5: 6935.1 | EM5: 6935.451 | EN5: 6927.772 | EO5: 6932.483 | EP5: 6940.209 | EQ5: 6946.885 | ER5: 6952.359 | ES5: 6965.86 | ET5: 6987.358 | EU5: 7014.331 | EV5: 7047.437 | EW5: 7086.299 | EX5: 7129.864 | EY5: 7175.811 | EZ5: 7223.801 | FA5: 7270.889 | FB5: 7322.066 | FC5: 7376.998 | FD5: 7415.403 | FE5: 7441.055 | FF5: 7467.086 | FG5: 7500.482 | FH5: 7544.201 | FI5: 7586.115 | FJ5: 7599.038 | FK5: 7578.903 | FL5: 7565.525 | FM5: 7568.43 | FN5: 7562.305 | FO5: 7549.425 | FP5: 7549.433 | FQ5: 7564.629 | FR5: 7574.613 | FS5: 7552.896 | FT5: 7554.132 | FU5: 7559.776 | FV5: 7568.242 | FW5: 7578.903 | FX5: 7599.791 | FY5: 7627.861 | FZ5: 7722.953 | GA5: 7818.423 | GB5: 7914.969 | GC5: 7988.599 | GD5: 8027.54 | GE5: 8047.433 | GF5: 8060.852 | GG5: 8069.876 | GH5: 8078.622 | GI5: 8094.156 | GJ5: 8113.413 | GK5: 8131.69 | GL5: 8148.312 | GM5: 8162.656 | GN5: 8174.762 | GO5: 8184.691 | GP5: 8192.88 | GQ5: 8199.783 | GR5: 8205.533 | GS5: 8210 | GU5: 8120
A6: Belgium | B6: 300 | D6: 400 | F6: 1400 | H6: 1600 | J6: 2000 | L6: 3434 | M6: 3464 | N6: 3495 | O6: 3526 | P6: 3557 | Q6: 3589 | R6: 3620 | S6: 3652 | T6: 3685 | U6: 3717 | V6: 3750 | W6: 3782 | X6: 3814 | Y6: 3846 | Z6: 3879 | AA6: 3912 | AB6: 3945 | AC6: 3978 | AD6: 4012 | AE6: 4046 | AF6: 4080 | AG6: 4115 | AH6: 4151 | AI6: 4187 | AJ6: 4223 | AK6: 4259 | AL6: 4296 | AM6: 4333 | AN6: 4371 | AO6: 4408 | AP6: 4449 | AQ6: 4477 | AR6: 4506 | AS6: 4534 | AT6: 4563 | AU6: 4592 | AV6: 4621 | AW6: 4651 | AX6: 4680 | AY6: 4710 | AZ6: 4740 | BA6: 4774 | BB6: 4809 | BC6: 4844 | BD6: 4879 | BE6: 4915 | BF6: 4950 | BG6: 4986 | BH6: 5023 | BI6: 5029 | BJ6: 5096 | BK6: 5137 | BL6: 5178 | BM6: 5219 | BN6: 5261 | BO6: 5303 | BP6: 5345 | BQ6: 5394 | BR6: 5442 | BS6: 5492 | BT6: 5541 | BU6: 5606 | BV6: 5673 | BW6: 5740 | BX6: 5807 | BY6: 5876 | BZ6: 5919 | CA6: 5962 | CB6: 6007 | CC6: 6051 | CD6: 6096 | CE6: 6164 | CF6: 6231 | CG6: 6300 | CH6: 6370 | CI6: 6439 | CJ6: 6494 | CK6: 6548 | CL6: 6604 | CM6: 6662 | CN6: 6719 | CO6: 6801 | CP6: 6903 | CQ6: 6997 | CR6: 7086 | CS6: 7175 | CT6: 7258 | CU6: 7338 | CV6: 7411 | CW6: 7478 | CX6: 7498 | CY6: 7517 | CZ6: 7590 | DA6: 7666 | DB6: 7723 | DC6: 7759 | DD6: 7762 | DE6: 7729 | DF6: 7660 | DG6: 7628 | DH6: 7552 | DI6: 7504 | DJ6: 7571 | DK6: 7635 | DL6: 7707 | DM6: 7779 | DN6: 7844 | DO6: 7904 | DP6: 7968 | DQ6: 8032 | DR6: 8076 | DS6: 8126 | DT6: 8186 | DU6: 8231 | DV6: 8262 | DW6: 8288 | DX6: 8315 | DY6: 8346 | DZ6: 8374 | EA6: 8392 | EB6: 8346 | EC6: 8276 | ED6: 8247 | EE6: 8242 | EF6: 8291 | EG6: 8339 | EH6: 8367 | EI6: 8450 | EJ6: 8557 | EK6: 8614 | EL6: 8639.369 | EM6: 8678.386 | EN6: 8730.405 | EO6: 8777.873 | EP6: 8819.38 | EQ6: 8868.475 | ER6: 8923.845 | ES6: 8989.111 | ET6: 9052.707 | EU6: 9103.729 | EV6: 9118.7 | EW6: 9165.8 | EX6: 9218.4 | EY6: 9283.1 | EZ6: 9367 | FA6: 9448.1 | FB6: 9507.8 | FC6: 9556.5 | FD6: 9589.8 | FE6: 9612.7 | FF6: 9637.8 | FG6: 9672.5 | FH6: 9709.1 | FI6: 9738.4 | FJ6: 9767.8 | FK6: 9794.8 | FL6: 9811 | FM6: 9821.8 | FN6: 9829.7 | FO6: 9837.2 | FP6: 9846.8 | FQ6: 9852.4 | FR6: 9856.303 | FS6: 9855.52 | FT6: 9855.3 | FU6: 9858.2 | FV6: 9861.8 | FW6: 9870.2 | FX6: 9884 | FY6: 9937.697 | FZ6: 9969.31 | GA6: 10004.487 | GB6: 10045.622 | GC6: 10085.426 | GD6: 10122.914 | GE6: 10155.459 | GF6: 10178.934 | GG6: 10199.787 | GH6: 10217.03 | GI6: 10235.655 | GJ6: 10263.618 | GK6: 10291.679 | GL6: 10311.97 | GM6: 10330.824 | GN6: 10348.276 | GO6: 10364.388 | GP6: 10379.067 | GQ6: 10392.226 | GR6: 10403.951 | GS6: 10414 | GU6: 10409
A7: Denmark | B7: 180 | D7: 360 | F7: 600 | H7: 650 | J7: 700 | L7: 1155 | M7: 1167 | N7: 1179 | O7: 1196 | P7: 1213 | Q7: 1228 | R7: 1243 | S7: 1255 | T7: 1265 | U7: 1270 | V7: 1273 | W7: 1275 | X7: 1276 | Y7: 1284 | Z7: 1295 | AA7: 1306 | AB7: 1315 | AC7: 1325 | AD7: 1335 | AE7: 1347 | AF7: 1357 | AG7: 1371 | AH7: 1385 | AI7: 1392 | AJ7: 1414 | AK7: 1430 | AL7: 1444 | AM7: 1456 | AN7: 1470 | AO7: 1484 | AP7: 1499 | AQ7: 1517 | AR7: 1536 | AS7: 1552 | AT7: 1569 | AU7: 1590 | AV7: 1612 | AW7: 1634 | AX7: 1653 | AY7: 1674 | AZ7: 1696 | BA7: 1717 | BB7: 1739 | BC7: 1761 | BD7: 1777 | BE7: 1799 | BF7: 1814 | BG7: 1833 | BH7: 1852 | BI7: 1871 | BJ7: 1888 | BK7: 1903 | BL7: 1918 | BM7: 1935 | BN7: 1954 | BO7: 1973 | BP7: 1994 | BQ7: 2019 | BR7: 2043 | BS7: 2064 | BT7: 2081 | BU7: 2101 | BV7: 2120 | BW7: 2137 | BX7: 2160 | BY7: 2186 | BZ7: 2213 | CA7: 2237 | CB7: 2257 | CC7: 2276 | CD7: 2294 | CE7: 2311 | CF7: 2327 | CG7: 2344 | CH7: 2367 | CI7: 2397 | CJ7: 2428 | CK7: 2462 | CL7: 2497 | CM7: 2530 | CN7: 2561 | CO7: 2594 | CP7: 2623 | CQ7: 2653 | CR7: 2681 | CS7: 2710 | CT7: 2741 | CU7: 2775 | CV7: 2809 | CW7: 2845 | CX7: 2882 | CY7: 2917 | CZ7: 2951 | DA7: 2983 | DB7: 3018 | DC7: 3055 | DD7: 3092 | DE7: 3130 | DF7: 3165 | DG7: 3202 | DH7: 3242 | DI7: 3285 | DJ7: 3322 | DK7: 3356 | DL7: 3389 | DM7: 3425 | DN7: 3452 | DO7: 3475 | DP7: 3497 | DQ7: 3518 | DR7: 3542 | DS7: 3569 | DT7: 3603 | DU7: 3633 | DV7: 3666 | DW7: 3695 | DX7: 3722 | DY7: 3749 | DZ7: 3777 | EA7: 3805 | EB7: 3832 | EC7: 3863 | ED7: 3903 | EE7: 3949 | EF7: 3998 | EG7: 4045 | EH7: 4101 | EI7: 4146 | EJ7: 4190 | EK7: 4230 | EL7: 4271 | EM7: 4303.62 | EN7: 4334 | EO7: 4369.28 | EP7: 4406 | EQ7: 4439 | ER7: 4466.471 | ES7: 4487.831 | ET7: 4515.132 | EU7: 4546.636 | EV7: 4581 | EW7: 4609.817 | EX7: 4646.899 | EY7: 4683.579 | EZ7: 4720.171 | FA7: 4758.1 | FB7: 4797.5 | FC7: 4838.8 | FD7: 4867.3 | FE7: 4890.687 | FF7: 4928.757 | FG7: 4963.126 | FH7: 4991.596 | FI7: 5021.861 | FJ7: 5045.297 | FK7: 5059.861 | FL7: 5072.596 | FM7: 5088.419 | FN7: 5104.247 | FO7: 5116.8 | FP7: 5123.027 | FQ7: 5121.572 | FR7: 5117.81 | FS7: 5114.297 | FT7: 5111.619 | FU7: 5113.691 | FV7: 5120.534 | FW7: 5127.024 | FX7: 5129.516 | FY7: 5132.593 | FZ7: 5140.954 | GA7: 5154.352 | GB7: 5171.393 | GC7: 5188.386 | GD7: 5205.603 | GE7: 5232.612 | GF7: 5262.075 | GG7: 5283.663 | GH7: 5302.767 | GI7: 5320.134 | GJ7: 5337.416 | GK7: 5355.826 | GL7: 5374.693 | GM7: 5394.138 | GN7: 5413.392 | GO7: 5432.335 | GP7: 5450.661 | GQ7: 5468.12 | GR7: 5484.723 | GS7: 5501 | GU7: 5730.488
A8: Finland | B8: 20 | D8: 40 | F8: 300 | H8: 400 | J8: 400 | L8: 1169 | M8: 1186 | N8: 1202 | O8: 1219 | P8: 1235 | Q8: 1252 | R8: 1268 | S8: 1310 | T8: 1326 | U8: 1343 | V8: 1364 | W8: 1374 | X8: 1378 | Y8: 1383 | Z8: 1387 | AA8: 1391 | AB8: 1399 | AC8: 1409 | AD8: 1420 | AE8: 1430 | AF8: 1441 | AG8: 1456 | AH8: 1476 | AI8: 1495 | AJ8: 1516 | AK8: 1536 | AL8: 1555 | AM8: 1573 | AN8: 1591 | AO8: 1610 | AP8: 1628 | AQ8: 1642 | AR8: 1652 | AS8: 1663 | AT8: 1673 | AU8: 1683 | AV8: 1692 | AW8: 1703 | AX8: 1715 | AY8: 1726 | AZ8: 1738 | BA8: 1754 | BB8: 1774 | BC8: 1794 | BD8: 1813 | BE8: 1833 | BF8: 1840 | BG8: 1831 | BH8: 1776 | BI8: 1734 | BJ8: 1754 | BK8: 1786 | BL8: 1819 | BM8: 1847 | BN8: 1873 | BO8: 1899 | BP8: 1928 | BQ8: 1957 | BR8: 1983 | BS8: 2014 | BT8: 2047 | BU8: 2072 | BV8: 2098 | BW8: 2130 | BX8: 2164 | BY8: 2195 | BZ8: 2224 | CA8: 2259 | CB8: 2296 | CC8: 2331 | CD8: 2364 | CE8: 2394 | CF8: 2451 | CG8: 2430 | CH8: 2511 | CI8: 2483 | CJ8: 2515 | CK8: 2549 | CL8: 2589 | CM8: 2624 | CN8: 2646 | CO8: 2667 | CP8: 2686 | CQ8: 2706 | CR8: 2735 | CS8: 2762 | CT8: 2788 | CU8: 2821 | CV8: 2861 | CW8: 2899 | CX8: 2929 | CY8: 2962 | CZ8: 2998 | DA8: 3027 | DB8: 3053 | DC8: 3083 | DD8: 3105 | DE8: 3124 | DF8: 3125 | DG8: 3117 | DH8: 3133 | DI8: 3170 | DJ8: 3210 | DK8: 3243 | DL8: 3272 | DM8: 3304 | DN8: 3339 | DO8: 3368 | DP8: 3396 | DQ8: 3424 | DR8: 3449 | DS8: 3476 | DT8: 3503 | DU8: 3526 | DV8: 3549 | DW8: 3576 | DX8: 3601 | DY8: 3626 | DZ8: 3656 | EA8: 3686 | EB8: 3698 | EC8: 3702 | ED8: 3708 | EE8: 3721 | EF8: 3735 | EG8: 3758 | EH8: 3806 | EI8: 3859 | EJ8: 3912 | EK8: 3963 | EL8: 4008.9 | EM8: 4047.3 | EN8: 4090.5 | EO8: 4139.4 | EP8: 4186.9 | EQ8: 4234.9 | ER8: 4281.7 | ES8: 4324 | ET8: 4359.8 | EU8: 4394.7 | EV8: 4429.6 | EW8: 4461.004 | EX8: 4491.443 | EY8: 4523.309 | EZ8: 4548.544 | FA8: 4563.732 | FB8: 4580.869 | FC8: 4605.744 | FD8: 4626.469 | FE8: 4623.785 | FF8: 4606.307 | FG8: 4612.124 | FH8: 4639.657 | FI8: 4666.081 | FJ8: 4690.574 | FK8: 4711.439 | FL8: 4725.664 | FM8: 4738.902 | FN8: 4752.528 | FO8: 4764.69 | FP8: 4779.535 | FQ8: 4799.964 | FR8: 4826.933 | FS8: 4855.787 | FT8: 4881.788 | FU8: 4901.783 | FV8: 4917.386 | FW8: 4931.729 | FX8: 4946.633 | FY8: 4962.441 | FZ8: 4986.431 | GA8: 5013.786 | GB8: 5041.039 | GC8: 5064.846 | GD8: 5086.044 | GE8: 5104.654 | GF8: 5120.31 | GG8: 5134.406 | GH8: 5146.983 | GI8: 5158.097 | GJ8: 5168.595 | GK8: 5180.309 | GL8: 5193.039 | GM8: 5204.405 | GN8: 5214.512 | GO8: 5223.442 | GP8: 5231.372 | GQ8: 5238.46 | GR8: 5244.749 | GS8: 5250 | GU8: 5201.445
A9: France | B9: 5000 | D9: 6500 | F9: 15000 | H9: 18500 | J9: 21471 | L9: 31250 | M9: 31460 | N9: 31685 | O9: 31905 | P9: 32127 | Q9: 32350 | R9: 32538 | S9: 32727 | T9: 32917 | U9: 33108 | V9: 33300 | W9: 33439 | X9: 33598 | Y9: 33718 | Z9: 33859 | AA9: 34000 | AB9: 34178 | AC9: 34357 | AD9: 34537 | AE9: 34718 | AF9: 34900 | AG9: 35059 | AH9: 35218 | AI9: 35378 | AJ9: 35539 | AK9: 35700 | AL9: 35829 | AM9: 35959 | AN9: 36089 | AO9: 36219 | AP9: 36350 | AQ9: 36479 | AR9: 36609 | AS9: 36739 | AT9: 36869 | AU9: 37000 | AV9: 37060 | AW9: 37120 | AX9: 37180 | AY9: 37240 | AZ9: 37300 | BA9: 37390 | BB9: 37520 | BC9: 37710 | BD9: 37860 | BE9: 38020 | BF9: 38080 | BG9: 38230 | BH9: 38330 | BI9: 38890 | BJ9: 38440 | BK9: 37731 | BL9: 37679 | BM9: 37887 | BN9: 38044 | BO9: 38221 | BP9: 38398 | BQ9: 38576 | BR9: 38763 | BS9: 38909 | BT9: 39045 | BU9: 39191 | BV9: 39337 | BW9: 39472 | BX9: 39629 | BY9: 39733 | BZ9: 39858 | CA9: 39889 | CB9: 39920 | CC9: 40004 | CD9: 40014 | CE9: 39983 | CF9: 39993 | CG9: 40014 | CH9: 40056 | CI9: 40098 | CJ9: 40192 | CK9: 40348 | CL9: 40473 | CM9: 40546 | CN9: 40598 | CO9: 40640 | CP9: 40713 | CQ9: 40786 | CR9: 40859 | CS9: 40890 | CT9: 40942 | CU9: 40942 | CV9: 41046 | CW9: 41109 | CX9: 41224 | CY9: 41307 | CZ9: 41359 | DA9: 41463 | DB9: 41476 | DC9: 40481 | DD9: 39884 | DE9: 39288 | DF9: 38542 | DG9: 38700 | DH9: 39000 | DI9: 39240 | DJ9: 39420 | DK9: 39880 | DL9: 40310 | DM9: 40610 | DN9: 40870 | DO9: 40940 | DP9: 41050 | DQ9: 41230 | DR9: 41610 | DS9: 41860 | DT9: 41860 | DU9: 41890 | DV9: 41950 | DW9: 41940 | DX9: 41910 | DY9: 41930 | DZ9: 41960 | EA9: 41900 | EB9: 41000 | EC9: 39600 | ED9: 39400 | EE9: 39000 | EF9: 38900 | EG9: 39700 | EH9: 40290 | EI9: 40680 | EJ9: 41110 | EK9: 41480 | EL9: 42518 | EM9: 42862 | EN9: 43184 | EO9: 43495 | EP9: 43822 | EQ9: 44218 | ER9: 44657 | ES9: 45152 | ET9: 45654 | EU9: 46129 | EV9: 46584 | EW9: 47128 | EX9: 48089 | EY9: 48799 | EZ9: 49357 | FA9: 49802 | FB9: 50254 | FC9: 50650 | FD9: 51034 | FE9: 51470 | FF9: 51918 | FG9: 52432 | FH9: 52894 | FI9: 53333 | FJ9: 53690 | FK9: 53955 | FL9: 54159 | FM9: 54378 | FN9: 54602 | FO9: 54836 | FP9: 55110 | FQ9: 55399 | FR9: 55697 | FS9: 55929 | FT9: 56246 | FU9: 56490 | FV9: 56725 | FW9: 56989 | FX9: 57255 | FY9: 57821 | FZ9: 58168 | GA9: 58514 | GB9: 58859 | GC9: 59169 | GD9: 59445 | GE9: 59712 | GF9: 59981 | GG9: 60254 | GH9: 60535 | GI9: 60824 | GJ9: 61137 | GK9: 61479 | GL9: 61829 | GM9: 62171 | GN9: 62534 | GO9: 62912 | GP9: 63293 | GQ9: 63682 | GR9: 64058 | GS9: 64420 | GU9: 69249
A10: Germany | B10: 3000 | D10: 3500 | F10: 12000 | H10: 16000 | J10: 15000 | L10: 24905 | M10: 25260 | N10: 25620 | O10: 25969 | P10: 26307 | Q10: 26650 | R10: 26964 | S10: 27249 | T10: 27540 | U10: 27807 | V10: 28045 | W10: 28283 | X10: 28535 | Y10: 28801 | Z10: 29071 | AA10: 29390 | AB10: 29702 | AC10: 30013 | AD10: 30365 | AE10: 30746 | AF10: 31126 | AG10: 31475 | AH10: 31787 | AI10: 32086 | AJ10: 32394 | AK10: 32743 | AL10: 33059 | AM10: 33231 | AN10: 33289 | AO10: 33452 | AP10: 33746 | AQ10: 34055 | AR10: 34290 | AS10: 34422 | AT10: 34531 | AU10: 34586 | AV10: 34715 | AW10: 34979 | AX10: 35278 | AY10: 35633 | AZ10: 36049 | BA10: 36435 | BB10: 36788 | BC10: 37184 | BD10: 37602 | BE10: 37955 | BF10: 38193 | BG10: 38440 | BH10: 38637 | BI10: 38914 | BJ10: 39231 | BK10: 39456 | BL10: 39691 | BM10: 40017 | BN10: 40450 | BO10: 40897 | BP10: 41491 | BQ10: 42034 | BR10: 42546 | BS10: 43052 | BT10: 43500 | BU10: 43827 | BV10: 44112 | BW10: 44404 | BX10: 44777 | BY10: 45084 | BZ10: 45505 | CA10: 46001 | CB10: 46538 | CC10: 47083 | CD10: 47607 | CE10: 48129 | CF10: 48633 | CG10: 49123 | CH10: 49703 | CI10: 50363 | CJ10: 51111 | CK10: 51921 | CL10: 52753 | CM10: 53592 | CN10: 54388 | CO10: 55214 | CP10: 56104 | CQ10: 56963 | CR10: 57806 | CS10: 58644 | CT10: 59481 | CU10: 60341 | CV10: 61187 | CW10: 62038 | CX10: 62884 | CY10: 63852 | CZ10: 64457 | DA10: 65058 | DB10: 66096 | DC10: 66230 | DD10: 66076 | DE10: 65763 | DF10: 65237 | DG10: 60547 | DH10: 60894 | DI10: 61573 | DJ10: 61900 | DK10: 62307 | DL10: 62697 | DM10: 63166 | DN10: 63630 | DO10: 64023 | DP10: 64393 | DQ10: 64739 | DR10: 65084 | DS10: 65423 | DT10: 65716 | DU10: 66027 | DV10: 66409 | DW10: 66871 | DX10: 67349 | DY10: 67831 | DZ10: 68558 | EA10: 69286 | EB10: 69835 | EC10: 70244 | ED10: 70834 | EE10: 70411 | EF10: 69865 | EG10: 67000 | EH10: 64678 | EI10: 66094 | EJ10: 67295 | EK10: 67991 | EL10: 68374.572 | EM10: 68875.884 | EN10: 69145.952 | EO10: 69550.236 | EP10: 69868.115 | EQ10: 70195.612 | ER10: 70602.518 | ES10: 71019.069 | ET10: 71488.167 | EU10: 72013.853 | EV10: 72480.869 | EW10: 73123.148 | EX10: 73739.117 | EY10: 74340.26 | EZ10: 74954.262 | FA10: 75638.851 | FB10: 76206.173 | FC10: 76368.453 | FD10: 76584.401 | FE10: 77143.888 | FF10: 77783.164 | FG10: 78354.709 | FH10: 78717.088 | FI10: 78950.22 | FJ10: 78966.137 | FK10: 78682.325 | FL10: 78298.957 | FM10: 78160.773 | FN10: 78066.074 | FO10: 78081.292 | FP10: 78297.904 | FQ10: 78401.83 | FR10: 78335.266 | FS10: 78121.655 | FT10: 77855.422 | FU10: 77684.907 | FV10: 77713.485 | FW10: 77718.298 | FX10: 78030.572 | FY10: 78644.914 | FZ10: 79380.394 | GA10: 79984.244 | GB10: 80597.764 | GC10: 81132.272 | GD10: 81414.164 | GE10: 81653.702 | GF10: 81890.667 | GG10: 82011.073 | GH10: 82023.672 | GI10: 82074.778 | GJ10: 82187.909 | GK10: 82280.551 | GL10: 82350.671 | GM10: 82398.326 | GN10: 82424.609 | GO10: 82431.39 | GP10: 82422.299 | GQ10: 82400.996 | GR10: 82369.548 | GS10: 82330 | GU10: 79572.5
A11: Italy | B11: 8000 | D11: 5000 | F11: 10500 | H11: 13100 | J11: 13300 | L11: 20176 | M11: 20306 | N11: 20437 | O11: 20568 | P11: 20701 | Q11: 20834 | R11: 20968 | S11: 21103 | T11: 21239 | U11: 21376 | V11: 21513 | W11: 21652 | X11: 21791 | Y11: 21932 | Z11: 22073 | AA11: 22215 | AB11: 22358 | AC11: 22502 | AD11: 22647 | AE11: 22793 | AF11: 22939 | AG11: 23087 | AH11: 23236 | AI11: 23385 | AJ11: 23536 | AK11: 23687 | AL11: 23840 | AM11: 23993 | AN11: 24148 | AO11: 24303 | AP11: 24460 | AQ11: 24617 | AR11: 24776 | AS11: 24935 | AT11: 25096 | AU11: 25257 | AV11: 25420 | AW11: 25584 | AX11: 25748 | AY11: 25914 | AZ11: 26081 | BA11: 26249 | BB11: 26418 | BC11: 26610 | BD11: 26814 | BE11: 27023 | BF11: 27256 | BG11: 27411 | BH11: 27501 | BI11: 27681 | BJ11: 27888 | BK11: 28063 | BL11: 28233 | BM11: 28387 | BN11: 28505 | BO11: 28630 | BP11: 28837 | BQ11: 29067 | BR11: 29252 | BS11: 29425 | BT11: 29534 | BU11: 29672 | BV11: 29898 | BW11: 30113 | BX11: 30366 | BY11: 30644 | BZ11: 30857 | CA11: 31049 | CB11: 31243 | CC11: 31468 | CD11: 31702 | CE11: 31892 | CF11: 32091 | CG11: 32303 | CH11: 32513 | CI11: 32689 | CJ11: 32863 | CK11: 33078 | CL11: 33285 | CM11: 33487 | CN11: 33672 | CO11: 33877 | CP11: 34166 | CQ11: 34436 | CR11: 34715 | CS11: 35011 | CT11: 35297 | CU11: 35594 | CV11: 35899 | CW11: 36213 | CX11: 36572 | CY11: 36917 | CZ11: 37150 | DA11: 37248 | DB11: 37526 | DC11: 37982 | DD11: 38142 | DE11: 37981 | DF11: 37520 | DG11: 37250 | DH11: 37398 | DI11: 37691 | DJ11: 38086 | DK11: 38460 | DL11: 38810 | DM11: 39165 | DN11: 39502 | DO11: 39848 | DP11: 40186 | DQ11: 40469 | DR11: 40791 | DS11: 41132 | DT11: 41431 | DU11: 41753 | DV11: 42093 | DW11: 42429 | DX11: 42750 | DY11: 43068 | DZ11: 43419 | EA11: 43865 | EB11: 44341 | EC11: 44734 | ED11: 45004 | EE11: 45177 | EF11: 45290 | EG11: 45442 | EH11: 45725 | EI11: 46040 | EJ11: 46381 | EK11: 46733 | EL11: 47105 | EM11: 47418 | EN11: 47666 | EO11: 47957 | EP11: 48299 | EQ11: 48633 | ER11: 48921 | ES11: 49182 | ET11: 49476 | EU11: 49832 | EV11: 50197.6 | EW11: 50523.2 | EX11: 50843.2 | EY11: 51198.3 | EZ11: 51600.2 | FA11: 51987.1 | FB11: 52331.6 | FC11: 52667.1 | FD11: 52986.6 | FE11: 53317 | FF11: 53661.1 | FG11: 54005.5 | FH11: 54365.564 | FI11: 54796.843 | FJ11: 55226.259 | FK11: 55571.894 | FL11: 55838.536 | FM11: 56059.245 | FN11: 56240.143 | FO11: 56367.71 | FP11: 56451.247 | FQ11: 56502.489 | FR11: 56535.636 | FS11: 56630.129 | FT11: 56696.963 | FU11: 56731.215 | FV11: 56733.833 | FW11: 56729.703 | FX11: 56734.027 | FY11: 56737.529 | FZ11: 56742.886 | GA11: 56747.462 | GB11: 56840.847 | GC11: 57026.746 | GD11: 57179.46 | GE11: 57274.531 | GF11: 57367.032 | GG11: 57479.469 | GH11: 57550.318 | GI11: 57603.634 | GJ11: 57719.337 | GK11: 57844.924 | GL11: 57926.999 | GM11: 57998.353 | GN11: 58057.477 | GO11: 58103.033 | GP11: 58133.509 | GQ11: 58147.733 | GR11: 58145.321 | GS11: 58126 | GU11: 55359.83
A12: Netherlands | B12: 200 | D12: 300 | F12: 950 | H12: 1500 | J12: 1900 | L12: 2333 | M12: 2365 | N12: 2400 | O12: 2435 | P12: 2474 | Q12: 2514 | R12: 2543 | S12: 2561 | T12: 2585 | U12: 2610 | V12: 2633 | W12: 2653 | X12: 2665 | Y12: 2683 | Z12: 2707 | AA12: 2732 | AB12: 2762 | AC12: 2791 | AD12: 2821 | AE12: 2853 | AF12: 2886 | AG12: 2921 | AH12: 2952 | AI12: 2981 | AJ12: 3014 | AK12: 3047 | AL12: 3069 | AM12: 3071 | AN12: 3069 | AO12: 3076 | AP12: 3098 | AQ12: 3133 | AR12: 3167 | AS12: 3194 | AT12: 3218 | AU12: 3235 | AV12: 3253 | AW12: 3277 | AX12: 3294 | AY12: 3304 | AZ12: 3318 | BA12: 3340 | BB12: 3366 | BC12: 3397 | BD12: 3431 | BE12: 3460 | BF12: 3484 | BG12: 3510 | BH12: 3543 | BI12: 3575 | BJ12: 3610 | BK12: 3636 | BL12: 3662 | BM12: 3670 | BN12: 3745 | BO12: 3788 | BP12: 3832 | BQ12: 3883 | BR12: 3834 | BS12: 3986 | BT12: 4043 | BU12: 4079 | BV12: 4130 | BW12: 4180 | BX12: 4226 | BY12: 4276 | BZ12: 4326 | CA12: 4378 | CB12: 4432 | CC12: 4485 | CD12: 4535 | CE12: 4585 | CF12: 4632 | CG12: 4684 | CH12: 4743 | CI12: 4803 | CJ12: 4866 | CK12: 4935 | CL12: 5003 | CM12: 5070 | CN12: 5142 | CO12: 5221 | CP12: 5305 | CQ12: 5389 | CR12: 5470 | CS12: 5551 | CT12: 5632 | CU12: 5710 | CV12: 5786 | CW12: 5862 | CX12: 5922 | CY12: 5984 | CZ12: 6068 | DA12: 6164 | DB12: 6277 | DC12: 6395 | DD12: 6516 | DE12: 6654 | DF12: 6752 | DG12: 6805 | DH12: 6848 | DI12: 6921 | DJ12: 7032 | DK12: 7150 | DL12: 7264 | DM12: 7366 | DN12: 7471 | DO12: 7576 | DP12: 7679 | DQ12: 7782 | DR12: 7884 | DS12: 7999 | DT12: 8123 | DU12: 8237 | DV12: 8341 | DW12: 8434 | DX12: 8516 | DY12: 8599 | DZ12: 8685 | EA12: 8782 | EB12: 8879 | EC12: 8966 | ED12: 9042 | EE12: 9103 | EF12: 9175 | EG12: 9262 | EH12: 9424 | EI12: 9630 | EJ12: 9800 | EK12: 9956 | EL12: 10113.527 | EM12: 10264.311 | EN12: 10381.988 | EO12: 10493.184 | EP12: 10615.38 | EQ12: 10750.842 | ER12: 10889.351 | ES12: 11026.383 | ET12: 11186.875 | EU12: 11347.639 | EV12: 11486 | EW12: 11638.713 | EX12: 11805.689 | EY12: 11965.966 | EZ12: 12127.12 | FA12: 12292 | FB12: 12454.8 | FC12: 12596.822 | FD12: 12724.68 | FE12: 12873 | FF12: 13032.335 | FG12: 13193.776 | FH12: 13329.874 | FI12: 13438.404 | FJ12: 13540.584 | FK12: 13653.438 | FL12: 13769.913 | FM12: 13852.989 | FN12: 13936.754 | FO12: 14030.002 | FP12: 14143.901 | FQ12: 14246.049 | FR12: 14310.401 | FS12: 14362.381 | FT12: 14420.022 | FU12: 14491.38 | FV12: 14571.875 | FW12: 14665.278 | FX12: 14761.339 | FY12: 14848.907 | FZ12: 14951.51 | GA12: 15066.22 | GB12: 15174.244 | GC12: 15274.942 | GD12: 15382.198 | GE12: 15459.054 | GF12: 15527.809 | GG12: 15604.464 | GH12: 15699.259 | GI12: 15801.947 | GJ12: 15907.853 | GK12: 16017.445 | GL12: 16122.83 | GM12: 16223.248 | GN12: 16318.199 | GO12: 16407.491 | GP12: 16491.461 | GQ12: 16570.613 | GR12: 16645.313 | GS12: 16716 | GU12: 17672.63
A13: Norway | B13: 100 | D13: 200 | F13: 300 | H13: 400 | J13: 500 | L13: 970 | M13: 984 | N13: 998 | O13: 1013 | P13: 1028 | Q13: 1044 | R13: 1062 | S13: 1079 | T13: 1093 | U13: 1108 | V13: 1124 | W13: 1137 | X13: 1150 | Y13: 1163 | Z13: 1174 | AA13: 1188 | AB13: 1202 | AC13: 1214 | AD13: 1224 | AE13: 1233 | AF13: 1241 | AG13: 1254 | AH13: 1271 | AI13: 1286 | AJ13: 1302 | AK13: 1319 | AL13: 1337 | AM13: 1351 | AN13: 1363 | AO13: 1377 | AP13: 1392 | AQ13: 1409 | AR13: 1425 | AS13: 1440 | AT13: 1457 | AU13: 1479 | AV13: 1501 | AW13: 1521 | AX13: 1543 | AY13: 1570 | AZ13: 1596 | BA13: 1614 | BB13: 1627 | BC13: 1646 | BD13: 1668 | BE13: 1690 | BF13: 1707 | BG13: 1716 | BH13: 1724 | BI13: 1729 | BJ13: 1735 | BK13: 1745 | BL13: 1755 | BM13: 1767 | BN13: 1783 | BO13: 1803 | BP13: 1829 | BQ13: 1852 | BR13: 1877 | BS13: 1902 | BT13: 1919 | BU13: 1923 | BV13: 1920 | BW13: 1919 | BX13: 1929 | BY13: 1944 | BZ13: 1958 | CA13: 1970 | CB13: 1977 | CC13: 1984 | CD13: 1997 | CE13: 2013 | CF13: 2026 | CG13: 2038 | CH13: 2057 | CI13: 2083 | CJ13: 2112 | CK13: 2142 | CL13: 2174 | CM13: 2204 | CN13: 2230 | CO13: 2255 | CP13: 2275 | CQ13: 2288 | CR13: 2297 | CS13: 2309 | CT13: 2319 | CU13: 2329 | CV13: 2346 | CW13: 2367 | CX13: 2384 | CY13: 2401 | CZ13: 2423 | DA13: 2447 | DB13: 2472 | DC13: 2498 | DD13: 2522 | DE13: 2551 | DF13: 2578 | DG13: 2603 | DH13: 2635 | DI13: 2668 | DJ13: 2695 | DK13: 2713 | DL13: 2729 | DM13: 2747 | DN13: 2763 | DO13: 2775 | DP13: 2785 | DQ13: 2795 | DR13: 2807 | DS13: 2824 | DT13: 2842 | DU13: 2858 | DV13: 2874 | DW13: 2889 | DX13: 2904 | DY13: 2919 | DZ13: 2936 | EA13: 2954 | EB13: 2973 | EC13: 2990 | ED13: 3009 | EE13: 3032 | EF13: 3060 | EG13: 3091 | EH13: 3127 | EI13: 3165 | EJ13: 3201 | EK13: 3234 | EL13: 3265.126 | EM13: 3295.871 | EN13: 3327.728 | EO13: 3360.888 | EP13: 3394.246 | EQ13: 3427.409 | ER13: 3459.992 | ES13: 3491.938 | ET13: 3522.993 | EU13: 3552.851 | EV13: 3581.239 | EW13: 3609.8 | EX13: 3638.919 | EY13: 3666.54 | EZ13: 3694.339 | FA13: 3723.153 | FB13: 3753.628 | FC13: 3786.019 | FD13: 3818.983 | FE13: 3850.977 | FF13: 3877.386 | FG13: 3903.039 | FH13: 3933.004 | FI13: 3960.613 | FJ13: 3985.258 | FK13: 4007.313 | FL13: 4026.152 | FM13: 4043.205 | FN13: 4058.671 | FO13: 4072.517 | FP13: 4085.62 | FQ13: 4099.702 | FR13: 4114.787 | FS13: 4128.432 | FT13: 4140.095 | FU13: 4152.419 | FV13: 4166.596 | FW13: 4186.147 | FX13: 4208.729 | FY13: 4226.142 | FZ13: 4242.006 | GA13: 4261.733 | GB13: 4286.357 | GC13: 4311.964 | GD13: 4336.638 | GE13: 4359.101 | GF13: 4381.277 | GG13: 4405.672 | GH13: 4432.718 | GI13: 4463.377 | GJ13: 4492.4 | GK13: 4515.195 | GL13: 4535.591 | GM13: 4555.4 | GN13: 4574.56 | GO13: 4593.041 | GP13: 4610.82 | GQ13: 4627.926 | GR13: 4644.457 | GS13: 4661 | GU13: 4977.705
A14: Sweden | B14: 200 | D14: 400 | F14: 550 | H14: 760 | J14: 1260 | L14: 2573 | M14: 2598 | N14: 2629 | O14: 2668 | P14: 2708 | Q14: 2749 | R14: 2788 | S14: 2816 | T14: 2837 | U14: 2855 | V14: 2876 | W14: 2895 | X14: 2912 | Y14: 2941 | Z14: 2971 | AA14: 3004 | AB14: 3042 | AC14: 3068 | AD14: 3083 | AE14: 3098 | AF14: 3123 | AG14: 3156 | AH14: 3190 | AI14: 3221 | AJ14: 3256 | AK14: 3296 | AL14: 3330 | AM14: 3352 | AN14: 3380 | AO14: 3419 | AP14: 3462 | AQ14: 3500 | AR14: 3529 | AS14: 3552 | AT14: 3586 | AU14: 3625 | AV14: 3657 | AW14: 3680 | AX14: 3711 | AY14: 3761 | AZ14: 3824 | BA14: 3888 | BB14: 3942 | BC14: 3994 | BD14: 4046 | BE14: 4092 | BF14: 4137 | BG14: 4178 | BH14: 4154 | BI14: 4166 | BJ14: 4164 | BK14: 4186 | BL14: 4227 | BM14: 4274 | BN14: 4320 | BO14: 4362 | BP14: 4406 | BQ14: 4457 | BR14: 4508 | BS14: 4555 | BT14: 4572 | BU14: 4570 | BV14: 4576 | BW14: 4591 | BX14: 4624 | BY14: 4664 | BZ14: 4700 | CA14: 4726 | CB14: 4741 | CC14: 4761 | CD14: 4780 | CE14: 4794 | CF14: 4805 | CG14: 4816 | CH14: 4849 | CI14: 4896 | CJ14: 4941 | CK14: 4986 | CL14: 5036 | CM14: 5080 | CN14: 5117 | CO14: 5156 | CP14: 5187 | CQ14: 5210 | CR14: 5241 | CS14: 5278 | CT14: 5315 | CU14: 5357 | CV14: 5404 | CW14: 5453 | CX14: 5499 | CY14: 5542 | CZ14: 5583 | DA14: 5621 | DB14: 5659 | DC14: 5696 | DD14: 5735 | DE14: 5779 | DF14: 5807 | DG14: 5830 | DH14: 5876 | DI14: 5929 | DJ14: 5971 | DK14: 5997 | DL14: 6021 | DM14: 6045 | DN14: 6064 | DO14: 6081 | DP14: 6097 | DQ14: 6113 | DR14: 6131 | DS14: 6152 | DT14: 6176 | DU14: 6201 | DV14: 6222 | DW14: 6242 | DX14: 6259 | DY14: 6276 | DZ14: 6297 | EA14: 6326 | EB14: 6356 | EC14: 6389 | ED14: 6432 | EE14: 6490 | EF14: 6560 | EG14: 6635 | EH14: 6719 | EI14: 6803 | EJ14: 6883 | EK14: 6955 | EL14: 7014 | EM14: 7070 | EN14: 7125 | EO14: 7171 | EP14: 7213 | EQ14: 7262 | ER14: 7315 | ES14: 7364 | ET14: 7409 | EU14: 7446 | EV14: 7480 | EW14: 7520 | EX14: 7562 | EY14: 7604 | EZ14: 7661 | FA14: 7734 | FB14: 7808 | FC14: 7868 | FD14: 7912 | FE14: 7968 | FF14: 8043 | FG14: 8098 | FH14: 8122 | FI14: 8137 | FJ14: 8161 | FK14: 8193 | FL14: 8222 | FM14: 8252 | FN14: 8276 | FO14: 8294 | FP14: 8310 | FQ14: 8320 | FR14: 8325 | FS14: 8329 | FT14: 8337 | FU14: 8350 | FV14: 8370 | FW14: 8398 | FX14: 8436 | FY14: 8493 | FZ14: 8559 | GA14: 8617 | GB14: 8668 | GC14: 8719 | GD14: 8781 | GE14: 8827 | GF14: 8841 | GG14: 8846 | GH14: 8851 | GI14: 8858 | GJ14: 8872 | GK14: 8940 | GL14: 8954 | GM14: 8970 | GN14: 8986 | GO14: 9002 | GP14: 9017 | GQ14: 9031 | GR14: 9045 | GS14: 9060 | GU14: 9324.384
A15: Switzerland | B15: 300 | D15: 300 | F15: 650 | H15: 1000 | J15: 1200 | L15: 1986 | M15: 1998 | N15: 2008 | O15: 2020 | P15: 2031 | Q15: 2042 | R15: 2054 | S15: 2065 | T15: 2077 | U15: 2088 | V15: 2100 | W15: 2112 | X15: 2123 | Y15: 2135 | Z15: 2147 | AA15: 2159 | AB15: 2171 | AC15: 2183 | AD15: 2195 | AE15: 2208 | AF15: 2220 | AG15: 2235 | AH15: 2251 | AI15: 2266 | AJ15: 2282 | AK15: 2298 | AL15: 2314 | AM15: 2330 | AN15: 2346 | AO15: 2363 | AP15: 2379 | AQ15: 2399 | AR15: 2406 | AS15: 2412 | AT15: 2427 | AU15: 2442 | AV15: 2457 | AW15: 2471 | AX15: 2484 | AY15: 2497 | AZ15: 2510 | BA15: 2524 | BB15: 2538 | BC15: 2552 | BD15: 2566 | BE15: 2579 | BF15: 2593 | BG15: 2607 | BH15: 2623 | BI15: 2639 | BJ15: 2655 | BK15: 2680 | BL15: 2697 | BM15: 2715 | BN15: 2733 | BO15: 2750 | BP15: 2768 | BQ15: 2786 | BR15: 2803 | BS15: 2821 | BT15: 2839 | BU15: 2853 | BV15: 2863 | BW15: 2874 | BX15: 2885 | BY15: 2896 | BZ15: 2907 | CA15: 2918 | CB15: 2929 | CC15: 2940 | CD15: 2951 | CE15: 2965 | CF15: 3002 | CG15: 3040 | CH15: 3077 | CI15: 3114 | CJ15: 3151 | CK15: 3188 | CL15: 3226 | CM15: 3263 | CN15: 3300 | CO15: 3341 | CP15: 3384 | CQ15: 3428 | CR15: 3472 | CS15: 3461 | CT15: 3560 | CU15: 3604 | CV15: 3647 | CW15: 3691 | CX15: 3735 | CY15: 3776 | CZ15: 3819 | DA15: 3864 | DB15: 3897 | DC15: 3883 | DD15: 3883 | DE15: 3888 | DF15: 3880 | DG15: 3869 | DH15: 3877 | DI15: 3876 | DJ15: 3874 | DK15: 3883 | DL15: 3896 | DM15: 3910 | DN15: 3932 | DO15: 3956 | DP15: 3988 | DQ15: 4022 | DR15: 4051 | DS15: 4080 | DT15: 4102 | DU15: 4122 | DV15: 4140 | DW15: 4155 | DX15: 4168 | DY15: 4180 | DZ15: 4192 | EA15: 4206 | EB15: 4226 | EC15: 4254 | ED15: 4286 | EE15: 4323 | EF15: 4364 | EG15: 4412 | EH15: 4467 | EI15: 4524 | EJ15: 4582 | EK15: 4640 | EL15: 4694 | EM15: 4749 | EN15: 4815 | EO15: 4878 | EP15: 4929 | EQ15: 4980 | ER15: 5045 | ES15: 5126 | ET15: 5199 | EU15: 5259 | EV15: 5362 | EW15: 5512 | EX15: 5666 | EY15: 5789 | EZ15: 5887 | FA15: 5943 | FB15: 5996 | FC15: 6063 | FD15: 6132 | FE15: 6212 | FF15: 6267 | FG15: 6343.293 | FH15: 6401.4 | FI15: 6441.1 | FJ15: 6460 | FK15: 6403.5 | FL15: 6333.313 | FM15: 6316.424 | FN15: 6332.568 | FO15: 6350.84 | FP15: 6385.229 | FQ15: 6425.45 | FR15: 6468.126 | FS15: 6501.073 | FT15: 6529.684 | FU15: 6563.77 | FV15: 6603.192 | FW15: 6649.942 | FX15: 6704.112 | FY15: 6763.653 | FZ15: 6836.626 | GA15: 6920.562 | GB15: 6995.447 | GC15: 7058.211 | GD15: 7114.53 | GE15: 7157.106 | GF15: 7181.024 | GG15: 7193.761 | GH15: 7207.995 | GI15: 7232.809 | GJ15: 7266.92 | GK15: 7311.237 | GL15: 7361.757 | GM15: 7408.319 | GN15: 7450.867 | GO15: 7489.37 | GP15: 7523.934 | GQ15: 7554.661 | GR15: 7581.52 | GS15: 7604 | GU15: 7756.04
A16: United Kingdom | B16: 800 | D16: 2000 | F16: 3942 | H16: 6170 | J16: 8565 | L16: 21239 | M16: 21551 | N16: 21832 | O16: 22117 | P16: 22407 | Q16: 22698 | R16: 22996 | S16: 23275 | T16: 23560 | U16: 23847 | V16: 24139 | W16: 24433 | X16: 24684 | Y16: 24937 | Z16: 25194 | AA16: 25452 | AB16: 25715 | AC16: 25968 | AD16: 26223 | AE16: 26483 | AF16: 26745 | AG16: 27004 | AH16: 27277 | AI16: 27511 | AJ16: 27785 | AK16: 28040 | AL16: 28272 | AM16: 28118 | AN16: 27683 | AO16: 27429 | AP16: 27181 | AQ16: 26945 | AR16: 27076 | AS16: 27248 | AT16: 27446 | AU16: 27697 | AV16: 27978 | AW16: 28186 | AX16: 28422 | AY16: 28660 | AZ16: 28888 | BA16: 29128 | BB16: 29401 | BC16: 29630 | BD16: 29842 | BE16: 30089 | BF16: 30315 | BG16: 30572 | BH16: 30845 | BI16: 31127 | BJ16: 31400 | BK16: 31685 | BL16: 31874 | BM16: 32177 | BN16: 32501 | BO16: 32839 | BP16: 33200 | BQ16: 33576 | BR16: 33932 | BS16: 34304 | BT16: 34623 | BU16: 34935 | BV16: 35206 | BW16: 35450 | BX16: 35724 | BY16: 36015 | BZ16: 36313 | CA16: 36598 | CB16: 36881 | CC16: 37178 | CD16: 37485 | CE16: 37802 | CF16: 38134 | CG16: 38490 | CH16: 38859 | CI16: 39221 | CJ16: 39599 | CK16: 39987 | CL16: 40381 | CM16: 40773 | CN16: 41155 | CO16: 41538 | CP16: 41893 | CQ16: 42246 | CR16: 42611 | CS16: 42981 | CT16: 43361 | CU16: 43737 | CV16: 44124 | CW16: 44520 | CX16: 44916 | CY16: 45268 | CZ16: 45426 | DA16: 45649 | DB16: 46049 | DC16: 46340 | DD16: 46514 | DE16: 46614 | DF16: 46575 | DG16: 46534 | DH16: 46821 | DI16: 44072 | DJ16: 44372 | DK16: 44596 | DL16: 44915 | DM16: 45059 | DN16: 45232 | DO16: 45389 | DP16: 45578 | DQ16: 45672 | DR16: 45866 | DS16: 46074 | DT16: 46335 | DU16: 46520 | DV16: 46666 | DW16: 46868 | DX16: 47081 | DY16: 47289 | DZ16: 47494 | EA16: 47991 | EB16: 48226 | EC16: 48216 | ED16: 48400 | EE16: 48789 | EF16: 49016 | EG16: 49182 | EH16: 49217 | EI16: 49519 | EJ16: 50014 | EK16: 50312 | EL16: 50127 | EM16: 50290 | EN16: 50430 | EO16: 50593 | EP16: 50765 | EQ16: 50946 | ER16: 51184 | ES16: 51430 | ET16: 51652 | EU16: 51956 | EV16: 52372 | EW16: 52807 | EX16: 53292 | EY16: 53625 | EZ16: 53991 | FA16: 54350 | FB16: 54643 | FC16: 54959 | FD16: 55214 | FE16: 55461 | FF16: 55632 | FG16: 55907 | FH16: 56079 | FI16: 56210 | FJ16: 56224 | FK16: 56215 | FL16: 56206 | FM16: 56179 | FN16: 56167 | FO16: 56228 | FP16: 56314 | FQ16: 56382.597 | FR16: 56339.704 | FS16: 56382.623 | FT16: 56462.228 | FU16: 56620.24 | FV16: 56796.26 | FW16: 56981.62 | FX16: 57159.603 | FY16: 57324.472 | FZ16: 57493.307 | GA16: 57665.646 | GB16: 57866.349 | GC16: 58026.92 | GD16: 58212.518 | GE16: 58426.014 | GF16: 58618.663 | GG16: 58808.266 | GH16: 59035.652 | GI16: 59293.32 | GJ16: 59522.468 | GK16: 59723.243 | GL16: 59912.431 | GM16: 60094.648 | GN16: 60270.708 | GO16: 60441.457 | GP16: 60609.153 | GQ16: 60776.238 | GR16: 60943.912 | GS16: 61113 | GU16: 64304
A17: Total 12 Western Europe | B17: 18600 | D17: 19700 | F17: 48192 | H17: 62580 | J17: 68796 | L17: 114559 | M17: 115725 | N17: 116887 | O17: 118055 | P17: 119224 | Q17: 120402 | R17: 121513 | S17: 122578 | T17: 123628 | U17: 124650 | V17: 125655 | W17: 126590 | X17: 127499 | Y17: 128413 | Z17: 129365 | AA17: 130375 | AB17: 131403 | AC17: 132470 | AD17: 133542 | AE17: 134653 | AF17: 135774 | AG17: 136872 | AH17: 137956 | AI17: 138973 | AJ17: 140069 | AK17: 141186 | AL17: 142200 | AM17: 142645 | AN17: 142701 | AO17: 143066 | AP17: 143594 | AQ17: 144151 | AR17: 144978 | AS17: 145726 | AT17: 146498 | AU17: 147278 | AV17: 148086 | AW17: 148956 | AX17: 149886 | AY17: 150895 | AZ17: 151975 | BA17: 153076 | BB17: 154214 | BC17: 155443 | BD17: 156648 | BE17: 157835 | BF17: 158778 | BG17: 159753 | BH17: 160477 | BI17: 161854 | BJ17: 162381 | BK17: 162570 | BL17: 163337 | BM17: 164541 | BN17: 165857 | BO17: 167195 | BP17: 168800 | BQ17: 170416 | BR17: 171840 | BS17: 173423 | BT17: 174685 | BU17: 175814 | BV17: 176963 | BW17: 178085 | BX17: 179412 | BY17: 180679 | BZ17: 181992 | CA17: 183244 | CB17: 184524 | CC17: 185909 | CD17: 187219 | CE17: 188478 | CF17: 189829 | CG17: 191145 | CH17: 192727 | CI17: 194266 | CJ17: 196011 | CK17: 197942 | CL17: 199877 | CM17: 201746 | CN17: 203501 | CO17: 205339 | CP17: 207338 | CQ17: 209266 | CR17: 211201 | CS17: 213064 | CT17: 215051 | CU17: 216969 | CV17: 219005 | CW17: 221025 | CX17: 223059 | CY17: 225112 | CZ17: 226548 | DA17: 227957 | DB17: 230052 | DC17: 230245 | DD17: 230056 | DE17: 229286 | DF17: 227568 | DG17: 222505 | DH17: 223731 | DI17: 222433 | DJ17: 223981 | DK17: 225763 | DL17: 227572 | DM17: 229158 | DN17: 230702 | DO17: 231958 | DP17: 233260 | DQ17: 234460 | DR17: 235975 | DS17: 237420 | DT17: 238602 | DU17: 239744 | DV17: 240932 | DW17: 242148 | DX17: 243333 | DY17: 244568 | DZ17: 246101 | EA17: 247846 | EB17: 248417 | EC17: 247979 | ED17: 249048 | EE17: 249045 | EF17: 249088 | EG17: 247665 | EH17: 246921 | EI17: 249881 | EJ17: 252881 | EK17: 255051 | EL17: 257065.594 | EM17: 258789.823 | EN17: 260158.345 | EO17: 261717.344 | EP17: 263258.23 | EQ17: 264902.123 | ER17: 266698.236 | ES17: 268558.192 | ET17: 270503.032 | EU17: 272595.739 | EV17: 274720.445 | EW17: 277184.781 | EX17: 280122.531 | EY17: 282653.865 | EZ17: 285131.437 | FA17: 287510.925 | FB17: 289655.436 | FC17: 291336.436 | FD17: 292905.636 | FE17: 294864.092 | FF17: 296853.935 | FG17: 298985.549 | FH17: 300726.484 | FI17: 302279.637 | FJ17: 303355.947 | FK17: 303826.473 | FL17: 304028.656 | FM17: 304459.187 | FN17: 304927.99 | FO17: 305528.476 | FP17: 306396.696 | FQ17: 307115.682 | FR17: 307501.579 | FS17: 307762.793 | FT17: 308090.253 | FU17: 308517.381 | FV17: 309148.203 | FW17: 309825.844 | FX17: 310849.322 | FY17: 312520.209 | FZ17: 314193.377 | GA17: 315767.915 | GB17: 317461.031 | GC17: 319046.312 | GD17: 320307.609 | GE17: 321408.666 | GF17: 322410.643 | GG17: 323290.437 | GH17: 324081.016 | GI17: 324959.907 | GJ17: 325988.929 | GK17: 327071.099 | GL17: 328021.293 | GM17: 328911.317 | GN17: 329767.362 | GO17: 330584.638 | GP17: 331355.156 | GQ17: 332089.756 | GR17: 332772.027 | GS17: 333405 | GU17: 337677.022
A18: Ireland | F18: 800 | H18: 1000 | J18: 1925 | L18: 7101 | M18: 7200 | N18: 7267 | O18: 7335 | P18: 7403 | Q18: 7472 | R18: 7542 | S18: 7612 | T18: 7683 | U18: 7755 | V18: 7827 | W18: 7900 | X18: 7949 | Y18: 7998 | Z18: 8047 | AA18: 8096 | AB18: 8146 | AC18: 8196 | AD18: 8247 | AE18: 8298 | AF18: 8349 | AG18: 8400 | AH18: 8422 | AI18: 8441 | AJ18: 8479 | AK18: 8497 | AL18: 8490 | AM18: 8205 | AN18: 7640 | AO18: 7256 | AP18: 6878 | AQ18: 6514 | AR18: 6337 | AS18: 6199 | AT18: 6083 | AU18: 6015 | AV18: 5973 | AW18: 5919 | AX18: 5891 | AY18: 5862 | AZ18: 5821 | BA18: 5788 | BB18: 5776 | BC18: 5718 | BD18: 5641 | BE18: 5595 | BF18: 5523 | BG18: 5487 | BH18: 5466 | BI18: 5449 | BJ18: 5419 | BK18: 5398 | BL18: 5373 | BM18: 5328 | BN18: 5299 | BO18: 5279 | BP18: 5278 | BQ18: 5286 | BR18: 5282 | BS18: 5266 | BT18: 5203 | BU18: 5146 | BV18: 5101 | BW18: 5024 | BX18: 4975 | BY18: 4939 | BZ18: 4906 | CA18: 4857 | CB18: 4801 | CC18: 4757 | CD18: 4718 | CE18: 4680 | CF18: 4634 | CG18: 4607 | CH18: 4589 | CI18: 4560 | CJ18: 4542 | CK18: 4530 | CL18: 4518 | CM18: 4502 | CN18: 4469 | CO18: 4447 | CP18: 4435 | CQ18: 4418 | CR18: 4408 | CS18: 4399 | CT18: 4398 | CU18: 4388 | CV18: 4385 | CW18: 4387 | CX18: 4385 | CY18: 4381 | CZ18: 4368 | DA18: 4346 | DB18: 4334 | DC18: 4278 | DD18: 4273 | DE18: 4273 | DF18: 4280 | DG18: 4352 | DH18: 4361 | DI18: 3096 | DJ18: 3002 | DK18: 3014 | DL18: 3005 | DM18: 2985 | DN18: 2971 | DO18: 2957 | DP18: 2944 | DQ18: 2937 | DR18: 2927 | DS18: 2933 | DT18: 2949 | DU18: 2962 | DV18: 2971 | DW18: 2971 | DX18: 2967 | DY18: 2948 | DZ18: 2937 | EA18: 2934 | EB18: 2958 | EC18: 2993 | ED18: 2963 | EE18: 2946 | EF18: 2944 | EG18: 2952 | EH18: 2957 | EI18: 2974 | EJ18: 2985 | EK18: 2981 | EL18: 2963.018 | EM18: 2959.311 | EN18: 2952.156 | EO18: 2947.311 | EP18: 2936.769 | EQ18: 2916.133 | ER18: 2895.253 | ES18: 2878.22 | ET18: 2851.522 | EU18: 2843.041 | EV18: 2832 | EW18: 2818.3 | EX18: 2830 | EY18: 2850 | EZ18: 2864 | FA18: 2876 | FB18: 2884 | FC18: 2900.1 | FD18: 2912.5 | FE18: 2925.6 | FF18: 2950.1 | FG18: 2978.3 | FH18: 3024.4 | FI18: 3073.2 | FJ18: 3124.2 | FK18: 3177.3 | FL18: 3227.8 | FM18: 3271.9 | FN18: 3314 | FO18: 3368.2 | FP18: 3401 | FQ18: 3443.4 | FR18: 3480 | FS18: 3504 | FT18: 3529 | FU18: 3540 | FV18: 3540.5 | FW18: 3539.9 | FX18: 3529.6 | FY18: 3513.2 | FZ18: 3508.2 | GA18: 3530.771 | GB18: 3557.761 | GC18: 3578.349 | GD18: 3595.542 | GE18: 3613.89 | GF18: 3636.179 | GG18: 3667.233 | GH18: 3707.555 | GI18: 3750.141 | GJ18: 3791.69 | GK18: 3835.025 | GL18: 3879.155 | GM18: 3924.023 | GN18: 3969.558 | GO18: 4015.676 | GP18: 4062.235 | GQ18: 4109.086 | GR18: 4156.119 | GS18: 4203 | GU18: 4988.732
A19: Greece | B19: 2000 | D19: 1000 | F19: 1000 | H19: 1500 | J19: 1500 | L19: 2312 | M19: 2333 | N19: 2355 | O19: 2376 | P19: 2398 | Q19: 2420 | R19: 2443 | S19: 2465 | T19: 2488 | U19: 2511 | V19: 2534 | W19: 2557 | X19: 2581 | Y19: 2605 | Z19: 2629 | AA19: 2653 | AB19: 2677 | AC19: 2702 | AD19: 2727 | AE19: 2752 | AF19: 2777 | AG19: 2803 | AH19: 2829 | AI19: 2855 | AJ19: 2881 | AK19: 2908 | AL19: 2934 | AM19: 2961 | AN19: 2989 | AO19: 3016 | AP19: 3044 | AQ19: 3072 | AR19: 3100 | AS19: 3129 | AT19: 3158 | AU19: 3187 | AV19: 3216 | AW19: 3246 | AX19: 3273 | AY19: 3306 | AZ19: 3336 | BA19: 3367 | BB19: 3398 | BC19: 3430 | BD19: 3461 | BE19: 3493 | BF19: 3525 | BG19: 3558 | BH19: 3591 | BI19: 3621 | BJ19: 3657 | BK19: 3694 | BL19: 3732 | BM19: 3770 | BN19: 3809 | BO19: 3848 | BP19: 3887 | BQ19: 3927 | BR19: 3967 | BS19: 4008 | BT19: 4049 | BU19: 4090 | BV19: 4132 | BW19: 4174 | BX19: 4217 | BY19: 4260 | BZ19: 4303 | CA19: 4347 | CB19: 4392 | CC19: 4437 | CD19: 4482 | CE19: 4528 | CF19: 4574 | CG19: 4621 | CH19: 4668 | CI19: 4716 | CJ19: 4764 | CK19: 4813 | CL19: 4862 | CM19: 4912 | CN19: 4962 | CO19: 4997 | CP19: 5032 | CQ19: 5067 | CR19: 5102 | CS19: 5138 | CT19: 5174 | CU19: 5210 | CV19: 5246 | CW19: 5283 | CX19: 5320 | CY19: 5355 | CZ19: 5390 | DA19: 5425 | DB19: 5463 | DC19: 5502 | DD19: 5541 | DE19: 5580 | DF19: 5620 | DG19: 5660 | DH19: 5700 | DI19: 5837 | DJ19: 5890 | DK19: 6010 | DL19: 6000 | DM19: 5958 | DN19: 6042 | DO19: 6127 | DP19: 6205 | DQ19: 6275 | DR19: 6351 | DS19: 6440 | DT19: 6516 | DU19: 6591 | DV19: 6688 | DW19: 6793 | DX19: 6886 | DY19: 6973 | DZ19: 7061 | EA19: 7156 | EB19: 7280 | EC19: 7362 | ED19: 7339 | EE19: 7297 | EF19: 7284 | EG19: 7322 | EH19: 7418 | EI19: 7529 | EJ19: 7749 | EK19: 7856 | EL19: 7566.028 | EM19: 7646.402 | EN19: 7733.25 | EO19: 7817.095 | EP19: 7893.412 | EQ19: 7965.538 | ER19: 8031.013 | ES19: 8096.218 | ET19: 8173.129 | EU19: 8258.162 | EV19: 8327.405 | EW19: 8398.05 | EX19: 8448.233 | EY19: 8479.625 | EZ19: 8510.429 | FA19: 8550.333 | FB19: 8613.651 | FC19: 8716.441 | FD19: 8740.765 | FE19: 8772.764 | FF19: 8792.806 | FG19: 8831.036 | FH19: 8888.628 | FI19: 8929.086 | FJ19: 8962.023 | FK19: 9046.542 | FL19: 9167.19 | FM19: 9308.479 | FN19: 9429.959 | FO19: 9548.258 | FP19: 9642.505 | FQ19: 9729.35 | FR19: 9786.48 | FS19: 9840.526 | FT19: 9887.169 | FU19: 9923.253 | FV19: 9951.37 | FW19: 9974.49 | FX19: 9982.723 | FY19: 10030.765 | FZ19: 10129.603 | GA19: 10250.88 | GB19: 10325.429 | GC19: 10382.995 | GD19: 10429.826 | GE19: 10457.554 | GF19: 10479.42 | GG19: 10502.372 | GH19: 10520.068 | GI19: 10536.749 | GJ19: 10559.11 | GK19: 10581.515 | GL19: 10603.863 | GM19: 10625.945 | GN19: 10647.529 | GO19: 10668.354 | GP19: 10688.058 | GQ19: 10706.29 | GR19: 10722.816 | GS19: 10737 | GU19: 10583.029
A20: Portugal | B20: 400 | D20: 600 | F20: 1000 | H20: 1100 | J20: 2000 | L20: 3297 | M20: 3316 | N20: 3335 | O20: 3354 | P20: 3373 | Q20: 3393 | R20: 3412 | S20: 3432 | T20: 3452 | U20: 3472 | V20: 3491 | W20: 3512 | X20: 3532 | Y20: 3552 | Z20: 3475 | AA20: 3595 | AB20: 3617 | AC20: 3639 | AD20: 3661 | AE20: 3683 | AF20: 3704 | AG20: 3715 | AH20: 3726 | AI20: 3738 | AJ20: 3749 | AK20: 3760 | AL20: 3771 | AM20: 3783 | AN20: 3794 | AO20: 3804 | AP20: 3816 | AQ20: 3827 | AR20: 3839 | AS20: 3850 | AT20: 3858 | AU20: 3867 | AV20: 3875 | AW20: 3889 | AX20: 3925 | AY20: 3963 | AZ20: 4000 | BA20: 4074 | BB20: 4113 | BC20: 4131 | BD20: 4176 | BE20: 4201 | BF20: 4226 | BG20: 4251 | BH20: 4276 | BI20: 4302 | BJ20: 4327 | BK20: 4353 | BL20: 4379 | BM20: 4405 | BN20: 4431 | BO20: 4458 | BP20: 4484 | BQ20: 4511 | BR20: 4538 | BS20: 4571 | BT20: 4610 | BU20: 4651 | BV20: 4691 | BW20: 4732 | BX20: 4773 | BY20: 4815 | BZ20: 4857 | CA20: 4899 | CB20: 4942 | CC20: 4985 | CD20: 5028 | CE20: 5068 | CF20: 5104 | CG20: 5141 | CH20: 5178 | CI20: 5215 | CJ20: 5252 | CK20: 5290 | CL20: 5327 | CM20: 5366 | CN20: 5404 | CO20: 5447 | CP20: 5494 | CQ20: 5541 | CR20: 5589 | CS20: 5637 | CT20: 5686 | CU20: 5735 | CV20: 5784 | CW20: 5834 | CX20: 5884 | CY20: 5935 | CZ20: 5964 | DA20: 5972 | DB20: 5980 | DC20: 5988 | DD20: 5996 | DE20: 6005 | DF20: 6013 | DG20: 6021 | DH20: 6029 | DI20: 6071 | DJ20: 6146 | DK20: 6223 | DL20: 6300 | DM20: 6378 | DN20: 6457 | DO20: 6538 | DP20: 6619 | DQ20: 6701 | DR20: 6784 | DS20: 6869 | DT20: 6954 | DU20: 7040 | DV20: 7127 | DW20: 7216 | DX20: 7305 | DY20: 7396 | DZ20: 7488 | EA20: 7581 | EB20: 7675 | EC20: 7757 | ED20: 7826 | EE20: 7896 | EF20: 7967 | EG20: 8038 | EH20: 8110 | EI20: 8183 | EJ20: 8256 | EK20: 8329 | EL20: 8442.75 | EM20: 8490.25 | EN20: 8526.05 | EO20: 8578.95 | EP20: 8632.1 | EQ20: 8692.6 | ER20: 8756 | ES20: 8817.65 | ET20: 8888.55 | EU20: 8961.55 | EV20: 9036.7 | EW20: 9031.2 | EX20: 9019.8 | EY20: 9081.6 | EZ20: 9122.5 | FA20: 9128.85 | FB20: 9108.8 | FC20: 9103 | FD20: 9115.05 | FE20: 9097.2 | FF20: 9044.2 | FG20: 8990.45 | FH20: 8970.45 | FI20: 8975.95 | FJ20: 9098.3 | FK20: 9411.09 | FL20: 9621.97 | FM20: 9662.6 | FN20: 9698.78 | FO20: 9724.56 | FP20: 9777.8 | FQ20: 9850.079 | FR20: 9859.65 | FS20: 9872.243 | FT20: 9885.387 | FU20: 9897.192 | FV20: 9907.411 | FW20: 9915.289 | FX20: 9920.611 | FY20: 9923.147 | FZ20: 9922.689 | GA20: 9919.009 | GB20: 9927.68 | GC20: 9967.832 | GD20: 10027.688 | GE20: 10065.543 | GF20: 10099.918 | GG20: 10156.415 | GH20: 10224.828 | GI20: 10283.381 | GJ20: 10335.597 | GK20: 10386.753 | GL20: 10433.867 | GM20: 10479.955 | GN20: 10524.145 | GO20: 10566.212 | GP20: 10605.87 | GQ20: 10642.836 | GR20: 10676.91 | GS20: 10708 | GU20: 10731.139
A21: Spain | B21: 3750 | D21: 4000 | F21: 6800 | H21: 8240 | J21: 8770 | L21: 12203 | M21: 12284 | N21: 12366 | O21: 12449 | P21: 12532 | Q21: 12615 | R21: 12699 | S21: 12784 | T21: 12869 | U21: 12955 | V21: 13041 | W21: 13128 | X21: 13216 | Y21: 13304 | Z21: 13392 | AA21: 13482 | AB21: 13571 | AC21: 13662 | AD21: 13753 | AE21: 13845 | AF21: 13937 | AG21: 14030 | AH21: 14123 | AI21: 14217 | AJ21: 14312 | AK21: 14407 | AL21: 14503 | AM21: 14600 | AN21: 14697 | AO21: 14795 | AP21: 14894 | AQ21: 14974 | AR21: 15055 | AS21: 15136 | AT21: 15217 | AU21: 15299 | AV21: 15381 | AW21: 15455 | AX21: 15526 | AY21: 15584 | AZ21: 15642 | BA21: 15699 | BB21: 15754 | BC21: 15809 | BD21: 15864 | BE21: 15920 | BF21: 15976 | BG21: 16032 | BH21: 16088 | BI21: 16144 | BJ21: 16201 | BK21: 16258 | BL21: 16315 | BM21: 16372 | BN21: 16429 | BO21: 16487 | BP21: 16545 | BQ21: 16603 | BR21: 16677 | BS21: 16768 | BT21: 16859 | BU21: 16951 | BV21: 17043 | BW21: 17136 | BX21: 17230 | BY21: 17323 | BZ21: 17418 | CA21: 17513 | CB21: 17600 | CC21: 17678 | CD21: 17757 | CE21: 17836 | CF21: 17916 | CG21: 17996 | CH21: 18076 | CI21: 18157 | CJ21: 18238 | CK21: 18320 | CL21: 18402 | CM21: 18484 | CN21: 18566 | CO21: 18659 | CP21: 18788 | CQ21: 18919 | CR21: 19050 | CS21: 19133 | CT21: 19316 | CU21: 19450 | CV21: 19585 | CW21: 19721 | CX21: 19858 | CY21: 19994 | CZ21: 20128 | DA21: 20263 | DB21: 20398 | DC21: 20535 | DD21: 20673 | DE21: 20811 | DF21: 20950 | DG21: 21091 | DH21: 21232 | DI21: 21411 | DJ21: 21628 | DK21: 21847 | DL21: 22069 | DM21: 22292 | DN21: 22518 | DO21: 22747 | DP21: 22977 | DQ21: 23210 | DR21: 23445 | DS21: 23675 | DT21: 23897 | DU21: 24122 | DV21: 24349 | DW21: 24579 | DX21: 24810 | DY21: 25043 | DZ21: 25279 | EA21: 25517 | EB21: 25757 | EC21: 25979 | ED21: 26182 | EE21: 26387 | EF21: 26594 | EG21: 26802 | EH21: 27012 | EI21: 27223 | EJ21: 27437 | EK21: 27651 | EL21: 28062.963 | EM21: 28298.01 | EN21: 28549.87 | EO21: 28804.128 | EP21: 29060.413 | EQ21: 29318.745 | ER21: 29579.142 | ES21: 29841.614 | ET21: 30106.188 | EU21: 30372.877 | EV21: 30641.187 | EW21: 30903.894 | EX21: 31158.061 | EY21: 31429.834 | EZ21: 31740.862 | FA21: 32084.511 | FB21: 32451.975 | FC21: 32850.275 | FD21: 33239.301 | FE21: 33566.084 | FF21: 33876.479 | FG21: 34195.056 | FH21: 34513.161 | FI21: 34836.716 | FJ21: 35184.287 | FK21: 35563.535 | FL21: 35996.78 | FM21: 36439 | FN21: 36861.034 | FO21: 37200.014 | FP21: 37488.36 | FQ21: 37750.8 | FR21: 37983.31 | FS21: 38184.166 | FT21: 38362.861 | FU21: 38534.853 | FV21: 38707.556 | FW21: 38880.702 | FX21: 39053.881 | FY21: 39214.523 | FZ21: 39350.769 | GA21: 39461.418 | GB21: 39549.438 | GC21: 39627.587 | GD21: 39690.971 | GE21: 39749.715 | GF21: 39803.829 | GG21: 39855.442 | GH21: 39906.235 | GI21: 39953.263 | GJ21: 40016.081 | GK21: 40087.104 | GL21: 40152.517 | GM21: 40217.413 | GN21: 40280.78 | GO21: 40341.462 | GP21: 40397.842 | GQ21: 40448.191 | GR21: 40491.051 | GS21: 40525 | GU21: 38961.192
A22: Total 14 small west European countries | B22: 300 | D22: 260 | F22: 276 | H22: 358 | J22: 394 | L22: 657 | M22: 665 | N22: 672 | O22: 678 | P22: 685 | Q22: 692 | R22: 698 | S22: 704 | T22: 710 | U22: 716 | V22: 722 | W22: 727 | X22: 733 | Y22: 738 | Z22: 743 | AA22: 749 | AB22: 755 | AC22: 761 | AD22: 767 | AE22: 774 | AF22: 780 | AG22: 787 | AH22: 793 | AI22: 799 | AJ22: 805 | AK22: 811 | AL22: 817 | AM22: 820 | AN22: 820 | AO22: 822 | AP22: 825 | AQ22: 828 | AR22: 833 | AS22: 837 | AT22: 842 | AU22: 846 | AV22: 851 | AW22: 856 | AX22: 861 | AY22: 867 | AZ22: 873 | BA22: 880 | BB22: 886 | BC22: 893 | BD22: 900 | BE22: 907 | BF22: 912 | BG22: 918 | BH22: 922 | BI22: 930 | BJ22: 933 | BK22: 941 | BL22: 949 | BM22: 958 | BN22: 966 | BO22: 975 | BP22: 983 | BQ22: 992 | BR22: 1000 | BS22: 1009 | BT22: 1018 | BU22: 1027 | BV22: 1036 | BW22: 1045 | BX22: 1054 | BY22: 1064 | BZ22: 1073 | CA22: 1082 | CB22: 1092 | CC22: 1101 | CD22: 1111 | CE22: 1121 | CF22: 1131 | CG22: 1140 | CH22: 1150 | CI22: 1161 | CJ22: 1171 | CK22: 1181 | CL22: 1191 | CM22: 1202 | CN22: 1212 | CO22: 1223 | CP22: 1234 | CQ22: 1244 | CR22: 1255 | CS22: 1266 | CT22: 1277 | CU22: 1289 | CV22: 1300 | CW22: 1311 | CX22: 1323 | CY22: 1334 | CZ22: 1346 | DA22: 1358 | DB22: 1362 | DC22: 1367 | DD22: 1371 | DE22: 1376 | DF22: 1380 | DG22: 1384 | DH22: 1389 | DI22: 1393 | DJ22: 1398 | DK22: 1402 | DL22: 1407 | DM22: 1411 | DN22: 1416 | DO22: 1420 | DP22: 1425 | DQ22: 1429 | DR22: 1434 | DS22: 1439 | DT22: 1443 | DU22: 1448 | DV22: 1453 | DW22: 1457 | DX22: 1462 | DY22: 1467 | DZ22: 1471 | EA22: 1476 | EB22: 1481 | EC22: 1485 | ED22: 1490 | EE22: 1495 | EF22: 1500 | EG22: 1505 | EH22: 1510 | EI22: 1514 | EJ22: 1519 | EK22: 1524 | EL22: 1528.783 | EM22: 1543.988 | EN22: 1558.853 | EO22: 1573.702 | EP22: 1591.056 | EQ22: 1600.124 | ER22: 1613.124 | ES22: 1636.344 | ET22: 1660.843 | EU22: 1681.845 | EV22: 1701.447 | EW22: 1717.29 | EX22: 1728.897 | EY22: 1746.908 | EZ22: 1758.806 | FA22: 1773.022 | FB22: 1786.809 | FC22: 1803.087 | FD22: 1819.286 | FE22: 1837.21 | FF22: 1853.404 | FG22: 1868.579 | FH22: 1883.162 | FI22: 1907.107 | FJ22: 1928.661 | FK22: 1915.269 | FL22: 1914.382 | FM22: 1922.015 | FN22: 1938.703 | FO22: 1957.477 | FP22: 1990.038 | FQ22: 2008.721 | FR22: 2020.267 | FS22: 2030.491 | FT22: 2040.458 | FU22: 2050.875 | FV22: 2064.736 | FW22: 2087.002 | FX22: 2110.752 | FY22: 2131.624 | FZ22: 2160.207 | GA22: 2187.6 | GB22: 2216.954 | GC22: 2243.705 | GD22: 2266.959 | GE22: 2284.493 | GF22: 2302.48 | GG22: 2321.494 | GH22: 2340.859 | GI22: 2360.333 | GJ22: 2380.159 | GK22: 2399.679 | GL22: 2418.612 | GM22: 2439.111 | GN22: 2460.67 | GO22: 2479.935 | GP22: 2498 | GQ22: 2516.299 | GR22: 2533.957 | GS22: 2840 | GU22: 2810.588
A23: Total 30 Western Europe | B23: 25050 | D23: 25560 | F23: 57268 | H23: 73778 | J23: 81460 | L23: 133028 | M23: 134323 | N23: 135615 | O23: 136912 | P23: 138212 | Q23: 139522 | R23: 140765 | S23: 141963 | T23: 143147 | U23: 144304 | V23: 145443 | W23: 146514 | X23: 147561 | Y23: 148612 | Z23: 149604 | AA23: 150854 | AB23: 152023 | AC23: 153234 | AD23: 154450 | AE23: 155707 | AF23: 156972 | AG23: 158207 | AH23: 159427 | AI23: 160582 | AJ23: 161816 | AK23: 163072 | AL23: 164225 | AM23: 164809 | AN23: 165001 | AO23: 165503 | AP23: 166173 | AQ23: 166852 | AR23: 167805 | AS23: 168678 | AT23: 169573 | AU23: 170477 | AV23: 171409 | AW23: 172402 | AX23: 173471 | AY23: 174615 | AZ23: 175826 | BA23: 177096 | BB23: 178365 | BC23: 179706 | BD23: 181049 | BE23: 182356 | BF23: 183417 | BG23: 184512 | BH23: 185354 | BI23: 186851 | BJ23: 187499 | BK23: 187816 | BL23: 188712 | BM23: 190046 | BN23: 191492 | BO23: 192963 | BP23: 194699 | BQ23: 196449 | BR23: 198022 | BS23: 199779 | BT23: 201221 | BU23: 202533 | BV23: 203865 | BW23: 205172 | BX23: 206686 | BY23: 208141 | BZ23: 209643 | CA23: 211085 | CB23: 212550 | CC23: 214110 | CD23: 215597 | CE23: 217031 | CF23: 218554 | CG23: 220043 | CH23: 221799 | CI23: 223515 | CJ23: 225436 | CK23: 227546 | CL23: 229659 | CM23: 231710 | CN23: 233645 | CO23: 235665 | CP23: 237886 | CQ23: 240037 | CR23: 242197 | CS23: 244238 | CT23: 246504 | CU23: 248653 | CV23: 250920 | CW23: 253174 | CX23: 255444 | CY23: 257730 | CZ23: 259376 | DA23: 260975 | DB23: 263255 | DC23: 263637 | DD23: 263637 | DE23: 263058 | DF23: 261531 | DG23: 256661 | DH23: 258081 | DI23: 260241 | DJ23: 262045 | DK23: 264259 | DL23: 266353 | DM23: 268182 | DN23: 270106 | DO23: 271747 | DP23: 273430 | DQ23: 275012 | DR23: 276916 | DS23: 278776 | DT23: 280361 | DU23: 281907 | DV23: 283520 | DW23: 285164 | DX23: 286763 | DY23: 288395 | DZ23: 290337 | EA23: 292510 | EB23: 293568 | EC23: 293555 | ED23: 294848 | EE23: 295066 | EF23: 295377 | EG23: 294284 | EH23: 293928 | EI23: 297304 | EJ23: 300827 | EK23: 303392 | EL23: 305629.136 | EM23: 307727.784 | EN23: 309478.524 | EO23: 311438.53 | EP23: 313371.98 | EQ23: 315395.263 | ER23: 317572.768 | ES23: 319828.238 | ET23: 322183.264 | EU23: 324713.214 | EV23: 327259.184 | EW23: 330053.515 | EX23: 333307.522 | EY23: 336241.832 | EZ23: 339128.034 | FA23: 341923.641 | FB23: 344500.671 | FC23: 346709.339 | FD23: 348732.538 | FE23: 351062.95 | FF23: 353370.924 | FG23: 355848.97 | FH23: 358006.285 | FI23: 360001.696 | FJ23: 361653.418 | FK23: 362940.209 | FL23: 363956.778 | FM23: 365063.181 | FN23: 366170.466 | FO23: 367326.985 | FP23: 368696.399 | FQ23: 369898.032 | FR23: 370631.286 | FS23: 371194.219 | FT23: 371795.128 | FU23: 372463.554 | FV23: 373319.776 | FW23: 374223.227 | FX23: 375446.889 | FY23: 377333.468 | FZ23: 379264.845 | GA23: 381117.593 | GB23: 383038.293 | GC23: 384846.78 | GD23: 386318.595 | GE23: 387579.861 | GF23: 388732.469 | GG23: 389793.393 | GH23: 390780.561 | GI23: 391843.774 | GJ23: 393071.566 | GK23: 394361.175 | GL23: 395509.307 | GM23: 396597.764 | GN23: 397650.044 | GO23: 398656.277 | GP23: 399607.161 | GQ23: 400512.458 | GR23: 401352.88 | GS23: 402418 | GU23: 405751.702
A24: Western Offshoots
A25: Australia | B25: 360 | D25: 400 | F25: 450 | H25: 450 | J25: 450 | L25: 334 | M25: 331 | N25: 329 | O25: 329 | P25: 332 | Q25: 333 | R25: 330 | S25: 328 | T25: 326 | U25: 326 | V25: 330 | W25: 333 | X25: 338 | Y25: 349 | Z25: 354 | AA25: 358 | AB25: 367 | AC25: 373 | AD25: 388 | AE25: 403 | AF25: 420 | AG25: 448 | AH25: 465 | AI25: 472 | AJ25: 482 | AK25: 494 | AL25: 505 | AM25: 518 | AN25: 538 | AO25: 576 | AP25: 605 | AQ25: 636 | AR25: 710 | AS25: 795 | AT25: 887 | AU25: 983 | AV25: 1065 | AW25: 1156 | AX25: 1235 | AY25: 1279 | AZ25: 1326 | BA25: 1346 | BB25: 1382 | BC25: 1432 | BD25: 1495 | BE25: 1558 | BF25: 1609 | BG25: 1647 | BH25: 1700 | BI25: 1750 | BJ25: 1775 | BK25: 1675 | BL25: 1722 | BM25: 1769 | BN25: 1822 | BO25: 1874 | BP25: 1929 | BQ25: 1995 | BR25: 2062 | BS25: 2127 | BT25: 2197 | BU25: 2269 | BV25: 2348 | BW25: 2447 | BX25: 2556 | BY25: 2650 | BZ25: 2741 | CA25: 2835 | CB25: 2932 | CC25: 3022 | CD25: 3107 | CE25: 3196 | CF25: 3274 | CG25: 3334 | CH25: 3395 | CI25: 3460 | CJ25: 3523 | CK25: 3586 | CL25: 3642 | CM25: 3691 | CN25: 3741 | CO25: 3795 | CP25: 3850 | CQ25: 3896 | CR25: 3946 | CS25: 4004 | CT25: 4062 | CU25: 4127 | CV25: 4197 | CW25: 4278 | CX25: 4375 | CY25: 4500 | CZ25: 4661 | DA25: 4821 | DB25: 4933 | DC25: 4971 | DD25: 4955 | DE25: 4950 | DF25: 5032 | DG25: 5193 | DH25: 5358 | DI25: 5461 | DJ25: 5574 | DK25: 5697 | DL25: 5819 | DM25: 5943 | DN25: 6064 | DO25: 6188 | DP25: 6304 | DQ25: 6396 | DR25: 6469 | DS25: 6527 | DT25: 6579 | DU25: 6631 | DV25: 6682 | DW25: 6732 | DX25: 6783 | DY25: 6841 | DZ25: 6904 | EA25: 6971 | EB25: 7042 | EC25: 7111 | ED25: 7173 | EE25: 7236 | EF25: 7309 | EG25: 7389 | EH25: 7474 | EI25: 7578 | EJ25: 7715 | EK25: 7919 | EL25: 8267.337 | EM25: 8510.6 | EN25: 8691.212 | EO25: 8857.924 | EP25: 9064.017 | EQ25: 9277.087 | ER25: 9500.606 | ES25: 9712.569 | ET25: 9915.267 | EU25: 10131.729 | EV25: 10361.273 | EW25: 10598.814 | EX25: 10794.968 | EY25: 11001.483 | EZ25: 11218.304 | FA25: 11439.384 | FB25: 11655.083 | FC25: 11872.264 | FD25: 12101.66 | FE25: 12379.384 | FF25: 12660.16 | FG25: 12937.2 | FH25: 13177 | FI25: 13380.4 | FJ25: 13599.1 | FK25: 13771.4 | FL25: 13915.5 | FM25: 14074.1 | FN25: 14248.6 | FO25: 14421.9 | FP25: 14615.9 | FQ25: 14923.26 | FR25: 15162 | FS25: 15348 | FT25: 15510 | FU25: 15695 | FV25: 15900 | FW25: 16137 | FX25: 16400 | FY25: 16681 | FZ25: 16956 | GA25: 17202 | GB25: 17419 | GC25: 17608 | GD25: 17781 | GE25: 17976 | GF25: 18195 | GG25: 18415 | GH25: 18621 | GI25: 18830 | GJ25: 19053 | GK25: 19294 | GL25: 19345 | GM25: 19767 | GN25: 19995 | GO25: 20232 | GP25: 20489 | GQ25: 20750 | GR25: 21007 | GS25: 21263 | GU25: 26056
A26: New Zealand | B26: 0 | D26: 10 | F26: 100 | H26: 100 | J26: 100 | L26: 100 | V26: 100 | AF26: 70 | AP26: 90 | AZ26: 132 | BJ26: 291 | BK26: 306 | BL26: 320 | BM26: 335 | BN26: 367 | BO26: 406 | BP26: 434 | BQ26: 450 | BR26: 467 | BS26: 494 | BT26: 520 | BU26: 539 | BV26: 555 | BW26: 574 | BX26: 598 | BY26: 614 | BZ26: 626 | CA26: 640 | CB26: 649 | CC26: 656 | CD26: 665 | CE26: 674 | CF26: 686 | CG26: 705 | CH26: 722 | CI26: 735 | CJ26: 748 | CK26: 764 | CL26: 779 | CM26: 794 | CN26: 807 | CO26: 824 | CP26: 844 | CQ26: 867 | CR26: 893 | CS26: 919 | CT26: 946 | CU26: 969 | CV26: 996 | CW26: 1024 | CX26: 1045 | CY26: 1067 | CZ26: 1092 | DA26: 1122 | DB26: 1143 | DC26: 1152 | DD26: 1155 | DE26: 1152 | DF26: 1156 | DG26: 1195 | DH26: 1241 | DI26: 1275 | DJ26: 1304 | DK26: 1326 | DL26: 1350 | DM26: 1382 | DN26: 1412 | DO26: 1437 | DP26: 1454 | DQ26: 1471 | DR26: 1493 | DS26: 1514 | DT26: 1527 | DU26: 1540 | DV26: 1552 | DW26: 1562 | DX26: 1573 | DY26: 1587 | DZ26: 1604 | EA26: 1627 | EB26: 1636 | EC26: 1629 | ED26: 1639 | EE26: 1633 | EF26: 1654 | EG26: 1688 | EH26: 1759 | EI26: 1797 | EJ26: 1833 | EK26: 1871 | EL26: 1908.31 | EM26: 1947.389 | EN26: 1994.794 | EO26: 2047.391 | EP26: 2092.779 | EQ26: 2136.168 | ER26: 2178.289 | ES26: 2229.407 | ET26: 2281.533 | EU26: 2331.122 | EV26: 2371.746 | EW26: 2432.45 | EX26: 2488.55 | EY26: 2541.35 | EZ26: 2591.95 | FA26: 2640.4 | FB26: 2687.55 | FC26: 2728.15 | FD26: 2759 | FE26: 2788.5 | FF26: 2828.05 | FG26: 2875.3 | FH26: 2929.1 | FI26: 2992.3 | FJ26: 3058.4 | FK26: 3117.8 | FL26: 3153.55 | FM26: 3164.9 | FN26: 3165.8 | FO26: 3164.55 | FP26: 3170.15 | FQ26: 3185.45 | FR26: 3217 | FS26: 3258 | FT26: 3298 | FU26: 3324 | FV26: 3341 | FW26: 3352 | FX26: 3361 | FY26: 3378 | FZ26: 3414 | GA26: 3455 | GB26: 3494 | GC26: 3537 | GD26: 3586 | GE26: 3642 | GF26: 3697 | GG26: 3738 | GH26: 3764 | GI26: 3784 | GJ26: 3802 | GK26: 3838 | GL26: 3898 | GM26: 3960 | GN26: 4008 | GO26: 4048 | GP26: 4090 | GQ26: 4132 | GR26: 4173 | GS26: 4213 | GU26: 4913
A27: Canada | B27: 80 | D27: 160 | F27: 250 | H27: 250 | J27: 200 | L27: 816 | V27: 1169 | AF27: 1697 | AP27: 2485 | AZ27: 3369 | BJ27: 3781 | BK27: 3801 | BL27: 3870 | BM27: 3943 | BN27: 4012 | BO27: 4071 | BP27: 4128 | BQ27: 4184 | BR27: 4244 | BS27: 4312 | BT27: 4384 | BU27: 4451 | BV27: 4503 | BW27: 4560 | BX27: 4617 | BY27: 4666 | BZ27: 4711 | CA27: 4760 | CB27: 4813 | CC27: 4865 | CD27: 4918 | CE27: 4972 | CF27: 5022 | CG27: 5072 | CH27: 5121 | CI27: 5169 | CJ27: 5218 | CK27: 5269 | CL27: 5325 | CM27: 5383 | CN27: 5457 | CO27: 5536 | CP27: 5650 | CQ27: 5813 | CR27: 5994 | CS27: 6166 | CT27: 6282 | CU27: 6596 | CV27: 6813 | CW27: 6993 | CX27: 7188 | CY27: 7410 | CZ27: 7602 | DA27: 7852 | DB27: 8093 | DC27: 8191 | DD27: 8214 | DE27: 8277 | DF27: 8374 | DG27: 8548 | DH27: 8798 | DI27: 9028 | DJ27: 9159 | DK27: 9256 | DL27: 9394 | DM27: 9549 | DN27: 9713 | DO27: 9905 | DP27: 10107 | DQ27: 10305 | DR27: 10488 | DS27: 10657 | DT27: 10794 | DU27: 10919 | DV27: 11030 | DW27: 11136 | DX27: 11243 | DY27: 11341 | DZ27: 11452 | EA27: 11570 | EB27: 11688 | EC27: 11818 | ED27: 11969 | EE27: 12115 | EF27: 12268 | EG27: 12404 | EH27: 12634 | EI27: 12901 | EJ27: 13180 | EK27: 13469 | EL27: 14011.422 | EM27: 14330.675 | EN27: 14785.584 | EO27: 15183.375 | EP27: 15636.245 | EQ27: 16050.356 | ER27: 16445.087 | ES27: 17010.154 | ET27: 17462.004 | EU27: 17872.034 | EV27: 18266.765 | EW27: 18634.977 | EX27: 18985.849 | EY27: 19342.841 | EZ27: 19711.053 | FA27: 20071.104 | FB27: 20448.496 | FC27: 20819.767 | FD27: 21143.1 | FE27: 21448.073 | FF27: 21749.986 | FG27: 22026.4 | FH27: 22284.5 | FI27: 22559.5 | FJ27: 22874.7 | FK27: 23209.2 | FL27: 23517.5 | FM27: 23796.4 | FN27: 24036.3 | FO27: 24276.9 | FP27: 24593.3 | FQ27: 24900 | FR27: 25201.9 | FS27: 25456.3 | FT27: 25701.8 | FU27: 25941.6 | FV27: 26203.8 | FW27: 26549.7 | FX27: 26894.8 | FY27: 27379.3 | FZ27: 27790.6 | GA27: 28117.6 | GB27: 28545 | GC27: 28953 | GD27: 29331 | GE27: 29691 | GF27: 30026 | GG27: 30305.843 | GH27: 30552 | GI27: 30821 | GJ27: 31100 | GK27: 31377 | GL27: 31641 | GM27: 31889 | GN27: 32135 | GO27: 32386 | GP27: 32657 | GQ27: 32386 | GR27: 33213 | GS27: 33487 | GU27: 38565
A28: United States | B28: 680 | D28: 1300 | F28: 2000 | H28: 1500 | J28: 1000 | L28: 9980.5102 | M28: 10298.96896 | N28: 10625.50319 | O28: 10951.07727 | P28: 11276.69459 | Q28: 11602.35466 | R28: 11928.05696 | S28: 12250.90491 | T28: 12580.59022 | U28: 12906.41631 | V28: 13240.3139 | W28: 13658.58029 | X28: 14077.88991 | Y28: 14496.23451 | Z28: 14914.61754 | AA28: 15334.04243 | AB28: 15752.50096 | AC28: 16170.99658 | AD28: 16590.53276 | AE28: 17009.10128 | AF28: 17443.768 | AG28: 18056.09997 | AH28: 18667.46445 | AI28: 19278.8649 | AJ28: 19890.3009 | AK28: 20502.77591 | AL28: 21114.28172 | AM28: 21725.82182 | AN28: 22337.3958 | AO28: 22950.00716 | AP28: 23579.7179 | AQ28: 24405.30273 | AR28: 25230.91797 | AS28: 26156.95325 | AT28: 26882.23823 | AU28: 27707.94257 | AV28: 28534.67982 | AW28: 29360.44186 | AX28: 30186.23226 | AY28: 31012.05068 | AZ28: 31838.9007 | BA28: 32677.74246 | BB28: 33515.60932 | BC28: 34354.50874 | BD28: 35192.43258 | BE28: 36031.38829 | BF28: 36869.36774 | BG28: 37708.3784 | BH28: 38546.41214 | BI28: 39385.47645 | BJ28: 40240.6295 | BK28: 41098 | BL28: 42136 | BM28: 43174 | BN28: 44212 | BO28: 45245 | BP28: 46287 | BQ28: 47325 | BR28: 48362 | BS28: 49400 | BT28: 50458 | BU28: 51743 | BV28: 53027 | BW28: 54311 | BX28: 55595 | BY28: 56879 | BZ28: 58164 | CA28: 59448 | CB28: 60732 | CC28: 62016 | CD28: 63302 | CE28: 64612 | CF28: 65922 | CG28: 67231 | CH28: 68541 | CI28: 69851 | CJ28: 71161 | CK28: 72471 | CL28: 73781 | CM28: 75091 | CN28: 76391 | CO28: 77888 | CP28: 79469 | CQ28: 80946 | CR28: 82485 | CS28: 84147 | CT28: 85770 | CU28: 87339 | CV28: 89055 | CW28: 90845 | CX28: 92767 | CY28: 94234 | CZ28: 95703 | DA28: 97606 | DB28: 99505 | DC28: 100941 | DD28: 102364 | DE28: 103817 | DF28: 104958 | DG28: 105473 | DH28: 106881 | DI28: 108964 | DJ28: 110484 | DK28: 112387 | DL28: 114558 | DM28: 116284 | DN28: 117857 | DO28: 119502 | DP28: 120971 | DQ28: 122245 | DR28: 123668 | DS28: 124633 | DT28: 125436 | DU28: 126180 | DV28: 126978 | DW28: 127859 | DX28: 128681 | DY28: 129464 | DZ28: 130476 | EA28: 131539 | EB28: 132637 | EC28: 133922 | ED28: 135386 | EE28: 137272 | EF28: 138937 | EG28: 140474 | EH28: 141940 | EI28: 144688 | EJ28: 147203 | EK28: 149770 | EL28: 152271 | EM28: 154878 | EN28: 157553 | EO28: 160184 | EP28: 163026 | EQ28: 165931 | ER28: 168903 | ES28: 171984 | ET28: 174882 | EU28: 177830 | EV28: 180671 | EW28: 183691 | EX28: 186538 | EY28: 189242 | EZ28: 191889 | FA28: 194303 | FB28: 196560 | FC28: 198712 | FD28: 200706 | FE28: 202677 | FF28: 205052 | FG28: 207661 | FH28: 209896 | FI28: 211909 | FJ28: 213854 | FK28: 215973 | FL28: 218035 | FM28: 220239 | FN28: 222585 | FO28: 225055 | FP28: 227726.463 | FQ28: 229966.237 | FR28: 232187.835 | FS28: 234307.207 | FT28: 236348.292 | FU28: 238466.283 | FV28: 240650.755 | FW28: 242803.533 | FX28: 245021.414 | FY28: 247341.697 | FZ28: 250131.894 | GA28: 253492.503 | GB28: 256894.189 | GC28: 260255.352 | GD28: 263435.673 | GE28: 266557.091 | GF28: 269667.391 | GG28: 272911.76 | GH28: 276115.288 | GI28: 279294.713 | GJ28: 282158 | GK28: 284915 | GL28: 287501 | GM28: 289986 | GN28: 292806 | GO28: 295583 | GP28: 298442 | GQ28: 301280 | GR28: 304228 | GS28: 307212 | GU28: 373504
A29: Total Western Offshoots | B29: 1120 | D29: 1870 | F29: 2800 | H29: 2300 | J29: 1750 | L29: 11230.5102 | V29: 14839.3139 | AF29: 19630.768 | AP29: 26759.7179 | AZ29: 36665.9007 | BJ29: 46087.6295 | BK29: 46880 | BL29: 48048 | BM29: 49221 | BN29: 50413 | BO29: 51596 | BP29: 52778 | BQ29: 53954 | BR29: 55135 | BS29: 56333 | BT29: 57559 | BU29: 59002 | BV29: 60433 | BW29: 61892 | BX29: 63366 | BY29: 64809 | BZ29: 66242 | CA29: 67683 | CB29: 69126 | CC29: 70559 | CD29: 71992 | CE29: 73454 | CF29: 74904 | CG29: 76342 | CH29: 77779 | CI29: 79215 | CJ29: 80650 | CK29: 82090 | CL29: 83527 | CM29: 84959 | CN29: 86396 | CO29: 88043 | CP29: 89813 | CQ29: 91522 | CR29: 93318 | CS29: 95236 | CT29: 97060 | CU29: 99031 | CV29: 101061 | CW29: 103140 | CX29: 105375 | CY29: 107211 | CZ29: 109058 | DA29: 111401 | DB29: 113674 | DC29: 115255 | DD29: 116688 | DE29: 118196 | DF29: 119520 | DG29: 120409 | DH29: 122278 | DI29: 124728 | DJ29: 126521 | DK29: 128666 | DL29: 131121 | DM29: 133158 | DN29: 135046 | DO29: 137032 | DP29: 138836 | DQ29: 140417 | DR29: 142118 | DS29: 143331 | DT29: 144336 | DU29: 145270 | DV29: 146242 | DW29: 147289 | DX29: 148280 | DY29: 149233 | DZ29: 150436 | EA29: 151707 | EB29: 153003 | EC29: 154480 | ED29: 156167 | EE29: 158256 | EF29: 160168 | EG29: 161955 | EH29: 163807 | EI29: 166964 | EJ29: 169931 | EK29: 173029 | EL29: 176458.069 | EM29: 179666.664 | EN29: 183024.59 | EO29: 186272.69 | EP29: 189819.041 | EQ29: 193394.611 | ER29: 197026.982 | ES29: 200936.13 | ET29: 204540.804 | EU29: 208164.885 | EV29: 211670.784 | EW29: 215357.241 | EX29: 218807.367 | EY29: 222127.674 | EZ29: 225410.307 | FA29: 228453.888 | FB29: 231351.129 | FC29: 234132.181 | FD29: 236709.76 | FE29: 239292.957 | FF29: 242290.196 | FG29: 245499.9 | FH29: 248286.6 | FI29: 250841.2 | FJ29: 253386.2 | FK29: 256071.4 | FL29: 258621.55 | FM29: 261274.4 | FN29: 264035.7 | FO29: 266918.35 | FP29: 270105.813 | FQ29: 272974.947 | FR29: 275768.735 | FS29: 278369.507 | FT29: 280858.092 | FU29: 283426.883 | FV29: 286095.555 | FW29: 288842.233 | FX29: 291677.214 | FY29: 294779.997 | FZ29: 298292.494 | GA29: 302267.103 | GB29: 306352.189 | GC29: 310353.352 | GD29: 314133.673 | GE29: 317866.091 | GF29: 321585.391 | GG29: 325370.603 | GH29: 329052.288 | GI29: 332729.713 | GJ29: 336113 | GK29: 339424 | GL29: 342385 | GM29: 345602 | GN29: 348944 | GO29: 352249 | GP29: 355678 | GQ29: 358548 | GR29: 362621 | GS29: 366175 | GU29: 443038
A30: Eastern Europe
A31: Albania | B31: 200 | D31: 200 | F31: 200 | H31: 200 | J31: 300 | L31: 437 | AP31: 500 | BJ31: 603 | CD31: 726 | CN31: 800 | CX31: 874 | DA31: 898 | DH31: 932 | DI31: 937 | DJ31: 942 | DK31: 947 | DL31: 952 | DM31: 956 | DN31: 962 | DO31: 967 | DP31: 972 | DQ31: 977 | DR31: 982 | DS31: 988 | DT31: 993 | DU31: 998 | DV31: 1003 | DW31: 1009 | DX31: 1014 | DY31: 1030 | DZ31: 1040 | EA31: 1070 | EB31: 1088 | EC31: 1100 | ED31: 1117 | EE31: 1119 | EF31: 1122 | EG31: 1138 | EH31: 1154 | EI31: 1175 | EJ31: 1192 | EK31: 1209 | EL31: 1227.156 | EM31: 1254.119 | EN31: 1282.697 | EO31: 1314.608 | EP31: 1352.982 | EQ31: 1392.164 | ER31: 1434.476 | ES31: 1476.505 | ET31: 1521.417 | EU31: 1571.329 | EV31: 1623.114 | EW31: 1676.635 | EX31: 1728.137 | EY31: 1779.715 | EZ31: 1832.284 | FA31: 1883.652 | FB31: 1932.963 | FC31: 1984.06 | FD31: 2038.698 | FE31: 2100.263 | FF31: 2156.612 | FG31: 2208.719 | FH31: 2263.554 | FI31: 2295.691 | FJ31: 2347.924 | FK31: 2401.108 | FL31: 2454.824 | FM31: 2509.048 | FN31: 2563.376 | FO31: 2617.679 | FP31: 2671.412 | FQ31: 2724.272 | FR31: 2780.097 | FS31: 2837.315 | FT31: 2895.998 | FU31: 2956.697 | FV31: 3015.438 | FW31: 3075.321 | FX31: 3136.843 | FY31: 3195.8 | FZ31: 3250.778 | GA31: 3294.227 | GB31: 3326.498 | GC31: 3351.656 | GD31: 3378.424 | GE31: 3400.516 | GF31: 3414.733 | GG31: 3428.038 | GH31: 3441.234 | GI31: 3457.493 | GJ31: 3473.835 | GK31: 3490.304 | GL31: 3508.512 | GM31: 3526.642 | GN31: 3544.808 | GO31: 3563.112 | GP31: 3581.655 | GQ31: 3600.523 | GR31: 3619 | GS31: 3639 | GU31: 3987.665
A32: Bulgaria | B32: 500 | D32: 800 | F32: 800 | H32: 1250 | J32: 1250 | L32: 2187 | AP32: 2500 | BJ32: 2586 | CD32: 3445 | CN32: 4000 | CX32: 4520 | DA32: 4720 | DH32: 5072 | DI32: 5148 | DJ32: 5255 | DK32: 5365 | DL32: 5476 | DM32: 5590 | DN32: 5705 | DO32: 5798 | DP32: 5873 | DQ32: 5950 | DR32: 6027 | DS32: 6106 | DT32: 6186 | DU32: 6267 | DV32: 6349 | DW32: 6415 | DX32: 6469 | DY32: 6514 | DZ32: 6564 | EA32: 6614 | EB32: 6666 | EC32: 6715 | ED32: 6771 | EE32: 6828 | EF32: 6885 | EG32: 6942 | EH32: 7000 | EI32: 7064 | EJ32: 7130 | EK32: 7195 | EL32: 7250.5 | EM32: 7258.2 | EN32: 7274.9 | EO32: 7346.1 | EP32: 7423.3 | EQ32: 7499.4 | ER32: 7575.8 | ES32: 7651.254 | ET32: 7727.553 | EU32: 7797.777 | EV32: 7867.374 | EW32: 7943.118 | EX32: 8012.946 | EY32: 8078.145 | EZ32: 8144.339 | FA32: 8201.4 | FB32: 8258.057 | FC32: 8310.226 | FD32: 8369.603 | FE32: 8434.172 | FF32: 8489.574 | FG32: 8536.395 | FH32: 8576.2 | FI32: 8620.997 | FJ32: 8678.745 | FK32: 8720.742 | FL32: 8755.037 | FM32: 8797.022 | FN32: 8803.281 | FO32: 8811.589 | FP32: 8843.528 | FQ32: 8869.441 | FR32: 8892.098 | FS32: 8910.284 | FT32: 8928.271 | FU32: 8943.573 | FV32: 8958.77 | FW32: 8971.958 | FX32: 8982.025 | FY32: 8990.055 | FZ32: 8894.028 | GA32: 8772.368 | GB32: 8658.506 | GC32: 8441.872 | GD32: 8353.335 | GE32: 8255.811 | GF32: 8161.026 | GG32: 8066.057 | GH32: 7971.774 | GI32: 7893.227 | GJ32: 7818.495 | GK32: 7738.416 | GL32: 7661.799 | GM32: 7588.399 | GN32: 7517.973 | GO32: 7450.349 | GP32: 7385.367 | GQ32: 7322.858 | GR32: 7262.675 | GS32: 7205 | GU32: 5940.822
A33: Czechoslovakia | B33: 1000 | D33: 1250 | F33: 3000 | H33: 4500 | J33: 4500 | L33: 7657 | AP33: 9250 | BJ33: 10155 | CD33: 11253 | CN33: 12142 | CX33: 12984 | DA33: 13245 | DH33: 12979 | DI33: 13008 | DJ33: 13159 | DK33: 13293 | DL33: 13413 | DM33: 13537 | DN33: 13644 | DO33: 13728 | DP33: 13807 | DQ33: 13884 | DR33: 13964 | DS33: 14052 | DT33: 14138 | DU33: 14216 | DV33: 14282 | DW33: 14339 | DX33: 14387 | DY33: 14429 | DZ33: 14603 | EA33: 14683 | EB33: 14713 | EC33: 14671 | ED33: 14577 | EE33: 14538 | EF33: 14593 | EG33: 14152 | EH33: 12916 | EI33: 12164 | EJ33: 12339 | EK33: 12339 | EL33: 12388.568 | EM33: 12531.868 | EN33: 12683.32 | EO33: 12819.669 | EP33: 12952.054 | EQ33: 13092.57 | ER33: 13229.151 | ES33: 13358.035 | ET33: 13474.401 | EU33: 13564.593 | EV33: 13654.088 | EW33: 13778.892 | EX33: 13857.666 | EY33: 13948.326 | EZ33: 14052.204 | FA33: 14146.861 | FB33: 14224.347 | FC33: 14277.347 | FD33: 14322.641 | FE33: 14284.202 | FF33: 14319.099 | FG33: 14381.376 | FH33: 14455.591 | FI33: 14549.273 | FJ33: 14657.87 | FK33: 14771.737 | FL33: 14883.683 | FM33: 14989.718 | FN33: 15088.911 | FO33: 15182.228 | FP33: 15254.684 | FQ33: 15311.596 | FR33: 15351.747 | FS33: 15388.264 | FT33: 15423.304 | FU33: 15454.794 | FV33: 15480.92 | FW33: 15510.915 | FX33: 15537.004 | FY33: 15559.005 | FZ33: 15572.13 | GA33: 15586.768 | GB33: 15618.59 | GC33: 15650.011 | GD33: 15675.429 | GE33: 15685.424 | GF33: 15685.007 | GG33: 15683.717 | GH33: 15681.185 | GI33: 15676.175 | GJ33: 15670.448 | GK33: 15666.989 | GL33: 15666.347 | GM33: 15667.493 | GN33: 15669.745 | GO33: 15672.501 | GP33: 15674.903 | GQ33: 15676.246 | GR33: 15676.318 | GS33: 15675 | GU33: 15022.245
A34: Hungary | B34: 300 | D34: 500 | F34: 1250 | H34: 1250 | J34: 1500 | L34: 4146 | AP34: 5161 | BJ34: 5917 | CD34: 6622 | CN34: 7127 | CX34: 7644 | DA34: 7840 | DH34: 7950 | DI34: 8029 | DJ34: 8103 | DK34: 8173 | DL34: 8232 | DM34: 8299 | DN34: 8383 | DO34: 8454 | DP34: 8520 | DQ34: 8583 | DR34: 8649 | DS34: 8723 | DT34: 8785 | DU34: 8848 | DV34: 8919 | DW34: 8985 | DX34: 9046 | DY34: 9107 | DZ34: 9167 | EA34: 9227 | EB34: 9287 | EC34: 9344 | ED34: 9396 | EE34: 9442 | EF34: 9497 | EG34: 9024 | EH34: 9042 | EI34: 9079 | EJ34: 9158 | EK34: 9250 | EL34: 9338 | EM34: 9423 | EN34: 9504 | EO34: 9595 | EP34: 9706 | EQ34: 9825 | ER34: 9911 | ES34: 9839 | ET34: 9882 | EU34: 9937 | EV34: 9983.512 | EW34: 10029 | EX34: 10063 | EY34: 10091 | EZ34: 10124 | FA34: 10152.934 | FB34: 10184.561 | FC34: 10223.422 | FD34: 10263.542 | FE34: 10302.814 | FF34: 10337.004 | FG34: 10364.869 | FH34: 10394.091 | FI34: 10425.984 | FJ34: 10471.272 | FK34: 10531.82 | FL34: 10588.729 | FM34: 10637.171 | FN34: 10673.3 | FO34: 10698.234 | FP34: 10711.122 | FQ34: 10711.848 | FR34: 10705.535 | FS34: 10689.463 | FT34: 10668.095 | FU34: 10648.713 | FV34: 10630.563 | FW34: 10612.74 | FX34: 10442.5 | FY34: 10397.959 | FZ34: 10371.878 | GA34: 10364.737 | GB34: 10348.684 | GC34: 10329.012 | GD34: 10312.714 | GE34: 10295.874 | GF34: 10273.591 | GG34: 10244.684 | GH34: 10211.127 | GI34: 10172.673 | GJ34: 10137.449 | GK34: 10109.467 | GL34: 10083.313 | GM34: 10057.745 | GN34: 10032.375 | GO34: 10006.835 | GP34: 9981.334 | GQ34: 9956.108 | GR34: 9930.915 | GS34: 9906 | GU34: 9250.46
A35: Poland | B35: 450 | D35: 1200 | F35: 4000 | H35: 5000 | J35: 6000 | L35: 10426 | AP35: 13000 | BJ35: 16865 | CD35: 22854 | CN35: 24750 | CX35: 26644 | DA35: 26710 | DH35: 23968 | DI35: 24330 | DJ35: 24935 | DK35: 25569 | DL35: 25992 | DM35: 26425 | DN35: 26815 | DO35: 27148 | DP35: 27509 | DQ35: 27856 | DR35: 28204 | DS35: 28615 | DT35: 29022 | DU35: 29421 | DV35: 29771 | DW35: 30129 | DX35: 30471 | DY35: 30791 | DZ35: 31062 | EA35: 31365 | EB35: 30021 | EH35: 23959 | EI35: 23734 | EJ35: 23980 | EK35: 24410 | EL35: 24824 | EM35: 25262.265 | EN35: 25730.551 | EO35: 26221.264 | EP35: 26715.134 | EQ35: 27220.668 | ER35: 27743.876 | ES35: 28235.346 | ET35: 28692.576 | EU35: 29152.334 | EV35: 29589.842 | EW35: 29978.949 | EX35: 30329.617 | EY35: 30662.122 | EZ35: 30975.52 | FA35: 31262.358 | FB35: 31532.016 | FC35: 31785.378 | FD35: 32034.813 | FE35: 32280.848 | FF35: 32526 | FG35: 32777.81 | FH35: 33039.545 | FI35: 33331.131 | FJ35: 33642.89 | FK35: 33969.24 | FL35: 34299.428 | FM35: 34621.254 | FN35: 34929.072 | FO35: 35256.645 | FP35: 35578.016 | FQ35: 35901.961 | FR35: 36227.381 | FS35: 36571.418 | FT35: 36904.134 | FU35: 37225.792 | FV35: 37504.275 | FW35: 37740.71 | FX35: 37866.84 | FY35: 37970.155 | FZ35: 38119.408 | GA35: 38253.222 | GB35: 38370.697 | GC35: 38467.746 | GD35: 38548.296 | GE35: 38600.642 | GF35: 38629.842 | GG35: 38654.957 | GH35: 38668.756 | GI35: 38665.539 | GJ35: 38654.164 | GK35: 38643.641 | GL35: 38625.976 | GM35: 38602.853 | GN35: 38580.445 | GO35: 38557.984 | GP35: 38536.869 | GQ35: 38518.241 | GR35: 38500.696 | GS35: 38483 | GU35: 36530.619
A36: Romania | B36: 800 | D36: 800 | F36: 2000 | H36: 2000 | J36: 2500 | L36: 6389 | AP36: 8000 | BJ36: 9179 | CD36: 10373 | CN36: 11000 | CX36: 11866 | DA36: 12527 | DH36: 12340 | DI36: 12479 | DJ36: 12666 | DK36: 12843 | DL36: 13020 | DM36: 13209 | DN36: 13399 | DO36: 13574 | DP36: 13760 | DQ36: 13952 | DR36: 14141 | DS36: 14355 | DT36: 14554 | DU36: 14730 | DV36: 14924 | DW36: 15069 | DX36: 15256 | DY36: 15434 | DZ36: 15601 | EA36: 15751 | EB36: 15907 | EC36: 15774 | ED36: 15839 | EE36: 15840 | EF36: 15946 | EG36: 15929 | EH36: 15971 | EI36: 15849 | EJ36: 15893 | EK36: 16084 | EL36: 16311 | EM36: 16464 | EN36: 16630 | EO36: 16847 | EP36: 17040 | EQ36: 17325 | ER36: 17583 | ES36: 17829.327 | ET36: 18055.948 | EU36: 18225.83 | EV36: 18403.414 | EW36: 18566.932 | EX36: 18680.721 | EY36: 18813.131 | EZ36: 18927.081 | FA36: 19027.367 | FB36: 19140.783 | FC36: 19284.814 | FD36: 19720.984 | FE36: 20010.178 | FF36: 20252.541 | FG36: 20469.658 | FH36: 20662.648 | FI36: 20827.525 | FJ36: 21028.841 | FK36: 21245.103 | FL36: 21445.698 | FM36: 21658.597 | FN36: 21831.875 | FO36: 22001.388 | FP36: 22130.036 | FQ36: 22256.551 | FR36: 22356.726 | FS36: 22407.281 | FT36: 22453.788 | FU36: 22521.195 | FV36: 22599.678 | FW36: 22686.371 | FX36: 22768.897 | FY36: 22852.123 | FZ36: 22865.945 | GA36: 22825.559 | GB36: 22797.027 | GC36: 22768.538 | GD36: 22738.68 | GE36: 22692.83 | GF36: 22627.562 | GG36: 22562.458 | GH36: 22515.824 | GI36: 22480.527 | GJ36: 22451.921 | GK36: 22428.044 | GL36: 22404.337 | GM36: 22380.273 | GN36: 22355.551 | GO36: 22329.977 | GP36: 22303.552 | GQ36: 22276.056 | GR36: 22246.862 | GS36: 22215 | GU36: 20827.076
A37: Yugoslavia | B37: 1500 | D37: 1750 | F37: 2250 | H37: 2750 | J37: 2750 | L37: 5215 | AP37: 6000 | BJ37: 8252 | CD37: 9690 | CN37: 11174 | CX37: 13052 | DA37: 13590 | DH37: 12422 | DI37: 12607 | DJ37: 12796 | DK37: 12987 | DL37: 13180 | DM37: 13378 | DN37: 13578 | DO37: 13780 | DP37: 13986 | DQ37: 14194 | DR37: 14407 | DS37: 14618 | DT37: 14819 | DU37: 15022 | DV37: 15228 | DW37: 15439 | DX37: 15651 | DY37: 15860 | DZ37: 16084 | EA37: 16305 | EB37: 16300 | EI37: 15596 | EJ37: 15817 | EK37: 16040 | EL37: 16297.531 | EM37: 16519.051 | EN37: 16708.339 | EO37: 16936.955 | EP37: 17151.054 | EQ37: 17363.72 | ER37: 17507.629 | ES37: 17659.122 | ET37: 17795.514 | EU37: 17968.173 | EV37: 18132.522 | EW37: 18318.174 | EX37: 18500.274 | EY37: 18684.866 | EZ37: 18852.368 | FA37: 19038.028 | FB37: 19221.27 | FC37: 19390.351 | FD37: 19552.19 | FE37: 19704.952 | FF37: 19839.733 | FG37: 20014.589 | FH37: 20197.487 | FI37: 20367.416 | FJ37: 20549.749 | FK37: 20732 | FL37: 20929.536 | FM37: 21125.829 | FN37: 21309.215 | FO37: 21490.291 | FP37: 21615 | FQ37: 21707.267 | FR37: 21884.748 | FS37: 22018.103 | FT37: 22086.851 | FU37: 22216.101 | FV37: 22339.382 | FW37: 22435.224 | FX37: 22536.381 | FY37: 22634.445 | FZ37: 23016 | GA37: 23097 | GB37: 22905 | GC37: 22666 | GD37: 22583 | GE37: 22554 | GF37: 22502 | GG37: 22521 | GH37: 22586 | GI37: 22541 | GJ37: 22507 | GK37: 22580 | GL37: 22689 | GM37: 22784 | GN37: 22881 | GO37: 22951 | GP37: 23000 | GQ37: 23028 | GR37: 23038 | GS37: 23031 | GU37: 21996
A38: Total 7 East European Countries | B38: 4750 | D38: 6500 | F38: 13500 | H38: 16950 | J38: 18800 | L38: 36457 | AP38: 44411 | BJ38: 53557 | CD38: 64963 | CN38: 70993 | CX38: 77584 | DA38: 79530 | DH38: 75663 | DI38: 76538 | DJ38: 77856 | DK38: 79177 | DL38: 80265 | DM38: 81394 | DN38: 82486 | DO38: 83449 | DP38: 84427 | DQ38: 85396 | DR38: 86374 | DS38: 87457 | DT38: 88497 | DU38: 89502 | DV38: 90476 | DW38: 91385 | DX38: 92294 | DY38: 93165 | DZ38: 94121 | EA38: 95015 | EB38: 93982 | EI38: 84661 | EJ38: 85509 | EK38: 86527 | EL38: 87636.755 | EM38: 88712.503 | EN38: 89813.807 | EO38: 91080.596 | EP38: 92340.524 | EQ38: 93718.522 | ER38: 94984.932 | ES38: 96048.589 | ET38: 97149.409 | EU38: 98217.036 | EV38: 99253.866 | EW38: 100291.7 | EX38: 101172.361 | EY38: 102057.305 | EZ38: 102907.796 | FA38: 103712.6 | FB38: 104493.997 | FC38: 105255.598 | FD38: 106302.471 | FE38: 107117.429 | FF38: 107920.563 | FG38: 108753.416 | FH38: 109589.116 | FI38: 110418.017 | FJ38: 111377.291 | FK38: 112371.75 | FL38: 113356.935 | FM38: 114338.639 | FN38: 115199.03 | FO38: 116058.054 | FP38: 116803.798 | FQ38: 117482.936 | FR38: 118198.332 | FS38: 118822.128 | FT38: 119360.441 | FU38: 119966.865 | FV38: 120529.026 | FW38: 121033.239 | FX38: 121270.49 | FY38: 121599.542 | FZ38: 122090.167 | GA38: 122193.881 | GB38: 122026 | GC38: 121674.835 | GD38: 121589.878 | GE38: 121485.097 | GF38: 121293.761 | GG38: 121160.911 | GH38: 121075.9 | GI38: 120886.634 | GJ38: 120713.312 | GK38: 120656.861 | GL38: 120639.284 | GM38: 120607.405 | GN38: 120581.897 | GO38: 120531.758 | GP38: 120463.68 | GQ38: 120378.032 | GR38: 120274.466 | GS38: 120154 | GU38: 113554.887
A39: Yugoslav and Czech Successor states
A40: Bosnia | EL40: 2662 | EM40: 2721 | EN40: 2791 | EO40: 2863 | EP40: 2916 | EQ40: 2974 | ER40: 3025 | ES40: 3076 | ET40: 3126 | EU40: 3185 | EV40: 3240 | EW40: 3299 | EX40: 3349 | EY40: 3399 | EZ40: 3445 | FA40: 3493 | FB40: 3541 | FC40: 3585 | FD40: 3627 | FE40: 3669 | FF40: 3703 | FG40: 3761 | FH40: 3819 | FI40: 3872 | FJ40: 3925 | FK40: 3980 | FL40: 4033 | FM40: 4086 | FN40: 4135 | FO40: 4181 | FP40: 4092 | FQ40: 4135.743 | FR40: 4172.693 | FS40: 4207.275 | FT40: 4241.401 | FU40: 4275.355 | FV40: 4307.685 | FW40: 4338.977 | FX40: 4369.894 | FY40: 4398.322 | FZ40: 4423.646 | GA40: 4449.406 | GB40: 4256.013 | GC40: 3955.016 | GD40: 3784.983 | GE40: 3708.96 | GF40: 3608.495 | GG40: 3607 | GH40: 3817.575 | GI40: 3958.653 | GJ40: 4035.457 | GK40: 4111.293 | GL40: 4165.416 | GM40: 4243.181 | GN40: 4345.591 | GO40: 4430.494 | GP40: 4498.976 | GQ40: 4552.198 | GR40: 4590.31 | GS40: 4613 | GU40: 4359
A41: Croatia | EL41: 3837.297 | EM41: 3859.83 | EN41: 3882.229 | EO41: 3906.475 | EP41: 3929.591 | EQ41: 3955.526 | ER41: 3973.442 | ES41: 3991.242 | ET41: 4004.029 | EU41: 4020.631 | EV41: 4036.145 | EW41: 4055.443 | EX41: 4076.557 | EY41: 4098.506 | EZ41: 4113.553 | FA41: 4133.313 | FB41: 4155.83 | FC41: 4174.366 | FD41: 4189.903 | FE41: 4200.551 | FF41: 4205.389 | FG41: 4215.869 | FH41: 4225.31 | FI41: 4234.664 | FJ41: 4245.822 | FK41: 4255 | FL41: 4286.311 | FM41: 4318.673 | FN41: 4349.242 | FO41: 4379.909 | FP41: 4383 | FQ41: 4390.829 | FR41: 4413.368 | FS41: 4430.941 | FT41: 4441.854 | FU41: 4457.874 | FV41: 4471.752 | FW41: 4484.31 | FX41: 4493.676 | FY41: 4501.397 | FZ41: 4508.347 | GA41: 4540.641 | GB41: 4494.013 | GC41: 4486.066 | GD41: 4511.187 | GE41: 4496.683 | GF41: 4464.03 | GG41: 4444.595 | GH41: 4420.195 | GI41: 4408.383 | GJ41: 4410.83 | GK41: 4439.11 | GL41: 4481.02 | GM41: 4497.779 | GN41: 4496.869 | GO41: 4495.904 | GP41: 4494.749 | GQ41: 4493.312 | GR41: 4491.543 | GS41: 4489 | GU41: 4300.965
A42: Macedonia | EL42: 1224.627 | EM42: 1255.619 | EN42: 1271.611 | EO42: 1299.452 | EP42: 1325.223 | EQ42: 1340.031 | ER42: 1339.977 | ES42: 1344.846 | ET42: 1344.772 | EU42: 1353.539 | EV42: 1366.198 | EW42: 1381.753 | EX42: 1401.167 | EY42: 1422.47 | EZ42: 1444.676 | FA42: 1469.729 | FB42: 1489.836 | FC42: 1511.816 | FD42: 1532.751 | FE42: 1553.615 | FF42: 1574.407 | FG42: 1596.091 | FH42: 1617.701 | FI42: 1639.236 | FJ42: 1661.657 | FK42: 1684 | FL42: 1706.445 | FM42: 1727.797 | FN42: 1747.113 | FO42: 1768.203 | FP42: 1792 | FQ42: 1808.103 | FR42: 1823.791 | FS42: 1831.444 | FT42: 1837.295 | FU42: 1844.74 | FV42: 1850.679 | FW42: 1856.378 | FX42: 1858.92 | FY42: 1863.007 | FZ42: 1861.361 | GA42: 1867.71 | GB42: 1889.358 | GC42: 1917.563 | GD42: 1935.034 | GE42: 1954.048 | GF42: 1971.102 | GG42: 1984.86 | GH42: 1995.474 | GI42: 2004.985 | GJ42: 2014.512 | GK42: 2023.912 | GL42: 2030.445 | GM42: 2035.145 | GN42: 2040.085 | GO42: 2045.262 | GP42: 2050.554 | GQ42: 2055.915 | GR42: 2061.315 | GS42: 2067 | GU42: 2113.86
A43: Slovenia | EL43: 1467.759 | EM43: 1483.131 | EN43: 1489.518 | EO43: 1497.875 | EP43: 1509.187 | EQ43: 1517.499 | ER43: 1524.799 | ES43: 1533.07 | ET43: 1540.332 | EU43: 1548.561 | EV43: 1557.756 | EW43: 1571.851 | EX43: 1582.962 | EY43: 1595.028 | EZ43: 1606.083 | FA43: 1620.052 | FB43: 1632.029 | FC43: 1646.912 | FD43: 1657.849 | FE43: 1666.805 | FF43: 1675.739 | FG43: 1685.624 | FH43: 1694.51 | FI43: 1703.373 | FJ43: 1713.184 | FK43: 1722 | FL43: 1734.454 | FM43: 1746.919 | FN43: 1759.395 | FO43: 1772.854 | FP43: 1833 | FQ43: 1839.256 | FR43: 1861.252 | FS43: 1878.555 | FT43: 1896.413 | FU43: 1914.22 | FV43: 1932.129 | FW43: 1945.87 | FX43: 1961.775 | FY43: 1976.217 | FZ43: 1991.21 | GA43: 1999.48 | GB43: 1999.21 | GC43: 1999.926 | GD43: 2001.036 | GE43: 2002.827 | GF43: 2007.429 | GG43: 2011.612 | GH43: 2010.807 | GI43: 2009.653 | GJ43: 2010.557 | GK43: 2011.179 | GL43: 2011.497 | GM43: 2011 | GN43: 2011.473 | GO43: 2011.07 | GP43: 2010.347 | GQ43: 2009.245 | GR43: 2007.711 | GS43: 2006 | GU43: 1855.374
A44: Serbia/Montenegro/Kosovo | EL44: 7105.848 | EM44: 7199.471 | EN44: 7273.981 | EO44: 7370.153 | EP44: 7471.053 | EQ44: 7576.664 | ER44: 7644.411 | ES44: 7713.964 | ET44: 7780.381 | EU44: 7860.442 | EV44: 7932.423 | EW44: 8010.127 | EX44: 8090.588 | EY44: 8169.862 | EZ44: 8243.056 | FA44: 8321.934 | FB44: 8402.575 | FC44: 8472.257 | FD44: 8544.687 | FE44: 8614.981 | FF44: 8681.198 | FG44: 8756.005 | FH44: 8840.966 | FI44: 8918.143 | FJ44: 9004.086 | FK44: 9091 | FL44: 9169.326 | FM44: 9246.44 | FN44: 9318.465 | FO44: 9388.325 | FP44: 9515 | FQ44: 9533.336 | FR44: 9613.644 | FS44: 9669.888 | FT44: 9669.888 | FU44: 9723.912 | FV44: 9777.137 | FW44: 9809.689 | FX44: 9852.116 | FY44: 9895.502 | FZ44: 10231 | GA44: 10240 | GB44: 10266 | GC44: 10307 | GD44: 10351 | GE44: 10391 | GF44: 10451 | GG44: 10473 | GH44: 10342 | GI44: 10159 | GJ44: 10036 | GK44: 9995 | GL44: 10001 | GM44: 9997 | GN44: 9987 | GO44: 9968 | GP44: 9945 | GQ44: 9917 | GR44: 9887 | GS44: 9856 | GU44: 9367
A45: Former Yugoslavia | EL45: 16297.531 | EM45: 16519.051 | EN45: 16708.339 | EO45: 16936.955 | EP45: 17151.054 | EQ45: 17363.72 | ER45: 17507.629 | ES45: 17659.122 | ET45: 17795.514 | EU45: 17968.173 | EV45: 18132.522 | EW45: 18318.174 | EX45: 18500.274 | EY45: 18684.866 | EZ45: 18852.368 | FA45: 19038.028 | FB45: 19221.27 | FC45: 19390.351 | FD45: 19552.19 | FE45: 19704.952 | FF45: 19839.733 | FG45: 20014.589 | FH45: 20197.487 | FI45: 20367.416 | FJ45: 20549.749 | FK45: 20732 | FL45: 20929.536 | FM45: 21125.829 | FN45: 21309.215 | FO45: 21490.291 | FP45: 21615 | FQ45: 21707.267 | FR45: 21884.748 | FS45: 22018.103 | FT45: 22086.851 | FU45: 22216.101 | FV45: 22339.382 | FW45: 22435.224 | FX45: 22536.381 | FY45: 22634.445 | FZ45: 23015.564 | GA45: 23097.237 | GB45: 22904.594 | GC45: 22665.571 | GD45: 22583.24 | GE45: 22554 | GF45: 22502.056 | GG45: 22521.067 | GH45: 22586.051 | GI45: 22540.674 | GJ45: 22507.356 | GK45: 22580.494 | GL45: 22689.378 | GM45: 22784.105 | GN45: 22881.018 | GO45: 22950.73 | GP45: 22999.626 | GQ45: 23027.67 | GR45: 23037.879 | GS45: 23031 | GU45: 21996.199
A46: Czech Republic | EL46: 8925.122 | EM46: 9023.17 | EN46: 9125.183 | EO46: 9220.908 | EP46: 9290.617 | EQ46: 9365.969 | ER46: 9442.04 | ES46: 9513.758 | ET46: 9574.65 | EU46: 9618.554 | EV46: 9659.818 | EW46: 9587.25 | EX46: 9620.282 | EY46: 9666.468 | EZ46: 9726.03 | FA46: 9776.922 | FB46: 9815.359 | FC46: 9835.109 | FD46: 9851.051 | FE46: 9806.577 | FF46: 9795.226 | FG46: 9824.749 | FH46: 9862.158 | FI46: 9912.08 | FJ46: 9975.77 | FK46: 10042.019 | FL46: 10105.143 | FM46: 10161.915 | FN46: 10212.894 | FO46: 10259.67 | FP46: 10288.726 | FQ46: 10297.904 | FR46: 10303.704 | FS46: 10306.888 | FT46: 10309.224 | FU46: 10310.162 | FV46: 10308.836 | FW46: 10311.597 | FX46: 10313.782 | FY46: 10314.343 | FZ46: 10309.514 | GA46: 10305.158 | GB46: 10315.702 | GC46: 10326.434 | GD46: 10330.165 | GE46: 10323.83 | GF46: 10311.817 | GG46: 10300.707 | GH46: 10290.949 | GI46: 10280.436 | GJ46: 10270.128 | GK46: 10262.308 | GL46: 10256.295 | GM46: 10251.087 | GN46: 10246.178 | GO46: 10241.138 | GP46: 10235.455 | GQ46: 10228.744 | GR46: 10220.911 | GS46: 10212 | GU46: 9628.896
A47: Slovakia | EL47: 3463.446 | EM47: 3508.698 | EN47: 3558.137 | EO47: 3598.761 | EP47: 3661.437 | EQ47: 3726.601 | ER47: 3787.111 | ES47: 3844.277 | ET47: 3899.751 | EU47: 3946.039 | EV47: 3994.27 | EW47: 4191.642 | EX47: 4237.384 | EY47: 4281.858 | EZ47: 4326.174 | FA47: 4369.939 | FB47: 4408.988 | FC47: 4442.238 | FD47: 4471.59 | FE47: 4477.625 | FF47: 4523.873 | FG47: 4556.627 | FH47: 4593.433 | FI47: 4637.193 | FJ47: 4682.1 | FK47: 4729.718 | FL47: 4778.54 | FM47: 4827.803 | FN47: 4876.017 | FO47: 4922.558 | FP47: 4965.958 | FQ47: 5013.692 | FR47: 5048.043 | FS47: 5081.376 | FT47: 5114.08 | FU47: 5144.632 | FV47: 5172.084 | FW47: 5199.318 | FX47: 5223.222 | FY47: 5244.662 | FZ47: 5262.616 | GA47: 5281.61 | GB47: 5302.888 | GC47: 5323.577 | GD47: 5345.264 | GE47: 5361.594 | GF47: 5373.19 | GG47: 5383.01 | GH47: 5390.236 | GI47: 5395.739 | GJ47: 5400.32 | GK47: 5404.681 | GL47: 5410.052 | GM47: 5416.406 | GN47: 5423.567 | GO47: 5431.363 | GP47: 5439.448 | GQ47: 5447.502 | GR47: 5455.407 | GS47: 5463 | GU47: 5393.349
A48: Former Czechoslovakia | EL48: 12388.568 | EM48: 12531.868 | EN48: 12683.32 | EO48: 12819.669 | EP48: 12952.054 | EQ48: 13092.57 | ER48: 13229.151 | ES48: 13358.035 | ET48: 13474.401 | EU48: 13564.593 | EV48: 13654.088 | EW48: 13778.892 | EX48: 13857.666 | EY48: 13948.326 | EZ48: 14052.204 | FA48: 14146.861 | FB48: 14224.347 | FC48: 14277.347 | FD48: 14322.641 | FE48: 14284.202 | FF48: 14319.099 | FG48: 14381.376 | FH48: 14455.591 | FI48: 14549.273 | FJ48: 14657.87 | FK48: 14771.737 | FL48: 14883.683 | FM48: 14989.718 | FN48: 15088.911 | FO48: 15182.228 | FP48: 15254.684 | FQ48: 15311.596 | FR48: 15351.747 | FS48: 15388.264 | FT48: 15423.304 | FU48: 15454.794 | FV48: 15480.92 | FW48: 15510.915 | FX48: 15537.004 | FY48: 15559.005 | FZ48: 15572.13 | GA48: 15586.768 | GB48: 15618.59 | GC48: 15650.011 | GD48: 15675.429 | GE48: 15685.424 | GF48: 15685.007 | GG48: 15683.717 | GH48: 15681.185 | GI48: 15676.175 | GJ48: 15670.448 | GK48: 15666.989 | GL48: 15666.347 | GM48: 15667.493 | GN48: 15669.745 | GO48: 15672.501 | GP48: 15674.903 | GQ48: 15676.246 | GR48: 15676.318 | GS48: 15675 | GU48: 15022.245
A49: Successor Republics of USSR
A50: Armenia | EL50: 1355.269 | EM50: 1379.204 | EN50: 1416.722 | EO50: 1455.777 | EP50: 1505.668 | EQ50: 1565.329 | ER50: 1617.46 | ES50: 1672.403 | ET50: 1733.125 | EU50: 1796.363 | EV50: 1868.852 | EW50: 1943.799 | EX50: 2006.853 | EY50: 2065.618 | EZ50: 2134.94 | FA50: 2205.833 | FB50: 2273.695 | FC50: 2338.063 | FD50: 2402.358 | FE50: 2463.153 | FF50: 2519.745 | FG50: 2581.671 | FH50: 2647.035 | FI50: 2712.997 | FJ50: 2776.539 | FK50: 2834.136 | FL50: 2892.704 | FM50: 2954.907 | FN50: 3014.042 | FO50: 3066.726 | FP50: 3115.289 | FQ50: 3166.098 | FR50: 3218.691 | FS50: 3270.153 | FT50: 3322.394 | FU50: 3373.532 | FV50: 3421.978 | FW50: 3468.857 | FX50: 3515.614 | FY50: 3325.992 | FZ50: 3376.783 | GA50: 3437.479 | GB50: 3378.331 | GC50: 3231.57 | GD50: 3126.094 | GE50: 3068.751 | GF50: 3063.395 | GG50: 3059 | GH50: 3049.147 | GI50: 3047.62 | GJ50: 3042.556 | GK50: 3027.59 | GL50: 3013.818 | GM50: 3001.712 | GN50: 2991.36 | GO50: 2982.904 | GP50: 2976.372 | GQ50: 2971.65 | GR50: 2968.586 | GS50: 2967 | GU50: 3050.556
A51: Azerbaijan | EL51: 2885.332 | EM51: 2983.082 | EN51: 3090.973 | EO51: 3158.974 | EP51: 3222.581 | EQ51: 3313.718 | ER51: 3416.717 | ES51: 3526.313 | ET51: 3630.59 | EU51: 3740.596 | EV51: 3881.546 | EW51: 4033.503 | EX51: 4157.301 | EY51: 4283.47 | EZ51: 4430.183 | FA51: 4566.962 | FB51: 4701.73 | FC51: 4827.284 | FD51: 4945.231 | FE51: 5059.334 | FF51: 5168.973 | FG51: 5283.659 | FH51: 5393.681 | FI51: 5497.774 | FJ51: 5599.407 | FK51: 5696.117 | FL51: 5789.818 | FM51: 5886.578 | FN51: 5986.427 | FO51: 6082.087 | FP51: 6173.361 | FQ51: 6270.531 | FR51: 6369.133 | FS51: 6470.276 | FT51: 6578.901 | FU51: 6681.687 | FV51: 6776.473 | FW51: 6873.978 | FX51: 6975.798 | FY51: 7101.735 | FZ51: 7199.838 | GA51: 7359 | GB51: 7459 | GC51: 7482 | GD51: 7495 | GE51: 7555 | GF51: 7628 | GG51: 7678 | GH51: 7726 | GI51: 7769 | GJ51: 7809 | GK51: 7847 | GL51: 7884 | GM51: 7924 | GN51: 7968 | GO51: 8016 | GP51: 8066 | GQ51: 8120 | GR51: 8178 | GS51: 8239 | GU51: 9567
A52: Belarus | EL52: 7722.155 | EM52: 7742.159 | EN52: 7698.249 | EO52: 7666.821 | EP52: 7698.751 | EQ52: 7780.565 | ER52: 7856.79 | ES52: 7912.626 | ET52: 7982.625 | EU52: 8075.29 | EV52: 8167.918 | EW52: 8262.998 | EX52: 8365.073 | EY52: 8438.881 | EZ52: 8501.607 | FA52: 8590.786 | FB52: 8694.009 | FC52: 8786.887 | FD52: 8864.776 | FE52: 8946.091 | FF52: 9027.198 | FG52: 9101.396 | FH52: 9169.156 | FI52: 9236.465 | FJ52: 9304.311 | FK52: 9360.184 | FL52: 9405.544 | FM52: 9457.385 | FN52: 9520.28 | FO52: 9581.518 | FP52: 9643.706 | FQ52: 9712.761 | FR52: 9778.781 | FS52: 9845.174 | FT52: 9914.262 | FU52: 9981.744 | FV52: 10044.184 | FW52: 10097.446 | FX52: 10149.612 | FY52: 10184.084 | FZ52: 10201 | GA52: 10205 | GB52: 10228 | GC52: 10250 | GD52: 10238 | GE52: 10205 | GF52: 10171 | GG52: 10129 | GH52: 10092 | GI52: 10064 | GJ52: 10034 | GK52: 10000 | GL52: 9955 | GM52: 9905 | GN52: 9856 | GO52: 9809 | GP52: 9766 | GQ52: 9725 | GR52: 9686 | GS52: 9649 | GU52: 8798
A53: Estonia | EL53: 1095.61 | EM53: 1111.966 | EN53: 1130.445 | EO53: 1140.395 | EP53: 1148.378 | EQ53: 1154.371 | ER53: 1162.801 | ES53: 1174.251 | ET53: 1185.336 | EU53: 1197.418 | EV53: 1210.647 | EW53: 1224.467 | EX53: 1238.786 | EY53: 1254.604 | EZ53: 1272.439 | FA53: 1287.808 | FB53: 1300.177 | FC53: 1311.56 | FD53: 1324.437 | FE53: 1342.891 | FF53: 1363.183 | FG53: 1381.459 | FH53: 1397.391 | FI53: 1410.836 | FJ53: 1422.291 | FK53: 1432.246 | FL53: 1442.204 | FM53: 1453.168 | FN53: 1463.533 | FO53: 1472.244 | FP53: 1482.196 | FQ53: 1493.318 | FR53: 1504.043 | FS53: 1514.671 | FT53: 1526.128 | FU53: 1538.224 | FV53: 1550.072 | FW53: 1562.224 | FX53: 1569.187 | FY53: 1570.926 | FZ53: 1569.322 | GA53: 1559.547 | GB53: 1528.715 | GC53: 1491.426 | GD53: 1467.535 | GE53: 1446.509 | GF53: 1427.827 | GG53: 1413.351 | GH53: 1400.972 | GI53: 1389.756 | GJ53: 1379.835 | GK53: 1369.983 | GL53: 1360.122 | GM53: 1350.722 | GN53: 1341.664 | GO53: 1332.893 | GP53: 1324.333 | GQ53: 1315.912 | GR53: 1307.605 | GS53: 1299 | GU53: 1091.807
A54: Georgia | EL54: 3515.602 | EM54: 3579.417 | EN54: 3628.347 | EO54: 3687.436 | EP54: 3759.86 | EQ54: 3827.154 | ER54: 3887.496 | ES54: 3936.823 | ET54: 3994.787 | EU54: 4071.078 | EV54: 4146.57 | EW54: 4211.113 | EX54: 4278.649 | EY54: 4344.22 | EZ54: 4406.832 | FA54: 4464.959 | FB54: 4518.103 | FC54: 4564.785 | FD54: 4606.979 | FE54: 4650.335 | FF54: 4694.491 | FG54: 4741.628 | FH54: 4786.475 | FI54: 4825.85 | FJ54: 4865.233 | FK54: 4897.656 | FL54: 4930.036 | FM54: 4963.464 | FN54: 4991.045 | FO54: 5018.606 | FP54: 5045.697 | FQ54: 5073.148 | FR54: 5101.213 | FS54: 5130.925 | FT54: 5161.724 | FU54: 5192.957 | FV54: 5218.973 | FW54: 5239.97 | FX54: 5320.248 | FY54: 5398.106 | FZ54: 5426.207 | GA54: 5420.156 | GB54: 5355.289 | GC54: 5247.618 | GD54: 5120.809 | GE54: 5012.952 | GF54: 4934.572 | GG54: 4883.476 | GH54: 4848.495 | GI54: 4815.667 | GJ54: 4777.209 | GK54: 4746.164 | GL54: 4728.357 | GM54: 4710.921 | GN54: 4693.892 | GO54: 4677.401 | GP54: 4661.473 | GQ54: 4646.003 | GR54: 4630.841 | GS54: 4616 | GU54: 4231.259
A55: Kazakhstan | EL55: 6693.23 | EM55: 6936.06 | EN55: 7123.394 | EO55: 7260.866 | EP55: 7516.649 | EQ55: 7976.879 | ER55: 8413.793 | ES55: 8709.753 | ET55: 9062.534 | EU55: 9499.911 | EV55: 9982.014 | EW55: 10466.809 | EX55: 10945.885 | EY55: 11311.646 | EZ55: 11601.936 | FA55: 11902.456 | FB55: 12179.771 | FC55: 12451.717 | FD55: 12691.968 | FE55: 12900.122 | FF55: 13106.377 | FG55: 13324.719 | FH55: 13541.694 | FI55: 13754.298 | FJ55: 13971.543 | FK55: 14157.075 | FL55: 14304.436 | FM55: 14454.828 | FN55: 14623.619 | FO55: 14803.694 | FP55: 14966.718 | FQ55: 15136.447 | FR55: 15303.467 | FS55: 15466.787 | FT55: 15630.279 | FU55: 15789.549 | FV55: 15946.119 | FW55: 16109.358 | FX55: 16206.749 | FY55: 16265.063 | FZ55: 16398.131 | GA55: 16504.75 | GB55: 16542.063 | GC55: 16451.625 | GD55: 16182.154 | GE55: 15878.488 | GF55: 15696.091 | GG55: 15484.518 | GH55: 15247.098 | GI55: 15084.623 | GJ55: 15032.14 | GK55: 15052.25 | GL55: 15077.224 | GM55: 15107.581 | GN55: 15143.704 | GO55: 15185.844 | GP55: 15233.244 | GQ55: 15284.929 | GR55: 15340.533 | GS55: 15399 | GU55: 15979.334
A56: Kyrgyzstan | EL56: 1738.961 | EM56: 1767.107 | EN56: 1786.533 | EO56: 1817.007 | EP56: 1857.891 | EQ56: 1901.498 | ER56: 1939.419 | ES56: 1976.436 | ET56: 2027.026 | EU56: 2095.631 | EV56: 2171.285 | EW56: 2254.93 | EX56: 2332.685 | EY56: 2412.696 | EZ56: 2494.509 | FA56: 2573.131 | FB56: 2655.353 | FC56: 2736.572 | FD56: 2818.308 | FE56: 2895.676 | FF56: 2963.792 | FG56: 3029.219 | FH56: 3094.945 | FI56: 3161.16 | FJ56: 3231.885 | FK56: 3300.684 | FL56: 3366.925 | FM56: 3432.218 | FN56: 3496.165 | FO56: 3559.457 | FP56: 3622.728 | FQ56: 3690.194 | FR56: 3762.646 | FS56: 3841.789 | FT56: 3923.781 | FU56: 4005.552 | FV56: 4089.478 | FW56: 4175.598 | FX56: 4243.665 | FY56: 4301.702 | FZ56: 4382.486 | GA56: 4448.687 | GB56: 4495.436 | GC56: 4490.211 | GD56: 4486.193 | GE56: 4532.223 | GF56: 4598.192 | GG56: 4663.484 | GH56: 4729.895 | GI56: 4796.574 | GJ56: 4851.054 | GK56: 4901.329 | GL56: 4959.164 | GM56: 5019.15 | GN56: 5081.429 | GO56: 5146.281 | GP56: 5213.898 | GQ56: 5284.149 | GR56: 5356.869 | GS56: 5432 | GU56: 7014.291
A57: Latvia | EL57: 1936.498 | EM57: 1950.888 | EN57: 1964.319 | EO57: 1976.212 | EP57: 1990.651 | EQ57: 2002.111 | ER57: 2026.333 | ES57: 2055.709 | ET57: 2072.119 | EU57: 2088.934 | EV57: 2115.183 | EW57: 2145.744 | EX57: 2172.829 | EY57: 2199.396 | EZ57: 2227.495 | FA57: 2253.604 | FB57: 2278.721 | FC57: 2301.371 | FD57: 2322.031 | FE57: 2341.871 | FF57: 2361.159 | FG57: 2381.641 | FH57: 2401.244 | FI57: 2421.355 | FJ57: 2442.473 | FK57: 2461.606 | FL57: 2476.76 | FM57: 2491.407 | FN57: 2504.508 | FO57: 2514.167 | FP57: 2524.543 | FQ57: 2536.976 | FR57: 2552.229 | FS57: 2569.826 | FT57: 2587.996 | FU57: 2606.405 | FV57: 2626.695 | FW57: 2648.965 | FX57: 2664.068 | FY57: 2667.309 | FZ57: 2663.59 | GA57: 2651.308 | GB57: 2615.869 | GC57: 2565.708 | GD57: 2523.532 | GE57: 2488.008 | GF57: 2460.277 | GG57: 2435.967 | GH57: 2413.173 | GI57: 2393.657 | GJ57: 2376.178 | GK57: 2358.232 | GL57: 2340.205 | GM57: 2322.943 | GN57: 2306.306 | GO57: 2290.237 | GP57: 2274.735 | GQ57: 2259.81 | GR57: 2245.423 | GS57: 2232 | GU57: 1902.925
A58: Lithuania | EL58: 2553.159 | EM58: 2561.579 | EN58: 2583.984 | EO58: 2593.918 | EP58: 2597.435 | EQ58: 2614.336 | ER58: 2641.167 | ES58: 2651.63 | ET58: 2672.229 | EU58: 2717.677 | EV58: 2764.864 | EW58: 2810.271 | EX58: 2850.22 | EY58: 2886.18 | EZ58: 2922.673 | FA58: 2959.173 | FB58: 2996.683 | FC58: 3033.728 | FD58: 3068.801 | FE58: 3101.819 | FF58: 3137.562 | FG58: 3177.533 | FH58: 3213.271 | FI58: 3245.551 | FJ58: 3276.362 | FK58: 3305.195 | FL58: 3333.542 | FM58: 3361.419 | FN58: 3386.988 | FO58: 3410.869 | FP58: 3435.289 | FQ58: 3462.341 | FR58: 3491.974 | FS58: 3523.38 | FT58: 3555.054 | FU58: 3587.032 | FV58: 3619.593 | FW58: 3653.339 | FX58: 3673.95 | FY58: 3681.25 | FZ58: 3694.836 | GA58: 3702.136 | GB58: 3700.278 | GC58: 3689.004 | GD58: 3679.636 | GE58: 3673.577 | GF58: 3668.316 | GG58: 3664.372 | GH58: 3661.168 | GI58: 3658.454 | GJ58: 3654.387 | GK58: 3645.747 | GL58: 3633.232 | GM58: 3620.094 | GN58: 3607.899 | GO58: 3596.617 | GP58: 3585.906 | GQ58: 3575.439 | GR58: 3565.205 | GS58: 3555 | GU58: 3257.214
A59: Moldova | EL59: 2336.432 | EM59: 2422.094 | EN59: 2466.74 | EO59: 2505.504 | EP59: 2565.909 | EQ59: 2622.424 | ER59: 2682.168 | ES59: 2758.94 | ET59: 2838.489 | EU59: 2919.316 | EV59: 2998.981 | EW59: 3068.962 | EX59: 3136.438 | EY59: 3204.914 | EZ59: 3271.001 | FA59: 3333.549 | FB59: 3394.16 | FC59: 3452.263 | FD59: 3505.944 | FE59: 3549.42 | FF59: 3594.517 | FG59: 3648.754 | FH59: 3703.001 | FI59: 3752.827 | FJ59: 3800.643 | FK59: 3846.519 | FL59: 3885.894 | FM59: 3920.281 | FN59: 3947.422 | FO59: 3969.989 | FP59: 3996.278 | FQ59: 4026.204 | FR59: 4055.086 | FS59: 4082.711 | FT59: 4113.243 | FU59: 4148.172 | FV59: 4183.283 | FW59: 4216.682 | FX59: 4289.659 | FY59: 4359.496 | FZ59: 4394 | GA59: 4421 | GB59: 4438 | GC59: 4444 | GD59: 4441 | GE59: 4433 | GF59: 4422 | GG59: 4416 | GH59: 4412 | GI59: 4403 | GJ59: 4391 | GK59: 4378 | GL59: 4367 | GM59: 4356 | GN59: 4347 | GO59: 4340 | GP59: 4334 | GQ59: 4329 | GR59: 4324 | GS59: 4321 | GU59: 4118
A60: Russian Federation | EL60: 101936.816 | EM60: 103506.916 | EN60: 105385.09 | EO60: 107302.806 | EP60: 109208.917 | EQ60: 111125.498 | ER60: 112859.299 | ES60: 114554.838 | ET60: 116259.155 | EU60: 117956.865 | EV60: 119631.633 | EW60: 121324.346 | EX60: 122877.56 | EY60: 124276.517 | EZ60: 125521.51 | FA60: 126541.293 | FB60: 127414.772 | FC60: 128183.863 | FD60: 128876.498 | FE60: 129572.617 | FF60: 130245.476 | FG60: 130977.408 | FH60: 131768.681 | FI60: 132556.176 | FJ60: 133378.674 | FK60: 134293.372 | FL60: 135269.263 | FM60: 136263.686 | FN60: 137245.87 | FO60: 138163.68 | FP60: 139038.849 | FQ60: 139899.972 | FR60: 140821.82 | FS60: 141861.725 | FT60: 142922.263 | FU60: 143937.997 | FV60: 144966.55 | FW60: 145958.907 | FX60: 146865.701 | FY60: 147351.694 | FZ60: 147973 | GA60: 148299 | GB60: 148400 | GC60: 148390 | GD60: 148442 | GE60: 148490 | GF60: 148312 | GG60: 148067 | GH60: 147813 | GI60: 147352 | GJ60: 146710 | GK60: 145990 | GL60: 145163 | GM60: 144308 | GN60: 143507 | GO60: 142776 | GP60: 142069 | GQ60: 141378 | GR60: 140702 | GS60: 140041 | GU60: 124094
A61: Tajikistan | EL61: 1530.047 | EM61: 1584.833 | EN61: 1640.949 | EO61: 1684.446 | EP61: 1729.862 | EQ61: 1780.85 | ER61: 1836.703 | ES61: 1898.639 | ET61: 1953.527 | EU61: 2009.483 | EV61: 2080.556 | EW61: 2163.433 | EX61: 2253.472 | EY61: 2339.558 | EZ61: 2424.081 | FA61: 2510.619 | FB61: 2592.754 | FC61: 2672.279 | FD61: 2759.277 | FE61: 2850.066 | FF61: 2938.516 | FG61: 3039.443 | FH61: 3145.141 | FI61: 3242.778 | FJ61: 3344.985 | FK61: 3448.869 | FL61: 3553.782 | FM61: 3659.375 | FN61: 3760.973 | FO61: 3862.932 | FP61: 3966 | FQ61: 4073 | FR61: 4185 | FS61: 4304 | FT61: 4431 | FU61: 4569 | FV61: 4716 | FW61: 4865 | FX61: 5006 | FY61: 5148 | FZ61: 5272 | GA61: 5407 | GB61: 5500 | GC61: 5547 | GD61: 5604 | GE61: 5678 | GF61: 5764 | GG61: 5864 | GH61: 5983 | GI61: 6111 | GJ61: 6230 | GK61: 6339 | GL61: 6452 | GM61: 6568 | GN61: 6688 | GO61: 6815 | GP61: 6944 | GQ61: 7077 | GR61: 7212 | GS61: 7349 | GU61: 10103
A62: Turkmenistan | EL62: 1204.075 | EM62: 1226.498 | EN62: 1252.749 | EO62: 1282.64 | EP62: 1313.402 | EQ62: 1347.774 | ER62: 1381.525 | ES62: 1425.659 | ET62: 1478.072 | EU62: 1530.083 | EV62: 1584.82 | EW62: 1644.416 | EX62: 1704.534 | EY62: 1765.175 | EZ62: 1825.383 | FA62: 1882.148 | FB62: 1935.923 | FC62: 1994.131 | FD62: 2054.487 | FE62: 2116.408 | FF62: 2181.272 | FG62: 2246.71 | FH62: 2313.102 | FI62: 2379.578 | FJ62: 2450.654 | FK62: 2523.906 | FL62: 2594.288 | FM62: 2663.744 | FN62: 2733.933 | FO62: 2804.142 | FP62: 2875.133 | FQ62: 2946.676 | FR62: 3018.436 | FS62: 3091.431 | FT62: 3164.611 | FU62: 3240.472 | FV62: 3323.673 | FW62: 3410.704 | FX62: 3492.186 | FY62: 3572 | FZ62: 3658 | GA62: 3745 | GB62: 3830 | GC62: 3917 | GD62: 4004 | GE62: 4079 | GF62: 4143 | GG62: 4201 | GH62: 4262 | GI62: 4325 | GJ62: 4385 | GK62: 4445 | GL62: 4503 | GM62: 4556 | GN62: 4608 | GO62: 4664 | GP62: 4720 | GQ62: 4774 | GR62: 4829 | GS62: 4885 | GU62: 6027
A63: Ukraine | EL63: 36774.854 | EM63: 37435.785 | EN63: 38006.18 | EO63: 38541.349 | EP63: 38993.798 | EQ63: 39368.099 | ER63: 39940.18 | ES63: 40655.779 | ET63: 41359.132 | EU63: 42006.03 | EV63: 42644.035 | EW63: 43195.765 | EX63: 43697.245 | EY63: 44255.938 | EZ63: 44785.626 | FA63: 45234.869 | FB63: 45673.64 | FC63: 46111.262 | FD63: 46510.301 | FE63: 46871.405 | FF63: 47235.697 | FG63: 47637.239 | FH63: 48026.627 | FI63: 48367.002 | FJ63: 48676.939 | FK63: 48973.428 | FL63: 49233.524 | FM63: 49453.675 | FN63: 49642.987 | FO63: 49835.012 | FP63: 50046.649 | FQ63: 50235.677 | FR63: 50397.455 | FS63: 50573.066 | FT63: 50769.375 | FU63: 50944.248 | FV63: 51095.072 | FW63: 51218.101 | FX63: 51422.963 | FY63: 51501.478 | FZ63: 51622.275 | GA63: 51730.355 | GB63: 51869.109 | GC63: 51887.112 | GD63: 51637.611 | GE63: 51247.259 | GF63: 50812.52 | GG63: 50369.926 | GH63: 49938.798 | GI63: 49487.245 | GJ63: 49005 | GK63: 48508 | GL63: 48057 | GM63: 47667 | GN63: 47305 | GO63: 46959 | GP63: 46620 | GQ63: 46300 | GR63: 45994 | GS63: 45700 | GU63: 39492
A64: Uzbekistan | EL64: 6292.797 | EM64: 6489.85 | EN64: 6681.196 | EO64: 6886.387 | EP64: 7061.494 | EQ64: 7232.067 | ER64: 7440.744 | ES64: 7694.366 | ET64: 7951.857 | EU64: 8223.106 | EV64: 8531.032 | EW64: 8867.714 | EX64: 9209.65 | EY64: 9546.588 | EZ64: 9877.755 | FA64: 10205.805 | FB64: 10529.599 | FC64: 10864.03 | FD64: 11232.04 | FE64: 11591.49 | FF64: 11940.155 | FG64: 12334.057 | FH64: 12741.848 | FI64: 13147.733 | FJ64: 13568.7 | FK64: 13987.696 | FL64: 14404.009 | FM64: 14808.95 | FN64: 15207.113 | FO64: 15605.49 | FP64: 15994 | FQ64: 16400 | FR64: 16830 | FS64: 17171 | FT64: 17729 | FU64: 18215 | FV64: 18718 | FW64: 19219 | FX64: 19625 | FY64: 20033 | FZ64: 20530 | GA64: 21059 | GB64: 21610 | GC64: 22128 | GD64: 22604 | GE64: 23067 | GF64: 23524 | GG64: 23952 | GH64: 24342 | GI64: 24702 | GJ64: 25042 | GK64: 25372 | GL64: 25696 | GM64: 25992 | GN64: 26268 | GO64: 26540 | GP64: 26810 | GQ64: 27079 | GR64: 27345 | GS64: 27606 | GU64: 32855
A65: Total Former USSR | B65: 3900 | D65: 7100 | F65: 16950 | H65: 20700 | J65: 26550 | L65: 54765 | AP65: 73750 | BJ65: 88672 | CD65: 110664 | CN65: 124500 | DA65: 156192 | DH65: 154607 | DI65: 152836 | DJ65: 152403 | DK65: 153055 | DL65: 155581 | DM65: 158983 | DN65: 162621 | DO65: 166117 | DP65: 169269 | DQ65: 172017 | DR65: 174212 | DS65: 175987 | DT65: 176807 | DU65: 177401 | DV65: 178453 | DW65: 179636 | DX65: 181502 | DY65: 184626 | DZ65: 188498 | EA65: 192379 | EB65: 195970 | EH65: 173900 | EI65: 174000 | EJ65: 175100 | EK65: 177500 | EL65: 179570.837 | EM65: 182677.438 | EN65: 185855.87 | EO65: 188960.538 | EP65: 192171.246 | EQ65: 195612.673 | ER65: 199102.595 | ES65: 202604.165 | ET65: 206200.603 | EU65: 209927.781 | EV65: 213779.936 | EW65: 217618.27 | EX65: 221227.18 | EY65: 224585.401 | EZ65: 227697.97 | FA65: 230512.995 | FB65: 233139.09 | FC65: 235629.795 | FD65: 237983.436 | FE65: 240252.698 | FF65: 242478.113 | FG65: 244886.536 | FH65: 247343.292 | FI65: 249712.38 | FJ65: 252110.639 | FK65: 254518.689 | FL65: 256882.729 | FM65: 259225.085 | FN65: 261524.905 | FO65: 263750.613 | FP65: 265926.436 | FQ65: 268123.343 | FR65: 270389.974 | FS65: 272716.914 | FT65: 275330.011 | FU65: 277811.571 | FV65: 280296.143 | FW65: 282718.129 | FX65: 285020.4 | FY65: 286461.835 | FZ65: 288361.468 | GA65: 289949.418 | GB65: 290950.09 | GC65: 291212.274 | GD65: 291051.564 | GE65: 290854.767 | GF65: 290625.19 | GG65: 290281.094 | GH65: 289918.746 | GI65: 289399.596 | GJ65: 288719.359 | GK65: 287980.295 | GL65: 287189.122 | GM65: 286409.123 | GN65: 285713.254 | GO65: 285131.177 | GP65: 284598.961 | GQ65: 284119.892 | GR65: 283685.062 | GS65: 283290 | GU65: 271581.386
A66: 8 Latin American countries
A67: Argentina | L67: 534 | AP67: 1100 | BJ67: 1796 | CD67: 3376 | CN67: 4693 | CO67: 4873 | CP67: 5060 | CQ67: 5254 | CR67: 5455 | CS67: 5664 | CT67: 5881 | CU67: 6107 | CV67: 6341 | CW67: 6584 | CX67: 6836 | CY67: 7098 | CZ67: 7370 | DA67: 7653 | DB67: 7885 | DC67: 8072 | DD67: 8226 | DE67: 8374 | DF67: 8518 | DG67: 8672 | DH67: 8861 | DI67: 9092 | DJ67: 9368 | DK67: 9707 | DL67: 10054 | DM67: 10358 | DN67: 10652 | DO67: 10965 | DP67: 11282 | DQ67: 11592 | DR67: 11896 | DS67: 12167 | DT67: 12402 | DU67: 12623 | DV67: 12834 | DW67: 13044 | DX67: 13260 | DY67: 13490 | DZ67: 13724 | EA67: 13984 | EB67: 14169 | EC67: 14402 | ED67: 14638 | EE67: 14877 | EF67: 15130 | EG67: 15390 | EH67: 15654 | EI67: 15942 | EJ67: 16307 | EK67: 16737 | EL67: 17150.336 | EM67: 17517.342 | EN67: 17876.956 | EO67: 18230.816 | EP67: 18580.559 | EQ67: 18927.821 | ER67: 19271.511 | ES67: 19610.538 | ET67: 19946.539 | EU67: 20281.15 | EV67: 20616.009 | EW67: 20950.583 | EX67: 21283.783 | EY67: 21616.403 | EZ67: 21949.244 | FA67: 22283.1 | FB67: 22611.604 | FC67: 22934.225 | FD67: 23260.514 | FE67: 23600.026 | FF67: 23962.313 | FG67: 24363.816 | FH67: 24779.799 | FI67: 25209.829 | FJ67: 25646.371 | FK67: 26081.88 | FL67: 26531.28 | FM67: 26983.828 | FN67: 27440.272 | FO67: 27901.971 | FP67: 28369.799 | FQ67: 28848 | FR67: 29330 | FS67: 29784 | FT67: 30231 | FU67: 30672 | FV67: 31145 | FW67: 31625 | FX67: 32099 | FY67: 32572 | FZ67: 33036 | GA67: 33504 | GB67: 33967 | GC67: 34407 | GD67: 34847 | GE67: 35274 | GF67: 35683 | GG67: 36102 | GH67: 36518 | GI67: 36923 | GJ67: 37336 | GK67: 37694 | GL67: 37999 | GM67: 38336 | GN67: 38742 | GO67: 39181 | GP67: 39614 | GQ67: 40049 | GR67: 40482 | GS67: 40914 | GU67: 48795
A68: Brazil | D68: 700 | F68: 1000 | H68: 800 | J68: 1250 | L68: 4507 | AP68: 7234 | BJ68: 9797 | BK68: 9980 | BL68: 10167 | BM68: 10358 | BN68: 10552 | BO68: 10749 | BP68: 10951 | BQ68: 11156 | BR68: 11365 | BS68: 11578 | BT68: 11794 | BU68: 12015 | BV68: 12240 | BW68: 12470 | BX68: 12703 | BY68: 12941 | BZ68: 13183 | CA68: 13430 | CB68: 13682 | CC68: 13938 | CD68: 14199 | CE68: 14539 | CF68: 14886 | CG68: 15242 | CH68: 15607 | CI68: 15980 | CJ68: 16362 | CK68: 16753 | CL68: 17154 | CM68: 17564 | CN68: 17984 | CO68: 18392 | CP68: 18782 | CQ68: 19180 | CR68: 19587 | CS68: 20003 | CT68: 20427 | CU68: 20860 | CV68: 21303 | CW68: 21754 | CX68: 22216 | CY68: 22687 | CZ68: 23168 | DA68: 23660 | DB68: 24161 | DC68: 24674 | DD68: 25197 | DE68: 25732 | DF68: 26277 | DG68: 26835 | DH68: 27404 | DI68: 27969 | DJ68: 28542 | DK68: 29126 | DL68: 29723 | DM68: 30332 | DN68: 30953 | DO68: 31587 | DP68: 32234 | DQ68: 32894 | DR68: 33568 | DS68: 34256 | DT68: 34957 | DU68: 35673 | DV68: 36404 | DW68: 37150 | DX68: 37911 | DY68: 38687 | DZ68: 39480 | EA68: 40289 | EB68: 41114 | EC68: 42069 | ED68: 43069 | EE68: 44093 | EF68: 45141 | EG68: 46215 | EH68: 47313 | EI68: 48438 | EJ68: 49590 | EK68: 50769 | EL68: 53443.075 | EM68: 54995.532 | EN68: 56602.56 | EO68: 58266.357 | EP68: 59989.219 | EQ68: 61773.546 | ER68: 63631.992 | ES68: 65551.171 | ET68: 67533.213 | EU68: 69580.328 | EV68: 71694.81 | EW68: 73832.902 | EX68: 76039.39 | EY68: 78316.598 | EZ68: 80666.939 | FA68: 83092.908 | FB68: 85557.441 | FC68: 88049.823 | FD68: 90569.084 | FE68: 93114.241 | FF68: 95684.297 | FG68: 98265 | FH68: 100874 | FI68: 103513 | FJ68: 106182 | FK68: 108879 | FL68: 111603 | FM68: 114373 | FN68: 117207 | FO68: 120101 | FP68: 123020 | FQ68: 125992 | FR68: 129028 | FS68: 131960 | FT68: 134699 | FU68: 137382 | FV68: 140196 | FW68: 143027 | FX68: 145873 | FY68: 148659 | FZ68: 151170 | GA68: 153584 | GB68: 156032 | GC68: 158512 | GD68: 161017 | GE68: 163544 | GF68: 166086 | GG68: 168639 | GH68: 171201 | GI68: 173764 | GJ68: 176320 | GK68: 178870 | GL68: 181418 | GM68: 183960 | GN68: 186489 | GO68: 188993 | GP68: 191469 | GQ68: 193919 | GR68: 196343 | GS68: 198739 | GU68: 240173
A69: Chile | L69: 771.447 | M69: 789.144 | N69: 807.304 | O69: 825.89 | P69: 844.866 | Q69: 864.198 | R69: 883.855 | S69: 903.807 | T69: 924.027 | U69: 944.49 | V69: 965.173 | W69: 986.056 | X69: 1007.12 | Y69: 1028.35 | Z69: 1049.733 | AA69: 1071.256 | AB69: 1092.912 | AC69: 1114.694 | AD69: 1136.597 | AE69: 1158.619 | AF69: 1180.761 | AG69: 1203.023 | AH69: 1225.41 | AI69: 1247.926 | AJ69: 1270.578 | AK69: 1293.375 | AL69: 1316.325 | AM69: 1339.439 | AN69: 1362.729 | AO69: 1386.207 | AP69: 1409.885 | AQ69: 1433.777 | AR69: 1457.897 | AS69: 1482.258 | AT69: 1506.873 | AU69: 1531.758 | AV69: 1556.924 | AW69: 1582.386 | AX69: 1608.154 | AY69: 1634.242 | AZ69: 1660.659 | BA69: 1687.416 | BB69: 1714.521 | BC69: 1741.983 | BD69: 1769.808 | BE69: 1798.001 | BF69: 1826.566 | BG69: 1855.505 | BH69: 1884.819 | BI69: 1914.507 | BJ69: 1944.569 | BK69: 1974.998 | BL69: 2005.79 | BM69: 2036.939 | BN69: 2068.435 | BO69: 2100.268 | BP69: 2132.427 | BQ69: 2164.899 | BR69: 2197.67 | BS69: 2230.723 | BT69: 2264.042 | BU69: 2297.611 | BV69: 2331.409 | BW69: 2365.419 | BX69: 2399.621 | BY69: 2433.995 | BZ69: 2468.522 | CA69: 2503.181 | CB69: 2537.954 | CC69: 2572.823 | CD69: 2607.769 | CE69: 2642.778 | CF69: 2677.834 | CG69: 2712.925 | CH69: 2748.04 | CI69: 2783.171 | CJ69: 2818.312 | CK69: 2853.462 | CL69: 2888.62 | CM69: 2923.792 | CN69: 2958.986 | CO69: 2994.214 | CP69: 3029.494 | CQ69: 3064.845 | CR69: 3100.295 | CS69: 3135.874 | CT69: 3171.619 | CU69: 3207.571 | CV69: 3243.777 | CW69: 3280.289 | CX69: 3317.166 | CY69: 3354.469 | CZ69: 3392.269 | DA69: 3430.64 | DB69: 3469.662 | DC69: 3509.42 | DD69: 3550.005 | DE69: 3591.512 | DF69: 3634.043 | DG69: 3677.702 | DH69: 3722.598 | DI69: 3768.846 | DJ69: 3816.561 | DK69: 3865.863 | DL69: 3916.875 | DM69: 3969.721 | DN69: 4024.523 | DO69: 4081.406 | DP69: 4140.494 | DQ69: 4201.905 | DR69: 4265.756 | DS69: 4332.156 | DT69: 4401.207 | DU69: 4473.001 | DV69: 4547.615 | DW69: 4625.112 | DX69: 4705.534 | DY69: 4788.901 | DZ69: 4875.203 | EA69: 4964.398 | EB69: 5056.404 | EC69: 5151.095 | ED69: 5248.293 | EE69: 5347.758 | EF69: 5449.185 | EG69: 5552.19 | EH69: 5656.303 | EI69: 5760.959 | EJ69: 5865.486 | EK69: 5969.096 | EL69: 6090.833 | EM69: 6251.933 | EN69: 6377.619 | EO69: 6492.774 | EP69: 6612.138 | EQ69: 6743.269 | ER69: 6888.843 | ES69: 7048.426 | ET69: 7219.783 | EU69: 7399.842 | EV69: 7585.349 | EW69: 7773.314 | EX69: 7961.258 | EY69: 8147.349 | EZ69: 8330.423 | FA69: 8509.95 | FB69: 8685.954 | FC69: 8858.908 | FD69: 9029.621 | FE69: 9199.122 | FF69: 9368.558 | FG69: 9540.298 | FH69: 9717.524 | FI69: 9896.635 | FJ69: 10076.544 | FK69: 10251.542 | FL69: 10432.214 | FM69: 10599.793 | FN69: 10759.823 | FO69: 10922.822 | FP69: 11093.718 | FQ69: 11282.304 | FR69: 11487.112 | FS69: 11686.845 | FT69: 11879.139 | FU69: 12068 | FV69: 12261 | FW69: 12465 | FX69: 12679 | FY69: 12902 | FZ69: 13129 | GA69: 13354 | GB69: 13574 | GC69: 13789 | GD69: 14001 | GE69: 14207 | GF69: 14405 | GG69: 14601 | GH69: 14792 | GI69: 14977 | GJ69: 15156 | GK69: 15332 | GL69: 15504 | GM69: 15672 | GN69: 15836 | GO69: 15995 | GP69: 16151 | GQ69: 16304 | GR69: 16454 | GS69: 16602 | GU69: 18984
A70: Colombia | L70: 1206 | AP70: 2065 | BJ70: 2392 | CD70: 3369 | CN70: 3998 | CO70: 4079 | CP70: 4162 | CQ70: 4247 | CR70: 4334 | CS70: 4422 | CT70: 4512 | CU70: 4604 | CV70: 4697 | CW70: 4793 | CX70: 4890 | CY70: 4990 | CZ70: 5091 | DA70: 5195 | DB70: 5330 | DC70: 5468 | DD70: 5609 | DE70: 5754 | DF70: 5903 | DG70: 6056 | DH70: 6213 | DI70: 6374 | DJ70: 6539 | DK70: 6709 | DL70: 6882 | DM70: 7061 | DN70: 7243 | DO70: 7431 | DP70: 7624 | DQ70: 7821 | DR70: 7914 | DS70: 8009 | DT70: 8104 | DU70: 8201 | DV70: 8299 | DW70: 8398 | DX70: 8498 | DY70: 8599 | DZ70: 8702 | EA70: 8935 | EB70: 9174 | EC70: 9419 | ED70: 9671 | EE70: 9930 | EF70: 10196 | EG70: 10469 | EH70: 10749 | EI70: 11036 | EJ70: 11332 | EK70: 11635 | EL70: 11591.658 | EM70: 11965 | EN70: 12350.771 | EO70: 12749.619 | EP70: 13162.003 | EQ70: 13588.405 | ER70: 14029.321 | ES70: 14485.993 | ET70: 14958.277 | EU70: 15446.73 | EV70: 15952.727 | EW70: 16476.124 | EX70: 17009.885 | EY70: 17546.017 | EZ70: 18090 | FA70: 18646.175 | FB70: 19201.732 | FC70: 19764.027 | FD70: 20321.665 | FE70: 20869.14 | FF70: 21429.658 | FG70: 21992.579 | FH70: 22542.89 | FI70: 23069.231 | FJ70: 23598 | FK70: 24125 | FL70: 24638 | FM70: 25119 | FN70: 25575 | FO70: 26072 | FP70: 26631 | FQ70: 27215 | FR70: 27826 | FS70: 28455 | FT70: 29096 | FU70: 29748 | FV70: 30400 | FW70: 31042 | FX70: 31673 | FY70: 32307 | FZ70: 32957 | GA70: 33623 | GB70: 34314 | GC70: 35012 | GD70: 35707 | GE70: 36402 | GF70: 37094 | GG70: 37782 | GH70: 38467 | GI70: 39145 | GJ70: 39817 | GK70: 40484 | GL70: 41145 | GM70: 41802 | GN70: 42454 | GO70: 43100 | GP70: 43742 | GQ70: 44380 | GR70: 45014 | GS70: 43677 | GU70: 57897
A71: Mexico | B71: 2200 | D71: 4500 | F71: 7500 | H71: 2500 | J71: 4500 | L71: 6587 | AP71: 7662 | BJ71: 9219 | BK71: 9331 | BL71: 9444 | BM71: 9558 | BN71: 9674 | BO71: 9791 | BP71: 9910 | BQ71: 10030 | BR71: 10151 | BS71: 10274 | BT71: 10399 | BU71: 10524 | BV71: 10652 | BW71: 10781 | BX71: 10912 | BY71: 11044 | BZ71: 11178 | CA71: 11313 | CB71: 11450 | CC71: 11589 | CD71: 11729 | CE71: 11904 | CF71: 12083 | CG71: 12263 | CH71: 12447 | CI71: 12663 | CJ71: 12822 | CK71: 13014 | CL71: 13209 | CM71: 13406 | CN71: 13607 | CO71: 13755 | CP71: 13904 | CQ71: 14055 | CR71: 14208 | CS71: 14363 | CT71: 14519 | CU71: 14676 | CV71: 14836 | CW71: 14997 | CX71: 15000 | CY71: 14990 | CZ71: 14980 | DA71: 14970 | DB71: 14960 | DC71: 14950 | DD71: 14940 | DE71: 14930 | DF71: 14920 | DG71: 14910 | DH71: 14900 | DI71: 14895 | DJ71: 15129 | DK71: 15367 | DL71: 15609 | DM71: 15854 | DN71: 16103 | DO71: 16356 | DP71: 16613 | DQ71: 16875 | DR71: 17175 | DS71: 17480 | DT71: 17790 | DU71: 18115 | DV71: 18445 | DW71: 18781 | DX71: 19040 | DY71: 19370 | DZ71: 19705 | EA71: 20047 | EB71: 20393 | EC71: 20955 | ED71: 21532 | EE71: 22125 | EF71: 22734 | EG71: 23724 | EH71: 24413 | EI71: 25122 | EJ71: 25852 | EK71: 26603 | EL71: 28485.18 | EM71: 29296.235 | EN71: 30144.317 | EO71: 31031.279 | EP71: 31959.113 | EQ71: 32929.914 | ER71: 33945.886 | ES71: 35015.548 | ET71: 36141.955 | EU71: 37328.466 | EV71: 38578.505 | EW71: 39836.23 | EX71: 41121.485 | EY71: 42434.264 | EZ71: 43774.575 | FA71: 45142.399 | FB71: 46537.832 | FC71: 47995.559 | FD71: 49518.803 | FE71: 51110.928 | FF71: 52775.158 | FG71: 54406.901 | FH71: 55984.294 | FI71: 57557.303 | FJ71: 59122.839 | FK71: 60678.045 | FL71: 62219.964 | FM71: 63759.976 | FN71: 65295.99 | FO71: 66825.878 | FP71: 68347.479 | FQ71: 69969.263 | FR71: 71640.904 | FS71: 73362.881 | FT71: 75080.138 | FU71: 76767.225 | FV71: 78442.43 | FW71: 80122.492 | FX71: 81781.816 | FY71: 83366.836 | FZ71: 84913.652 | GA71: 86488.032 | GB71: 88111.03 | GC71: 89749.141 | GD71: 91337.896 | GE71: 92880.353 | GF71: 94398.579 | GG71: 95895.146 | GH71: 97325.063 | GI71: 98616.905 | GJ71: 99926.62 | GK71: 101246.961 | GL71: 102479.927 | GM71: 103718.062 | GN71: 104959.594 | GO71: 106202.903 | GP71: 107449.525 | GQ71: 108700.891 | GR71: 109955.4 | GS71: 111212 | GU71: 135172.155
A72: Peru | D72: 3000 | F72: 4000 | H72: 1300 | J72: 1300 | L72: 1317 | AP72: 2001 | BJ72: 2606 | CD72: 3346 | CJ72: 3470 | CK72: 3513 | CL72: 3558 | CM72: 3603 | CN72: 3648 | CO72: 3694 | CP72: 3741 | CQ72: 3788 | CR72: 3836 | CS72: 3885 | CT72: 3934 | CU72: 3984 | CV72: 4034 | CW72: 4085 | CX72: 4137 | CY72: 4189 | CZ72: 4242 | DA72: 4295 | DB72: 4350 | DC72: 4405 | DD72: 4460 | DE72: 4517 | DF72: 4574 | DG72: 4631 | DH72: 4690 | DI72: 4764 | DJ72: 4838 | DK72: 4914 | DL72: 4992 | DM72: 5070 | DN72: 5150 | DO72: 5230 | DP72: 5312 | DQ72: 5396 | DR72: 5480 | DS72: 5569 | DT72: 5660 | DU72: 5752 | DV72: 5846 | DW72: 5941 | DX72: 6038 | DY72: 6137 | DZ72: 6237 | EA72: 6338 | EB72: 6440 | EC72: 6550 | ED72: 6662 | EE72: 6776 | EF72: 6892 | EG72: 7010 | EH72: 7130 | EI72: 7252 | EJ72: 7376 | EK72: 7502 | EL72: 7632.5 | EM72: 7826.2 | EN72: 8025.7 | EO72: 8232.1 | EP72: 8447 | EQ72: 8671.5 | ER72: 8904.9 | ES72: 9146.1 | ET72: 9396.7 | EU72: 9657.8 | EV72: 9931 | EW72: 10217.5 | EX72: 10516.5 | EY72: 10825.8 | EZ72: 11143.5 | FA72: 11467.3 | FB72: 11796.4 | FC72: 12132.2 | FD72: 12476 | FE72: 12829.1 | FF72: 13192.8 | FG72: 13568.3 | FH72: 13954.7 | FI72: 14350.3 | FJ72: 14753.1 | FK72: 15161.199 | FL72: 15573.199 | FM72: 15990.099 | FN72: 16414.399 | FO72: 16848.699 | FP72: 17295.298 | FQ72: 17754.798 | FR72: 18173 | FS72: 18591 | FT72: 19011 | FU72: 19432 | FV72: 19855 | FW72: 20280 | FX72: 20710 | FY72: 21151 | FZ72: 21600 | GA72: 22057 | GB72: 22522 | GC72: 22993 | GD72: 23469 | GE72: 23942 | GF72: 24402 | GG72: 24847 | GH72: 25276 | GI72: 25686 | GJ72: 26087 | GK72: 26485 | GL72: 26882 | GM72: 27275 | GN72: 27665 | GO72: 28051 | GP72: 28433 | GQ72: 28809 | GR72: 29181 | GS72: 29547 | GU72: 35923
